{"text_format":"1","workbook":"xlsx","n_sheets":4,"sheets":["INSTRUCCIONES","FORMATO","SOLICITUDES","DATOS"],"not_rendered":{"charts":0,"images":2,"macros":1,"external_links":0,"defined_names":11,"comments":1,"pivot_tables":0},"unopened":[],"bounds":{"document_bytes":16777216,"sheet_cells":100000,"rows_first":2000,"rows_last":500,"rows_between":2000,"halvings":0,"cell_chars":16384,"cell_head_chars":4096},"cells_cut":0,"cells_raw":0,"read":"whole","date_system":"1900"}

{"sheet":"INSTRUCCIONES","index":0,"n_rows":35,"n_cols":6,"rows_kept":35,"cut":false,"hidden":false,"merged":[[2,3,2,5]]}
[]
[null,null,null,null,null,"F-54-CREACION OBJETOS DE COSTO-35 -V2"]
[null,null,null,"INSTRUCCIONES"]
[]
[null,null,null,"CENTRO DE COSTO:"]
[null,null,null,null,"1.","Haga clic en \"IR AL FORMATO\"."]
[null,null,null,null,"2.","Diligencia el campo \"Fecha de solicitud\"."]
[null,null,null,null,"3.","Haga Clic en el botón \"CENTRO DE COSTO\"."]
[null,null,null,null,"4.","Diligencie los campos solicitados."]
[null,null,null,null,null,"Recuerde que los campos marcados con * son obligatorios."]
[null,null,null,null,"5.","Haga clic en el botón \"TRANSFERIR CENTRO DE COSTO\"."]
[null,null,null,null,"6.","Puede revisar la información transferida haciendo clic en el botón \"SOLICITUDES\"."]
[null,null,null,null,"7.","Repita los pasos del 1 al 5 para crear varios centros de costo."]
[]
[null,null,null,"ORDEN INTERNA:"]
[null,null,null,null,"1.","Haga clic en \"IR AL FORMATO\"."]
[null,null,null,null,"2.","Diligencia el campo \"Fecha de solicitud\"."]
[null,null,null,null,"3.","Haga Clic en el botón \"ORDEN INTERNA\"."]
[null,null,null,null,"4.","Diligencie los campos solicitados."]
[null,null,null,null,null,"Recuerde que los campos marcados con * son obligatorios."]
[null,null,null,null,"5.","Haga clic en el botón \"TRANSFERIR ORDEN INTERNA\"."]
[null,null,null,null,"6.","Puede revisar la información transferida haciendo clic en el botón \"SOLICITUDES\"."]
[null,null,null,null,"7.","Repita los pasos del 1 al 5 para crear varias ordenes internas."]
[]
[null,null,null,"NOTA:"]
[null,null,null,null,1,"El botón \"INICIO\" limpia el formulario."]
[null,null,null,null,2,"El botón \"INSTRUCCIONES\" lo devuelve a la hoja de INSTRUCCIONES."]
[null,null,null,null,null,"El botón \"SOLICITUDES\" lo ubica en todos los objetos solicitados"]
[null,null,null,null,3,"Encontrará a lo largo del formulario, junto a cada campo a diligenciar, un icono "]
[null,null,null,null,null,"de ayuda que le brindará más información."]
[null,null,null,null,4,"Puede acceder al Formato haciendo clic en el botón \"IR AL FORMATO\""]
[]
[]
[]
[null,null,null,null,5,"Puede visualizar las solicitudes realizadas haciendo clic en \" IR A SOLICITUDES\""]

{"sheet":"FORMATO","index":1,"n_rows":52,"n_cols":27,"rows_kept":52,"cut":false,"hidden":true,"merged":[[51,1,53,1],[51,4,53,6],[51,2,53,2],[41,4,41,5],[39,4,39,6],[33,2,33,6],[18,4,18,5],[20,4,20,6],[22,4,22,5],[2,2,2,6],[3,2,3,6],[4,2,4,6],[6,3,6,5],[14,2,14,6]]}
[]
[null,null,null,null,null,null,{"$f":"UPPER(FORMATO!D44)","v":""}]
[null,null,"FORMATO"]
[null,null,"SOLICITUD DE CREACION "]
[null,null,"DE CENTROS DE COSTO Y ORDENES INTERNAS"]
[]
[null,null,"Fecha de solicitud:"]
[]
[null,null,"Seleccione una de las siguientes opciones:"]
[]
[]
[]
[]
[]
[null,null,"CENTRO DE COSTO"]
[null,null,null,null,null,null,null,null,null,null,null,"NODO AGRUPADOR","NOMBRE NODO AGRUPADOR","NOMBRE (20 Caracteres)","DESCRIPCION (40 Caracteres)","RESPONSABLE (20 Caracteres)","DEPARTAMENTO (4 Caracteres)","NO EXISTE, POR FAVOR VERIFIQUE","SEGMENTO","NOMBRE SEGMENTO","FUNCION","NOMBRE FUNCION","CENTRO COSTO ICEBERG","NOMBRE CENTRO COSTO ICEBERG","FECHA DE SOLICITUD",{"$f":"+C52","v":"JUSTIFICACION"}]
[null,"*","NODO AGRUPADOR (6 Caracteres)",null,null,{"$f":"IFERROR(VLOOKUP(E17,DATOS!$A$2:$B$5000,2,0),\"NO EXISTE, POR FAVOR VERIFIQUE\")","v":"NO EXISTE, POR FAVOR VERIFIQUE"},null,null,null,{"$f":"IF(E17=\"\",\"\",1)","v":""},null,{"$f":"UPPER(E17)","v":""},{"$f":"UPPER(F17)","v":"NO EXISTE, POR FAVOR VERIFIQUE"},{"$f":"UPPER(E19)","v":""},{"$f":"UPPER(E21)","v":""},{"$f":"UPPER(E23)","v":""},{"$f":"E25","v":0},{"$f":"F25","v":"NO EXISTE, POR FAVOR VERIFIQUE"},{"$f":"E27","v":0},{"$f":"UPPER(F27)","v":"NUEVO"},{"$f":"E29","v":""},{"$f":"UPPER(F29)","v":" "},{"$f":"E31","v":0},{"$f":"UPPER(F31)","v":"NO EXISTE, POR FAVOR VERIFIQUE"},{"$f":"D7","v":"00:00:00"},{"$f":"+E52","v":0}]
[]
[null,"*","NOMBRE (20 Caracteres)",null,null,null,null,null,null,{"$f":"IF(E19=\"\",\"\",1)","v":""}]
[]
[null,"*","DESCRIPCION (40 Caracteres)",null,null,null,null,null,null,{"$f":"IF(E21=\"\",\"\",1)","v":""}]
[]
[null,"*","RESPONSABLE (20 Caracteres)",null,null,null,null,null,null,{"$f":"IF(E23=\"\",\"\",1)","v":""}]
[]
[null,"*","DEPARTAMENTO (4 Caracteres)",null,null,{"$f":"IFERROR(VLOOKUP(E25,DATOS!$D$2:$E$1000,2,0),\"NO EXISTE, POR FAVOR VERIFIQUE\")","v":"NO EXISTE, POR FAVOR VERIFIQUE"},null,null,null,{"$f":"IF(E25=\"\",\"\",1)","v":""}]
[]
[null,null,"SEGMENTO (5 Caracteres)",null,null,{"$f":"IFERROR(VLOOKUP(E27,DATOS!$S$2:$T$1000,2,0),\"NUEVO\")","v":"NUEVO"},null,null,null,{"$f":"IF(E27=\"\",\"\",1)","v":""}]
[]
[null,"*","AREA FUNCIONAL",null,{"$f":"IF(MID(E17,5,2)=\"00\",\"62\",(MID(E17,5,2)))","v":""},{"$f":"IFERROR(VLOOKUP(E29,DATOS!$G$2:$H$1000,2,0),\" \")","v":" "},null,null,null,{"$f":"IF(E29=\"\",\"\",1)","v":""}]
[]
[null,null,"CENTRO COSTO ICEBERG",null,null,{"$f":"IFERROR(VLOOKUP(E31,DATOS!$V$2:$X$5000,3,0),\"NO EXISTE, POR FAVOR VERIFIQUE\")","v":"NO EXISTE, POR FAVOR VERIFIQUE"}]
[null,null,null,null,null,null,null,null,null,{"$f":"SUM(J17:J31)+J52","v":0}]
[]
[null,null,"ORDEN INTERNA"]
[null,null,null,null,null,null,null,null,null,null,null,"CECO AL QUE LIQUIDA","NOMBRE CECO","CLASE ORDEN","NOMBRE CLASE","NOMBRE (40 Caracteres)","RESPONSABLE (20 Caracteres)","DEPARTAMENTO (4 Caracteres)","NOMBRE DEPTO","CENTRO LOGISTICO","NOMBRE CENTRO","FUNCION","NOMBRE FUNCION","CENTRO COSTO ICEBERG","NOMBRE CECO ICEBERG","FECHA DE SOLICITUD","JUSTIFICACION"]
[null,"*","CECO AL QUE LIQUIDA",null,null,{"$f":"IFERROR(VLOOKUP(E36,DATOS!$P$2:$Q$5000,2,0),\"NO EXISTE, POR FAVOR VERIFIQUE\")","v":"NO EXISTE, POR FAVOR VERIFIQUE"},null,null,null,{"$f":"IF(E36=\"\",\"\",1)","v":""},null,{"$f":"UPPER(E36)","v":""},{"$f":"UPPER(F36)","v":"NO EXISTE, POR FAVOR VERIFIQUE"},{"$f":"UPPER(E38)","v":""},{"$f":"F38","v":"NO EXISTE, POR FAVOR VERIFIQUE"},{"$f":"UPPER(E40)","v":""},{"$f":"UPPER(E42)","v":""},{"$f":"E44","v":" "},{"$f":"F44","v":" "},{"$f":"E46","v":0},{"$f":"UPPER(F46)","v":"NO EXISTE, POR FAVOR VERIFIQUE"},{"$f":"E48","v":""},{"$f":"UPPER(F48)","v":" "},{"$f":"E50","v":0},{"$f":"UPPER(F50)","v":"NO EXISTE, POR FAVOR VERIFIQUE"},{"$f":"D7","v":"00:00:00"},{"$f":"+E52","v":0}]
[]
[null,"*","CLASE ORDEN",null,null,{"$f":"IFERROR(VLOOKUP(E38,DATOS!$J$2:$K$8,2,0),\"NO EXISTE, POR FAVOR VERIFIQUE\")","v":"NO EXISTE, POR FAVOR VERIFIQUE"},null,null,null,{"$f":"IF(E38=\"\",\"\",1)","v":""}]
[]
[null,"*","NOMBRE (40 Caracteres)",null,null,null,null,null,null,{"$f":"IF(E40=\"\",\"\",1)","v":""}]
[]
[null,"*","RESPONSABLE (20 Caracteres)",null,null,null,null,null,null,{"$f":"IF(E42=\"\",\"\",1)","v":""}]
[]
[null,"*","DEPARTAMENTO (4 Caracteres)",null,{"$f":"IFERROR(VLOOKUP(E36,DATOS!$P$2:$R$1337,3,0),\" \")","v":" "},{"$f":"IFERROR(VLOOKUP(E44,DATOS!$D$2:$E$1000,2,0),\" \")","v":" "},null,null,null,{"$f":"IF(E44=\"\",\"\",1)","v":1}]
[]
[null,null,"CENTRO LOGISTICO",null,null,{"$f":"IFERROR(VLOOKUP(E46,DATOS!$M$2:$N$8,2,0),\"NO EXISTE, POR FAVOR VERIFIQUE\")","v":"NO EXISTE, POR FAVOR VERIFIQUE"}]
[]
[null,"*","AREA FUNCIONAL",null,{"$f":"IF(MID(E36,5,2)=\"00\",\"62\",(MID(E36,5,2)))","v":""},{"$f":"IFERROR(VLOOKUP(E48,DATOS!$G$2:$H$1000,2,0),\" \")","v":" "},null,null,null,{"$f":"IF(E48=\"\",\"\",1)","v":""}]
[]
[null,null,"CENTRO COSTO ICEBERG",null,null,{"$f":"IFERROR(VLOOKUP(E50,DATOS!$V$2:$X$5000,3,0),\"NO EXISTE, POR FAVOR VERIFIQUE\")","v":"NO EXISTE, POR FAVOR VERIFIQUE"}]
[null,null,null,null,null,null,null,null,null,{"$f":"SUM(J36:J50)+J52","v":1}]
[null,"*","JUSTIFICACION",null,null,null,null,null,null,{"$f":"IF(E52=\"\",\"0\",1)","v":"0"}]

{"sheet":"SOLICITUDES","index":2,"n_rows":21,"n_cols":16,"rows_kept":21,"cut":false,"hidden":true,"merged":[[1,0,1,14],[18,0,18,15]]}
[]
["CENTROS DE COSTO SOLICITADOS"]
[]
["NODO AGRUPADOR","NOMBRE NODO AGRUPADOR","NOMBRE (20 Caracteres)","DESCRIPCION (40 Caracteres)","RESPONSABLE (20 Caracteres)","DEPARTAMENTO (4 Caracteres)","NOMBRE DEPARTAMENTO","SEGMENTO","NOMBRE SEGMENTO","AREA FUNCIONAL","NOMBRE FUNCION","CENTRO COSTO ICEBERG","NOMBRE CENTRO COSTO ICEBERG","FECHA DE SOLICITUD","JUSTIFICACION"]
[]
[]
[]
[]
[]
[]
[]
[]
[]
[]
[]
[]
[]
[]
["ORDENES INTERNAS SOLICITADAS"]
[]
["CECO AL QUE LIQUIDA","NOMBRE CECO","CLASE ORDEN","NOMBRE CLASE","NOMBRE (40 Caracteres)","RESPONSABLE (20 Caracteres)","DEPARTAMENTO (4 Caracteres)","NOMBRE DEPTO","CENTRO LOGISTICO","NOMBRE CENTRO","AREA FUNCIONAL","NOMBRE FUNCION","CENTRO COSTO ICEBERG","NOMBRE CECO ICEBERG","FECHA DE SOLICITUD","JUSTIFICACION"]

{"sheet":"DATOS","index":3,"n_rows":4896,"n_cols":24,"rows_kept":2250,"cut":true,"hidden":true,"merged":[[0,18,0,19],[0,21,0,23],[0,3,0,4],[0,6,0,7],[0,9,0,10],[0,12,0,13],[0,15,0,17]],"bounds":{"rows_first":1000,"rows_last":250,"rows_between":1000,"halvings":1}}
[null,null,null,"UORG",null,null,"Areas Funcionales",null,null,"CLASES",null,null,"CENTRO LOGISTICO",null,null,"CECOS",null,null,"SEGMENTOS",null,null,"CECO ICEBERG"]
[100000,"FAC ADMINISTRACION",null,1000,"DEC ADMON",{"$f":"CONCATENATE(D2,\" \",E2)","v":"1000 DEC ADMON"},"0","NO EXISTE",null,"ZACA","ACADÉMICA (UNIANDES)",null,5420,"CENTRO DEPORTIVO",null,100000001,"FAC ADMINISTR HCM",1000,11000,"CORRIENTE OPERATIVO",null,"Ccosto","Padre","Nombre Centro"]
[100014,"ESC VERANO ADMON",null,1003,"INV ADMON",{"$f":"CONCATENATE(D3,\" \",E3)","v":"1003 INV ADMON"},"1","Área funcional 0001",null,"ZCON","CONGRESOS (UNIANDES)",null,"CIBI","CENTRO INVESTIGACIÓNBIOQUÍMICA",null,100014001,"ESC VERANO ADMON",1000,15000,"CENTRO DE INVESTIGACIÓN IPS - CIBI",null,1,9998,"FACULTAD DE ADMINISTRACION CONSOLIDADO"]
[100022,"DEC INVESTIGACION",null,1006,"PUBLICACIONES ADMON","1006 PUBLICACIONES ADMON","11","DOCENCIA PREGRADO",null,"ZCYA","CONSULTORÍA Y ASESORÍA (UNIANDES)",null,2412,"CENTRO LOG. CIVIL Y AMBIENTAL",null,100022001,"DEC INVESTIGACION",1000,16000,"CONVENIO POLICÍA NACIONAL",null,2,1774,"ADMINISTRACION DECANATURA"]
[100024,"DEC PROYECTOS CONS",null,1012,"ADMINISTRACION PRE","1012 ADMINISTRACION PRE","12","DOCENCIA ESPECIALIZACION",null,"ZEDU","EDUCACIÓN CONTINUADA  (UNIANDES)",null,6100,"CENTRO LOG. PLANTA FÍSICA",null,100024001,"DEC PROYECTOS CONS",1000,17000,"CONDITIONAL CASH TRANSFERS & RURAL DEV (IFAD)",null,3,3182,"ADMINISTRACION DIRECCION"]
[100046,"DEC ADMON",null,1015,"VICEDECANATURA","1015 VICEDECANATURA","13","DOCENCIA POSTGRADO",null,"ZEVE","EVENTOS  (UNIANDES)",null,6240,"CENTRO LOG.ELEMENTO PROTECCIÓN",null,100046001,"DEC ADMON",1000,25001,"FONDO PROGRAMA QUIERO ESTUDIAR PROVISIONES",null,4,3907,"FONDO PARA INVERSION"]
[1000461,"INTERNACIONALIZACION",null,1018,"ESP ADMINISTRACION","1018 ESP ADMINISTRACION","14","EDUCACION CONTINUADA",null,"ZINV","INVESTIGACIÓN  (UNIANDES)",null,6300,"CENTRO LOGISTICO DTI",null,100046002,"MERCADEO",1000,25002,"FONDO EDUARDO ÁLVAREZ CORREA",null,5,11,"ADMINISTRACION CORUNIVERSITARIA"]
[1000462,"DEC CONVENIOS",null,1021,"MBAs","1021 MBAs","15","EDUCACION VOCACIONAL",null,null,null,null,"CUAN","CENTRO LOGISTICO UNIANDES",null,100046003,"LIBROS",1000,25003,"SILLA PROFESORAL SANFORD",null,6,1774,"CONSOLIDADO PROGRAMAS ACADEMICOS"]
[1000463,"DEC EVENTOS",null,1024,"MAE PROFUNDIZACION","1024 MAE PROFUNDIZACION","16","DOCENCIA DOCTORADO",null,null,null,null,null,null,null,100046004,"INVERS TECNOLOGIA",1000,25004,"SILLA PROFESORAL CORONA",null,7,3897,"ADMINISTRACION PREGRADO"]
[1000464,"FONDO INVERSION",null,1030,"DOC ADMINISTRACION","1030 DOC ADMINISTRACION","201","MATRICULAS DE PREGRADO",null,null,null,null,null,null,null,100046005,"UNIDAD LOGISTICA",1000,25005,"FONDO BECA CIRO ANGARITA BARÓN",null,8,6,"CONSOLIDADO POSGRADOS"]
[1000465,"FONDO PDA",null,1033,"EDUCACION EJECUTIVA","1033 EDUCACION EJECUTIVA","202","MATRICULAS EXTRAORDINARIA",null,null,null,null,null,null,null,100046101,"INTERNACIONALIZACION",1000,25006,"CIENCIAS BIOLÓGICAS DONACIÓN PROFICOL EL CARMEN",null,9,3898,"MAGISTER EN ADMINISTRACION"]
[100322,"INV ADMON",null,1036,"CEC ADMINISTRACION","1036 CEC ADMINISTRACION","204","MATRIC CURSOS ESPECIALES",null,null,null,null,null,null,null,100046102,"VISITAS",1000,25007,"FONDO DORA ROTHLISBERGER",null,10,1,"MAGISTER EN DIRECCION UNIVERSITARIA"]
[100622,"PUBLICACIONES ADMON",null,1037,"CEC PROGRAMAS","1037 CEC PROGRAMAS","205","MATR CURSOS VACACIONES",null,null,null,null,null,null,null,100046103,"ACREDIT Y MEMBRESIAS",1000,25008,"FONDO WIEDERMANN",null,11,8,"ESPECIALIZACIONES CONSOLIDADO"]
[101211,"ADMINISTRACION PRE",null,1200,"DEC ARQ Y DIS","1200 DEC ARQ Y DIS","207","CERTIFICADOS DE ESTUDIO",null,null,null,null,null,null,null,100046104,"OFICINA INTERNAL",1000,25009,"FONDO GABRIEL VEGA LARA MBA",null,12,11,"ESPECIALIZACION FINANZAS"]
[101513,"VICEDECANATURA",null,1212,"DPTO ARQUITECTURA","1212 DPTO ARQUITECTURA","208","DERECHOS DE GRADO",null,null,null,null,null,null,null,100046105,"SILLA PROF CORONA",1000,25010,"FONDO GRETEL WERNHER",null,13,11,"ESPECIALIZACION MERCADOS"]
[101812,"ESP ADMINISTRACION",null,1215,"DIS DPTO","1215 DIS DPTO","209","RESERVA DE CUPO",null,null,null,null,null,null,null,100046201,"DEC CONVENIOS",1000,25011,"ANTROPOLOGÍA DONACIÓN PROFICOL EL CARMEN",null,14,11,"ESPECIALIZACION RECURSOS HUMANOS"]
[102113,"MBAs",null,1400,"DEC ARTES ","1400 DEC ARTES ","21","INSTITUTOS Y CENTROS INVE",null,null,null,null,null,null,null,100046301,"DEC EVENTOS",1000,25012,"FONDO PATRIMONIAL HORIZONTES",null,15,11,"ESPECIALIZACION BANCA"]
[1021131,"MBA EJECUTIVO",null,1403,"INV Y CREACION FAC","1403 INV Y CREACION FAC","210","MATRICULAS MAGISTER",null,null,null,null,null,null,null,100046401,"FONDO INVERSION",1000,25013,"FONDO QUIERO ESTUDIAR RTI",null,16,6,"CONSOLIDADO EDUCACION EJECUTIVA"]
[102413,"MAE PROFUNDIZACION",null,1412,"DPTO ARTE","1412 DPTO ARTE","22","PROY INV INDIVID O DTALES",null,null,null,null,null,null,null,100322001,"INV ADMON",1000,25014,"FONDO PATRIMONIAL PROGRAMA ALTO GOBIERNO",null,17,2856,"DESARROLLO GERENCIAL"]
[1024131,"MGA",null,1415,"DPTO MUSICA","1415 DPTO MUSICA","23","SOPORTE INFORMATICO INVES",null,null,null,null,null,null,null,100322002,"COMITE DES DOCENTE",1000,25015,"FONDO QUIERO ESTUDIAR OCMAES",null,18,16,"ALTA GERENCIA"]
[1024132,"MDP",null,1418,"DPTO LITERATURA","1418 DPTO LITERATURA","24","ASESORIA Y CONSULTORIA",null,null,null,null,null,null,null,100322003,"CAP SEMILLA ADMON",1000,25016,"FONDO DE AYUDA A PROGRAMAS DE DOCTORADO",null,19,16,"PRESIDENTES DE EMPRESAS"]
[102414,"EDUCON ADMINISTRACION",null,1421,"CEPER","1421 CEPER","301","BECAS",null,null,null,null,null,null,null,100322004,"FONDO CAP SEMILLA",1000,25017,"FEGV DOCTORADO EN ADMINISTRACIÓN",null,20,16,"ALTA GERENCIA-OTRAS CIUDADES"]
[103016,"DOC ADMINISTRACION",null,1600,"DEC CIENCIAS","1600 DEC CIENCIAS","302","APORTES DIF ENTIDADES",null,null,null,null,null,null,null,100322005,"FONDO CONJUNTO INV",1000,25018,"BECA BBVA MAESTRÍA ESCUELA DE GOBIERNO",null,21,16,"SEMINARIO CORPORATIVA BANCO GANADERO"]
[103314,"EDUCACION EJECUTIVA",null,1603,"FAC CIENCIAS INV","1603 FAC CIENCIAS INV","303","PREMIOS",null,null,null,null,null,null,null,100622001,"PUBLICACIONES ADMON",1000,25019,"FONDO QUIERO ESTUDIAR UNIANDINOS",null,22,24,"FAC. ADMINISTRACION GRUPO BOLIVAR"]
[1033141,"DESARROLLO GERENCIAL",null,1604,"FAC CIENCIAS INV 2","1604 FAC CIENCIAS INV 2","31","SERVICIO A LA COMUNIDAD",null,null,null,null,null,null,null,101211001,"ADMINISTRACION PRE",1000,25020,"FONDO QUIERO ESTUDIAR MEGA FUTURO FOUNDATION",null,23,24,"VENTA DE PUBLICACIONES"]
[103624,"CEC ADMINISTRACION",null,1612,"CIENCIAS BIOLOGICAS","1612 CIENCIAS BIOLOGICAS","32","SERVICIO DE EXTENSION",null,null,null,null,null,null,null,101513001,"VICEDECANATURA",1000,25021,"FONDO QUIERO ESTUDIAR DATA CRÉDITO",null,24,1774,"FAC. ADMINISTRACION INVESTIGACION"]
[103724,"CEC PROGRAMAS",null,1615,"FISICA","1615 FISICA","33","SERV DIFUCION CULT PRENSA",null,null,null,null,null,null,null,101812001,"ESP NEGOCIACION",1000,25022,"FONDO QUIERO ESTUDIAR CHAID NEME",null,25,24,"ADMINISTRACION INVESTIGACIONES VARIAS"]
[120000,"FAC ARQ Y DIS",null,1618,"GEOCIENCIAS","1618 GEOCIENCIAS","34","SOPORT INFOR SERV PUBLICO",null,null,null,null,null,null,null,101812002,"ESP GCIA ABASTECIMIE",1000,25023,"FONDO QUIERO ESTUDIAR JULIO MARIO SANTODOMINGO",null,26,9998,"FACULTAD DE ARQUITECTURA Y DISEÑO"]
[120022,"INV DEC ARQ Y DIS",null,1621,"MATEMATICAS","1621 MATEMATICAS","401","CONTRATOS",null,null,null,null,null,null,null,101812003,"ESP INTELIGENC MERCA",1000,25024,"FONDO QUIERO ESTUDIAR ENRIQUE CAVALIER",null,27,26,"DECANATURA DE ARQUITECTURA Y DISEÑO"]
[120046,"DEC ARQ Y DIS",null,1624,"QUIMICA","1624 QUIMICA","41","BIBLIOTECAS",null,null,null,null,null,null,null,101812004,"ESP ADMON FINANCIERA",1000,25025,"FONDO QUIERO ESTUDIAR CINE COLOMBIA 80 AÑOS",null,28,26,"CONSOLIDADOR DPTO ARQUITECTURA"]
[121200,"DPTO ARQUITECTURA",null,1800,"DEC CIEN SOCIALES","1800 DEC CIEN SOCIALES","42","MUSEOS Y GALERIAS",null,null,null,null,null,null,null,101812005,"ESP GESTION RIESGO",1000,25026,"FONDO QUIERO ESTUDIAR GABRIEL VEGA LARA",null,29,28,"ARQUITECTURA PREGRADO"]
[121211,"ARQUITECTURA PRE",null,1811,"PUBLICACIONES","1811 PUBLICACIONES","43","SERV MEDIOS EDUC TECN INF",null,null,null,null,null,null,null,102113001,"MBA TC",1000,25027,"FONDO QUIERO ESTUDIAR PEDRO GÓMEZ",null,30,3388,"DISEÑO PREGRADO"]
[121213,"ARQUITECTURA MAE",null,1812,"ANTROPOLOGIA","1812 ANTROPOLOGIA","44","APOYO COMPUT ACADEMICO",null,null,null,null,null,null,null,102113002,"MBA TP",1000,25028,"FONDO QUIERO ESTUDIAR BECA 75 AÑOS CASA TORO",null,31,33,"ARQUITECTURA FONDO DE INVESTIGACION"]
[121214,"ARQ EDUCON",null,1815,"CIENCIA POLITICA","1815 CIENCIA POLITICA","45","APOYO AUXILIAR",null,null,null,null,null,null,null,102113003,"GLOBAL MBA",1000,25029,"FONDO QUIERO ESTUDIAR LEONOR ESCANDÓN DURÁN",null,32,128,"ESP. DERECHO DE LA GESTION DE NEGOCIOS"]
[121222,"ARQUITECTURA INV",null,1818,"FILOSOFIA","1818 FILOSOFIA","46","ADMINISTRACION ACADEMICA",null,null,null,null,null,null,null,102113004,"GLOBAL MBA TULANE",1000,25030,"FONDO PATRIMONIAL PARA APOYO FINANCIERO  EST.",null,33,28," ARQUITECTURA INVESTIGACION"]
[121224,"ARQ CONTRATOS ",null,1821,"HISTORIA","1821 HISTORIA","47","DESARROLLO PROFESORAL",null,null,null,null,null,null,null,102113101,"MBA EJECUTIVO",1000,25031,"FONDO QUIERO ESTUDIAR CARLOS PACHECO DEVIA",null,34,33,"C. PLANIFICACION Y URBANISMO"]
[121500,"DIS DPTO DIR",null,1824,"LENG Y EST SOCIOCUL","1824 LENG Y EST SOCIOCUL","48","DESARROLLO CURRICULAR",null,null,null,null,null,null,null,102413001,"MAGISTER EN FINANZAS",1000,25032,"FONDO PATRIMONIAL JORGE STEINER",null,35,167,"ECONOMIA TINKER FOUNDATION"]
[121511,"DIS DPTO PRE",null,1827,"PSICOLOGIA","1827 PSICOLOGIA","49","SOFTWARE",null,null,null,null,null,null,null,102413002,"MAGISTER EN MERCADEO",1000,25033,"FONDO PATRIMONIAL SILLA PROFESORAL PACIFICRUBIALES",null,36,244,"CESO DEFENSA Y SEGURIDAD"]
[121513,"MAESTRIA EN DISEÑO",null,1836,"VICEDEC INVES Y POSG","1836 VICEDEC INVES Y POSG","501","CONTRATOS MANDATO FNG",null,null,null,null,null,null,null,102413101,"MGA",1000,25034,"FONDO QUIERO ESTUDIAR PRÓXIMO SIGLO",null,37,33,"INST. DISTRITAL DE CULTURA Y TURISMO"]
[121514,"DIS EDUCON",null,2000,"DEC DERECHO","2000 DEC DERECHO","502","DONACIONES",null,null,null,null,null,null,null,102413201,"MDP",1000,25035,"HARVARD LOS ANDES FUND",null,38,244,"CESO AL CAIDO CAERLE"]
[121522,"DISEÑO INV",null,2006,"PUBLICACIONES DERE","2006 PUBLICACIONES DERE","51","ADMON SERVICIO ESTUDIANTI",null,null,null,null,null,null,null,102414001,"EDUCON ADMINISTRACION",5100,25036,"FONDO PATRIMONIAL DE HIDRAULICA",null,39,244,"CESO RELACIONES BILATERALES"]
[121524,"DIS CONTRATOS",null,2009,"RELACIONES EXTERNAS","2009 RELACIONES EXTERNAS","52","DLLO SOCIAL CULT Y DEPORT",null,null,null,null,null,null,null,103016001,"DOC ADMINISTRACION",1000,25037,"FONDO BECA CIRO ANGARITA BARON FACULTAD",null,40,244,"CESO NREINTENTAR LO PROPIO"]
[140000,"FAC ARTES Y HUMANID",null,2012,"DERECHO PRE","2012 DERECHO PRE","53","CONSEJ ORIENTACION PROF",null,null,null,null,null,null,null,103314001,"ALTA GERENCIA",1000,25038,"BECA QUIERO ESTUDIAR SCHLUMBERGER SURENCO",null,41,9998,"FACULTAD DE CIENCIAS NATURALES Y EXACTAS"]
[140014,"EDUCACION CONTINUADA",null,2015,"ESP DERECHO","2015 ESP DERECHO","54","ADMON AYUDA FINANCIERA",null,null,null,null,null,null,null,103314002,"PRESIDENTES EMPRESAS",1000,25039,"GEOCIENCIAS",null,42,41,"FAC. DE CIENCIAS NATURALES DECANATURA"]
[140046,"DEC ARTES ",null,2021,"MAE DERECHO ","2021 MAE DERECHO ","55","ADMISIONES DE ESTUDIANTES",null,null,null,null,null,null,null,103314003,"DIR RELACIONES PUBL",1000,25040,"FONDO PATRIMONIAL DISAN",null,43,42,"FAC. DE CIENCIAS NATURALES DIRECCION"]
[1400461,"GRUPOS CULTURALES",null,2030,"DOC DERECHO","2030 DOC DERECHO","56","REGISTRO DE ESTUDIANTES",null,null,null,null,null,null,null,103314004,"PROG ESPECIALES",1000,25041,"FONDO QUIERO ESTUDIAR CERREJÓN",null,44,41,"CIENCIAS BIOLOGICAS"]
[140322,"INV Y CREACION FAC",null,2033,"DERECHO EDUCON","2033 DERECHO EDUCON","57","SERV MEDICO ESTUDIANTIL",null,null,null,null,null,null,null,103314101,"DES GCIAL ABIERTOS",1000,26001,"DONACIONES UNIANDINOS",null,45,44,"CIENCIAS PREGRADO"]
[141200,"DPTO ARTE DIR",null,2036,"CIJUS","2036 CIJUS","58","DLLO PERSONAL SERV ESTUDI",null,null,null,null,null,null,null,103314102,"DES GCIAL CORPORATIV",1000,26002,"FONDO DE PROGRAMAS ESPECIALES FOPRE",null,46,44,"CIENCIAS POSGRADO"]
[141211,"DPTO ARTE PRE",null,2200,"DEC  ECONOMIA","2200 DEC  ECONOMIA","61","ADMINISTRACION EJECUTIVA",null,null,null,null,null,null,null,103314103,"DES GCIAL RDI",1000,26003,"FONDO GENERAL DE APOYO FINANCIERO A ESTUDIANTES",null,47,46,"CIENCIAS POSTGRADO"]
[1412111,"TALLERES ARTE",null,2201,"ACT CONEXAS ECO","2201 ACT CONEXAS ECO","62","OPER FINANCIERA FISCAL",null,null,null,null,null,null,null,103314104,"PROG ESPECIALES",1000,26004,"PROYECTO UNIVERSIDAD TECNOLÓGICA DE BOLÍVAR",null,48,44,"CIENCIAS EDUCACION CONTINUADA"]
[141212,"ESP ARTE",null,2212,"ECONOMIA PRE","2212 ECONOMIA PRE","63","ADMON GRAL Y SERV LOGISTI",null,null,null,null,null,null,null,103624001,"CEC ADMINISTRACION",1000,26005,"FONDO FAMILIA ESPINOSA",null,49,48,"CIENCIAS BACTERIOLOGIA"]
[141214,"ARTE EDUCON",null,2215,"ESP ECONOMIA","2215 ESP ECONOMIA","64","APOYO ADTIVO COMPUTACIONA",null,null,null,null,null,null,null,103724001,"ESTRATEGIA",1000,26006,"UNIANDES - UTB CONVENIO ESPECIAL",null,50,48,"ED. CONTINUADA CIENCIAS"]
[141222,"ARTE INV",null,2221,"MAE ECONOMIA","2221 MAE ECONOMIA","65","REL PUBLICAS Y DLLO INSTI",null,null,null,null,null,null,null,103724002,"ORGANIZACIONES",1000,26007,"DON BOSCO",null,51,44,"CIENCIAS ACTIVIDADES AUXILIARES"]
[141233,"PREMIO NAL CRITICA",null,2230,"DOC ECONOMIA","2230 DOC ECONOMIA","66","DESARLLO PERSONAL ADTIVO",null,null,null,null,null,null,null,103724003,"MERCADEO",1000,26008,"BECA CALASANZ CIUDAD BOLÍVAR",null,52,51,"RENDIMIENTO DONACION CIENCIAS"]
[141500,"DPTO MUSICA DIR",null,2236,"CEDE","2236 CEDE","67","BIENESTAR",null,null,null,null,null,null,null,103724004,"GESTION",1000,26009,"FONDO QUIERO ESTUDIAR BAVARIA",null,53,44,"CIENCIAS BIOLOGICAS INVESTIGACION"]
[141511,"DPTO MUSICA PRE",null,2237,"CENTRO DROG Y SEGU","2237 CENTRO DROG Y SEGU","701","VENTA DE FORMULARIO Y PAP",null,null,null,null,null,null,null,103724005,"FINANZAS",1000,26010,"DONACIÓN FUNDACIÓN BOLIVAR DAVIVIENDA ECONOMÍA",null,54,53,"C.I.M.I.C."]
[141514,"MUSICA EDUCON",null,2238,"CONDITIONAL CASH","2238 CONDITIONAL CASH","702","VENTA DE PUBLICACIONES",null,null,null,null,null,null,null,103724006,"COMPETITIVIDAD",1000,26011,"DONACIÓN FUNDACIÓN BOLIVAR DAVIVIENDA BIOLOGÍA",null,55,53,"LABORATORIO GENETICA HUMANA"]
[141800,"DPTO LITERATURA DIR",null,2400,"DECANATURAINGENIERIA","2400 DECANATURAINGENIERIA","703","SERVICIOS",null,null,null,null,null,null,null,120000001,"FAC ARQ Y DIS HCM",1200,26012,"BECA LEONOR  ESCANDÓN DURÁN",null,56,244,"CESO DESARROLLO MORAL"]
[141811,"DPTO LITERATURA PRE",null,2402,"VICEDECINVESTIGACION","2402 VICEDECINVESTIGACION","704","VENTA DE EQUIPOS",null,null,null,null,null,null,null,120022001,"DEC FDO INV",1200,26013,"FONDO HENRI YERLI",null,57,1928,"FONDO DE INVESTIGACION Y PUBLICACIONES CIFI"]
[141813,"MAE LITERATURA",null,2404,"VICEDEC PREGRADO","2404 VICEDEC PREGRADO","71","ADMON DE PLANTA FISICA",null,null,null,null,null,null,null,120022002,"DEC EVENTOS",1200,26014,"FUNDACIÓN BELCORP",null,58,53,"C. INVES. BIOQUIMICA"]
[141814,"LITERATURA EDUCON",null,2406,"VICEDEC SECT EXTERNO","2406 VICEDEC SECT EXTERNO","72","MTTO EDIFICIOS Y CONSTRUC",null,null,null,null,null,null,null,120046001,"DEC ARQ Y DIS",1200,null,null,null,59,53,"PAISES ANDINOS O.M.S (CIMPAT)"]
[141816,"DOC LITERATURA",null,2408,"PROGRAMAS POSGRADO","2408 PROGRAMAS POSGRADO","73","SERVICIOS DE SEGURIDAD",null,null,null,null,null,null,null,120046002,"DEC SERVICIOS FAC",1200,null,null,null,60,53,"CIMPAT PARASITOLOGIA"]
[141822,"LITERATURA INV",null,2410,"PROGRAMAS PREGRADO","2410 PROGRAMAS PREGRADO","74","PAGO SERVICIOS PUBLICOS",null,null,null,null,null,null,null,120046003,"DEC TALLER DE MEDIOS",1200,null,null,null,61,53,"CIMPAT COLCIENCIAS"]
[142100,"CEPER DIR",null,2411,"DPTO ING BIOMÉDICA","2411 DPTO ING BIOMÉDICA","75","MTTO TERRENOS AREAS VERDE",null,null,null,null,null,null,null,121200001,"DPTO ARQUITE HCM",1212,null,null,null,62,53,"COMUNIDAD EUROPEA - AMIBAS"]
[142111,"CEPER PRE",null,2412,"INGCIVIL Y AMBIENTAL","2412 INGCIVIL Y AMBIENTAL","76","REPAR MAYORES RENOVACIONE",null,null,null,null,null,null,null,121211001,"ARQUITECTURA PRE",1212,null,null,null,63,53,"SECRESALUD-CHAGAS"]
[142112,"ESP PERIODISMO",null,2415,"ELECTRICAELECTRONICA","2415 ELECTRICAELECTRONICA","77","SEGURIDAD E HIGIENE",null,null,null,null,null,null,null,121211002,"ARQ CARTAGENA",1212,null,null,null,64,53,"EXPLORATION COLOMBIA"]
[142113,"MAE PERIODISMO",null,2418,"DPTO ING INDUSTRIAL",{"$f":"CONCATENATE(D67,\" \",E67)","v":"2418 DPTO ING INDUSTRIAL"},"78","SERVICIOS LOGISTICOS",null,null,null,null,null,null,null,121211003,"ARQ DOCOMOMO",1212,null,null,null,65,536,"CURSOS DICTADOS POR EL GRUPO BOLIVAR"]
[142114,"CEPER EDUCON",null,2421,"DPTO ING MECANICA","2421 DPTO ING MECANICA","79","SOPORTE INFOR OPER Y MTTO",null,null,null,null,null,null,null,121213001,"ARQ MAE",1212,null,null,null,66,53,"HERMITOS"]
[160000,"FAC CIENCIAS HCM",null,2424,"DEPTO ING QUIMICA","2424 DEPTO ING QUIMICA","81","BECAS PARA PREGRADO",null,null,null,null,null,null,null,121214001,"ARQ EDUCON",5100,null,null,null,67,53,"LEISHMANIASIS-CAFE-O.M.S"]
[160046,"DEC CIENCIAS",null,2427,"DEPTO ING SISTEMAS","2427 DEPTO ING SISTEMAS","82","BECAS PARA POSTGRADO",null,null,null,null,null,null,null,121222001,"ARQ FDO INV",1212,null,null,null,68,53,"ENTOMOLOGIA C.P.F"]
[160082,"FAC CIEN FONDO BECAS",null,2436,"PROYECTOS ESPECIALES","2436 PROYECTOS ESPECIALES","901","OTRAS FUENTES",null,null,null,null,null,null,null,121222002,"ARQ REVISTA",1212,null,null,null,69,53,"CHAGAS/MEDINA/VIOTA"]
[160322,"FAC CIENCIAS INV",null,2439,"CIE - AGUA","2439 CIE - AGUA","902","UTILI-VENTA CONSTR Y EDIF",null,null,null,null,null,null,null,121222003,"ARQ PUBLICACIONES",1212,null,null,null,70,53,"C. INVES. PRIMATOLOGIA-CIPM"]
[160421,"LAB INV C BIOLOGICAS",null,2442,"CIE - ENERGIA","2442 CIE - ENERGIA","903","MATERIAL DE DESECHO",null,null,null,null,null,null,null,121222004,"ARQ GRUPO INV ARS",1212,null,null,null,71,53,"MANTENIMIENTO CEPAS INST. GENET"]
[161200,"C BIOLOGICAS HCM",null,2445,"CIE MATERIALES","2445 CIE MATERIALES","904","INTERESES FINANCIEROS",null,null,null,null,null,null,null,121222005,"ARQ GRUPO INV HTC",1212,null,null,null,72,53,"RANA HYLA LABIALIS"]
[161211,"CIENCIAS BIOLOGICAS",null,2448,"CIE - MOVILIDAD","2448 CIE - MOVILIDAD","905","REAJUSTES MONETARIOS",null,null,null,null,null,null,null,121222006,"ARQ GRUPO INV PAC",1212,null,null,null,73,53,"ECOLOGIA VEGETAL"]
[161213,"MAE C BIOLOGICAS",null,2451,"CIFI-ICYA","2451 CIFI-ICYA","906","DESCUENTOS AMORTIZADOS",null,null,null,null,null,null,null,121222007,"ARQ GRUPO INV MAN",1212,null,null,null,74,53,"COMISION EUROPEA (E.VEGETAL)"]
[161214,"C BIOLOGICAS EDUCON",null,2454,"CIFI-IEEL","2454 CIFI-IEEL","907","DIFERENCIA EN CAMBIO",null,null,null,null,null,null,null,121222008,"ARQ GRUPO INV ACE",1212,null,null,null,75,565,"RECUPERACION"]
[161216,"C BIOLOG DOCTORADO ",null,2457,"CIFI-IIND","2457 CIFI-IIND","908","DESC COMERC CONDICIONADOS",null,null,null,null,null,null,null,121222009,"ARQ GRUPO INV CDP",1212,null,null,null,76,53,"INVESTIGACION PRIMAVARA I.G"]
[161221,"C BIOLOGICAS INV",null,2460,"CIFI-IMEC","2460 CIFI-IMEC","909","VARIOS",null,null,null,null,null,null,null,121222010,"ARQ GRUPO INV GIV",1212,null,null,null,77,53,"PROY. FEN COLOMBIA"]
[161222,"C BIOLOGICAS INV",null,2461,"CIFI-IBIO","2461 CIFI-IBIO","910","PENSIONES JARDIN INFANTIL",null,null,null,null,null,null,null,121222011,"ARQ PROYECTOS PA",1212,null,null,null,78,53,"CURSOS INSTITUTO DE GENETICA"]
[161246,"INVERSIONES C BIOLOG",null,2463,"CIFI-IQUI","2463 CIFI-IQUI","911","LIBRERIA",null,null,null,null,null,null,null,121222012,"ARQ CONVOCATORIAS",1212,null,null,null,79,53,"BIOCOMPUTO"]
[161500,"FISICA HCM",null,2466,"CIFI-ISIS","2466 CIFI-ISIS","912","BIENESTAR",null,null,null,null,null,null,null,121224001,"ARQ CONTRATOS",1212,null,null,null,80,53,"COLCIENCIAS-OTROS F. CIENCIAS"]
[161511,"FISICA PRE",null,2469,"FONDOS INVESTIGACION","2469 FONDOS INVESTIGACION","913","RENDIMIENTOS",null,null,null,null,null,null,null,121500001,"DIS DPTO HCM",1215,null,null,null,81,53,"PROYECTO HEURIPPA"]
[161513,"MAE FISICA",null,2600,"DECANATURA MEDICINA","2600 DECANATURA MEDICINA","914","ARRENDAMIENTOS TERRENOS",null,null,null,null,null,null,null,121511001,"DISEÑO PRE",1215,null,null,null,82,53,"MINSALUD LEISHMANIASIS"]
[161514,"FISICA EDUCON",null,2601,"LABORATORIOS","2601 LABORATORIOS","915","ARREND CONSTRUC Y EDIFICA",null,null,null,null,null,null,null,121511002,"DIS EVENTOS",1215,null,null,null,83,53,"LIBRO CHAGAS MINSALUD"]
[161516,"DOC FISICA",null,2602,"PUBLICACIONES MED.","2602 PUBLICACIONES MED.","916","ARRENDAMIENTO MAQ EQUIPO",null,null,null,null,null,null,null,121513001,"MAESTRIA EN DISEÑO","1215",null,null,null,84,53,"MINSALUD CHAGAS"]
[161522,"FISICA INV",null,2603,"CONV DOCEN ASISTE MEDICINA","2603 CONV DOCEN ASISTE MEDICINA","917","COMISION ACTIVIDADES FINA",null,null,null,null,null,null,null,121514001,"DIS EDUCON",5100,null,null,null,85,53,"SECRESALUD CAQUEZA"]
[161546,"INVERSIONES FISICA",null,2612,"PREGRADO CONSOLIDADO","2612 PREGRADO CONSOLIDADO","921","UTILIDAD EN VENTA DE INVE",null,null,null,null,null,null,null,121522001,"DIS FDO INV",1215,null,null,null,86,53,"FUN REPUBLICA MARIPOSAS"]
[161800,"GEOCIENCIAS",null,2621,"MAESTRIA S PUBLICA","2621 MAESTRIA S PUBLICA","922","UTILIDAD EN VENTA DE MAQU",null,null,null,null,null,null,null,121522002,"DIS PUBLICACIONES",1215,null,null,null,87,41,"FISICA"]
[161811,"GEOCIENCIAS PRE",null,2633,"MEDICINA EDUCON","2633 MEDICINA EDUCON","923","UTILIDAD EN VENTA DE EQUI",null,null,null,null,null,null,null,121522003,"DIS GRUPO INV",1215,null,null,null,88,87,"FISICA PREGRADO"]
[161846,"INVERSIONES GEOCIENC",null,2636,"MEDICINA INVESTIGACION","2636 MEDICINA INVESTIGACION","924","UTILIDAD EN VENTA DE FLOT",null,null,null,null,null,null,null,121522004,"DIS PROYECTOS PA",1215,null,null,null,89,75,"RECUPERACION DONACION DAVIVIENDA"]
[162100,"MATEMATICAS HCM",null,2800,"ESCUELA DE GOBIERNO","2800 ESCUELA DE GOBIERNO","925","RECUPERACION DEUDAS MALAS",null,null,null,null,null,null,null,121522005,"DIS CONVOCATORIAS",1215,null,null,null,90,1597,"FISICA MAGISTER"]
[162111,"MATEMATICAS",null,2812,"EGOB PRE","2812 EGOB PRE","926","RECUPERACION DE PROVISION",null,null,null,null,null,null,null,121522006,"DIS ZONNA",1215,null,null,null,91,87,"FISICA EDUCACION CONTINUADA"]
[162112,"ESP MATEMATICAS",null,2821,"MAE EGOB","2821 MAE EGOB","927","REINTEGRO DE COSTOS Y GAS",null,null,null,null,null,null,null,121524001,"DIS CONTRATOS",1215,null,null,null,92,91,"FISICA TALLERES TOPICOS"]
[162113,"MAESTRIA MATEMATICAS",null,2836,"INV CONSULTORIA","2836 INV CONSULTORIA","928","INGRESOS DE EJERCICIOS AN",null,null,null,null,null,null,null,140000001,"FAC ARTES HUMAN HCM",1400,null,null,null,93,87,"FISICA INVESTIGACION"]
[162114,"MATEMATICAS EDUCON",null,3000,"DIR CIDER","3000 DIR CIDER","933","INTERESES ESTUDIANTES",null,null,null,null,null,null,null,140014001,"PROG INFANTIL EDUCON",5100,null,null,null,94,93,"FISICA COLCIENCIAS"]
[162116,"DOC MATEMATICAS",null,3012,"CIDER PRE","3012 CIDER PRE","934","VALORIZACIÓN INVERSIÓN",null,null,null,null,null,null,null,140046001,"DEC ARTES",1400,null,null,null,95,93,"FISICA EXPERIM.ALTAS ENERGIAS"]
[162122,"MATEMATICAS INV",null,3015,"ESP CIDER","3015 ESP CIDER","935","INGRESOS NO OPERACIONALES",null,null,null,null,null,null,null,140046002,"APOYO GRAL FACARTES",1400,null,null,null,96,93,"FISICA DE NANOESTRUCTURAS"]
[162146,"INVERSIONES MATEMAT",null,3021,"MAE CIDER","3021 MAE CIDER","936","TRASLADOS INTERNOS",null,null,null,null,null,null,null,140046003,"ADMON BLOQUE Z",1400,null,null,null,97,472,"CORO UNIANDES"]
[162181,"MATEMATICAS BECAS",null,3033,"CIDER EDUCON","3033 CIDER EDUCON","937","FINANCIACIÓN INTERNA",null,null,null,null,null,null,null,140046004,"APORTES FACARTES PDD",1400,null,null,null,98,93,"COLCIENCIAS-MODELOS CON OSCILACINES"]
[162400,"QUIMICA HCM",null,3036,"CIDER INV","3036 CIDER INV","942","SANCIONES CHEQUES DEVUELT",null,null,null,null,null,null,null,140046005,"PROG INFANTIL MUSICA",1412,null,null,null,99,41,"MATEMATICAS"]
[162411,"QUIMICA PRE",null,3200,"DIR CIFE","3200 DIR CIFE","943","RECUPERACIÓN INCAPACIDADE",null,null,null,null,null,null,null,140046006,"PROY FACARTES",1400,null,null,null,100,99,"MATEMATICAS PREGRADO"]
[162413,"MAE QUIMICA",null,3209,"PORTAFOLIO UNIANDES","3209 PORTAFOLIO UNIANDES","944","APROVECHAMIENTOS",null,null,null,null,null,null,null,140046101,"CULTURAL FACARTES",1400,null,null,null,101,99,"MATEMATICAS EDUCACION CONTINUADA"]
[162416,"QUIMICA DOCTORADO ",null,3212,"CIFE PRE","3212 CIFE PRE","945","INGRESO OVERHEAD",null,null,null,null,null,null,null,140046102,"GRUPO TEATRO",1400,null,null,null,102,167,"ECONOMIA PROYECTOS DE INVERSION PUBLICA PARA BOLIVIA"]
[162422,"QUIMICA INV",null,3215,"ESPECIALIZACION CIFE","3215 ESPECIALIZACION CIFE","948","SUPERAVIT EJERCICIOS ANTE",null,null,null,null,null,null,null,140046103,"ORQUESTA UNIANDES",1400,null,null,null,103,99,"MATEMATICAS INVESTIGACION"]
[162446,"INVERSIONES QUIMICA",null,3221,"MAE CIFE","3221 MAE CIFE","95","OVERHEAD",null,null,null,null,null,null,null,140046105,"CORO UNIANDES",1400,null,null,null,104,103,"MATEMATICAS ESTUDIO COMPARATIVO OPERADORES"]
[180000,"FAC CIEN SOCIALES",null,3230,"DOCTORADO CIFE","3230 DOCTORADO CIFE","96","DEFICIT EJERCICIOS ANTERI",null,null,null,null,null,null,null,140046106,"CORO CAMARA",1400,null,null,null,105,103,"MATEMATICAS CLASIFICACION DE GRUPOS SIMPLES"]
[180046,"DEC CIEN SOCIALES",null,3233,"CIFE EDUCON","3233 CIFE EDUCON","97P","AREA FUNCIONAL PRUEBAS 1",null,null,null,null,null,null,null,140322001,"CIC FACARTES",1400,null,null,null,106,103,"MATEMATICAS AXIOMA DE ELECCION"]
[181122,"PUBLICACIONES",null,3236,"INV CONSULTORIA","3236 INV CONSULTORIA","99","PROGRAMA DLLO INTEGRAL PD",null,null,null,null,null,null,null,140322002,"PUBLICACION FACARTES",1400,null,null,null,107,41,"QUIMICA"]
[181200,"ANTROPOLOGIA DIR",null,4000,"RECTORIA","4000 RECTORIA","99P","AREA FUNCIONAL 3",null,null,null,null,null,null,null,140322003,"FACARTES INV",1400,null,null,null,108,107,"QUIMICA PREGRADO"]
[181211,"ANTROPOLOGIA PRE",null,4100,"DIR JURIDICA","4100 DIR JURIDICA","XX","AREA FUNCIONALPOSPRES X",null,null,null,null,null,null,null,141200001,"DPTO ARTE HCM",1412,null,null,null,109,108,"QUIMICA PREGRADO"]
[181213,"MAE ANTROPOLOGIA",null,4200,"AUDITORIA INTERNA","4200 AUDITORIA INTERNA",null,null,null,null,null,null,null,null,null,141211001,"ARTE PRE",1412,null,null,null,110,108,"CIENCIAS AMBIENTALES PREGRADO"]
[181214,"ANTROPOLOGIA EDUCON",null,4300,"DIR PLANEACION","4300 DIR PLANEACION",null,null,null,null,null,null,null,null,null,141211002,"HISTORIA ARTE PRE",1412,null,null,null,111,107,"QUIMICA INVESTIGACION"]
[181216,"DOC ANTROPOLOGIA",null,4400,"DIR DESARROLLO","4400 DIR DESARROLLO",null,null,null,null,null,null,null,null,null,141211003,"CURSO PARIS",1412,null,null,null,112,111,"QUIMICA INVES. VARIAS"]
[181500,"CIENCIA POLITICA DIR",null,4410,"COMUNICACIONES","4410 COMUNICACIONES",null,null,null,null,null,null,null,null,null,141211004,"CURSO MEXICO",1412,null,null,null,113,111,"QUIMICA COLCIENCIAS"]
[181511,"CIENCIA POLITICA PRE",null,4420,"RELACIONES EXTERNAS","4420 RELACIONES EXTERNAS",null,null,null,null,null,null,null,null,null,141211101,"FOTOGRAFIA Y GRABADO",1412,null,null,null,114,41,"UNA EMPRESA DOCENTE"]
[181513,"MAE CIENCIA POLITICA",null,4430,"RELACIONES PUBLICAS","4430 RELACIONES PUBLICAS",null,null,null,null,null,null,null,null,null,141211102,"CERAMICA",1412,null,null,null,115,114,"UNA EMPRESA DOCENTE"]
[181514,"C POLITICA EDUCON",null,4440,"SERVICIOS DESARROLLO","4440 SERVICIOS DESARROLLO",null,null,null,null,null,null,null,null,null,141211103,"ESTRUCTURAS Y FORMAS",1412,null,null,null,116,114,"UNA EMPRESA DOCENTE INVESTIGACION"]
[181516,"DOC CIENCIA POLITICA",null,4450,"OFICINA DE DESARROLLO","4450 OFICINA DE DESARROLLO",null,null,null,null,null,null,null,null,null,141211104,"ESCULTURA Y PINTURA",1412,null,null,null,117,116,"DISTRITO CAPITAL SECCION EDUCACION"]
[181800,"FILOSOFIA DIR",null,4500,"DIR GHO","4500 DIR GHO",null,null,null,null,null,null,null,null,null,141211105,"BOSQUE VIRTUAL",1412,null,null,null,118,41,"PROGRAMA DE ESTUDIOS EN EDUCACION"]
[181811,"FILOSOFIA PRE",null,4510,"ADMON TALENTO HUMANO","4510 ADMON TALENTO HUMANO",null,null,null,null,null,null,null,null,null,141211106,"CENTRO AUDIOVISUALES",1412,null,null,null,119,118,"MAGISTER ESTUDIOS EN EDUCACION"]
[181813,"MAE FILOSOFIA",null,4520,"BENEFICIO BIENESTAR","4520 BENEFICIO BIENESTAR",null,null,null,null,null,null,null,null,null,141211107,"BANCO DE IMAGENES",1412,null,null,null,120,118,"P.FORMACION EN EDUC. PRIMARIA Y B."]
[181814,"FILOSOFIA EDUCON",null,4530,"DLLO TALENTO HUMANO","4530 DLLO TALENTO HUMANO",null,null,null,null,null,null,null,null,null,141212001,"ESP CREACION MULTIME",1412,null,null,null,121,9998,"FACULTAD DE DERECHO"]
[181816,"DOC FILOSOFIA",null,4600,"SECRETARIA GENERAL","4600 SECRETARIA GENERAL",null,null,null,null,null,null,null,null,null,141212002,"ESP HIST Y TEOR ARTE",1412,null,null,null,122,121,"DERECHO DECANATURA"]
[182100,"HISTORIA DIR",null,4610,"ADMON DOCUMENTAL","4610 ADMON DOCUMENTAL",null,null,null,null,null,null,null,null,null,141214001,"ARTE EDUCON",5100,null,null,null,123,122,"DERECHO DIRECCION"]
[182111,"HISTORIA PRE",null,4800,"VICERRECTORIA DE DESARROLLO Y EGRESADOS","4800 VICERRECTORIA DE DESARROLLO Y EGRESADOS",null,null,null,null,null,null,null,null,null,141222001,"REVISTA CLAVE",1412,null,null,null,124,121,"DERECHO"]
[182113,"MAE HISTORIA",null,5000,"VIC ACADEMICA","5000 VIC ACADEMICA",null,null,null,null,null,null,null,null,null,141233001,"PREMIO NAL CRITICA",1412,null,null,null,125,124,"DERECHO PREGRADO"]
[182114,"HISTORIA EDUCON",null,5010,"CENTRO DE ESPAÑOL","5010 CENTRO DE ESPAÑOL",null,null,null,null,null,null,null,null,null,141500001,"DPTO MUSICA HCM",1415,null,null,null,126,124,"CONSULTORIO JURIDICO"]
[182116,"DOC HISTORIA",null,5100,"DIR EDUCON","5100 DIR EDUCON",null,null,null,null,null,null,null,null,null,141511001,"MUSICA PRE",1415,null,null,null,127,124,"CATEDRA CIRO ANGARITA"]
[182400,"LENG Y EST SOCIO DIR",null,5200,"ADMISION Y REGISTRO","5200 ADMISION Y REGISTRO",null,null,null,null,null,null,null,null,null,141511002,"BECA INTERPRE CUERDA",1415,null,null,null,128,124,"DERECHO ESPECIALIZACIONES"]
[182411,"LENG Y EST SOCIO PRE",null,5210,"ADMISIONES",{"$f":"CONCATENATE(D131,\" \",E131)","v":"5210 ADMISIONES"},null,null,null,null,null,null,null,null,null,141514001,"MUSICA EDUCON",5100,null,null,null,129,128,"ESPECIALIZACION FINANCIERO"]
[182413,"MAE LENGUAJES",null,5220,"REGISTRO ACADEMICO","5220 REGISTRO ACADEMICO",null,null,null,null,null,null,null,null,null,141800001,"DPTO LITERATURA HCM",1418,null,null,null,130,128,"ESPECIALIZACION COMERCIAL"]
[182414,"LENGUAJES EDUCON",null,5230,"SCOUTING","5230 SCOUTING",null,null,null,null,null,null,null,null,null,141811001,"LITERATURA PRE",1418,null,null,null,131,128,"ESPECIALIZACION GESTION PUBLICA"]
[182431,"CEN TRADUCCION LEG",null,5300,"SISTEMA BIBLIOTECAS","5300 SISTEMA BIBLIOTECAS",null,null,null,null,null,null,null,null,null,141813001,"MAE LITERATURA",1418,null,null,null,132,128,"ESPECIALIZACION EN TRIBUTACION"]
[182700,"PSICOLOGIA DIR",null,5310,"FDO DOT BIBLIOTECAS","5310 FDO DOT BIBLIOTECAS",null,null,null,null,null,null,null,null,null,141814001,"LITERATURA EDUCON",5100,null,null,null,133,128,"DERECHO DE LOS NEGOCIOS INTERNACIONALES"]
[182711,"PSICOLOGIA PRE",null,5400,"DEC ESTUDIANTES","5400 DEC ESTUDIANTES",null,null,null,null,null,null,null,null,null,141816001,"DOC LITERATURA",1418,null,null,null,134,124,"DERECHO EDUCACION CONTINUADA"]
[182713,"MAE PSICOLOGIA",null,5410,"CENTRO CULTURAL","5410 CENTRO CULTURAL",null,null,null,null,null,null,null,null,null,141822001,"REVISTA PERIFRASIS",1418,null,null,null,135,134,"DERECHO EDUCACION CONTINUADA"]
[182714,"PSICOLOGIA EDUCON",null,5420,"DEPORTES","5420 DEPORTES",null,null,null,null,null,null,null,null,null,141822002,"JORNADAS FILOLOGICAS",1418,null,null,null,136,134,"POSTG.DER.CONSTITUCIONAL"]
[182716,"DOC PSICOLOGIA",null,5430,"CTP","5430 CTP",null,null,null,null,null,null,null,null,null,142100001,"CEPER HCM",1421,null,null,null,137,121,"C.I.J.U.S."]
[183621,"CESO",null,5440,"CENTRO DE CONSEJERIA","5440 CENTRO DE CONSEJERIA",null,null,null,null,null,null,null,null,null,142111001,"PERIODISMO PRE",1421,null,null,null,138,137,"CIJUS DIRECCION"]
[183622,"CESO INV",null,5450,"CENTRO EST EXTRANJER","5450 CENTRO EST EXTRANJER",null,null,null,null,null,null,null,null,null,142112001,"ESP PERIODISMO",1421,null,null,null,139,137,"CIJUS INVESTIGACION"]
[183624,"CESO CONSULTORIA",null,6000,"VIC ADTIVA Y FRA","6000 VIC ADTIVA Y FRA",null,null,null,null,null,null,null,null,null,142113001,"MAE PERIODISMO",1421,null,null,null,140,137,"CIJUS PROGRAMA SOCRATES"]
[200000,"FAC DERECHO",null,6100,"PLANTA FISICA","6100 PLANTA FISICA",null,null,null,null,null,null,null,null,null,142114001,"CEPER EDUCON",5100,null,null,null,141,124,"FONDO EDUARDO ALVAREZ CORREA"]
[200046,"DEC DERECHO",null,6110,"MANTENIMIENTO ESTRATEGIA DE LIBERACION","6110 MANTENIMIENTO ESTRATEGIA DE LIBERACION",null,null,null,null,null,null,null,null,null,160000001,"FAC CIENCIAS HCM",1600,null,null,null,142,51,"PROYECTO RANA PALMATUS"]
[200633,"PUBLICACIONES DERE",null,6200,"DIR ADMINISTRATIVA","6200 DIR ADMINISTRATIVA",null,null,null,null,null,null,null,null,null,160046001,"DEC CIENCIAS",1600,null,null,null,143,507,"FONDO EQUIPO RECTORIA"]
[200965,"RELACIONES EXTERNAS",null,6210,"SEG Y SERV GRALES","6210 SEG Y SERV GRALES",null,null,null,null,null,null,null,null,null,160046002,"SILLA PROF SANFORD",1600,null,null,null,144,24,"ALIANZAS EMPRESARIALES"]
[200981,"FONDO BECAS DERECHO",null,6220,"ADQUISICIONES","6220 ADQUISICIONES",null,null,null,null,null,null,null,null,null,160046003,"REPO ELEMEN INVEST",1600,null,null,null,145,24,"ADMINISTRACION ESP. AUTOEVALUACION"]
[201211,"DERECHO PRE",null,6230,"LIBRERIA","6230 LIBRERIA",null,null,null,null,null,null,null,null,null,160046004,"COMUNICACIONES",1600,null,null,null,146,139,"CIJUS OBSERVATORIO DE LA MUJER N"]
[201222,"INVESTIGACION GECTI",null,6240,"DPTO MEDICO SALUD O","6240 DPTO MEDICO SALUD O",null,null,null,null,null,null,null,null,null,160046005,"APOYO REALIZ EVENTO","1600",null,null,null,147,203,"COL.C-174/97 VINCULACION ROBERTO PERRYCARRASCO-CCELA"]
[201245,"PRACTICAS PRE",null,6300,"DTI","6300 DTI",null,null,null,null,null,null,null,null,null,160046006,"FDO OVERHEAD","1600",null,null,null,148,51,"FLORA DE CHINGAZA"]
[2012451,"CONSULTORIO JURIDICO",null,6310,"SERVICIO CLIENTE DTI","6310 SERVICIO CLIENTE DTI",null,null,null,null,null,null,null,null,null,160046007,"EDITORIAL FACULTAD","1600",null,null,null,149,9998,"FACULTAD DE ECONOMIA CONSOLIDADO"]
[201251,"FDO AVAL ESTUDIANTES",null,6320,"INFRESTRUCTURA","6320 INFRESTRUCTURA",null,null,null,null,null,null,null,null,null,160046008,"IMPUESTO COLCIENCIAS","1600",null,null,null,150,986,"ECONOMIA DECANATURA"]
[201512,"ESP DERECHO",null,6330,"PROYECTOS DTI","6330 PROYECTOS DTI",null,null,null,null,null,null,null,null,null,160046009,"INNOVACION CIENCIAS","1600",null,null,null,151,150,"ECONOMIA DIRECCION"]
[202113,"MAE DERECHO",null,6340,"ESTRATEGIA Y ARQUITECTURA","6340 ESTRATEGIA Y ARQUITECTURA",null,null,null,null,null,null,null,null,null,160082001,"FDO CREDITO CONDONAB",1600,null,null,null,152,150,"FONDO ECONOMIA DESARROLLO DOCENTE"]
[203016,"DOC DERECHO",null,6400,"DIR FINANCIERA","6400 DIR FINANCIERA",null,null,null,null,null,null,null,null,null,160322001,"FAC CIENCIAS INV","1603",null,null,null,153,150,"FONDO FACULTAD DE ECONOMIA"]
[203314,"DERECHO EDUCON",null,6410,"CONTABILIDAD","6410 CONTABILIDAD",null,null,null,null,null,null,null,null,null,160322002,"EXPOCIENCIA",1600,null,null,null,154,986,"ECONOMIA PREGRADO"]
[203621,"CIJUS DIR",null,6420,"TESORERIA","6420 TESORERIA",null,null,null,null,null,null,null,null,null,160322003,"FDO OVERHEAD E IMPTO",1600,null,null,null,155,154,"ECONOMIA PREGRADO"]
[203622,"INVESTIGACION",null,6430,"APOYO FINANCIERO","6430 APOYO FINANCIERO",null,null,null,null,null,null,null,null,null,160322004,"REVISTA CIENCIAS",1600,null,null,null,156,986,"ECONOMIA POSGRADO"]
[203624,"CONSULTORIA",null,6440,"PRESUPUESTO","6440 PRESUPUESTO",null,null,null,null,null,null,null,null,null,160322005,"IMPUESTO COLCIENCIAS",1600,null,null,null,157,156,"ECONOMIA POSGRADO"]
[220000,"FAC ECONOMIA",null,7000,"VIC INVESTIGACIONES","7000 VIC INVESTIGACIONES",null,null,null,null,null,null,null,null,null,160322006,"APOYO COMITE I & P",1600,null,null,null,158,156,"ECONOMIA MAGISTER AMBIENTAL"]
[220046,"DEC  ECONOMIA",null,7010,"DOCTORADOS","7010 DOCTORADOS",null,null,null,null,null,null,null,null,null,160322007,"INNOVACION CIENCIAS",1600,null,null,null,159,986,"ECONOMIA ESPECIALIZACION"]
[220047,"APORTE FDO PDD Y PDA",null,7020,"OFICINA EDICIONES","7020 OFICINA EDICIONES",null,null,null,null,null,null,null,null,null,160322008,"PROYECTOS ESPECIALES",1600,null,null,null,160,159,"ECONOMIA ESP. EVALUACION PROYECTOS"]
[220114,"ECONOMIA EDUCON",null,7030,"CEIBANDES","7030 CEIBANDES",null,null,null,null,null,null,null,null,null,160322009,"INVER LAB DPTO FISIC",1600,null,null,null,161,159,"ESPECIALIZACION EN ECONOMIA PARA NO ECONOMISTAS"]
[220141,"BIBLIOTECA ECONOMIA",null,8001,"DON SIN DEST ESPECIF","8001 DON SIN DEST ESPECIF",null,null,null,null,null,null,null,null,null,160322010,"INV C BIOLOGICAS","1600",null,null,null,162,154,"ECONOMIA EDUCACION CONTINUADA"]
[221211,"ECONOMIA PRE",null,8101,"DON CON DEST ESPECIF","8101 DON CON DEST ESPECIF",null,null,null,null,null,null,null,null,null,160322011,"INV FISICA","1600",null,null,null,163,986,"C.E.D.E."]
[221512,"ESP ECONOMIA",null,8103,"DONACIONES","8103 DONACIONES",null,null,null,null,null,null,null,null,null,160421001,"LAB LEMA","1600",null,null,null,164,163,"ECONOMIA ACTIVIDADES AUXILIARES"]
[222113,"MAE ECONOMIA",null,8104,"DON EGRESADOS","8104 DON EGRESADOS",null,null,null,null,null,null,null,null,null,160421002,"LAB CIMIC","1600",null,null,null,165,164,"BIBLIOTECA CEDE"]
[223016,"DOC ECONOMIA",null,8105,"DON FUND STAFE MED","8105 DON FUND STAFE MED",null,null,null,null,null,null,null,null,null,160421003,"LAB CIMIC - DOCT","1600",null,null,null,166,164,"ECONOMIA REVISTA DESARROLLO SOCIEDAD"]
[223600,"CEDE",null,8106,"DON FAC CIENCIAS","8106 DON FAC CIENCIAS",null,null,null,null,null,null,null,null,null,160421004,"LAB BIOQUIMICA","1600",null,null,null,167,163,"INVESTIGACION CEDE"]
[223621,"PUBLICACIONES Y DIF",null,8107,"DON FAC ADMON","8107 DON FAC ADMON",null,null,null,null,null,null,null,null,null,160421005,"LAB BIOMAR","1600",null,null,null,168,167,"CEDE INVESTIGACIONES VARIAS"]
[223622,"CEDE INV",null,8108,"DON FAC INGENIERIA","8108 DON FAC INGENIERIA",null,null,null,null,null,null,null,null,null,160421006,"LAB LEMVA","1600",null,null,null,169,167,"CEDE INVESTIGACION B.I.D."]
[223624,"CEDE CONSULTORIA",null,8109,"DON FAC CISO","8109 DON FAC CISO",null,null,null,null,null,null,null,null,null,160421007,"LAB BIOMICS","1600",null,null,null,170,167,"ECONOMIA COLCIENCIAS"]
[223646,"CEDE ADMINISTRACION",null,8199,"BCAS ADMON CENTRAL","8199 BCAS ADMON CENTRAL",null,null,null,null,null,null,null,null,null,160421008,"LAB BBMP","1600",null,null,null,171,167,"ECONOMIA OTRAS INVESTIGACIONES"]
[223722,"CENTRO DROG Y SEGU",null,8500,"FDO SUPERAVIT","8500 FDO SUPERAVIT",null,null,null,null,null,null,null,null,null,160421009,"LAB CIMPAT","1600",null,null,null,172,167,"ECONOMIA MERCADO DEL ESPACIO CONSTR. EN BTA"]
[223822,"CONDITIONAL CASH",null,8510,"SUPERAVIT 25% ADMON","8510 SUPERAVIT 25% ADMON",null,null,null,null,null,null,null,null,null,160421010,"LAB LDMB","1600",null,null,null,173,167,"ECONOMIA PARTICIPACION LABORAL EN COLOMBIA"]
[240000,"FACULTAD INGENIERIA",null,8511,"SUPERAVIT 25% ARQDIS","8511 SUPERAVIT 25% ARQDIS",null,null,null,null,null,null,null,null,null,160421011,"LAB EVOL VERTEBRADOS","1600",null,null,null,174,167,"ECONOMIA APOYO A LAS MICROEMPRESAS"]
[245100,"CIFI",null,8512,"SUPERAVIT 25% CIENC","8512 SUPERAVIT 25% CIENC",null,null,null,null,null,null,null,null,null,160421012,"LAB CIEM","1600",null,null,null,175,167,"ECONOMIA SISTEMA ANDINO DE FRANJAS DE PRECIOS"]
[240061,"DECANATURAINGENIERIA",null,8513,"SUPERAVIT 25% DCHO","8513 SUPERAVIT 25% DCHO",null,null,null,null,null,null,null,null,null,160421013,"LAB GECOH","1600",null,null,null,176,167,"ECONOMIA FORTALECIMIENTO DE CENTROS DE INVEST."]
[240261,"VICEDECINVESTIGACION",null,8514,"SUPERAVIT 25% ECONOM","8514 SUPERAVIT 25% ECONOM",null,null,null,null,null,null,null,null,null,160421014,"DON GENETICA","1600",null,null,null,177,167,"ECONOMIA ESTIMACION PRECIOS SOCIALES BOLIVIA"]
[240461,"VICEDEC PREGRADO",null,8515,"SUPERAVIT 25% CISO","8515 SUPERAVIT 25% CISO",null,null,null,null,null,null,null,null,null,160421015,"LAB GENETICA","1600",null,null,null,178,167,"ECONOMIA DNP-060 EMPLEO SECTOR RURAL"]
[240614,"EDUCACION CONTINUADA",null,8516,"SUPERAVIT 25% ING","8516 SUPERAVIT 25% ING",null,null,null,null,null,null,null,null,null,160421016,"LAB CIMPAT","1600",null,null,null,179,167,"ECONOMIA DNP-071 D.PARTICIPACION LABORAL"]
[240661,"VICEDEC SECT EXTERNO",null,8517,"SUPERAVIT 25% ARTES","8517 SUPERAVIT 25% ARTES",null,null,null,null,null,null,null,null,null,160421017,"LAB GENETICA HUMANA","1600",null,null,null,180,167,"ECONOMIA OIT ITEC PROTECCION NIOS TRAB."]
[240816,"PROGRAMAS POSGRADO",null,8530,"FDO DEST ESPEC VRIOS","8530 FDO DEST ESPEC VRIOS",null,null,null,null,null,null,null,null,null,160421018,"LAB LAMFU","1600",null,null,null,181,167,"ECONOMIA DAMA VALORACION AMBIENTAL"]
[241011,"PROGRAMAS PREGRADO",null,8531,"FDO INVESTIGACIONES","8531 FDO INVESTIGACIONES",null,null,null,null,null,null,null,null,null,160421019,"EVODEVO","1600",null,null,null,182,167,"ECONOMIA DNP-223 INFRAESTRUCTURA COL"]
[241111,"PREGRADO ING BIOMÉDICA",null,8532,"FDO PDD Y PDA","8532 FDO PDD Y PDA",null,null,null,null,null,null,null,null,null,160421020,"LAB CIMIC M.VIVES","1600",null,null,null,183,167,"ECONOMIA ANALISIS DEL MERCADO"]
[241113,"MAESTRÍA ING BIOMÉDICA",null,8533,"FDO CAPACITACION","8533 FDO CAPACITACION",null,null,null,null,null,null,null,null,null,160421021,"LAB. GEN HUMANA MCL","1612",null,null,null,184,167,"ECONOMIA DNP-250 FUNCIONES DE INGRESO"]
[241146,"ADMÓN ING BIOMÉDICA",null,8534,"FDO RECONOCIM ACADEM","8534 FDO RECONOCIM ACADEM",null,null,null,null,null,null,null,null,null,160421022,"LAB. GEN HUMANA MMT","1612",null,null,null,185,167,"ECONOMIA ESTRUCTURA Y SOSTENIBILIDAD"]
[241200,"INGCIVIL Y AMBIENTAL HCM",null,8535,"CONVENIO COOP EDU","8535 CONVENIO COOP EDU",null,null,null,null,null,null,null,null,null,160421023,"LAB. BIOINFORMATICA","1612",null,null,null,186,167,"ECONOMIA CRECIMIENTO Y DISTRIB.DEL INGRESO"]
[241211,"INGCIVIL Y AMBIENTAL",null,8536,"FDO PDI","8536 FDO PDI",null,null,null,null,null,null,null,null,null,160422001,"FAPA CIENCIAS","1600",null,null,null,187,167,"ECONOMIA COSTOS DE LA CADENA DE CARBON M."]
[241212,"ESP ICYA",null,8537,"PRY CONV INTER FINVG","8537 PRY CONV INTER FINVG",null,null,null,null,null,null,null,null,null,160422002,"INV C BIOLOGICAS","1600",null,null,null,188,9998,"FACULTAD CIENCIAS SOCIALES"]
[241213,"ICYA POSGRADO",null,8600,"INVERSIONES PF","8600 INVERSIONES PF",null,null,null,null,null,null,null,null,null,160422003,"INV FISICA","1600",null,null,null,189,188,"CIEN. SOCIALES DECANATURA"]
[241214,"ICYA EDUC CONTINUADA",null,8602,"INVERSION OBRAS DTI","8602 INVERSION OBRAS DTI",null,null,null,null,null,null,null,null,null,160422004,"INV MATEMATICAS","1600",null,null,null,190,189,"CIEN. SOCIALES DIRECCION"]
[241224,"LABORATORIOS SERVICIOS",null,8603,"INVER MAYORES DTI","8603 INVER MAYORES DTI",null,null,null,null,null,null,null,null,null,160422005,"INV QUIMICA","1600",null,null,null,191,189,"CIEN. SOCIALES FONDO INVESTIGACION"]
[241246,"ADMINISTRACION ICYA",null,8606,"INVER ADMON CENTRAL","8606 INVER ADMON CENTRAL",null,null,null,null,null,null,null,null,null,161200001,"C BIOLOGICAS HCM",1612,null,null,null,192,188,"CIEN. SOCIALES PREGRADO DECANATURA"]
[241261,"INVERSIONES ICYA",null,8607,"SACS",{"$f":"CONCATENATE(D195,\" \",E195)","v":"8607 SACS"},null,null,null,null,null,null,null,null,null,161211001,"C BIOLOGICAS PRE",1612,null,null,null,193,192,"CIEN. SOCIALES PROGRAMA. ESTUDIOS HONORIFICOS."]
[241271,"INVERSIONES ICYA",null,8610,"INVER RECTORIA","8610 INVER RECTORIA",null,null,null,null,null,null,null,null,null,161211002,"SUSTANC CONTROLADAS",1612,null,null,null,194,192,"CIEN. SOCIALES PROGRAMA DE ESTUDIOS LATINOAMERICANOS"]
[241500,"ELECTRICAELECTRONICA",null,8611,"INVER SECRTARIA GRAL","8611 INVER SECRTARIA GRAL",null,null,null,null,null,null,null,null,null,161213001,"MAE C BIOLOGICAS",1612,null,null,null,195,188,"FILOSOFIA"]
[241511,"IEEL PREGRADO",null,8612,"INVER VIC ACADEMICA","8612 INVER VIC ACADEMICA",null,null,null,null,null,null,null,null,null,161214001,"C BIOLOGICAS EDUCON",5100,null,null,null,196,195,"FILOSOFIA Y LETRAS PREGRA"]
[241512,"IEEL ESPECIALIZACIONES",null,8613,"INVER VIC ADTIVA","8613 INVER VIC ADTIVA",null,null,null,null,null,null,null,null,null,161216001,"C BIOLOG DOCTORADO ","1612",null,null,null,197,139,"PAZ Y DERECHOS HUMANOS"]
[241513,"IEEL MAESTRIA",null,8614,"INVER DIR ADTIVA","8614 INVER DIR ADTIVA",null,null,null,null,null,null,null,null,null,161221001,"LAB CIMIC",1600,null,null,null,198,139,"POLITICAS DESPUES DE LA GUERRA"]
[241514,"IEEL EDU CONTINUADA",null,8615,"INVER DIR FINANCIERA","8615 INVER DIR FINANCIERA",null,null,null,null,null,null,null,null,null,161221002,"LAB CIMIC - DOCT",1600,null,null,null,199,188,"ANTROPOLOGIA"]
[241546,"IEEL OPERACION DPTO",null,8616,"INVER VIC INV","8616 INVER VIC INV",null,null,null,null,null,null,null,null,null,161221003,"LAB BIOQUIMICA",1600,null,null,null,200,199,"ANTROPOLOGIA PREGRADO"]
[241561,"PDI PLAN DESARROLLO",null,8630,"INV FACULTADES","8630 INV FACULTADES",null,null,null,null,null,null,null,null,null,161221004,"LAB BIOMAR",1600,null,null,null,201,199,"ANTROPOLOGIA POSGRADO"]
[241800,"DPTO ING INDUSTRIAL",null,9910,"BECA CREDITOS UANDES","9910 BECA CREDITOS UANDES",null,null,null,null,null,null,null,null,null,161221005,"LAB LEMVA",1600,null,null,null,202,201,"ANTROPOLOGIA POSGRADO"]
[241811,"PREGRADO INDUSTRIAL",null,9920,"MED COVH Y CONVENIOS","9920 MED COVH Y CONVENIOS",null,null,null,null,null,null,null,null,null,161221006,"LAB BIOMICS",1600,null,null,null,203,199,"ANTROPOLOGIA INVESTIGACION"]
[241812,"ESP IIND",null,9999,"DISTRIBUIDOS UANDES",{"$f":"CONCATENATE(D206,\" \",E206)","v":"9999 DISTRIBUIDOS UANDES"},null,null,null,null,null,null,null,null,null,161221007,"LAB BBMP",1600,null,null,null,204,203,"ANTROPOLOGIA C.C.E.L.A."]
[241813,"MAESTRIA IIND",null,null,null,null,null,null,null,null,null,null,null,null,null,161221008,"LAB CIMPAT",1600,null,null,null,205,243,"CESO U.N.A.M.A.Z."]
[241814,"IIND EDU CONTINUADA",null,null,null,null,null,null,null,null,null,null,null,null,null,161221009,"LAB LDMB",1600,null,null,null,206,243,"CESO PROYECTOS VARIOS"]
[241846,"ADMINISTRACION IIND",null,null,null,null,null,null,null,null,null,null,null,null,null,161221010,"LAB EVOL VERTEBRADOS",1600,null,null,null,207,243,"CESO TEXTILES SOGAMOSO"]
[241861,"PDD IIND",null,null,null,null,null,null,null,null,null,null,null,null,null,161221011,"LAB CIEM",1600,null,null,null,208,188,"CIENCIA POLITICA"]
[242100,"DPTO ING MECANICA",null,null,null,null,null,null,null,null,null,null,null,null,null,161221012,"LAB GECOH",1600,null,null,null,209,208,"CIENCIA POLITICA PREGRADO"]
[242111,"PREGRADO IMEC",null,null,null,null,null,null,null,null,null,null,null,null,null,161221013,"DON GENETICA",1600,null,null,null,210,208,"CIENCIA POLITICA POSGRADO"]
[242113,"MAE IMEC",null,null,null,null,null,null,null,null,null,null,null,null,null,161221014,"LAB GENETICA",1600,null,null,null,211,210,"CIENCIA POLITICA POSGRADO"]
[242114,"EDU CONTINUADA IMEC",null,null,null,null,null,null,null,null,null,null,null,null,null,161221015,"LAB CIMPAT",1600,null,null,null,212,208,"CIENCIA POLITICA EDUCACION CONTINUADA"]
[242122,"LABORATORIOS IMEC",null,null,null,null,null,null,null,null,null,null,null,null,null,161221016,"LAB GENETICA HUMANA",1600,null,null,null,213,212,"CIENCIA POLITICA EDUC.CONTINUADA"]
[242124,"SERVICIOS LAB IMEC",null,null,null,null,null,null,null,null,null,null,null,null,null,161221017,"LAB LAMFU",1600,null,null,null,214,208,"CIENCIA POLITICA INVESTIGACION"]
[242146,"ADMINISTRACION IMEC",null,null,null,null,null,null,null,null,null,null,null,null,null,161221018,"EVODEVO",1600,null,null,null,215,214,"CIENCIA POLITICA PROGRAMA DEMOCRACIA"]
[242400,"DEPTO ING QUIMICA",null,null,null,null,null,null,null,null,null,null,null,null,null,161221019,"LAB CIMIC M.VIVES","1600",null,null,null,216,214,"CIENCIA POLITICA T I N K E R"]
[242411,"PRE IQUI",null,null,null,null,null,null,null,null,null,null,null,null,null,161221020,"LAB BOTANICA","1600",null,null,null,217,214,"CIENCIA POLITICA REGISTRADURIA"]
[242413,"MAE IQUI",null,null,null,null,null,null,null,null,null,null,null,null,null,161222001,"C BIOLOGICAS INV",1600,null,null,null,218,214,"CIENCIA POLITICA RESPONSABILIDAD SOCIAL UNIANDES"]
[242414,"IQUI EDU CONTINUADA",null,null,null,null,null,null,null,null,null,null,null,null,null,161246001,"INVER C BIOLOG INV","1612",null,null,null,219,214,"CIENCIA POLITICA PROYECTO DE LA O.N.G."]
[242424,"LABORATORIOSERVICIOS",null,null,null,null,null,null,null,null,null,null,null,null,null,161246002,"INVER C BIOLOG DOCEN","1612",null,null,null,220,214,"CIENCIA POLITICA PROYECTO DE LA O.E.I."]
[242446,"ADMINISTRACION IQUI",null,null,null,null,null,null,null,null,null,null,null,null,null,161500001,"FISICA HCM",1615,null,null,null,221,214,"CIENCIA POLITICA FUNDACION CORONA"]
[242700,"DEPTO ING SISTEMAS",null,null,null,null,null,null,null,null,null,null,null,null,null,161511001,"FISICA PRE",1615,null,null,null,222,214,"CIENCIA POLITICA PROYECTO A.I.D"]
[242711,"PRE ISIS",null,null,null,null,null,null,null,null,null,null,null,null,null,161513001,"MAE FISICA",1615,null,null,null,223,214,"CIENCIA POLITICA UNA DEMOCRACIA AMENAZADA"]
[242712,"ESP ISIS",null,null,null,null,null,null,null,null,null,null,null,null,null,161514001,"FISICA EDUCON",5100,null,null,null,224,214,"CIENCIA POLITICA ESCUELA DE LIDERAZGO JUVENIL C.BOLIV."]
[242713,"MAE ISIS",null,null,null,null,null,null,null,null,null,null,null,null,null,161516001,"DOC FISICA",1615,null,null,null,225,188,"HISTORIA"]
[242714,"ISIS EDU CONTINUADA",null,null,null,null,null,null,null,null,null,null,null,null,null,161522001,"LAB SUPERCONDUCTIVID",1615,null,null,null,226,225,"HISTORIA PREGRADO"]
[242721,"PROYECTOS ISIS",null,null,null,null,null,null,null,null,null,null,null,null,null,161522002,"LAB FUNGIBLES INV",1615,null,null,null,227,225,"HISTORIA EDUCACION CONTINUADA"]
[242722,"PROYECTOS ISIS",null,null,null,null,null,null,null,null,null,null,null,null,null,161522003,"FISICA INV",1600,null,null,null,228,227,"HISTORIA PROGRAMA ANPAZ"]
[242746,"DEPARTAMENTO: INV",null,null,null,null,null,null,null,null,null,null,null,null,null,161546001,"INVER FISICA INV","1615",null,null,null,229,225,"HISTORIA ACTIVIDADES AUXILIARES"]
[243622,"PROYECTOS ESPECIALES",null,null,null,null,null,null,null,null,null,null,null,null,null,161546002,"INVER FISICA DOCEN","1615",null,null,null,230,229,"HISTORIA REVISTA"]
[243621,"CONVENIOS",null,null,null,null,null,null,null,null,null,null,null,null,null,161800001,"GEOCIENCIAS HCM",1615,null,null,null,231,225,"HISTORIA INVESTIGACION"]
[243921,"SECTOR EXT CIE ",null,null,null,null,null,null,null,null,null,null,null,null,null,161811001,"GEOCIENCIAS PRE",1615,null,null,null,232,231,"HISTORIA BRUJERIA Y RECONSTRUCCION ETNICA"]
[243922,"PROY INVEST CIE",null,null,null,null,null,null,null,null,null,null,null,null,null,161846001,"INVER GEOCIENC INV","1618",null,null,null,233,188,"PROGRAMA DE LENGUAJES Y ESTUDIOS SOCIOCULTURALES"]
[243924,"ASESORIA CIE AGUA",null,null,null,null,null,null,null,null,null,null,null,null,null,161846002,"INVER GEOCIENC DOCEN","1618",null,null,null,234,233,"PROGRAMA DE LENGUAJES Y ESTUDIOS PREGRADO"]
[244221,"SECT EXT CIE ENERGIA",null,null,null,null,null,null,null,null,null,null,null,null,null,162100001,"MATEMATICAS HCM",1621,null,null,null,235,233,"PROGRAMA DE LENGUAJES POSGRADO"]
[244222,"INVEST CIE ENERGIA",null,null,null,null,null,null,null,null,null,null,null,null,null,162111001,"MATEMATICAS PRE",1621,null,null,null,236,235,"PROGRAMA DE LENGUAJES POSGRADO"]
[244224,"ASESORIA CIE ENERGIA",null,null,null,null,null,null,null,null,null,null,null,null,null,162112001,"ESP MATEMATICAS",1621,null,null,null,237,233,"PROGRAMA DE LENGUAJES ACTIVIDADES AUXILIARES"]
[244521,"SECTOREXT MATERIALES",null,null,null,null,null,null,null,null,null,null,null,null,null,162113001,"MAE MATEMATICAS","1621",null,null,null,238,237,"PROGRAMA DE LENGUAJES SERVICIOS DOCENTES"]
[244522,"INVEST CIEMATERIALES",null,null,null,null,null,null,null,null,null,null,null,null,null,162114001,"MATEMATICAS EDUCON",5100,null,null,null,239,188,"PSICOLOGIA"]
[244524,"ASESORIA MATERIALES",null,null,null,null,null,null,null,null,null,null,null,null,null,162114002,"ESCUELA VERANO MAT",1600,null,null,null,240,239,"PSICOLOGIA PREGRADO"]
[244821,"SECTOR EXT MOVILIDAD",null,null,null,null,null,null,null,null,null,null,null,null,null,162116001,"DOC MATEMATICAS",1621,null,null,null,241,239,"PROYECTOS VARIOS PSICOLOGIA"]
[244822,"INVESTIGAC MOVILIDAD",null,null,null,null,null,null,null,null,null,null,null,null,null,162122001,"MATEMATICAS INV",1600,null,null,null,242,241,"PSICOLOGIA INVESTIGACION"]
[244824,"ASESORIA MOVILIDAD",null,null,null,null,null,null,null,null,null,null,null,null,null,162122002,"LAB MATEMATICAS",1621,null,null,null,243,188,"CESO"]
[245122,"CIFI-ICYA",null,null,null,null,null,null,null,null,null,null,null,null,null,162146001,"INVER MATEMAT INV","1621",null,null,null,244,243,"CESO INVESTIGACION"]
[2451221,"CIFI-ICYA G. PY",null,null,null,null,null,null,null,null,null,null,null,null,null,162146002,"INVER MATEMAT DOCEN","1621",null,null,null,245,214,"C. POLITICA NEGOCIACION INTERNACIONAL"]
[2451222,"CIFI-ICYA SUR",null,null,null,null,null,null,null,null,null,null,null,null,null,162181001,"BECAS HENRY YERLI",1621,null,null,null,246,214,"C. POLITICA INVESTIGACIONES VARIAS"]
[2451223,"CIFI-ICYA CIACUA",null,null,null,null,null,null,null,null,null,null,null,null,null,162400001,"QUIMICA HCM",1624,null,null,null,247,244,"CESO R.E.R.R. Y P EN COLOMBIA Y PERU"]
[2451224,"CIFI-ICYA CIMOC",null,null,null,null,null,null,null,null,null,null,null,null,null,162411001,"QUIMICA PRE",1624,null,null,null,248,244,"CESO PROGRAMA ESTUDIOS DE SEGURIDAD"]
[2451225,"CIFI-ICYA E Y G",null,null,null,null,null,null,null,null,null,null,null,null,null,162413001,"MAE QUIMICA",1624,null,null,null,249,244,"CESO DNP-029 LA PAZ ES RENTABLE"]
[2451226,"CIFI-ICYA GIIA",null,null,null,null,null,null,null,null,null,null,null,null,null,162416001,"QUIMICA DOCTORADO ",1624,null,null,null,250,51,"AMIBAS - CHOCO"]
[245422,"CIFI-IEEL",null,null,null,null,null,null,null,null,null,null,null,null,null,162422001,"QUIMICA INV",1600,null,null,null,251,118,"COLCIENCIAS ESCUELA RC-222-99 F. CIENCIAS"]
[2454221,"CIFI-IEEL M Y A.E.",null,null,null,null,null,null,null,null,null,null,null,null,null,162446001,"INVER QUIMICA INV","1624",null,null,null,252,118,"PROYECTOS SECRETARIA EDUC.DISTRITAL F. CIENCIAS"]
[2454222,"CIFI-IEEL P Y E",null,null,null,null,null,null,null,null,null,null,null,null,null,162446002,"INVER QUIMICA DOCEN","1624",null,null,null,253,124,"DERECHO MAESTRIA"]
[2454223,"CIFI-IEEL GIAP",null,null,null,null,null,null,null,null,null,null,null,null,null,180000001,"FAC CIEN SOCI HCM",1800,null,null,null,254,253,"DERECHO MAESTRIA"]
[2454224,"CIFI-IEEL CMUA",null,null,null,null,null,null,null,null,null,null,null,null,null,180046001,"DEC CIEN SOCIALES",1800,null,null,null,255,244,"CESO ALCOHOL Y DROGA"]
[2454225,"CIFI-IEEL GEST",null,null,null,null,null,null,null,null,null,null,null,null,null,180046002,"CIEN SOC FONDO INV",1800,null,null,null,256,2296,"LABORATORIO DE ING. MECANICA"]
[245722,"CIFI-IIND",null,null,null,null,null,null,null,null,null,null,null,null,null,180046003,"INV FAC CIEN SOCIALE",1800,null,null,null,257,637,"CEPER INVESTIGACION"]
[2457221,"CIFI-IIND PYLO",null,null,null,null,null,null,null,null,null,null,null,null,null,181122001,"REVISTA ANTIPODA",1800,null,null,null,258,189,"DIRECCION CENTRO ESTUDIOS ASIATICOS"]
[2457222,"CIFI-IIND COPA",null,null,null,null,null,null,null,null,null,null,null,null,null,181122002,"REVISTA COL INT",1800,null,null,null,259,244,"MERCADOS ILEGALES"]
[2457223,"CIFI-IIND TESO",null,null,null,null,null,null,null,null,null,null,null,null,null,181122003,"REV HISTORIA CRITICA",1800,null,null,null,260,244,"SALUD SEXUAL Y REPRODUCTIVA"]
[246022,"CIFI-IMEC",null,null,null,null,null,null,null,null,null,null,null,null,null,181122004,"REV EST SOCIALES",1800,null,null,null,261,461,"SERVICIO DE INTERNNET"]
[2460221,"CIFI-IMEC INT. EST.",null,null,null,null,null,null,null,null,null,null,null,null,null,181122005,"LIBROS",1800,null,null,null,262,442,"SOLEDAD ACOSTA Y LA CONSTRUCCION"]
[2460222,"CIFI-IMEC CONV ENER",null,null,null,null,null,null,null,null,null,null,null,null,null,181122006,"PUBLICACIONES ADMON",1800,null,null,null,263,601,"PRUEBAS DE VALIDACION"]
[2460223,"CIFI-IMEC CIPP",null,null,null,null,null,null,null,null,null,null,null,null,null,181122007,"PERIODICO SEXANTE",1800,null,null,null,264,1760,"ARQUITECTURA EDUC. CONTINUADA"]
[2460224,"CIFI-IMEC BIO",null,null,null,null,null,null,null,null,null,null,null,null,null,181200001,"ANTROPOLOGIA HCM",1800,null,null,null,265,93,"COL.C-242/99 VINCULACION JAVIER E.MAGNIN A FISICA"]
[246122,"CIFI-IBIO",null,null,null,null,null,null,null,null,null,null,null,null,null,181211001,"ANTROPOLOGIA PRE",1800,null,null,null,266,377,"FONDO ADMINISTRACION"]
[2461221,"CIFI-IBIO GRP. BIO.",null,null,null,null,null,null,null,null,null,null,null,null,null,181213001,"MAE ANTROPOLOGIA",1800,null,null,null,267,203,"COL.C-478/96 VINCULACION KAJ SVERKER TORSTEN ARHEN"]
[246322,"CIFI-IQUI",null,null,null,null,null,null,null,null,null,null,null,null,null,181214001,"ANTROPOLOGIA EDUCON",5100,null,null,null,268,189,"CIEN. SOCIALES LA CASA"]
[2463221,"CIFI-IQUI CDPP",null,null,null,null,null,null,null,null,null,null,null,null,null,181216001,"DOC ANTROPOLOGIA",1800,null,null,null,269,9998,"FACULTAD DE INGENIERIA"]
[246622,"CIFI-ISIS",null,null,null,null,null,null,null,null,null,null,null,null,null,181500001,"CIENCIA POLITICA HCM",1800,null,null,null,270,269,"INGENIERIA DECANATURA"]
[2466221,"CIFI-ISIS IMAGINE",null,null,null,null,null,null,null,null,null,null,null,null,null,181511001,"CIENCIA POLITICA PRE",1800,null,null,null,271,1684,"INGENIERIA DIRECCION"]
[2466222,"CIFI-ISIS COMIT",null,null,null,null,null,null,null,null,null,null,null,null,null,181513001,"MAE CIENCIA POLITICA",1800,null,null,null,272,1684,"CENTRO DOCUMENTACION"]
[2466223,"CIFI-ISIS INFOR.",null,null,null,null,null,null,null,null,null,null,null,null,null,181514001,"C POLITICA EDUCON",5100,null,null,null,273,1684,"MOX"]
[2466224,"CIFI-ISIS TICSW",null,null,null,null,null,null,null,null,null,null,null,null,null,181516001,"DOC CIENCIA POLITICA",1800,null,null,null,274,1684,"INGENIERIA DESARROLLO PROFESORAL"]
[246922,"FONDO INVESTIGA. ING",null,null,null,null,null,null,null,null,null,null,null,null,null,181800001,"FILOSOFIA HCM",1800,null,null,null,275,1684,"VICEDECANATURA DEL SECTOR EXTERNO"]
[260000,"DECANATURA MEDICINA",null,null,null,null,null,null,null,null,null,null,null,null,null,181811001,"FILOSOFIA PRE",1800,null,null,null,276,1263,"DOCTORADO EN INGENIERIA"]
[260046,"MEDICINA DIRECCION",null,null,null,null,null,null,null,null,null,null,null,null,null,181813001,"MAE FILOSOFIA",1800,null,null,null,277,1930,"CITEC"]
[260048," MAPA CURRICULAR",null,null,null,null,null,null,null,null,null,null,null,null,null,181814001,"FILOSOFIA EDUCON",5100,null,null,null,278,377,"FONDO DERECHO"]
[260081,"APOYO-BENEFICIOS EST",null,null,null,null,null,null,null,null,null,null,null,null,null,181816001,"DOCTORADO FILOSOFIA","1800",null,null,null,279,1709,"PREGRADO INGENIERIA GENERAL"]
[260111,"LABORATRIOS",null,null,null,null,null,null,null,null,null,null,null,null,null,182100001,"HISTORIA HCM",1800,null,null,null,280,42,"FAC. CIENCIAS INVESTIGACIONES VARIAS"]
[260211,"PUBLICACIONES MED.",null,null,null,null,null,null,null,null,null,null,null,null,null,182111001,"HISTORIA PRE",1800,null,null,null,281,1684,"REVISTA INGENIERIA"]
[260311,"CONVENIOS DOCENTE ASISTENCIALES MEDICINA",null,null,null,null,null,null,null,null,null,null,null,null,null,182113001,"MAE HISTORIA",1800,null,null,null,282,269,"CIFI"]
[261211,"PREGRADO CONSOLIDADO",null,null,null,null,null,null,null,null,null,null,null,null,null,182113002,"MAE GEOGRAFIA",1800,null,null,null,283,1928,"CIFI PROMOCION Y DESARROLLO"]
[262113,"MAESTRIA S PUBLICA",null,null,null,null,null,null,null,null,null,null,null,null,null,182114001,"HISTORIA EDUCON",5100,null,null,null,284,282,"CIFI PROYECTOS VARIOS"]
[263314,"MEDICINA EDUCON",null,null,null,null,null,null,null,null,null,null,null,null,null,182116001,"DOC HISTORIA",1800,null,null,null,285,1936,"CIFI INFORMATICA"]
[263622,"MEDICINA INVESTIGACION",null,null,null,null,null,null,null,null,null,null,null,null,null,182400001,"LENG Y EST SOCIO HCM",1800,null,null,null,286,282,"COLCIENCIAS VARIOS CIFI"]
[280000,"ESCUELA DE GOBIERNO",null,null,null,null,null,null,null,null,null,null,null,null,null,182411001,"LENGUAJES PRE",1800,null,null,null,287,282,"CIFI COLCIENCIAS CIID"]
[280014,"EGOB EDUCON",null,null,null,null,null,null,null,null,null,null,null,null,null,182411002,"INSTITUTO CONFUCIO",1800,null,null,null,288,1961,"CIFI COLCIENCIAS NEUROPSIQUIATRIA"]
[280046,"DIR EGOB",null,null,null,null,null,null,null,null,null,null,null,null,null,182413001,"MAE EST SOCIO CULT",1800,null,null,null,289,1961,"CIFI AUTOMATIZACION Y DISTRIBUCION-COLCIE"]
[280081,"FONDO PATRIMONIAL PROGRAMA ALTO GOBIERNO ",null,null,null,null,null,null,null,null,null,null,null,null,null,182413002,"MAE EN PEDAGOGIA",1800,null,null,null,290,282,"CIFI SUROCCIDENTE COLOMBIANO-EMCALI"]
[281211,"EGOB PRE",null,null,null,null,null,null,null,null,null,null,null,null,null,182414001,"LENGUAJES EDUCON","1800",null,null,null,291,282,"CIFI COLCIENCIAS - OSIRIS"]
[282113,"MAE EGOB",null,null,null,null,null,null,null,null,null,null,null,null,null,182414002,"INST.CONFUCIO EDUCON",5100,null,null,null,292,282,"CIFI HERRAMIENTAS COMPUTACIONALES-COLCIENCIAS"]
[283622,"EGOB INV",null,null,null,null,null,null,null,null,null,null,null,null,null,182414003,"CURSOS EDUCON LENG","5100",null,null,null,293,282,"CIFI PROYECTO 2R PUMP"]
[283624,"EGOB CONSULTORIA",null,null,null,null,null,null,null,null,null,null,null,null,null,182431001,"CEN TRADUCCION LEG",1800,null,null,null,294,282,"CIFI DESECHOS SOLIDOS MUNICIPALES"]
[300000,"CIDER",null,null,null,null,null,null,null,null,null,null,null,null,null,182431002,"ESPAÑOL - LENGUAJES",1800,null,null,null,295,1261,"CIFI CATEDRA FOSTER"]
[300065,"DIR CIDER",null,null,null,null,null,null,null,null,null,null,null,null,null,182700001,"PSICOLOGIA HCM",1800,null,null,null,296,282,"CIFI EMPRESA DE ENERGIA DE BOGOTA"]
[301211,"CIDER PRE",null,null,null,null,null,null,null,null,null,null,null,null,null,182711001,"PSICOLOGIA PRE",1800,null,null,null,297,282,"CIFI CATEDRA ECOCARBON"]
[301512,"ESP CIDER",null,null,null,null,null,null,null,null,null,null,null,null,null,182713001,"MAE PSICOLOGIA",1800,null,null,null,298,1935,"CIFI AVISPA"]
[302113,"MAE CIDER",null,null,null,null,null,null,null,null,null,null,null,null,null,182713002,"MAE PSICOLOGIA CLIN",1800,null,null,null,299,282,"CIFI PROY. HIDRAULICO DE SOGAMOSO"]
[303314,"CIDER EDUCON",null,null,null,null,null,null,null,null,null,null,null,null,null,182714001,"PSICOLOGIA EDUCON","1800",null,null,null,300,282,"CIFI SISNIED"]
[303622,"CIDER INV",null,null,null,null,null,null,null,null,null,null,null,null,null,182714002,"CURSOS PSIC EDUCON",5100,null,null,null,301,282,"CIFI CONTROLADOR DETECTORES DE SILICIO"]
[303624,"CIDER ASESORIA",null,null,null,null,null,null,null,null,null,null,null,null,null,182716001,"DOC PSICOLOGIA",1800,null,null,null,302,1265,"ADMINISTRACION UE"]
[320000,"CIFE",null,null,null,null,null,null,null,null,null,null,null,null,null,183621001,"CESO DIR",1800,null,null,null,303,282,"CIFI ASOCUEROS"]
[320046,"DIR CIFE",null,null,null,null,null,null,null,null,null,null,null,null,null,183622001,"CESO ANTROPOLOGIA",1800,null,null,null,304,1963,"CIFI PNUD"]
[320082,"FDO DE BECAS CIFE",null,null,null,null,null,null,null,null,null,null,null,null,null,183622002,"CESO C POLITICA",1800,null,null,null,305,282,"CIFI SENA NO. 0087"]
[320947,"PORTAFOLIO UNIANDES",null,null,null,null,null,null,null,null,null,null,null,null,null,183622003,"CESO FILOSOFIA",1800,null,null,null,306,282,"CIFI DPTO NACIONAL DE PLANEACION NO. 223"]
[321211,"CIFE PRE",null,null,null,null,null,null,null,null,null,null,null,null,null,183622004,"CESO HISTORIA",1800,null,null,null,307,1261,"CIFI FOSTER WHEELER"]
[321512,"ESP CIFE",null,null,null,null,null,null,null,null,null,null,null,null,null,183622005,"CESO LENG ESTU CULT",1800,null,null,null,308,282,"CIFI FORMACION DE INVESTIGADORES EN EL MOX"]
[322113,"MAE CIFE",null,null,null,null,null,null,null,null,null,null,null,null,null,183622006,"CESO PSICOLOGIA",1800,null,null,null,309,1964,"CIFI PAVCO CATEDRA"]
[323016,"DOC CIFE",null,null,null,null,null,null,null,null,null,null,null,null,null,183622007,"CESO JOV PROFESORES",1800,null,null,null,310,282,"CIFI NCR-ORACLE-UNIANDES"]
[323314,"CIFE EDUCON",null,null,null,null,null,null,null,null,null,null,null,null,null,183622008,"LIQ COLCIENCIAS",1800,null,null,null,311,1923,"CIFI ASOCOLFLORES"]
[323622,"INV CIFE",null,null,null,null,null,null,null,null,null,null,null,null,null,183622009,"CESO PROY VARIOS",1800,null,null,null,312,1988,"CIFI PLANTA PILOTO CARNE DE CAIMAN"]
[323624,"CIFE CONSULTORIA ",null,null,null,null,null,null,null,null,null,null,null,null,null,183622010,"CESO BOLSAS INVEST",1800,null,null,null,313,1040,"CIFI COLCIENCIAS LUDOMATICA"]
[400061,"RECTORIA DIR",null,null,null,null,null,null,null,null,null,null,null,null,null,183624001,"CESO ANTROPOLOGIA",1800,null,null,null,314,1040,"CIFI ICBF LUDOMATICA"]
[400062,"REVISORIA FISCAL",null,null,null,null,null,null,null,null,null,null,null,null,null,183624002,"CESO C POLITICA",1800,null,null,null,315,377,"FONDO MATEMATICAS"]
[410061,"DIR JURIDICA",null,null,null,null,null,null,null,null,null,null,null,null,null,183624003,"CESO FILOSOFIA",1800,null,null,null,316,1684,"PROGRAMA EGRESADOS"]
[420061,"AUDITORIA INTERNA",null,null,null,null,null,null,null,null,null,null,null,null,null,183624004,"CESO HISTORIA",1800,null,null,null,317,269,"INGENIERIA CIVIL Y AMBIENTAL"]
[430061,"DIR PLANEACION",null,null,null,null,null,null,null,null,null,null,null,null,null,183624005,"CESO LENG ESTU CULT",1800,null,null,null,318,2251,"ING. CIVIL Y AMBIENTAL PREGRADO"]
[430063,"SIGCAMPUS",null,null,null,null,null,null,null,null,null,null,null,null,null,183624006,"CESO PSICOLOGIA",1800,null,null,null,319,317,"ING. CIVIL POSGRADO"]
[440061,"DIR DESARROLLO",null,null,null,null,null,null,null,null,null,null,null,null,null,200000001,"FAC DERECHO HCM",2000,null,null,null,320,319,"ING. CIVIL POSGRADO"]
[440065,"DIR DLLO VARIOS",null,null,null,null,null,null,null,null,null,null,null,null,null,200046001,"DEC DERECHO",2000,null,null,null,321,317,"ING. CIVIL ESPECIALIZACION"]
[441065,"COMUNICACIONES",null,null,null,null,null,null,null,null,null,null,null,null,null,200633001,"REV DERECHO PUBLICO",2000,null,null,null,322,2598,"ING. CIVIL ESPECIALIZACION AMBIENTAL"]
[442065,"RELACIONES EXTERNAS",null,null,null,null,null,null,null,null,null,null,null,null,null,200633002,"REV DERECHO PRIVADO",2000,null,null,null,323,321,"ING. CIVIL ESPECIALIZACION RIESGOS"]
[443065,"RELACIONES PUBLICAS",null,null,null,null,null,null,null,null,null,null,null,null,null,200633003,"REVISTA DE GECTI",2000,null,null,null,324,317,"ING. CIVIL EDUCACION CONTINUADA"]
[444065,"SERVICIOS DESARROLLO",null,null,null,null,null,null,null,null,null,null,null,null,null,200633004,"REVISTA DE MAYEUTICA",2000,null,null,null,325,324,"ING CIVIL EDUCACION CONTINUADA"]
[445065,"OFICINA DE DESARROLLO",null,null,null,null,null,null,null,null,null,null,null,null,null,200633005,"COLECCIONES FAC DER",2000,null,null,null,326,327,"PROYECTO IDU CAUCHOS"]
[450061,"DIR GHO",null,null,null,null,null,null,null,null,null,null,null,null,null,200633006,"REV DER, COM NUE TEO",2000,null,null,null,327,317,"ING. CIVIL INVESTIGACIONES"]
[450063,"DLLO ORGANIZACIONAL",null,null,null,null,null,null,null,null,null,null,null,null,null,200965001,"EXALUMNOS DERECHO",2000,null,null,null,328,2121,"LABORATORIO DE INGENIERIA CIVIL"]
[451063,"ADMON TALENTO HUMANO",null,null,null,null,null,null,null,null,null,null,null,null,null,200981001,"FDO BECA CIRO ANGARI",2000,null,null,null,329,2121,"LABORATORIOS DE AMBIENTAL"]
[452067,"BENEFICIO BIENESTAR",null,null,null,null,null,null,null,null,null,null,null,null,null,200981002,"FDO BECA CIRO ANG FA",2000,null,null,null,330,327,"ING. CIVIL C.I.C.T.I."]
[453063,"DLLO TALENTO HUMANO",null,null,null,null,null,null,null,null,null,null,null,null,null,201211001,"DERECHO PRE",2000,null,null,null,331,327,"ING. CIVIL CEDERI"]
[453066,"FORMACION",null,null,null,null,null,null,null,null,null,null,null,null,null,201211002,"CONST Y DEMOCRACIA",2000,null,null,null,332,327,"ING: CIVIL PROYECTO EPFL"]
[460061,"SECRETARIA GENERAL",null,null,null,null,null,null,null,null,null,null,null,null,null,201211003,"GRUPO DE TEATRO",2000,null,null,null,333,327,"ING. CIVIL ALFA"]
[461063,"ADMON DOCUMENTAL",null,null,null,null,null,null,null,null,null,null,null,null,null,201211004,"CATEDR CIRO ANGARITA",2000,null,null,null,334,327,"PROYECTO START"]
[480061,"VICERRECTORIA DE DESARROLLO Y EGRESADOS",null,null,null,null,null,null,null,null,null,null,null,null,null,201211005,"FDO CONCURSOS",2000,null,null,null,335,327,"ING. CIVIL INVIAS VULNERABILIDAD"]
[500061,"VIC ACADEMICA",null,null,null,null,null,null,null,null,null,null,null,null,null,201211006,"PROGRAMA SOCRATES",2000,null,null,null,336,317,"ING. CIVIL OTROS"]
[501011,"CENTRO DE ESPAÑOL",null,null,null,null,null,null,null,null,null,null,null,null,null,201211007,"GEDCOM",2000,null,null,null,337,269,"INGENIERIA ELECTRICA Y ELECTRONICA"]
[510061,"DIR EDUCON",null,null,null,null,null,null,null,null,null,null,null,null,null,201211008,"RELATORIA PRISIONES",2000,null,null,null,338,1610,"ING. ELECTRICA Y ELECTRONICA PREGRADO"]
[510014,"CURSOS EDUCON",null,null,null,null,null,null,null,null,null,null,null,null,null,201211009,"OBS DER CONSTITUCNAL",2000,null,null,null,339,337,"ING. ELECTRICA POSGRADO"]
[520061,"ADMISION Y REGISTRO",null,null,null,null,null,null,null,null,null,null,null,null,null,201211010,"OBS DER INTERNAL",2000,null,null,null,340,339,"ING. ELECTRICA POSGRADO"]
[521055,"ADMISIONES",null,null,null,null,null,null,null,null,null,null,null,null,null,201211011,"ACREDITACION DERECHO",2000,null,null,null,341,337,"ING. ELECTRICA ESPECIALIZACIONES"]
[522056,"REGISTRO ACADEMICO",null,null,null,null,null,null,null,null,null,null,null,null,null,201211012,"FAPA DERECHO",2000,null,null,null,342,341,"ING. ELECTRICA ESPECIAL. TRANS. DISTRIB-9"]
[523055,"SCOUTING",null,null,null,null,null,null,null,null,null,null,null,null,null,201211013,"PROYECTO HIPERTEXTOS",2000,null,null,null,343,341,"ING. ELECTRICA TELEMATICA-11"]
[530061,"SISTEMA BIBLIOTECAS",null,null,null,null,null,null,null,null,null,null,null,null,null,201222001,"GECTI",2000,null,null,null,344,341,"ING. ELECTRICA AUTOMATIZACION INDUSTRIAL-4"]
[531041,"FDO DOT BIBLIOTECAS",null,null,null,null,null,null,null,null,null,null,null,null,null,201222002,"FAPA DERECHO",2000,null,null,null,345,341,"ING. ELECTRICA INGENIERIA CLINICA III"]
[540052,"CORO UNIANDES",null,null,null,null,null,null,null,null,null,null,null,null,null,201222003,"PROYECTO HIPERTEXTOS",2000,null,null,null,346,111,"PROYECTO AARAM"]
[540061,"DEC ESTUDIANTES",null,null,null,null,null,null,null,null,null,null,null,null,null,201245101,"CONSULTORIO JURIDICO",2000,null,null,null,347,341,"ING. ELECTRICA AUTOMATIZACION 7"]
[540065,"CONSEJO ESTUDIANTIL",null,null,null,null,null,null,null,null,null,null,null,null,null,201245102,"JUSTICIA GLOBAL",2000,null,null,null,348,341,"ING. ELECTRICA TELEMATICA 14"]
[541052,"CENTRO CULTURAL",null,null,null,null,null,null,null,null,null,null,null,null,null,201245103,"G-DIP",2000,null,null,null,349,341,"ING. ELECTRICA TELEMATICA 12"]
[542052,"DEPORTES",null,null,null,null,null,null,null,null,null,null,null,null,null,201245104,"PAIIS",2000,null,null,null,350,341,"ING. ELECTRICA ESPECIALIZ. TRANS. DISTRIB.10"]
[543045,"CTP",null,null,null,null,null,null,null,null,null,null,null,null,null,201251001,"FDO EDUARDO A CORREA",2000,null,null,null,351,341,"ING.HOSPITALARIA 2A.PROMOCION"]
[544051,"PROG OPORTUNIDADES",null,null,null,null,null,null,null,null,null,null,null,null,null,201512001,"ESP FINANCIERO",2000,null,null,null,352,337,"ING. ELECTRICA EDUCACION CONTINUADA."]
[544053,"CENTRO DE CONSEJERIA",null,null,null,null,null,null,null,null,null,null,null,null,null,201512002,"ESP COMERCIAL",2000,null,null,null,353,352,"ING. ELECTRICA EDUCACION CONTINUADA"]
[544054,"PROG APOYO BECARIOS",null,null,null,null,null,null,null,null,null,null,null,null,null,201512003,"ESP GESTION PUBLICA",2000,null,null,null,354,356,"ING. ELECTRICA CERROMATOSO"]
[545051,"CENTRO EST EXTRANJER",null,null,null,null,null,null,null,null,null,null,null,null,null,201512004,"ESP TRIBUTACION",2000,null,null,null,355,1610,"LABORATORIO ELECTRICA"]
[600061,"VIC ADTIVA Y FRA",null,null,null,null,null,null,null,null,null,null,null,null,null,201512005,"ESP DER NCIOS INTER",2000,null,null,null,356,337,"ING. ELECTRICA INVESTIGACION"]
[610061,"DIR PLANTA FISICA",null,null,null,null,null,null,null,null,null,null,null,null,null,201512006,"ESP DER URBANO PPS",2000,null,null,null,357,356,"CENTRO DE MICROELECTRONICA UNIANDES"]
[610072,"PF MANTENIMIENTO",null,null,null,null,null,null,null,null,null,null,null,null,null,202113001,"MAE DERECHO",2000,null,null,null,358,356,"CENTRO DE INVEST. Y DESARROLLO. TECN."]
[611072,"MANTENIMIENTO ESTRATEGIA DE LIBERACION",null,null,null,null,null,null,null,null,null,null,null,null,null,202113002,"MAE DER PRIVADO",2000,null,null,null,359,356,"CATEDRA NORTEL"]
[620061,"DIR ADMINISTRATIVA",null,null,null,null,null,null,null,null,null,null,null,null,null,202113003,"MAE DER INTERNAL",2000,null,null,null,360,356,"LIBROS ELECTRONICOS"]
[621000,"SEG Y SERV GRALES",null,null,null,null,null,null,null,null,null,null,null,null,null,202113004,"MAE DER PUBLICO PGA",2000,null,null,null,361,1611,"OPERACION DPTO INGENIERIA ELECTRICA"]
[621043,"AUDIOVISUALES",null,null,null,null,null,null,null,null,null,null,null,null,null,203016001,"DOC DERECHO",2000,null,null,null,362,269,"INGENIERIA INDUSTRIAL"]
[621061,"DONACIONES",null,null,null,null,null,null,null,null,null,null,null,null,null,203314001,"DERECHO EDUCON",2000,null,null,null,363,3659,"ING. INDUSTRIAL PREGRADO"]
[621063,"SERVICIOS GENERALES",null,null,null,null,null,null,null,null,null,null,null,null,null,203314002,"ESC VERANO DERECHO",2000,null,null,null,364,362,"ING. INDUSTRIAL POSGRADO"]
[621073,"GRUPO DE SEGURIDAD",null,null,null,null,null,null,null,null,null,null,null,null,null,203314003,"DERECHO EDUCON",5100,null,null,null,365,364,"ING. INDUSTRIAL MAESTRIA"]
[621077,"ASEO",null,null,null,null,null,null,null,null,null,null,null,null,null,203621001,"CIJUS DIR",2000,null,null,null,366,362,"ING. INDUSTRIAL ESPECIALIZACIONES"]
[621078,"CARNETIZACION",null,null,null,null,null,null,null,null,null,null,null,null,null,203622001,"CIJUS INV",2000,null,null,null,367,2442,"ING. INDUSTRIAL E.S.I.O. SISTEMAS INFORMACION"]
[622063,"ADQUISICIONES",null,null,null,null,null,null,null,null,null,null,null,null,null,203624001,"CIJUS CONSULTORIA",2000,null,null,null,368,366,"ING. INDUSTRIAL ESP.GERENCIA PRODUCCION GRAFICA"]
[623031,"LIBRERIA",null,null,null,null,null,null,null,null,null,null,null,null,null,203624002,"PPODRE INVEST Y CONS",2000,null,null,null,369,111,"PROYECTO CALIM"]
[624057,"DPTO MEDICO SALUD O",null,null,null,null,null,null,null,null,null,null,null,null,null,220000001,"FAC ECONOMIA HCM",2200,null,null,null,370,244,"CONCEJO SUPERIOR DE LA JUDICATURA"]
[630064,"DIR DTI",null,null,null,null,null,null,null,null,null,null,null,null,null,220046001,"DEC  ECONOMIA",2200,null,null,null,371,2445,"ING. INDUSTRIAL ESPECIALIZACION. CONTROL ORGANIZACIONAL"]
[631044,"SERVICIO CLIENTE DTI",null,null,null,null,null,null,null,null,null,null,null,null,null,220046002,"SEC GRAL ECONOMIA",2200,null,null,null,372,2449,"ING. INDUSTRIAL GERENCIA DE EMPRESAS TELECOMUNICAC."]
[632044,"INFRESTRUCTURA ACAD",null,null,null,null,null,null,null,null,null,null,null,null,null,220047001,"APORTE FDO PDD Y PDA",2200,null,null,null,373,362,"ING. INDUSTRIAL EDUCACION CONTINUADA"]
[632064,"INFRESTRUCTURA ADTVA",null,null,null,null,null,null,null,null,null,null,null,null,null,220114001,"ECONOMIA EDUCON",5100,null,null,null,374,373,"ING. INDUSTRIAL EDUCACION. CONTINUADA"]
[633044,"PROYECTOS DTI",null,null,null,null,null,null,null,null,null,null,null,null,null,220141001,"BIBLIOTECA ECONOMIA",2200,null,null,null,375,1255,"ING. INDUSTRIAL GESTION TECNICA"]
[634044,"ESTRATEGIA Y ARQUITECTURA",null,null,null,null,null,null,null,null,null,null,null,null,null,220141002,"CONCEJO ESTUD ECO",2200,null,null,null,376,377,"FONDO HISTORIA"]
[640061,"DIR FINANCIERA",null,null,null,null,null,null,null,null,null,null,null,null,null,220141003,"PLAN INCENTIVOS ECO",2200,null,null,null,377,1463,"FONDOS DE FACULTADES"]
[641062,"CONTABILIDAD",null,null,null,null,null,null,null,null,null,null,null,null,null,220141004,"REVISTA DES Y SOC",2200,null,null,null,378,99,"MATEMATICAS RENDIMIENTOS LEGADO HENRY YERLI"]
[642062,"TESORERIA",null,null,null,null,null,null,null,null,null,null,null,null,null,221211001,"ECONOMIA PRE",2200,null,null,null,379,269,"INGENIERIA MECANICA"]
[643054,"APOYO FINANCIERO",null,null,null,null,null,null,null,null,null,null,null,null,null,221211002,"SABER PRO ECO",2200,null,null,null,380,2296,"ING. MECANICA PREGRADO"]
[644062,"PRESUPUESTO",null,null,null,null,null,null,null,null,null,null,null,null,null,221211003,"FDO MEMO GRADOS",2200,null,null,null,381,2296,"ING. MECANICA CATEDRA SKF"]
[700061,"VIC INVESTIGACIONES",null,null,null,null,null,null,null,null,null,null,null,null,null,221211004,"CONCEJO ESTUD ECO",2200,null,null,null,382,379,"ING. MECANICA POSGRADO"]
[700022,"CONTRATOS ESPECIALES",null,null,null,null,null,null,null,null,null,null,null,null,null,221512001,"ESP EVAL PROYECTOS",2200,null,null,null,383,382,"ING. MECANICA MAGISTER"]
[700023,"EQUIPOS ROBUSTOS",null,null,null,null,null,null,null,null,null,null,null,null,null,221512002,"ESP NO ECONOMISTAS",2200,null,null,null,384,379,"ING. MECANICA ESPECIALIZACION"]
[701022,"DOCTORADOS VIC INV",null,null,null,null,null,null,null,null,null,null,null,null,null,221512003,"ESP RIESGO",2200,null,null,null,385,384,"ING. MECANICA ESPECIALIZACION ENERGIA"]
[702063,"OFICINA EDICIONES",null,null,null,null,null,null,null,null,null,null,null,null,null,221512004,"ESP UTB",2200,null,null,null,386,379,"ING. MECANICA EDUCACION CONTINUADA"]
[703022,"CEIBANDES",null,null,null,null,null,null,null,null,null,null,null,null,null,222113001,"MAE ECONOMIA",2200,null,null,null,387,386,"ING. MECANICA EDUCACION CONTINUADA."]
[800181,"DON SIN DEST ESPECIF",null,null,null,null,null,null,null,null,null,null,null,null,null,222113002,"ESC VERANO ECONOMIA",2200,null,null,null,388,379,"ING. MECANICA INVESTIGACION"]
[810181,"DON CON DEST ESPECIF",null,null,null,null,null,null,null,null,null,null,null,null,null,222113003,"FDO TESIS PEG",2200,null,null,null,389,103,"MATEMATICAS ESCUELA 2001"]
[810381,"DONACIONES",null,null,null,null,null,null,null,null,null,null,null,null,null,223016001,"DOC ECONOMIA",2200,null,null,null,390,388,"ING. MECANICA BIOMECANICA"]
[810481,"DON DLLO ACADEMICO",null,null,null,null,null,null,null,null,null,null,null,null,null,223600001,"CEDE HCM",2200,null,null,null,391,269,"ING. DE SISTEMAS Y COMPUTACION"]
[8104811,"DON DLLO ACADEMICO",null,null,null,null,null,null,null,null,null,null,null,null,null,223621002,"PROY EDITORIALES ECO",2200,null,null,null,392,3660,"ING. SISTEMAS PREGRADO"]
[8104812,"PROY UNIANDES UTB",null,null,null,null,null,null,null,null,null,null,null,null,null,223621003,"SEMINARIO CEDE",2200,null,null,null,393,391,"ING. SISTEMAS POSGRADO"]
[8104813,"DON PF TECNOLOGIA",null,null,null,null,null,null,null,null,null,null,null,null,null,223621004,"NOTAS DE POLITICAS",2200,null,null,null,394,393,"ING. SISTEMAS ING. SISTEMAS POSGRADO"]
[8104814,"DON PARA APOYO FIN",null,null,null,null,null,null,null,null,null,null,null,null,null,223621005,"BOLETINES CEDE",2200,null,null,null,395,397,"ING. SISTEMAS ESPECIALIZ SOFTWARE REDES"]
[8104815,"FDO GABRIEL VEGALARA",null,null,null,null,null,null,null,null,null,null,null,null,null,223621006,"DOCUMENTOS CEDE",2200,null,null,null,396,407,"ING. SISTEMAS PROYECTOS I + C"]
[8104816,"QRO EST CONSOLIDADOR",null,null,null,null,null,null,null,null,null,null,null,null,null,223621008,"SUMINISTROS CEDE",2200,null,null,null,397,391,"ING. SISTEMAS ESPECIALIZACION"]
[8104817,"FDO BBVA",null,null,null,null,null,null,null,null,null,null,null,null,null,223621011,"CONVENIO CEDE",2200,null,null,null,398,3707,"INVERSION DEPARTAMENTO"]
[810581,"DON FUND STAFE MED",null,null,null,null,null,null,null,null,null,null,null,null,null,223622001,"CEDE INV",2200,null,null,null,399,391,"ING. SISTEMAS EDUCACION CONTINUADA"]
[810681,"DON FAC CIENCIAS",null,null,null,null,null,null,null,null,null,null,null,null,null,223622002,"INV VARIAS AÑO ANT",2200,null,null,null,400,399,"ING. SISTEMAS GERENCIA ESTRATEGICA"]
[8106811,"DON GEOCIENCIAS",null,null,null,null,null,null,null,null,null,null,null,null,null,223624002,"CEDE CONSULTORIA",2200,null,null,null,401,399,"ING. SISTEMAS EDUCACION CONTINUADA ABIERTA"]
[810781,"DON FAC ADMON",null,null,null,null,null,null,null,null,null,null,null,null,null,223646001,"DIR CEDE",2200,null,null,null,402,399,"ING. SISTEMAS ED.CONT.CORPORATIVA"]
[810981,"DON FAC CISO",null,null,null,null,null,null,null,null,null,null,null,null,null,223646002,"GTO CONVOCATOR CEDE",2200,null,null,null,403,4419,"PLAN DE INNOVACION"]
[819981,"BCAS ADMON CENTRAL",null,null,null,null,null,null,null,null,null,null,null,null,null,223646003,"APLICACION A GRANTS",2200,null,null,null,404,282,"DONACIONES LUDOMATICA"]
[850011,"FDO SUPERAVIT",null,null,null,null,null,null,null,null,null,null,null,null,null,223722001,"CENTRO DROG Y SEGU",2200,null,null,null,405,201,"ANTROPOLOGIA MAGISTER ETNOLINGUISTICA"]
[851046,"SUPERAVIT 25% ADMON",null,null,null,null,null,null,null,null,null,null,null,null,null,223822001,"CONDITIONAL CASH","2200",null,null,null,406,210,"C. POLITICA ESPECIAL. NEGOCIACION Y REL. INTERNAL"]
[8510461,"INTERNACIONALIZACION",null,null,null,null,null,null,null,null,null,null,null,null,null,240000001,"FACULTAD INGENI HCM",2400,null,null,null,407,391,"ING. SISTEMAS INVESTIGACION"]
[8510462,"FORTALECIMIENTO INV",null,null,null,null,null,null,null,null,null,null,null,null,null,245100001,"CIFI HCM",2406,null,null,null,408,407,"ING. SISTEMAS REVISTA INFORMATICA EDUCATIVA"]
[851146,"SUPERAVIT 25% ARQDIS",null,null,null,null,null,null,null,null,null,null,null,null,null,240061000,"DECANATU INGENI HCM",2400,null,null,null,409,210,"C. POLITICA ESPECIAL. ESTUDIOS EEUU"]
[851246,"SUPERAVIT 25% CIENC",null,null,null,null,null,null,null,null,null,null,null,null,null,240061001,"EFECTIVINSTITUCIONAL",2400,null,null,null,410,214,"C. POLITICA DONACION ESPEC. ESTUDIOS USA"]
[851346,"SUPERAVIT 25% DCHO",null,null,null,null,null,null,null,null,null,null,null,null,null,240061002,"INTERNACIONALIZACION",2400,null,null,null,411,3571,"MAGISTER PSICOLOGIA"]
[851446,"SUPERAVIT 25% ECONOM",null,null,null,null,null,null,null,null,null,null,null,null,null,240061003,"RELACIONES EXT/INT",2400,null,null,null,412,243,"CESO DIRECCION"]
[851546,"SUPERAVIT 25% CISO",null,null,null,null,null,null,null,null,null,null,null,null,null,240061004,"GESTION Y GOBIERNO",2400,null,null,null,413,9998,"C.I.D.E.R."]
[851646,"SUPERAVIT 25% ING",null,null,null,null,null,null,null,null,null,null,null,null,null,240061005,"TALENTO HUMANO",2400,null,null,null,414,2092,"CIDER MAGISTER"]
[851746,"SUPERAVIT 25% ARTES",null,null,null,null,null,null,null,null,null,null,null,null,null,240061006,"GESTION DE ESPACIOS",2400,null,null,null,415,413,"CIDER ESPECIALIZACION"]
[853047,"INCENTIVOS MONETRIOS",null,null,null,null,null,null,null,null,null,null,null,null,null,240061007,"GESTION DE TICS",2400,null,null,null,416,415,"CIDER ESPECIALIZACION"]
[853122,"FDO INVESTIGACIONES",null,null,null,null,null,null,null,null,null,null,null,null,null,240061008,"OPERACION IDEC",2400,null,null,null,417,415,"CIDER ESPECIALIZ. GOBIERNO Y POL. PUBLICAS"]
[853195,"OVH COLCIEN SIMILAR",null,null,null,null,null,null,null,null,null,null,null,null,null,240261001,"EFECTIVINSTITUCIONAL",2400,null,null,null,418,415,"CIDER ESP. CONVENIO CIDER-UNAB"]
[853247,"FDO PDD ",null,null,null,null,null,null,null,null,null,null,null,null,null,240261002,"INTERNACIONALIZACION",2400,null,null,null,419,413,"CIDER EDUCACION CONTINUADA"]
[8532471,"PDD FACULTADES",null,null,null,null,null,null,null,null,null,null,null,null,null,240261003,"RELACIONES EXT/INT",2400,null,null,null,420,419,"CIDER CIDER EDUCACION CONTINUADA"]
[853266,"PDA",null,null,null,null,null,null,null,null,null,null,null,null,null,240261004,"GESTION Y GOBIERNO",2400,null,null,null,421,413,"CIDER INVESTIGACION"]
[8532661,"PDA UNIDADES",null,null,null,null,null,null,null,null,null,null,null,null,null,240261005,"GESTION DE TICS",2400,null,null,null,422,421,"CIDER INVESTIGACION"]
[853366,"CAP FACULTADES",null,null,null,null,null,null,null,null,null,null,null,null,null,240261006,"OPERACION VDEC INV",2400,null,null,null,423,421,"CIDER REUNIRSE"]
[8533661,"CAP RECTORIA",null,null,null,null,null,null,null,null,null,null,null,null,null,240261007,"REVISTA INGENIERIA",2400,null,null,null,424,421,"CIDER INVESTIGACION 97"]
[8533662,"CAP SECRETARIA GRAL",null,null,null,null,null,null,null,null,null,null,null,null,null,240261008,"REVISTA CONTACTO",2400,null,null,null,425,421,"CIDER ECONOMIA REGIONAL"]
[8533663,"VIC INVESTIGACIONES",null,null,null,null,null,null,null,null,null,null,null,null,null,240261009,"COMITE PUBLICACIONES",2400,null,null,null,426,472,"ESTUDIOS DIRIGIDOS"]
[8533664,"CAP VIC ACADEMICA",null,null,null,null,null,null,null,null,null,null,null,null,null,240261010,"PROCESOS EDITORIALES",2400,null,null,null,427,4706,"DESARROLLO DEL TALENTO HUMANO"]
[8533665,"CAP VIC ADTIVA Y FRA",null,null,null,null,null,null,null,null,null,null,null,null,null,240461001,"EFECTIVINSTITUCIONAL",2400,null,null,null,428,544,"IMPLANTACION SOFTWARE"]
[8533666,"CAP DIR ADTIVA  ",null,null,null,null,null,null,null,null,null,null,null,null,null,240461002,"INTERNACIONALIZACION",2400,null,null,null,429,421,"CIDER POLITICAS PUBLICAS"]
[8533667,"CAP DIR FINANCIERA  ",null,null,null,null,null,null,null,null,null,null,null,null,null,240461003,"RELACIONES EXT/INT",2400,null,null,null,430,421,"CIDER INVESTIGACION 98"]
[853447,"APORTE ADMON CENTRAL",null,null,null,null,null,null,null,null,null,null,null,null,null,240461004,"GESTION Y GOBIERNO",2400,null,null,null,431,421,"CIDER EDUCACION"]
[8534471,"REC ACAD FACULTADES",null,null,null,null,null,null,null,null,null,null,null,null,null,240461005,"OPERACION VDEC PRE",2400,null,null,null,432,938,"OFICINA PARA EL AVANCE INSTITUCIONAL GENERAL"]
[853511,"CONVENIO COOP EDU",null,null,null,null,null,null,null,null,null,null,null,null,null,240614001,"EDUCACION CONTINUADA","5100",null,null,null,433,421,"CIDER NOMINA CIDER"]
[853699,"PDI FACULTADES",null,null,null,null,null,null,null,null,null,null,null,null,null,240661001,"EFECTIVINSTITUCIONAL",2400,null,null,null,434,9998,"ARTES Y HUMANIDADES"]
[8536991,"ARQUITECTURA DIS",null,null,null,null,null,null,null,null,null,null,null,null,null,240661002,"INTERNACIONALIZACION",2400,null,null,null,435,434,"ARTES DECANATURA"]
[8536992,"ARTES",null,null,null,null,null,null,null,null,null,null,null,null,null,240661003,"RELACIONES EXT/INT",2400,null,null,null,436,435,"ARTES Y HUMANIDADES DIRECCION"]
[8536993,"CIENCIAS",null,null,null,null,null,null,null,null,null,null,null,null,null,240661004,"GESTION Y GOBIERNO",2400,null,null,null,437,938,"AVANCE INSTITUCIONAL - DONACIONES"]
[8536994,"CISO",null,null,null,null,null,null,null,null,null,null,null,null,null,240661005,"FUNDRAISING",2400,null,null,null,438,435,"REVISTA TEXTO Y CONTEXTO"]
[8536995,"INGENIERIA",null,null,null,null,null,null,null,null,null,null,null,null,null,240661006,"OPERACION CIFI",2400,null,null,null,439,434,"ARTES PLASTICAS"]
[853698,"PDI ADMINISTRATIVAS",null,null,null,null,null,null,null,null,null,null,null,null,null,240661007,"INNOVACION",2400,null,null,null,440,53,"COL.CV-123/92 LA VARIABILIDAD GENETICA DE LOS COMPONENTES"]
[853722,"PRY CONV INTER FINVG",null,null,null,null,null,null,null,null,null,null,null,null,null,240661008,"OPERACION VDEC SE",2400,null,null,null,441,51,"CHAGAS META/TOLIMA"]
[860076,"INVERSIONES PF",null,null,null,null,null,null,null,null,null,null,null,null,null,240661009,"PROGRAMA U-E",2400,null,null,null,442,434,"HUMANIDADES Y LITERATURA"]
[860264,"INVERSION OBRAS DTI",null,null,null,null,null,null,null,null,null,null,null,null,null,240661010,"ESTUDIOS DE MERCADO",2400,null,null,null,443,442,"HUMANIDADES PREGRADO"]
[860344,"INVER MAYORES DTI",null,null,null,null,null,null,null,null,null,null,null,null,null,240816001,"IDOC",2400,null,null,null,444,442,"LITERATURA PREGRADO"]
[860364,"INFRESTRUCTURA ADTVA",null,null,null,null,null,null,null,null,null,null,null,null,null,240816002,"PUBLICACIONTESISIDOC",2400,null,null,null,445,434,"MUSICA"]
[860661,"INVER ADMON CENTRAL",null,null,null,null,null,null,null,null,null,null,null,null,null,241011001,"IBIO",2400,null,null,null,446,445,"MUSICA PREGRADO"]
[860676,"INVERSIONES MAYORES ",null,null,null,null,null,null,null,null,null,null,null,null,null,241011002,"IGEN",2400,null,null,null,447,445,"ACTIVIDADES AUXILIARES MUSICA"]
[860761,"SACS",null,null,null,null,null,null,null,null,null,null,null,null,null,241011003,"TECNOLOGIA -SOCIEDAD",2400,null,null,null,448,447,"PROGRAMA INFANTIL"]
[861061,"INVER RECTORIA",null,null,null,null,null,null,null,null,null,null,null,null,null,241111001,"PREGRADO ING BIO",2411,null,null,null,449,447,"SALA DE MUSICA"]
[861161,"INVER SECRTARIA GRAL",null,null,null,null,null,null,null,null,null,null,null,null,null,241111002,"LABORATORIO ING. BIO",2411,null,null,null,450,447,"CORO UNIANDES"]
[861261,"INVER VIC ACADEMICA",null,null,null,null,null,null,null,null,null,null,null,null,null,241113001,"MAESTRÍA ING BIO",2411,null,null,null,451,521,"OFICINA EDUCACION CONTINUADA"]
[861361,"INVER VIC ADTIVA",null,null,null,null,null,null,null,null,null,null,null,null,null,241146001,"ADMÓN ING BIO",2411,null,null,null,452,407,"ING. SISTEMAS IDEP-MULTIMEDIOS"]
[861461,"INVER DIR ADTIVA",null,null,null,null,null,null,null,null,null,null,null,null,null,242114002,"CAPITULO A.S.M.E.",2421,null,null,null,453,451,"DIRECCION DE EDUCACION CONTINUADA"]
[861561,"INVER DIR FINANCIERA",null,null,null,null,null,null,null,null,null,null,null,null,null,241200001,"INGCIVIL Y AMBIE HCM",2412,null,null,null,454,4197,"FACULTADES"]
[861661,"INVER VIC INV",null,null,null,null,null,null,null,null,null,null,null,null,null,241211001,"ICYA PREGRADO",2412,null,null,null,455,214,"DESCENTRALIZACION - C. POLITICAS"]
[863011,"INV FAC MEDICINA",null,null,null,null,null,null,null,null,null,null,null,null,null,241211002,"TESIS PREGRADO",2412,null,null,null,456,269,"INGENIERIA QUIMICA"]
[991099,"BECA CREDITOS UANDES",null,null,null,null,null,null,null,null,null,null,null,null,null,241211003,"ABET ICYA",2412,null,null,null,457,53,"T. DIMIDIATA O.M.S."]
[992099,"MED COVH Y CONVENIOS",null,null,null,null,null,null,null,null,null,null,null,null,null,241211004,"LAB INGENIERIA CIVIL",2412,null,null,null,458,244,"COL.RC-076/97 RECONSTRUCCION DIETA"]
[999910,"CENTROS DE CIERRE",null,null,null,null,null,null,null,null,null,null,null,null,null,241211005,"LAB ING AMBIENTAL",2412,null,null,null,459,4415,"ESPECIALIZACION EN PERIODISMO"]
[999911,"PROG PREGRADO FICA",null,null,null,null,null,null,null,null,null,null,null,null,null,241211006,"LAB HIDRAULICA",2412,null,null,null,460,9999,"EXPOLISBOA 98"]
[999999,"DISTRIBUIDOS UANDES",null,null,null,null,null,null,null,null,null,null,null,null,null,241212001,"ESP MIMA",2412,null,null,null,461,514,"DIR TECNOLOGIAS DE INFORMACION"]
[null,null,null,null,null,null,null,null,null,null,null,null,null,null,null,241212002,"ESP RHID",2412,null,null,null,462,461,"DTI. TECNOLOGIAS DE INFORMACION - DIRECCION"]
[null,null,null,null,null,null,null,null,null,null,null,null,null,null,null,241213001,"ICYA POSGRADO",2412,null,null,null,463,461,"CONMUTADOR-DTI"]
[null,null,null,null,null,null,null,null,null,null,null,null,null,null,null,241213002,"ESCUELA VERANO ICYA",2412,null,null,null,464,3661,"SERVICIOS DE VALOR AGREGADO"]
[null,null,null,null,null,null,null,null,null,null,null,null,null,null,null,241213003,"TESIS MAESTRIA",2412,null,null,null,465,9996,"DIRECCION DE ADMISIONES Y REGISTRO"]
[null,null,null,null,null,null,null,null,null,null,null,null,null,null,null,241214001,"ICYA EDUC CONTINUADA",5100,null,null,null,466,465,"DIRECCION ADMISION.DIRECCION"]
[null,null,null,null,null,null,null,null,null,null,null,null,null,null,null,241214002,"EDUCONTI DEPTO ICYA",2412,null,null,null,467,465,"EXTENSION UNIVERSITARIA"]
[null,null,null,null,null,null,null,null,null,null,null,null,null,null,null,241224001,"LAB INGENIERIA CIVIL",2412,null,null,null,468,465,"REGISTRO ACADEMICO"]
[null,null,null,null,null,null,null,null,null,null,null,null,null,null,null,241224002,"LAB INGENIERIA AMB",2412,null,null,null,469,465,"OFICINA ADMISIONES SCOUTING"]
[null,null,null,null,null,null,null,null,null,null,null,null,null,null,null,241246001,"ADMINISTRACION ICYA",2412,null,null,null,470,521,"SISTEMA DE BIBLIOTECAS"]
[null,null,null,null,null,null,null,null,null,null,null,null,null,null,null,241246002,"PDI ICYA",2412,null,null,null,471,470,"DIRECCION SISTEMA DE BIBLIOTECAS"]
[null,null,null,null,null,null,null,null,null,null,null,null,null,null,null,241261001,"INVERSIONES ICYA","2412",null,null,null,472,521,"DECANATURA DE ESTUDIANTES"]
[null,null,null,null,null,null,null,null,null,null,null,null,null,null,null,241261002,"SECTOR EXTERNO ICYA","2412",null,null,null,473,51,"MORBILIDAD CHAGAS"]
[null,null,null,null,null,null,null,null,null,null,null,null,null,null,null,241271001,"INVERSIONES ICYA",2412,null,null,null,474,53,"CONGRESO CARTAGENA 2000"]
[null,null,null,null,null,null,null,null,null,null,null,null,null,null,null,241500001,"ELECTRICAELECTRO HCM",2415,null,null,null,475,472,"DIRECCION DECANATURA ESTUDIANTES"]
[null,null,null,null,null,null,null,null,null,null,null,null,null,null,null,241511001,"IEEL PREGRADO",2415,null,null,null,476,472,"OFICINA DE INTERCAMBIOS"]
[null,null,null,null,null,null,null,null,null,null,null,null,null,null,null,241511002,"IEEL LABORATORIO",2415,null,null,null,477,472,"CENTRO CULTURAL"]
[null,null,null,null,null,null,null,null,null,null,null,null,null,null,null,241511003,"I.E.E.E.",2415,null,null,null,478,2604,"ESPECIALIZACIÓN INFRA-VIAL"]
[null,null,null,null,null,null,null,null,null,null,null,null,null,null,null,241512001,"IEEL AUTOMATIZACION",2415,null,null,null,479,472,"CENTRO DE TRAYECTORIA PROFESIONAL"]
[null,null,null,null,null,null,null,null,null,null,null,null,null,null,null,241512002,"IEEL TRANS&DIST",2415,null,null,null,480,139,"VIOLENCIA SEXUAL EN SANTAFE DE BOGOTA"]
[null,null,null,null,null,null,null,null,null,null,null,null,null,null,null,241512003,"IEEL TELEMATICA",2415,null,null,null,481,472,"DEPORTES"]
[null,null,null,null,null,null,null,null,null,null,null,null,null,null,null,241512004,"AUTOMATIZACION 19",2415,null,null,null,482,472,"CIRCULOS DE PARTICIPCION DEC. ESTUDIANTES"]
[null,null,null,null,null,null,null,null,null,null,null,null,null,null,null,241513001,"IEEL MAESTRIA",2415,null,null,null,483,486,"FONDO UNIANDINO AYUDA ESTUDIANTE"]
[null,null,null,null,null,null,null,null,null,null,null,null,null,null,null,241513002,"MAESTRIA REGULACION",2415,null,null,null,484,2793,"DPTO. MEDICO Y S. O."]
[null,null,null,null,null,null,null,null,null,null,null,null,null,null,null,241514001,"IEEL EDUCONTINUADA",5100,null,null,null,485,472,"CENTRO DE CONSEJERIA"]
[null,null,null,null,null,null,null,null,null,null,null,null,null,null,null,241514002,"IEEL GRUPO GIERE",2415,null,null,null,486,472,"DEC. ESTUDIANTES ACTIVIDADES VARIAS"]
[null,null,null,null,null,null,null,null,null,null,null,null,null,null,null,241546001,"IEEL OPERACION DPTO",2415,null,null,null,487,486,"BECAS CORTESIA"]
[null,null,null,null,null,null,null,null,null,null,null,null,null,null,null,241546002,"IEEL INVERSION",2415,null,null,null,488,1647,"INANDES"]
[null,null,null,null,null,null,null,null,null,null,null,null,null,null,null,241561001,"PDI PLAN DESARROLLO",2415,null,null,null,489,1852,"FAC. ARTES Y HUMANIDADES COMITE DE INVESTIGACIONES"]
[null,null,null,null,null,null,null,null,null,null,null,null,null,null,null,241800001,"DPTO ING INDUSTR HCM",2418,null,null,null,490,647,"CONSTRUCCION BLOQUE H"]
[null,null,null,null,null,null,null,null,null,null,null,null,null,null,null,241811001,"PREGRADO IIND",2418,null,null,null,491,1049,"CONSTRUCCION BLOQUE B"]
[null,null,null,null,null,null,null,null,null,null,null,null,null,null,null,241811002,"ECAES IIND",2418,null,null,null,492,647,"GALPON HIDRAULICA"]
[null,null,null,null,null,null,null,null,null,null,null,null,null,null,null,241811003,"IIE IIND",2418,null,null,null,493,647,"MURO AVENIDA CIRCUNVALAR"]
[null,null,null,null,null,null,null,null,null,null,null,null,null,null,null,241812001,"GERTEL IIND",2418,null,null,null,494,647,"CIENCIAS BIOLOGICAS Y QUIMICA"]
[null,null,null,null,null,null,null,null,null,null,null,null,null,null,null,241812002,"ESICO IIND",2418,null,null,null,495,536,"LIBRERÍA"]
[null,null,null,null,null,null,null,null,null,null,null,null,null,null,null,241812003,"ESIO IIND",2418,null,null,null,496,1707,"OFICINA EDICIONES UNIANDES"]
[null,null,null,null,null,null,null,null,null,null,null,null,null,null,null,241813001,"MAESTRIA IIND",2418,null,null,null,497,495,"LIBRERÍA UNIANDES"]
[null,null,null,null,null,null,null,null,null,null,null,null,null,null,null,241813002,"MAESTRIA REFINACION",2418,null,null,null,498,514,"PLANTA FISICA"]
[null,null,null,null,null,null,null,null,null,null,null,null,null,null,null,241813003,"MAESTRIA TRANSPORTE",2418,null,null,null,499,647,"RIESGO SISMICO"]
[null,null,null,null,null,null,null,null,null,null,null,null,null,null,null,241814001,"EDC.CONTINUADA IND",5100,null,null,null,500,498,"PLANTA FISICA DIRECCION"]
[null,null,null,null,null,null,null,null,null,null,null,null,null,null,null,241846001,"ADMINISTRACION IIND",2418,null,null,null,501,498,"PLANTA FISICA OBRAS NUEVAS"]
[null,null,null,null,null,null,null,null,null,null,null,null,null,null,null,241846002,"INVERSION IIND",2418,null,null,null,502,498,"PLANTA FISICA REMODELACIONES"]
[null,null,null,null,null,null,null,null,null,null,null,null,null,null,null,241861001,"PDD IIND",2418,null,null,null,503,498,"PLANTA FISICA INFRAESTRUCTURA"]
[null,null,null,null,null,null,null,null,null,null,null,null,null,null,null,241861002,"INTERNACIONALIZACION",2418,null,null,null,504,498,"PLANTA FISICA MANTENIMIENTO"]
[null,null,null,null,null,null,null,null,null,null,null,null,null,null,null,242100001,"DPTO ING MECANIC HCM",2421,null,null,null,505,498,"PLANTA FISICA ADMON DEL ESPACIO FISICO"]
[null,null,null,null,null,null,null,null,null,null,null,null,null,null,null,242111001,"PREGRADO IMEC",2421,null,null,null,506,167,"COL.RC-170/99 LOS DESPLAZADOS POR LA VIOLENCIA"]
[null,null,null,null,null,null,null,null,null,null,null,null,null,null,null,242111002,"LABORATORIOCURSOIMEC",2421,null,null,null,507,9995,"RECTORIA"]
[null,null,null,null,null,null,null,null,null,null,null,null,null,null,null,242113001,"MAESTRIA IMEC",2421,null,null,null,508,507,"RECTORIA DIRECCION"]
[null,null,null,null,null,null,null,null,null,null,null,null,null,null,null,242113002,"MAESTRIA BIOMEDICA",2421,null,null,null,509,507,"DESARROLLO PROFESORAL"]
[null,null,null,null,null,null,null,null,null,null,null,null,null,null,null,242114001,"EDU CONTINUADA IMEC",5100,null,null,null,510,507,"PROFESORES INVITADOS"]
[null,null,null,null,null,null,null,null,null,null,null,null,null,null,null,242122001,"DINAMICA FLUIDOS LAB",2421,null,null,null,511,507,"REVISORIA FISCAL"]
[null,null,null,null,null,null,null,null,null,null,null,null,null,null,null,242122002,"PROTOTIP RAPIDO LAB",2421,null,null,null,512,507,"DIRECCION JURIDICA"]
[null,null,null,null,null,null,null,null,null,null,null,null,null,null,null,242124001,"SERVICIOS LAB IMEC",2421,null,null,null,513,507,"INVESTIGACIONES INTERDISIPLINARIAS"]
[null,null,null,null,null,null,null,null,null,null,null,null,null,null,null,242146001,"ADMINISTRACION IMEC",2421,null,null,null,514,9995,"VICERRECTORIA ADMINISTRATIVA Y FINANCIERA CONSOLIDADO"]
[null,null,null,null,null,null,null,null,null,null,null,null,null,null,null,242146002,"SUPERAVIT IMEC",2421,null,null,null,515,544,"CAPACITACION PERSONAL ADMON CENTRAL"]
[null,null,null,null,null,null,null,null,null,null,null,null,null,null,null,242400001,"DEPTO ING QUIMIC HCM",2424,null,null,null,516,647,"SALONES"]
[null,null,null,null,null,null,null,null,null,null,null,null,null,null,null,242411001,"PREGRADO",2424,null,null,null,517,647,"REMODELACION DTI"]
[null,null,null,null,null,null,null,null,null,null,null,null,null,null,null,242411002,"LABORATORIO PREGRADO",2424,null,null,null,518,1595,"DIRECCION DE PLANEACION Y EVALUACION"]
[null,null,null,null,null,null,null,null,null,null,null,null,null,null,null,242411003,"PROYECTOS DE GRADO",2424,null,null,null,519,938,"ADMINISTRACION DE DONACIONES"]
[null,null,null,null,null,null,null,null,null,null,null,null,null,null,null,242411004,"ACREDITACIONES",2424,null,null,null,520,514,"OFICINA DE CONTROL INTERNO"]
[null,null,null,null,null,null,null,null,null,null,null,null,null,null,null,242413001,"MAESTRIA",2424,null,null,null,521,9996,"VICERRECTORIA ASUNTOS ACADEMICOS"]
[null,null,null,null,null,null,null,null,null,null,null,null,null,null,null,242413002,"TESIS DE MAESTRIA",2424,null,null,null,522,647,"USUARIO NO REGULADO"]
[null,null,null,null,null,null,null,null,null,null,null,null,null,null,null,242414001,"EDUCACION CONTINUADA",5100,null,null,null,523,1707,"VICERRECTORIA DE INVESTIGACIONES"]
[null,null,null,null,null,null,null,null,null,null,null,null,null,null,null,242424001,"LABORATORIOSERVICIOS",2424,null,null,null,524,461,"HERMES - INNOVACION TECNOLOGICA"]
[null,null,null,null,null,null,null,null,null,null,null,null,null,null,null,242446001,"ADMINISTRACION",2424,null,null,null,525,647,"PLANTAS ELECTRICAS Y UPS"]
[null,null,null,null,null,null,null,null,null,null,null,null,null,null,null,242446002,"INVERSION",2424,null,null,null,526,521,"INVESTIGACION"]
[null,null,null,null,null,null,null,null,null,null,null,null,null,null,null,242700001,"DEPTO ING SISTEM HCM",2427,null,null,null,527,526,"UNIANDES MARYLAND"]
[null,null,null,null,null,null,null,null,null,null,null,null,null,null,null,242711001,"PREGRADO SISTEMAS",2427,null,null,null,528,53,"CIMPAT PCR 1125"]
[null,null,null,null,null,null,null,null,null,null,null,null,null,null,null,242711002,"CURSOS: LABORATORIO",2427,null,null,null,529,526,"CIID-COLERA"]
[null,null,null,null,null,null,null,null,null,null,null,null,null,null,null,242711003,"ARQUITECTURA: LABORA",2427,null,null,null,530,526,"PROGRAMA DE FORMACION DOCENTES"]
[null,null,null,null,null,null,null,null,null,null,null,null,null,null,null,242711004,"REDES: LABORATORIO",2427,null,null,null,531,521,"VICERRECTORIA ACADEMICA DIRECCION"]
[null,null,null,null,null,null,null,null,null,null,null,null,null,null,null,242711005,"COLIVRI: LABORATORIO",2427,null,null,null,532,9995,"SECRETARIA GENERAL"]
[null,null,null,null,null,null,null,null,null,null,null,null,null,null,null,242712001,"ECOS",2427,null,null,null,533,532,"SECRETARIA GENERAL-OF.DIRECCION"]
[null,null,null,null,null,null,null,null,null,null,null,null,null,null,null,242712002,"SEGURIDAD",2427,null,null,null,534,532,"OFICINA DE ADMINISTRACION DOCUMENTAL"]
[null,null,null,null,null,null,null,null,null,null,null,null,null,null,null,242712003,"COMERCIO",2427,null,null,null,535,532,"AUTOEVALUACION"]
[null,null,null,null,null,null,null,null,null,null,null,null,null,null,null,242713001,"POSGRADO SISTEMAS",2427,null,null,null,536,514,"DIRECCION ADMINISTRATIVA CONSOLIDADO"]
[null,null,null,null,null,null,null,null,null,null,null,null,null,null,null,242713002,"MATI",2427,null,null,null,537,536,"DIRECCION ADMINISTRATIVA DIVISION"]
[null,null,null,null,null,null,null,null,null,null,null,null,null,null,null,242713003,"MISO",2427,null,null,null,538,537,"DIRECCION ADMINISTRATIVA DIRECCION"]
[null,null,null,null,null,null,null,null,null,null,null,null,null,null,null,242713004,"MESI",2427,null,null,null,539,1595,"APOYO AL MEJORAMIENTO CONTINUO"]
[null,null,null,null,null,null,null,null,null,null,null,null,null,null,null,242713005,"MBIT",2427,null,null,null,540,647,"PLANTA FISICA GENERAL"]
[null,null,null,null,null,null,null,null,null,null,null,null,null,null,null,242714001,"EDUCONTI ABIERTA",5100,null,null,null,541,118,"COL.RC-222/99 DEMOCRACIA Y CIUDADANIA EN LA ESCUELA"]
[null,null,null,null,null,null,null,null,null,null,null,null,null,null,null,242714002,"EDUCONTI CORPORATIVA",5100,null,null,null,542,53,"COL.RC-260/99 EL BALANCE HIDRICO EN ECOSISTEMAS MONTAÑOSOS"]
[null,null,null,null,null,null,null,null,null,null,null,null,null,null,null,242721001,"IMAGINE: INVERSION",2427,null,null,null,543,536,"ADQUISICIONES Y SUMINISTROS"]
[null,null,null,null,null,null,null,null,null,null,null,null,null,null,null,242721002,"UASIG: INVERSION",2427,null,null,null,544,507,"DIRECCION DE GESTION HUMANA Y ORGANIZACIONAL"]
[null,null,null,null,null,null,null,null,null,null,null,null,null,null,null,242721003,"TICSW: INVERSION",2427,null,null,null,545,544,"DIRECCION DE GESTION HUMANA Y ORGANIZACIONAL"]
[null,null,null,null,null,null,null,null,null,null,null,null,null,null,null,242721004,"COMIT: INVERSION",2427,null,null,null,546,244,"COL.RC-292/98 ARQUELOGIA REGIONAL ALTIPLANO NARIÑENSE"]
[null,null,null,null,null,null,null,null,null,null,null,null,null,null,null,242722001,"I+C: PROYECTO",2427,null,null,null,547,203,"COL.RC-293/98 LA GEOGRAFIA DE LO SAGRADO"]
[null,null,null,null,null,null,null,null,null,null,null,null,null,null,null,242722002,"CONVENIOS ISIS",2427,null,null,null,548,544,"JARDIN INFANTIL"]
[null,null,null,null,null,null,null,null,null,null,null,null,null,null,null,242746001,"DEPARTAMENTO: INV",2427,null,null,null,549,536,"SEGURIDAD Y SERVICIOS GENERALES"]
[null,null,null,null,null,null,null,null,null,null,null,null,null,null,null,242746002,"ADMINISTRACION: SIST",2427,null,null,null,550,549,"GRUPO DE SEGURIDAD"]
[null,null,null,null,null,null,null,null,null,null,null,null,null,null,null,242746003,"PDD SISTEMAS",2427,null,null,null,551,549,"CORRESPONDENCIA"]
[null,null,null,null,null,null,null,null,null,null,null,null,null,null,null,243622001,"INTERNACIONALIZACION",2400,null,null,null,552,549,"ASEO"]
[null,null,null,null,null,null,null,null,null,null,null,null,null,null,null,243622002,"LIDERES INNOVACION",2400,null,null,null,553,549,"PARQUEADEROS"]
[null,null,null,null,null,null,null,null,null,null,null,null,null,null,null,243622003,"INGENIER SIN FRONTER",2400,null,null,null,554,9999,"IMPREVISTOS DE RECTORIA"]
[null,null,null,null,null,null,null,null,null,null,null,null,null,null,null,243622004,"PATENTES",2400,null,null,null,555,554,"IMPREVISTOS DE RECTORIA"]
[null,null,null,null,null,null,null,null,null,null,null,null,null,null,null,243622005,"BECAS PROYECTOS",2400,null,null,null,556,244,"COL.RC-315/98 LA ILUSTRACION DEL CUERPO"]
[null,null,null,null,null,null,null,null,null,null,null,null,null,null,null,243622006,"TECNOLOGIA Y SOCIEDA",2400,null,null,null,557,514,"DIRECCION FINANCIERA CONSOLIDADO"]
[null,null,null,null,null,null,null,null,null,null,null,null,null,null,null,243621001,"CONVENIOS",2400,null,null,null,558,557,"DIRECCION FINANCIERA"]
[null,null,null,null,null,null,null,null,null,null,null,null,null,null,null,243921001,"SECTOR EXT CIE AGUA",2406,null,null,null,559,557,"OFICINA DE CONTABILIDAD"]
[null,null,null,null,null,null,null,null,null,null,null,null,null,null,null,243921002,"OPERACION CIE AGUA",2406,null,null,null,560,740,"INVERSIONES DIRECCION DE TECNOLOGIAS DE INFORMACIÓN CONSOLIDADO"]
[null,null,null,null,null,null,null,null,null,null,null,null,null,null,null,243922001,"PROY INVEST CIE AGUA",2406,null,null,null,561,740,"EQUIPOS MENORES"]
[null,null,null,null,null,null,null,null,null,null,null,null,null,null,null,243922002,"INNOVACION CIE AGUA",2406,null,null,null,562,740,"SOFTWARE"]
[null,null,null,null,null,null,null,null,null,null,null,null,null,null,null,243924001,"ASESORIA CIE AGUA",2406,null,null,null,563,560,"EQUIPOS MAYORES GENERAL"]
[null,null,null,null,null,null,null,null,null,null,null,null,null,null,null,244221001,"SECT EXT CIE ENERGIA",2406,null,null,null,564,561,"EQUIPOS MENORES GENERAL"]
[null,null,null,null,null,null,null,null,null,null,null,null,null,null,null,244221002,"OPERACION CIEENERGIA",2406,null,null,null,565,740,"INVERSIONES INGRESOS Y COSTOS ADMON CENTRAL"]
[null,null,null,null,null,null,null,null,null,null,null,null,null,null,null,244222001,"INVEST CIE ENERGIA",2406,null,null,null,566,740,"INVERSIONES MAYORES"]
[null,null,null,null,null,null,null,null,null,null,null,null,null,null,null,244222002,"INNOVACIONCIEENERGIA",2406,null,null,null,567,740,"PROGRAMA DE DOTACIONES"]
[null,null,null,null,null,null,null,null,null,null,null,null,null,null,null,244224001,"ASESORIA CIE ENERGIA",2406,null,null,null,568,567,"PROG. DOTACIONES ADMINISTRACION"]
[null,null,null,null,null,null,null,null,null,null,null,null,null,null,null,244521001,"SECTOREXT MATERIALES",2406,null,null,null,569,567,"PROG. DOTACIONES ARQUITECTURA Y DISEÑO"]
[null,null,null,null,null,null,null,null,null,null,null,null,null,null,null,244521002,"OPERACION MATERIALES",2406,null,null,null,570,562,"SOFTWARE GENERAL"]
[null,null,null,null,null,null,null,null,null,null,null,null,null,null,null,244522001,"INVEST CIEMATERIALES",2406,null,null,null,571,567,"PROG. DOTACIONES CIENCIAS"]
[null,null,null,null,null,null,null,null,null,null,null,null,null,null,null,244522002,"INNOVACIONMATERIALES",2406,null,null,null,572,567,"PROG. DOTACIONES QUIMICA"]
[null,null,null,null,null,null,null,null,null,null,null,null,null,null,null,244524001,"ASESORIA MATERIALES",2406,null,null,null,573,567,"PROG. DOTACIONES FISICA"]
[null,null,null,null,null,null,null,null,null,null,null,null,null,null,null,244821001,"SECTOR EXT MOVILIDAD",2406,null,null,null,574,567,"PROG. DOTACIONES MATEMATICAS"]
[null,null,null,null,null,null,null,null,null,null,null,null,null,null,null,244821002,"OPERACION MOVILIDAD",2406,null,null,null,575,567,"PROG. DOTACIONES CIENCIAS BIOLOGICAS"]
[null,null,null,null,null,null,null,null,null,null,null,null,null,null,null,244822001,"INVESTIGAC MOVILIDAD",2406,null,null,null,576,567,"PROG. DOTACIONES DERECHO"]
[null,null,null,null,null,null,null,null,null,null,null,null,null,null,null,244822002,"INNOVACION MOVILIDAD",2406,null,null,null,577,560,"MEJORAS CONMUTADOR CITEC"]
[null,null,null,null,null,null,null,null,null,null,null,null,null,null,null,244824001,"ASESORIA MOVILIDAD",2406,null,null,null,578,567,"PROG. DOTACIONES ANTROPOLOGIA"]
[null,null,null,null,null,null,null,null,null,null,null,null,null,null,null,245122101,"PROY INV G.PY",2406,null,null,null,579,567,"PROG. DOTACIONES MUSICA"]
[null,null,null,null,null,null,null,null,null,null,null,null,null,null,null,245124102,"PROY ASES G.PY",2406,null,null,null,580,567,"PROG. DOTACIONES LENGUAS"]
[null,null,null,null,null,null,null,null,null,null,null,null,null,null,null,245121103,"SECTOR EXT. G.PY",2406,null,null,null,581,567,"PROG. DOTACIONES HUMANIDADES Y LITERATURA"]
[null,null,null,null,null,null,null,null,null,null,null,null,null,null,null,245122104,"INNOV G.PY",2406,null,null,null,582,567,"PROG. DOTACIONES SICOLOGIA"]
[null,null,null,null,null,null,null,null,null,null,null,null,null,null,null,245121105,"OPERACION G.PY",2406,null,null,null,583,567,"PROG. DOTACIONES CIENCIA POLITICA"]
[null,null,null,null,null,null,null,null,null,null,null,null,null,null,null,245122201,"PROY INV SUR",2406,null,null,null,584,567,"PROG. DOTACIONES HISTORIA"]
[null,null,null,null,null,null,null,null,null,null,null,null,null,null,null,245124202,"PROY ASES SUR",2406,null,null,null,585,567,"PROG. DOTACIONES FILOSOFIA"]
[null,null,null,null,null,null,null,null,null,null,null,null,null,null,null,245121203,"SECTOR EXT. SUR",2406,null,null,null,586,560,"MEJORAS TECNOLOGIABACKBONE"]
[null,null,null,null,null,null,null,null,null,null,null,null,null,null,null,245122204,"INNOV SUR",2406,null,null,null,587,567,"PROG. DOTACIONES INDUSTRIAL"]
[null,null,null,null,null,null,null,null,null,null,null,null,null,null,null,245121205,"OPERACION SUR",2406,null,null,null,588,567,"PROG. DOTACIONES MECANICA"]
[null,null,null,null,null,null,null,null,null,null,null,null,null,null,null,245122301,"PROY INV CIACUA",2406,null,null,null,589,567,"PROG. DOTACIONES QUIMICA"]
[null,null,null,null,null,null,null,null,null,null,null,null,null,null,null,245124302,"PROY ASES CIACUA",2406,null,null,null,590,567,"PROG. DOTACIONES SISTEMAS"]
[null,null,null,null,null,null,null,null,null,null,null,null,null,null,null,245121303,"SECTOR EXT. CIACUA",2406,null,null,null,591,567,"PROG. DOTACIONES CIVIL"]
[null,null,null,null,null,null,null,null,null,null,null,null,null,null,null,245122304,"INNOV CIACUA",2406,null,null,null,592,567,"PROG. DOTACIONES ELECTRICA"]
[null,null,null,null,null,null,null,null,null,null,null,null,null,null,null,245121305,"OPERACION CIACUA",2406,null,null,null,593,567,"PROG. DOTACIONES DECANATURA DE INGENIERIA"]
[null,null,null,null,null,null,null,null,null,null,null,null,null,null,null,245122401,"PROY INV CIMOC",2406,null,null,null,594,567,"PROG. DOTACIONES ECONOMIA"]
[null,null,null,null,null,null,null,null,null,null,null,null,null,null,null,245124402,"PROY ASES CIMOC",2406,null,null,null,595,567,"PROG. DOTACIONES ARTES PLASTICAS Y DISENO"]
[null,null,null,null,null,null,null,null,null,null,null,null,null,null,null,245121403,"SECTOR EXT. CIMOC",2406,null,null,null,596,567,"PROG. DOTACIONES CENTRO DE COMPUTO"]
[null,null,null,null,null,null,null,null,null,null,null,null,null,null,null,245122404,"INNOV CIMOC",2406,null,null,null,597,567,"PROG. DOTACIONES BIBLIOTECA"]
[null,null,null,null,null,null,null,null,null,null,null,null,null,null,null,245121405,"OPERACION CIMOC",2406,null,null,null,598,567,"PROG. DOTACIONES PROGRAMA HERMES"]
[null,null,null,null,null,null,null,null,null,null,null,null,null,null,null,245122501,"PROY INV  E Y G",2406,null,null,null,599,567,"PROG. DOTACIONES PLANTA FISICA"]
[null,null,null,null,null,null,null,null,null,null,null,null,null,null,null,245124502,"PROY ASES E Y G",2406,null,null,null,600,567,"PROG. DOTACIONES DECANATURA DE ESTUDIANTES"]
[null,null,null,null,null,null,null,null,null,null,null,null,null,null,null,245121503,"SECTOR EXT. E Y G",2406,null,null,null,601,9999,"DISTRIBUIDOS UNIVERSIDAD"]
[null,null,null,null,null,null,null,null,null,null,null,null,null,null,null,245122504,"INNOV E Y G",2406,null,null,null,602,601,"DISTRIBUIDOS UNIVERSIDAD"]
[null,null,null,null,null,null,null,null,null,null,null,null,null,null,null,245121505,"OPERACION E Y G",2406,null,null,null,603,1000,"SOFTWARE DIRECCION DE GESTION HUMANA Y ORGANIZACIONAL"]
[null,null,null,null,null,null,null,null,null,null,null,null,null,null,null,245122601,"PROY INV GIIA",2406,null,null,null,604,27,"FACULTAD DE ARQUITECTURA Y DISEÑO DECANATURA"]
[null,null,null,null,null,null,null,null,null,null,null,null,null,null,null,245124602,"PROY ASES GIIA",2406,null,null,null,605,562,"MODULO DE CONTRATOS SQL"]
[null,null,null,null,null,null,null,null,null,null,null,null,null,null,null,245121603,"SECTOR EXT. GIIA",2406,null,null,null,606,3896,"SILLA PROFESORAL CORONA"]
[null,null,null,null,null,null,null,null,null,null,null,null,null,null,null,245122604,"INNOV GIIA",2406,null,null,null,607,51,"PROLIXUS MOLECULAR MARKER TDR"]
[null,null,null,null,null,null,null,null,null,null,null,null,null,null,null,245121605,"OPERACION GIIA",2406,null,null,null,608,51,"CIEN. BIOLOGICAS INVESTIGACION"]
[null,null,null,null,null,null,null,null,null,null,null,null,null,null,null,245421101,"SECTOR EXT. M Y A.E.",2406,null,null,null,609,118,"CONVENIO ANDRES BELLO"]
[null,null,null,null,null,null,null,null,null,null,null,null,null,null,null,245422102,"PROY INV M Y A. E.",2406,null,null,null,610,139,"CIJUS IMPACTO SOCIAL DE CENTROS DE CONS"]
[null,null,null,null,null,null,null,null,null,null,null,null,null,null,null,245422103,"INNOV EXT. M Y A.E.",2406,null,null,null,611,740,"BIBLIOTECA"]
[null,null,null,null,null,null,null,null,null,null,null,null,null,null,null,245424104,"PROY ASES M Y A. E.",2406,null,null,null,612,740,"APOYO DIDACTICO"]
[null,null,null,null,null,null,null,null,null,null,null,null,null,null,null,245421105,"OPERACION M Y A.E.",2406,null,null,null,613,465,"GRADOS"]
[null,null,null,null,null,null,null,null,null,null,null,null,null,null,null,245422201,"PROY INV P Y E",2406,null,null,null,614,3901,"LUCHA CONTRA LA CORRUPCION POLICIA NAL"]
[null,null,null,null,null,null,null,null,null,null,null,null,null,null,null,245424202,"PROY ASES P Y E",2406,null,null,null,615,521,"ESTUDIOS GENERALES"]
[null,null,null,null,null,null,null,null,null,null,null,null,null,null,null,245421203,"SECTOR EXT. P Y E",2406,null,null,null,616,1257,"CIFI-FONADE"]
[null,null,null,null,null,null,null,null,null,null,null,null,null,null,null,245422204,"INNOV P Y E",2406,null,null,null,617,1257,"CIFI ARP COLPATRIA"]
[null,null,null,null,null,null,null,null,null,null,null,null,null,null,null,245421205,"OPERACION P Y E",2406,null,null,null,618,167,"ECONOMIA PROG ESTUDIOS SEGURIDAD"]
[null,null,null,null,null,null,null,null,null,null,null,null,null,null,null,245422301,"PROY INV GIAP",2406,null,null,null,619,167,"ECONOMIA TENDENCIAS RECIENTES COLCIENCIAS"]
[null,null,null,null,null,null,null,null,null,null,null,null,null,null,null,245424302,"PROY ASES GIAP",2406,null,null,null,620,167,"ECONOMIA INVERSION CAMBIO TECNICO"]
[null,null,null,null,null,null,null,null,null,null,null,null,null,null,null,245421303,"SECTOR EXT. GIAP",2406,null,null,null,621,167,"ECONOMIA MOVILIDAD ESPACIAL POBREZA"]
[null,null,null,null,null,null,null,null,null,null,null,null,null,null,null,245422304,"INNOV GIAP",2406,null,null,null,622,167,"ECONOMIA TRANSFORMACION SOCIO DEMOGRAFICA"]
[null,null,null,null,null,null,null,null,null,null,null,null,null,null,null,245421305,"OPERACION GIAP",2406,null,null,null,623,189,"C. SOCIALES UNION EUROPEA"]
[null,null,null,null,null,null,null,null,null,null,null,null,null,null,null,245422401,"PROY INV CMUA",2406,null,null,null,624,214,"CIENCIA POLITICA DEMOCRACIA AMENAZADA-NED"]
[null,null,null,null,null,null,null,null,null,null,null,null,null,null,null,245424402,"PROY ASES CMUA",2406,null,null,null,625,4112,"ADMINISTRACION POSGRADO E INVESTIGACION"]
[null,null,null,null,null,null,null,null,null,null,null,null,null,null,null,245421403,"SECTOR EXT. CMUA",2406,null,null,null,626,388,"ING. MECANICA INVESTIGACION 6"]
[null,null,null,null,null,null,null,null,null,null,null,null,null,null,null,245422404,"INNOV CMUA",2406,null,null,null,627,189,"CIEN. SOCIALES TRANSFERENCIAS"]
[null,null,null,null,null,null,null,null,null,null,null,null,null,null,null,245421405,"OPERACION CMUA",2406,null,null,null,628,214,"INVESTIGACIONES C. POLITICA"]
[null,null,null,null,null,null,null,null,null,null,null,null,null,null,null,245422501,"PROY INV GEST",2406,null,null,null,629,214,"INVESTIGACION CIENCIA POLITICA II"]
[null,null,null,null,null,null,null,null,null,null,null,null,null,null,null,245424502,"PROY ASES GEST",2406,null,null,null,630,465,"PROYECTO BANNER CONSOLIDADO"]
[null,null,null,null,null,null,null,null,null,null,null,null,null,null,null,245421503,"SECTOR EXT. GEST",2406,null,null,null,631,42,"FAC. DE CIENCIAS SILLA PROFESORAL SANFORD"]
[null,null,null,null,null,null,null,null,null,null,null,null,null,null,null,245422504,"INNOV GEST",2406,null,null,null,632,167,"ECONOMIA INDUSTRIA PETROLERA"]
[null,null,null,null,null,null,null,null,null,null,null,null,null,null,null,245421505,"OPERACION GEST",2406,null,null,null,633,167,"ECONOMIA MERCADO LABORAL COLCIENCIAS RC-359"]
[null,null,null,null,null,null,null,null,null,null,null,null,null,null,null,245722101,"PROY INV PYLO",2406,null,null,null,634,439,"ARTES PLASTICAS PREGRADO"]
[null,null,null,null,null,null,null,null,null,null,null,null,null,null,null,245724102,"PROY ASES PYLO",2406,null,null,null,635,514,"VICERRECTORIA ADMINISTRATIVA Y FINANCIERA"]
[null,null,null,null,null,null,null,null,null,null,null,null,null,null,null,245721103,"SECTOR EXT. PYLO",2406,null,null,null,636,630,"OPERACION BANNER"]
[null,null,null,null,null,null,null,null,null,null,null,null,null,null,null,245722104,"INNOV PYLO",2406,null,null,null,637,434,"CENTRO ESTUDIOS PERIODISMO"]
[null,null,null,null,null,null,null,null,null,null,null,null,null,null,null,245721105,"OPERACION PYLO",2406,null,null,null,638,637,"CEPER ESPECIALIZACION"]
[null,null,null,null,null,null,null,null,null,null,null,null,null,null,null,245722201,"PROY INV COPA",2406,null,null,null,639,637,"CEPER ESPECIALIZACION"]
[null,null,null,null,null,null,null,null,null,null,null,null,null,null,null,245724202,"PROY ASES COPA",2406,null,null,null,640,630,"EXALUMNOS BANNER"]
[null,null,null,null,null,null,null,null,null,null,null,null,null,null,null,245721203,"SECTOR EXT. COPA",2406,null,null,null,641,244,"CESO EQUIDAD PARA LA MUJER"]
[null,null,null,null,null,null,null,null,null,null,null,null,null,null,null,245722204,"INNOV COPA",2406,null,null,null,642,434,"CEPER DIRECCION"]
[null,null,null,null,null,null,null,null,null,null,null,null,null,null,null,245721205,"OPERACION COPA",2406,null,null,null,643,642,"CEPER DIRECCION"]
[null,null,null,null,null,null,null,null,null,null,null,null,null,null,null,245722301,"PROY INV TESO",2406,null,null,null,644,214,"CIENCIA POLITICA UN PAIS MAS SEGURO"]
[null,null,null,null,null,null,null,null,null,null,null,null,null,null,null,245724302,"PROY ASES TESO",2406,null,null,null,645,630,"CAMPUS PIPELINE Y QUISCOS BANNER"]
[null,null,null,null,null,null,null,null,null,null,null,null,null,null,null,245721303,"SECTOR EXT. TESO",2406,null,null,null,646,1000,"ESTUDIOS DE MERCADOS - OFIPLAN"]
[null,null,null,null,null,null,null,null,null,null,null,null,null,null,null,245722304,"INNOV TESO",2406,null,null,null,647,740,"INVERSIONES PLANTA FISICA CONSOLIDADO"]
[null,null,null,null,null,null,null,null,null,null,null,null,null,null,null,245721305,"OPERACION TESO",2406,null,null,null,648,3898,"EXECUTIVE MBA"]
[null,null,null,null,null,null,null,null,null,null,null,null,null,null,null,246022101,"PROY INV IN EST",2406,null,null,null,649,167,"ECONOMIA ASOEXPORT"]
[null,null,null,null,null,null,null,null,null,null,null,null,null,null,null,246024102,"PROY ASES IN EST",2406,null,null,null,650,167,"ECONOMIA CO-0182 AGUA POTABLE Y ALCANTARILL."]
[null,null,null,null,null,null,null,null,null,null,null,null,null,null,null,246021103,"SECTOR EXT. IN EST",2406,null,null,null,651,536,"ALMACEN - TIQUETES"]
[null,null,null,null,null,null,null,null,null,null,null,null,null,null,null,246022104,"INNOV IN EST",2406,null,null,null,652,341,"ING. ELECTRICA TELEMATICA PROMOCION 13"]
[null,null,null,null,null,null,null,null,null,null,null,null,null,null,null,246021105,"OPERACION IN EST",2406,null,null,null,653,139,"CIJUS - FUNDEPUBLICO"]
[null,null,null,null,null,null,null,null,null,null,null,null,null,null,null,246022201,"PROY INV CONV ENER",2406,null,null,null,654,167,"COL.RC-340/98 ANALISIS ECONOMICO"]
[null,null,null,null,null,null,null,null,null,null,null,null,null,null,null,246024202,"PROY ASES CONV ENER",2406,null,null,null,655,244,"COL.RC-357/97 TRANSFORMACION COMUNIDAD"]
[null,null,null,null,null,null,null,null,null,null,null,null,null,null,null,246021203,"SECTOR EXT.CONV ENER",2406,null,null,null,656,203,"COL.RC-550/98 FORTALECIMIENTO CCELA"]
[null,null,null,null,null,null,null,null,null,null,null,null,null,null,null,246022204,"INNOV CONV ENER",2406,null,null,null,657,53,"COL.RC-557/98 FORTALECIMIENTO CIMPAT"]
[null,null,null,null,null,null,null,null,null,null,null,null,null,null,null,246021205,"OPERACION CONV ENER",2406,null,null,null,658,33,"ARQUITECTURA MADRID CUNDINAMARCA"]
[null,null,null,null,null,null,null,null,null,null,null,null,null,null,null,246022301,"PROY INV CIPP",2406,null,null,null,659,33,"ARQUITECTURA ZONA SUR"]
[null,null,null,null,null,null,null,null,null,null,null,null,null,null,null,246024302,"PROY CONSUL CIPP",2406,null,null,null,660,33,"ARQUITECTURA CIFA"]
[null,null,null,null,null,null,null,null,null,null,null,null,null,null,null,246021303,"SECTOR EXT. CIPP",2406,null,null,null,661,51,"CONTROL CHAGAS COLOMBIA"]
[null,null,null,null,null,null,null,null,null,null,null,null,null,null,null,246022304,"INNOV CIPP",2406,null,null,null,662,167,"COL.RC-558/98 FORTALECIMIENTO CEDE"]
[null,null,null,null,null,null,null,null,null,null,null,null,null,null,null,246021305,"OPERACION CIPP",2406,null,null,null,663,167,"ECONOMIA TIERRAS INDIGENAS PROY URRA I"]
[null,null,null,null,null,null,null,null,null,null,null,null,null,null,null,246022401,"PROY INV BIO",2406,null,null,null,664,167,"ECONOMIA HOGARES COLOMBIANOS"]
[null,null,null,null,null,null,null,null,null,null,null,null,null,null,null,246024402,"PROY ASES BIO",2406,null,null,null,665,341,"ING. ELECTRICA PROMOCION 6 EN AUTOMATIZACION"]
[null,null,null,null,null,null,null,null,null,null,null,null,null,null,null,246021403,"SECTOR EXT. BIO",2406,null,null,null,666,2298,"ING. MECANICA CIPEM"]
[null,null,null,null,null,null,null,null,null,null,null,null,null,null,null,246022404,"INNOV BIO",2406,null,null,null,667,2298,"ING. MECANICA PROYECTOS"]
[null,null,null,null,null,null,null,null,null,null,null,null,null,null,null,246021405,"OPERACION BIO",2406,null,null,null,668,630,"PROYECTO SOTWARE ADMISIONES Y REGISTRO"]
[null,null,null,null,null,null,null,null,null,null,null,null,null,null,null,246122101,"PROY INV BIO",2406,null,null,null,669,980,"PROGRAMA ICEBERG"]
[null,null,null,null,null,null,null,null,null,null,null,null,null,null,null,246124102,"PROY ASES BIO",2406,null,null,null,670,24,"INVESTIGADORES JOVENES"]
[null,null,null,null,null,null,null,null,null,null,null,null,null,null,null,246121103,"SECTOR EXT. BIO",2406,null,null,null,671,53,"COL.RC-117/92 AUTOCORRELACION DE FRECUENCIAS GENETICAS DE AISLAMIENTO"]
[null,null,null,null,null,null,null,null,null,null,null,null,null,null,null,246122104,"INNOV BIO",2406,null,null,null,672,24,"ADMINISTRACION ESP. AUTOEVALUACION"]
[null,null,null,null,null,null,null,null,null,null,null,null,null,null,null,246121105,"OPERACION BIO",2406,null,null,null,673,24,"E. DE LA INV. EN GESTION EMPRESARIAL"]
[null,null,null,null,null,null,null,null,null,null,null,null,null,null,null,246322101,"PROY INV CDPP",2406,null,null,null,674,3388,"TEXTILES PREGRADO"]
[null,null,null,null,null,null,null,null,null,null,null,null,null,null,null,246324102,"PROY ASES CDPP",2406,null,null,null,675,42,"FAC. DE CIENCIAS FONDO E INVESTIGACION"]
[null,null,null,null,null,null,null,null,null,null,null,null,null,null,null,246321103,"SECTOR EXT. CDPP",2406,null,null,null,676,93,"ALTAS ENERGIAS PARTE II"]
[null,null,null,null,null,null,null,null,null,null,null,null,null,null,null,246322104,"INNOV CDPP",2406,null,null,null,677,111,"QUIMICA PROYECTOS CAR"]
[null,null,null,null,null,null,null,null,null,null,null,null,null,null,null,246321105,"OPERACION CDPP",2406,null,null,null,678,111,"QUIMICA AYUDAS EDUCATIVAS"]
[null,null,null,null,null,null,null,null,null,null,null,null,null,null,null,246622101,"PROY INV IMAGINE",2406,null,null,null,679,124,"TENDENCIAS DERECHO PENAL MATERIAL Y FORM"]
[null,null,null,null,null,null,null,null,null,null,null,null,null,null,null,246624102,"PROY ASES IMAGINE",2406,null,null,null,680,124,"FACULTAD DE DERECHO CELEBRACION 35 AÑOS"]
[null,null,null,null,null,null,null,null,null,null,null,null,null,null,null,246621103,"SECTOR EXT. IMAGINE",2406,null,null,null,681,167,"ECONOMIA ORDENAMIENTO TERRITORIAL BOGOTA"]
[null,null,null,null,null,null,null,null,null,null,null,null,null,null,null,246622104,"INNOV IMAGINE",2406,null,null,null,682,208,"CENTRO DE APOYO AL CONGRESO"]
[null,null,null,null,null,null,null,null,null,null,null,null,null,null,null,246621105,"OPERACION IMAGINE",2406,null,null,null,683,189,"C. SOCIALES FONDO FINANCIERO DISTRITAL"]
[null,null,null,null,null,null,null,null,null,null,null,null,null,null,null,246622201,"PROY INV COMIT",2406,null,null,null,684,282,"CIFI SANEAMIENTO EMBALSE MU\\A"]
[null,null,null,null,null,null,null,null,null,null,null,null,null,null,null,246624202,"PROY ASES COMIT",2406,null,null,null,685,282,"CIFI CIDE-PNUD"]
[null,null,null,null,null,null,null,null,null,null,null,null,null,null,null,246621203,"SECTOR EXT. COMIT",2406,null,null,null,686,1922,"CIFI FONDO BECAS CONVENIOS"]
[null,null,null,null,null,null,null,null,null,null,null,null,null,null,null,246622204,"INNOV COMIT",2406,null,null,null,687,1940,"CIFI- TESO VARIOS"]
[null,null,null,null,null,null,null,null,null,null,null,null,null,null,null,246621205,"OPERACION COMIT",2406,null,null,null,688,282,"CIFI SECAB"]
[null,null,null,null,null,null,null,null,null,null,null,null,null,null,null,246624301,"PROY ASES CIFI  INF",2406,null,null,null,689,327,"ACCI"]
[null,"DIRECCION ADMINISTRATIVA DIVISION",null,null,null,null,null,null,null,null,null,null,null,null,null,246621302,"SECTOR EXT. CIFI INF",2406,null,null,null,690,327,"PROYECTO IDU 419"]
[null,"SEGURIDAD Y SERVICIOS GENERALES",null,null,null,null,null,null,null,null,null,null,null,null,null,246622303,"INNOV CIFI INF",2406,null,null,null,691,324,"ING. CIVIL CIGEC"]
[null,"AUDIOVISUALES",null,null,null,null,null,null,null,null,null,null,null,null,null,246621304,"OPERACION CIFI  INF",2406,null,null,null,692,327,"CIIA-INV"]
[null,"DONACIONES SEGURIDAD Y SERVICIOS GRALES",null,null,null,null,null,null,null,null,null,null,null,null,null,246622401,"PROY INV TICSW",2406,null,null,null,693,521,"EDUCACION Y TECNOLOGIA"]
[null,"SERVICIOS GENERALES",null,null,null,null,null,null,null,null,null,null,null,null,null,246624402,"PROY ASES TICSW",2406,null,null,null,694,397,"ING. SISTEMAS ECOS"]
[null,"GRUPO DE SEGURIDAD",null,null,null,null,null,null,null,null,null,null,null,null,null,246621403,"SECTOR EXT. TICSW",2406,null,null,null,695,282,"ING. SISTEMAS LIDIE CONTRATOS"]
[null,"ASEO",null,null,null,null,null,null,null,null,null,null,null,null,null,246622404,"INNOV TICSW",2406,null,null,null,696,407,"ING. SISTEMAS ACERTIJOS"]
[null,"CARNETIZACION",null,null,null,null,null,null,null,null,null,null,null,null,null,246621405,"OPERACION TICSW",2406,null,null,null,697,214,"COL.RC-172/97 CONFLICTO ARMADO EN COLOMBIA"]
[null,"ADQUISICIONES Y SUMINISTROS",null,null,null,null,null,null,null,null,null,null,null,null,null,246922001,"FONDO INVESTIGACION",2400,null,null,null,698,2245,"ING. QUIMICA PREGRADO"]
[null,"LIBRERIA",null,null,null,null,null,null,null,null,null,null,null,null,null,246922002,"PROMOCION&DESARROLLO",2400,null,null,null,699,461,"DIRECCION HERMES"]
[null,"DEPARTAMENTO MEDICO CONSOLIDADO",null,null,null,null,null,null,null,null,null,null,null,null,null,246922003,"PROFESORESASISTENTES",2400,null,null,null,700,461,"PRODUCCION AUDIOVISUAL"]
[null,"DIR TECNOLOGIAS DE INFORMACION",null,null,null,null,null,null,null,null,null,null,null,null,null,260000001,"DEC MEDICINA HCM",2600,null,null,null,701,461,"INNOVACION TECNOLOGICA"]
[null,"SERVICIO AL CLIENTE DTI",null,null,null,null,null,null,null,null,null,null,null,null,null,260046001,"MEDICINA DIRECCION",2600,null,null,null,702,472,"PROGRAMA OPORTUNIDADES"]
[null,"INFRESTRUCTURA TECNOLOGICA ACADEMICA",null,null,null,null,null,null,null,null,null,null,null,null,null,260046002,"VENTA SERVI MEDICINA",2600,null,null,null,703,507,"CELEBRACION 50 ANOS"]
[null,"INFRESTRUCTURA TECNOLOGICA ADTIVA",null,null,null,null,null,null,null,null,null,null,null,null,null,260046003,"INTERNACIONALIZACION",2600,null,null,null,704,1649,"RELACIONES EXTERNAS"]
[null,"PROYECTOS DTI",null,null,null,null,null,null,null,null,null,null,null,null,null,260048001,"DESLLO Y EVAL CURRIC",2600,null,null,null,705,507,"PROYECTO HISTORIA DE LA UNIVERSIDAD"]
[null,"ESTRATEGIA Y ARQUITECTURA",null,null,null,null,null,null,null,null,null,null,null,null,null,260081001,"APOYO EST PREGRADO",2600,null,null,null,706,507,"PROYECTO AÑO 2000"]
[null,"DIRECCION FINANCIERA",null,null,null,null,null,null,null,null,null,null,null,null,null,260081002,"APOYO EST POSGRADO",2600,null,null,null,707,526,"CONVENIO CORPES"]
[null,"OFICINA DE CONTABILIDAD",null,null,null,null,null,null,null,null,null,null,null,null,null,260111001,"LABORATORIO DE ANATO",2600,null,null,null,708,526,"KELLOG-CONSTRUYENDO PUENTES"]
[null,"TESORERIA",null,null,null,null,null,null,null,null,null,null,null,null,null,260111002,"LABORAT  INMUNOLOGIA",2601,null,null,null,709,1649,"OFICINA DE COMUNICACIONES"]
[null,"APOYO FINANCIERO A ESTUDIANTES",null,null,null,null,null,null,null,null,null,null,null,null,null,260111003,"LAB BIOQUIMICA","2601",null,null,null,710,537,"PROYECTO COMPENSACION"]
[null,"OFICINA DE PRESUPUESTO",null,null,null,null,null,null,null,null,null,null,null,null,null,260111004,"LAB NEUROCIENCIAS","2601",null,null,null,711,557,"APOYO FINANCIERO A ESTUDIANTES"]
[null,"VICERRECTORIA DE INVESTIGACIONES",null,null,null,null,null,null,null,null,null,null,null,null,null,260211001,"PUBL HEMATO-ONCOLOGI",2600,null,null,null,712,33,"ARQUITECTURA CONTRATO MUNEIVA"]
[null,"APOYO A UNIVERSIDADES REGIONALES",null,null,null,null,null,null,null,null,null,null,null,null,null,260211002,"PUB NEUROLOGIA",2600,null,null,null,713,33,"ARQUITECTURA CERROS ORIENTALES"]
[null,"EQUIPOS ROBUSTOS",null,null,null,null,null,null,null,null,null,null,null,null,null,260211003,"PUB NEUROLOGIA",2600,null,null,null,714,33,"ARQUITECTURA CIFA PROYECTOS"]
[null,"VIC DE INVESTIGACIONES - DOCTORADOS",null,null,null,null,null,null,null,null,null,null,null,null,null,260311001,"OTR CONVEN PRACTICAS",2600,null,null,null,715,139,"CIJUS FORTALECIMIENTO TECNOLOGICO"]
[null,"OFICINA EDICIONES UNIANDES",null,null,null,null,null,null,null,null,null,null,null,null,null,260311002,"OVH INST MEDIC LEGAL",2600,null,null,null,716,139,"CIJUS VIEJAS FORMAS DE POLITICA"]
[null,"CENTRO DE EXCELENCIA COMPLEJIDAD UANDES",null,null,null,null,null,null,null,null,null,null,null,null,null,260311003,"OVH HOSPITAL DE SUBA",2600,null,null,null,717,139,"CIJUS FRAGMENTACION DEL ESTADO"]
[null,"DON SIN DEST ESPECIFICA",null,null,null,null,null,null,null,null,null,null,null,null,null,261211001,"MEDICINA PREGRADO",2600,null,null,null,718,139,"CIJUS CRISIS CARCELARIA EN COLOMBIA"]
[null,"DON CON DESTINACION ESPECIFICA",null,null,null,null,null,null,null,null,null,null,null,null,null,261211002,"OVH MEDICINA VARIOS",2600,null,null,null,719,244,"CESO OBSERVATORIO LEGISLATIVO"]
[null,"DONACIONES",null,null,null,null,null,null,null,null,null,null,null,null,null,261211003,"CBU",2600,null,null,null,720,2601,"ESPECIALIZACIÓN STMAS HÍDRICOS PROMOCIÓN 2006-II"]
[null,"DON PARA EL DLLO DOCENTE Y ACADEMICO",null,null,null,null,null,null,null,null,null,null,null,null,null,261211004,"CURSOS LIBRES",2600,null,null,null,721,327,"ING. CIVIL COMOC-II"]
[null,"DON PARA EL DLLO DOCENTE Y ACADEMICO",null,null,null,null,null,null,null,null,null,null,null,null,null,262113001,"MAESTRIA S PUBLICA","2600",null,null,null,722,336,"ING. CIVIL INVERSIONES"]
[null,"PROYECTO UTB U TECNOLOGICA BOLIVAR",null,null,null,null,null,null,null,null,null,null,null,null,null,263314001,"CURSOS AHA",2600,null,null,null,723,1255,"CGSR"]
[null,"DON PARA PLANTA FISICA Y TECNOLOGIA",null,null,null,null,null,null,null,null,null,null,null,null,null,263314002,"OTORRINOLARINGOLOGIA",2600,null,null,null,724,2298,"ING. MECANICA CIPP"]
[null,"DON PARA APOYO FINANCIERO",null,null,null,null,null,null,null,null,null,null,null,null,null,263314003,"EVENTOS EDUCON",2600,null,null,null,725,9998,"ESCUELA DE VERANO"]
[null,"FONDO EDUCATIVO GABRIEL VEGALARA",null,null,null,null,null,null,null,null,null,null,null,null,null,263314004,"EVENTOS REUMATOLOGIA",2600,null,null,null,726,3895,"ESCUELA DE VERANO ADMINISTRACION"]
[null,"QUIERO ESTUDIAR CONSOLIDADOR",null,null,null,null,null,null,null,null,null,null,null,null,null,263314005,"MEDICINA EDUCON",5100,null,null,null,727,1760,"ESCUELA DE VERANO ARQUITECTURA Y DISEÑO"]
[null,"CONSILIDADOR FONDO BBVA",null,null,null,null,null,null,null,null,null,null,null,null,null,263314006,"MEDICINA EDUCON FACT",2600,null,null,null,728,41,"ESCUELA DE VERANO BIOLOGIA"]
[null,"DON FUNDACION SANTA FE 2002 FAC MEDICINA",null,null,null,null,null,null,null,null,null,null,null,null,null,263314007,"EVENTOS GINECOLOGIA",2600,null,null,null,729,41,"ESCUELA DE VERANO MATEMATICAS"]
[null,"DON FAC CIENCIAS",null,null,null,null,null,null,null,null,null,null,null,null,null,263622001,"GRUPO INVES EPIANDES",2600,null,null,null,730,121,"ESCUELA DE VERANO DERECHO"]
[null,"DONACIONES GEOCIENCIAS",null,null,null,null,null,null,null,null,null,null,null,null,null,263622002,"GRUPO INV CI BAS MED",2600,null,null,null,731,986,"ESCUELA DE VERANO ECONOMIA"]
[null,"DON FAC ADMINISTRACION",null,null,null,null,null,null,null,null,null,null,null,null,null,263622003,"GRUPO INV ANAT PLAST",2600,null,null,null,732,199,"ESCUELA VERANO ANTROPOLOGIA"]
[null,"DON FAC CIENCIAS SOCIALES",null,null,null,null,null,null,null,null,null,null,null,null,null,263622004,"FDO INV ELENA TRUJIL",2600,null,null,null,733,434,"ESCUELA VERANO MUSICA"]
[null,"BCAS ADMINISTRACION CENTRAL",null,null,null,null,null,null,null,null,null,null,null,null,null,263622005,"FDO INV JOHN DUPERLY",2600,null,null,null,734,239,"ESCUELA VERANO SICOLOGIA"]
[null,"FONDO SUPERAVIT",null,null,null,null,null,null,null,null,null,null,null,null,null,263622006,"FDO INV JUAN D HERNA",2600,null,null,null,735,208,"ESCUELA VERANO CIENCIA POLITICA"]
[null,"FDO SUPERAVIT ADMINISTRACION",null,null,null,null,null,null,null,null,null,null,null,null,null,263622007,"FDO INV JOHN M GONZA",2600,null,null,null,736,319,"ESCUELA DE VERANO CIVIL"]
[null,"INTERNACIONALIZACION",null,null,null,null,null,null,null,null,null,null,null,null,null,263622008,"FDO INV CARLOS FRANC",2600,null,null,null,737,362,"ESCUELA VERANO INDUSTRIAL"]
[null,"FORTALECIMIENTO A LA INVESTIGACION",null,null,null,null,null,null,null,null,null,null,null,null,null,263622009,"FDO INV RAFAEL ACERO",2600,null,null,null,738,434,"ESCUELA VERANO ARTES Y HUMANIDADES"]
[null,"FDO SUPERAVIT ARQUITECTURA Y DISEÑO",null,null,null,null,null,null,null,null,null,null,null,null,null,263622010,"FDO INV CARLOS CHIRI",2600,null,null,null,739,413,"ESCUELA VERANO CIDER"]
[null,"FDO SUPERAVIT CIENCIAS",null,null,null,null,null,null,null,null,null,null,null,null,null,263622011,"FDO INV OSCAR BERNAL",2600,null,null,null,740,9999,"INVERSIONES MAYORES CONSOLIDADO"]
[null,"FDO SUPERAVIT DERECHO",null,null,null,null,null,null,null,null,null,null,null,null,null,263622012,"FDO INV DANIEL SUARE",2600,null,null,null,741,356,"COL.RC-285/97 DESARROLLO Y PRUEBA DE APARATOS TELEMETRICOS"]
[null,"FDO SUPERAVIT ECONOMIA",null,null,null,null,null,null,null,null,null,null,null,null,null,263622013,"FDO INVES JAIME TORO",2600,null,null,null,742,53,"COL.RC-339/98 PRUEBA DEL COMETA COMO BIOMARCADOR"]
[null,"FDO SUPERAVIT CISO",null,null,null,null,null,null,null,null,null,null,null,null,null,263622014,"CIR PLEURODE QUIM GH",2600,null,null,null,743,116,"COL.RC-355/97 REFLEXION E INTERACION"]
[null,"FDO SUPERAVIT INGENIERIA",null,null,null,null,null,null,null,null,null,null,null,null,null,263622015,"GRUPO INVES RADIOLOG",2600,null,null,null,744,241,"COL.A-035/95 SEMINARIO HISTORIA POLITICA"]
[null,"FDO SUPERAVIT ARTES",null,null,null,null,null,null,null,null,null,null,null,null,null,263622016,"FDO INV OLGA L SARMI",2600,null,null,null,745,244,"COL.A-246/97 FINANCIACION IX CONGRESO"]
[null,"FONDO PARA AJUSTES ESCTRUCTURA SALARIAL",null,null,null,null,null,null,null,null,null,null,null,null,null,263622017,"FDO INV MEDICINA",2600,null,null,null,746,407,"COL.CF-536/97 TECNOLOGIA OII&"]
[null,"FONDO INVESTIGACIONES",null,null,null,null,null,null,null,null,null,null,null,null,null,263622018,"FDO INV CARLOS MENDI",2600,null,null,null,747,53,"COL.CV-001/95 AUNAR ESFUERZOS,TECNICO Y ADTIVO"]
[null,"OVERHEAD COLCIENCIAS Y SIMILARES",null,null,null,null,null,null,null,null,null,null,null,null,null,263622019,"FDO LUIS HERNANDEZ",2600,null,null,null,748,647,"USUARIO NO REGULADO P.F."]
[null,"FONDO DESARROLLO DOCENTE",null,null,null,null,null,null,null,null,null,null,null,null,null,280000001,"ESCUELA DE GOBI HCM",2800,null,null,null,749,549,"NOVICIADO OPERATIVO"]
[null,"FONDO DESARROLLO DOCENTE FACULTADES",null,null,null,null,null,null,null,null,null,null,null,null,null,280014001,"EGOB PAG",2800,null,null,null,750,549,"NOVICIADO EVENTOS"]
[null,"FONDO DLLO ADTVO",null,null,null,null,null,null,null,null,null,null,null,null,null,280014002,"EGOB EDUCON",5100,null,null,null,751,1462,"FONDO DE INVESTIGACION FACULTADES"]
[null,"FONDO DLLO ADTVO UNIDADES",null,null,null,null,null,null,null,null,null,null,null,null,null,280014003,"LIDERES POR BOGOTA",2800,null,null,null,752,1457,"FONDO DE REPOSICION FACULTADES"]
[null,"CAPACITACION FACULTADES",null,null,null,null,null,null,null,null,null,null,null,null,null,280046001,"DIR EGOB",2800,null,null,null,753,752,"FONDO DE REPOSICION ADMINISTRACION"]
[null,"CAPACITACION RECTORIA",null,null,null,null,null,null,null,null,null,null,null,null,null,280046002,"PUBLICACIONES",2800,null,null,null,754,1145,"FONDO DE REPOSICION ARQUITECTURA"]
[null,"CAPACITACION SECRETARIA GENERAL",null,null,null,null,null,null,null,null,null,null,null,null,null,280046003,"EGOB EVENTOS",2800,null,null,null,755,1146,"FONDO DE REPOSICION CIENCIAS DECANATURA"]
[null,"CAPACITACION VIC INVESTIGACIONES",null,null,null,null,null,null,null,null,null,null,null,null,null,280081001,"F PAT PROGR AL GOBIE",2800,null,null,null,756,752,"FONDO DE REPOSICION DERECHO"]
[null,"CAPACITACION VICERRECTORIA ACADEMICA",null,null,null,null,null,null,null,null,null,null,null,null,null,281211001,"EGOB PRE",2800,null,null,null,757,752,"FONDO DE REPOSICION ECONOMIA"]
[null,"CAPACITACION ADMON CENTRAL",null,null,null,null,null,null,null,null,null,null,null,null,null,282113001,"MAE POL PUBLICAS",2800,null,null,null,758,1147,"FONDO DE REPOSICION CIENCIAS SOCIALES"]
[null,"CAPACITACION DIR ADMINISTRATIVA",null,null,null,null,null,null,null,null,null,null,null,null,null,282113002,"MAE SALUD PUBLICA",2800,null,null,null,759,1148,"FONDO DE REPOSICION INGENIERIA DE SISTEMAS"]
[null,"CAPACITACION DIR FINANCIERA",null,null,null,null,null,null,null,null,null,null,null,null,null,283622001,"EGOB INV",2800,null,null,null,760,1149,"FONDO DE REPOSICION ARTES"]
[null,"RECONOCIMIENTO ACADEMICO APORTES",null,null,null,null,null,null,null,null,null,null,null,null,null,283622002,"EGOB CEI INV",2800,null,null,null,761,42,"FAC. DE CIENCIAS FONDO BECAS"]
[null,"RECONOCIMIENTO ACADEMICO FACULTADES",null,null,null,null,null,null,null,null,null,null,null,null,null,283622003,"EGOB SEMILLA INV",2800,null,null,null,762,51,"RESISTENCIA GENETICA YUCA"]
[null,"CONVENIOS COOPERACION EDUCATIVA",null,null,null,null,null,null,null,null,null,null,null,null,null,283624001,"EGOB CONSULTORIA",2800,null,null,null,763,118,"COLCIENCIAS EDUCACION F. DE CIENCIAS"]
[null,"PDI FACULTADES",null,null,null,null,null,null,null,null,null,null,null,null,null,300000001,"CIDER HCM",3000,null,null,null,764,243,"CESO CONSTRUCCION DE UNA AGENDA CIUDADANA"]
[null,"ARQUITECTURA Y DISEÑO",null,null,null,null,null,null,null,null,null,null,null,null,null,300065001,"DLLO INSTITUCIONAL",3000,null,null,null,765,472,"TRANSPORTE UNIBUS"]
[null,"ARTES Y HUMANIDADES",null,null,null,null,null,null,null,null,null,null,null,null,null,301211001,"CIDER PRE",3000,null,null,null,766,472,"CONSEJO ESTUDIANTIL UNIANDINO"]
[null,"CIENCIAS",null,null,null,null,null,null,null,null,null,null,null,null,null,301512001,"ESP EPOL",3000,null,null,null,767,557,"TESORERIA"]
[null,"CIENCIAS SOCIALES",null,null,null,null,null,null,null,null,null,null,null,null,null,301512002,"ESP DELR",3000,null,null,null,768,42,"FAC. DE CIENCIAS INICIATIVA VERDE"]
[null,"INGENIERIA",null,null,null,null,null,null,null,null,null,null,null,null,null,301512003,"ESP GRD",3000,null,null,null,769,51,"RENDIMIENTOS GENETICA"]
[null,"PDI UNIDADES ADMINISTRATIVAS",null,null,null,null,null,null,null,null,null,null,null,null,null,301512004,"ESP ORSD",3000,null,null,null,770,341,"ING. ELECTRICA FONDO A.R.C."]
[null,"PROYECTOS CONVOC INTERNA FACS FDO INVEST",null,null,null,null,null,null,null,null,null,null,null,null,null,302113001,"MAE EID",3000,null,null,null,771,356,"ING. ELECTRICA PLANEACION,REG.Y MODEL.DE LA EXPANSION"]
[null,"INVERSIONES PLANTA FISICA",null,null,null,null,null,null,null,null,null,null,null,null,null,303314001,"CIDER EDUCON",5100,null,null,null,772,1898,"GRUPO CIACUA"]
[null,"INVERSIONES OBRAS DTI",null,null,null,null,null,null,null,null,null,null,null,null,null,303622001,"CIDER INV",3000,null,null,null,773,778,"CIACUA-CIFI EAAB"]
[null,"INVERSIONES MAYORES DTI",null,null,null,null,null,null,null,null,null,null,null,null,null,303624001,"CIDER ASESORIA",3000,null,null,null,774,773,"CIFI - CIACUA E.A.A.B. RIO BOGOTA"]
[null,"INFRESTRUCTURA TECNOLOGICA ADTIVA",null,null,null,null,null,null,null,null,null,null,null,null,null,320000001,"CIFE HCM",3200,null,null,null,775,1265,"E.A.A.B. UE"]
[null,"INVERSIONES ADMINISTRACION CENTRAL",null,null,null,null,null,null,null,null,null,null,null,null,null,320046001,"DIR CIFE",3200,null,null,null,776,773,"CIACUA-CIFI EDUCACION CONTINUADA"]
[null,"INVERSIONES MAYORES ADMON CENTRAL",null,null,null,null,null,null,null,null,null,null,null,null,null,320046002,"SALDOS CIFE",3200,null,null,null,777,773,"CIACUA-CIFI ESPECIALIZACION"]
[null,"SACS",null,null,null,null,null,null,null,null,null,null,null,null,null,320082001,"FDO DE BECAS CIFE",3200,null,null,null,778,772,"CIACUA-CIFI INVESTIGACION"]
[null,"INVERSIONES RECTORIA",null,null,null,null,null,null,null,null,null,null,null,null,null,320947001,"SISTEMATIZACION CIFE",3200,null,null,null,779,773,"CIACUA-CIFI ALCANTARILLADO"]
[null,"INVERSIONES SECRETARIA GENERAL",null,null,null,null,null,null,null,null,null,null,null,null,null,320947002,"PROYECTO DE FACULTAD",3200,null,null,null,780,1963,"CIACUA-CIFI REDES"]
[null,"INVERSIONES VIC ACADEMICA",null,null,null,null,null,null,null,null,null,null,null,null,null,320947003,"COLOQUIO",3200,null,null,null,781,1963,"CIACUA-CIFI E.P.M."]
[null,"INVERSIONES VIC ADMINISTRATIVA",null,null,null,null,null,null,null,null,null,null,null,null,null,320947004,"PILOTO INNOVACION",3200,null,null,null,782,772,"CIACUA-CIFI PAVCO"]
[null,"INVERSIONES DIR ADMINISTRATIVA",null,null,null,null,null,null,null,null,null,null,null,null,null,320947005,"PLAN TIC UNIANDES",3200,null,null,null,783,647,"INVERSIONES MAYORES PLANTA FISICA GENERAL"]
[null,"INVERSIONES DIR FINANCIERA",null,null,null,null,null,null,null,null,null,null,null,null,null,320947006,"MODULOS DE FORMACION",3200,null,null,null,784,1145,"FONDO DE REPOSICION DISEÑO INDUSTRIAL"]
[null,"INVERSIONES VIC INVESTIGACIONES",null,null,null,null,null,null,null,null,null,null,null,null,null,320947007,"ACREDITACION SACS",3200,null,null,null,785,1146,"FONDO DE REPOSICION MATEMATICAS"]
[null,"INVERSIONES FACULTAD DE MEDICINA",null,null,null,null,null,null,null,null,null,null,null,null,null,320947008,"CONEXIONES CIET","3200",null,null,null,786,1146,"FONDO DE REPOSICION FISICA"]
[null,"BECAS Y CREDITOS",null,null,null,null,null,null,null,null,null,null,null,null,null,321211001,"CBU - OPCION",3200,null,null,null,787,1146,"FONDO DE REPOSICION QUIMICA"]
[null,"FAC MEDICINA OVERHEAD Y CONVENIOS",null,null,null,null,null,null,null,null,null,null,null,null,null,321512001,"ESP GESTION",3200,null,null,null,788,1148,"FONDO DE REPOSICION ING.CIVIL Y AMBIENTAL"]
[null,"CENTROS DE CIERRE",null,null,null,null,null,null,null,null,null,null,null,null,null,321512002,"ESP CURRICULO",3200,null,null,null,789,1148,"FONDO DE REPOSICION ING.ELECTRICA Y ELECTRONICA"]
[null,"PROG PREGRADO FICA",null,null,null,null,null,null,null,null,null,null,null,null,null,322113001,"MAE EN EDUCACION",3200,null,null,null,790,1148,"FONDO DE REPOSICION ING.MECANICA"]
[null,"DISTRIBUIDOS UANDES",null,null,null,null,null,null,null,null,null,null,null,null,null,322113002,"MAE CONCENT MAT",3200,null,null,null,791,1148,"FONDO DE REPOSICION ING. INDUSTRIAL"]
[null,null,null,null,null,null,null,null,null,null,null,null,null,null,null,323016001,"DOC EDUCACION",3200,null,null,null,792,1148,"FONDO DE REPOSICION ING. QUIMICA"]
[null,null,null,null,null,null,null,null,null,null,null,null,null,null,null,323314001,"TALLERES PROYECTOS",5100,null,null,null,793,1149,"FONDO DE REPOSICION MUSICA"]
[null,null,null,null,null,null,null,null,null,null,null,null,null,null,null,323314002,"CIFE EDUCON",5100,null,null,null,794,243,"CESO LUCHA CONTRA LA CORRUPCION"]
[null,null,null,null,null,null,null,null,null,null,null,null,null,null,null,323622001,"FDO INV",3200,null,null,null,795,327,"PROYECTO EPFL - GOBIERNO SUIZO"]
[null,null,null,null,null,null,null,null,null,null,null,null,null,null,null,323622002,"DESARROLL PROFESORAL",3200,null,null,null,796,327,"PROYECTO BIOAGRICOLA"]
[null,null,null,null,null,null,null,null,null,null,null,null,null,null,null,323622003,"PROYECTOS INV",3200,null,null,null,797,495,"MOVILIDAD ESPACIAL COLCIENCIAS EDICIONES UNIANDES"]
[null,null,null,null,null,null,null,null,null,null,null,null,null,null,null,323624001,"PROYECTOS ESPECIALES",3200,null,null,null,798,565,"REPOSICION FACULTADES"]
[null,null,null,null,null,null,null,null,null,null,null,null,null,null,null,323624002,"POLITECNICO INTERNAL",3200,null,null,null,799,536,"ALMACEN STOCK"]
[null,null,null,null,null,null,null,null,null,null,null,null,null,null,null,323624003,"FUNES",3200,null,null,null,800,740,"INVERSIONES ADMINISTRACION CENTRAL"]
[null,null,null,null,null,null,null,null,null,null,null,null,null,null,null,323624004,"INDAGALA PQC ACA",3200,null,null,null,801,800,"INVERSIONES RECTORIA CONSOLIDADO"]
[null,null,null,null,null,null,null,null,null,null,null,null,null,null,null,323624005,"MATERIALES",3200,null,null,null,802,801,"INVERSIONES - RECTORIA"]
[null,null,null,null,null,null,null,null,null,null,null,null,null,null,null,400061001,"RECTORIA DIR",4000,null,null,null,803,801,"INVERIONES OFICINA JURIDICA"]
[null,null,null,null,null,null,null,null,null,null,null,null,null,null,null,400061002,"HISTORIA UNIANDES",4000,null,null,null,804,801,"INVERSIONES REVISORIA FISCAL"]
[null,null,null,null,null,null,null,null,null,null,null,null,null,null,null,400061003,"IMPREVISTOS RECTORIA",4000,null,null,null,805,801,"INVERSIONES DIRECCION DE DESARROLLO"]
[null,null,null,null,null,null,null,null,null,null,null,null,null,null,null,400062001,"REVISORIA FISCAL",6400,null,null,null,820,800,"INVERSIONES VICERRECTORIA ACADEMICA CONSOLIDADO"]
[null,null,null,null,null,null,null,null,null,null,null,null,null,null,null,410061001,"DIR JURIDICA",4100,null,null,null,821,820,"INVERSIONES VICERRECTORIA ACADEMICA DIRECCION"]
[null,null,null,null,null,null,null,null,null,null,null,null,null,null,null,420061001,"AUDITORIA INTERNA",4200,null,null,null,822,4298,"INVERSIONES VICERRECTORIA DE INVESTIGACIONES Y DOCTORADOS"]
[null,null,null,null,null,null,null,null,null,null,null,null,null,null,null,430061001,"DIR PLANEACION",4300,null,null,null,823,820,"INVERSIONES SISTEMA DE BIBLIOTECA"]
[null,null,null,null,null,null,null,null,null,null,null,null,null,null,null,430061002,"CINDA",4300,null,null,null,824,820,"INVERSIONES DECANATURA DE ESTUDIANTES"]
[null,null,null,null,null,null,null,null,null,null,null,null,null,null,null,430061003,"INTELIGENCIA COMPET",4300,null,null,null,825,820,"INVERSIONES EDUCACION CONTINUADA"]
[null,null,null,null,null,null,null,null,null,null,null,null,null,null,null,430061004,"EFECTIVIDAD INSTIT",4300,null,null,null,830,800,"INVERSIONES VICERRECTORIA ADMINISTRATIVA CONSOLIDADO"]
[null,null,null,null,null,null,null,null,null,null,null,null,null,null,null,430061005,"PLANEACION CAMPUS",4300,null,null,null,831,830,"INVERSIONES VICERRECTORIA ADMINISTRATIVA DIRECCION"]
[null,null,null,null,null,null,null,null,null,null,null,null,null,null,null,430063001,"SIGCAMPUS",4300,null,null,null,832,801,"INVERSIONES OFICINA DE PLANEACION"]
[null,null,null,null,null,null,null,null,null,null,null,null,null,null,null,440061001,"DIR DESARROLLO",4400,null,null,null,840,800,"INVERSIONES SECRETARIA GENERAL CONSOLIDADO"]
[null,null,null,null,null,null,null,null,null,null,null,null,null,null,null,440061002,"AUDITO MARIO LASERNA",4400,null,null,null,841,840,"INVERSIONES SECRETARIA GENERAL DIRECCION"]
[null,null,null,null,null,null,null,null,null,null,null,null,null,null,null,440065002,"PROG CONS RECURSOS",4400,null,null,null,842,801,"INVERSIONES COMUNICACIONES"]
[null,null,null,null,null,null,null,null,null,null,null,null,null,null,null,440065003,"PROGRAMA EGRESADOS",4400,null,null,null,843,840,"INVERSIONES OFICINA DE ADMINISTRACION DOCUMENTAL"]
[null,null,null,null,null,null,null,null,null,null,null,null,null,null,null,441065001,"COMUNICACIONES",4410,null,null,null,850,800,"INVERSIONES DIRECCION ADMINISTRATIVA CONSOLIDADO"]
[null,null,null,null,null,null,null,null,null,null,null,null,null,null,null,442065001,"RELACIONES EXTERNAS",4420,null,null,null,851,850,"INVERSIONES DIRECCION ADMINISTRATIVA DIRECCION"]
[null,null,null,null,null,null,null,null,null,null,null,null,null,null,null,443065001,"RELACIONES PUBLICAS",4430,null,null,null,852,850,"INVERSIONES EL NOVICIADO"]
[null,null,null,null,null,null,null,null,null,null,null,null,null,null,null,444065001,"SERVICIOS DESARROLLO",4440,null,null,null,853,4298,"INVERSIONES EDICIONES UNIANDES"]
[null,null,null,null,null,null,null,null,null,null,null,null,null,null,null,445065001,"OFICINA DE DESARROLLO",4450,null,null,null,854,850,"INVERSIONES OFICINA PARA EL AVANCE INSTITUCIONAL"]
[null,null,null,null,null,null,null,null,null,null,null,null,null,null,null,450061001,"DIR GHO",4530,null,null,null,855,850,"INVERSIONES ADQUISICIONES Y SUMINISTROS"]
[null,null,null,null,null,null,null,null,null,null,null,null,null,null,null,450063001,"JARDIN INFANTIL",4530,null,null,null,856,850,"INVERSIONES - APOYO AL MEJORAMIENTO CONTINUO"]
[null,null,null,null,null,null,null,null,null,null,null,null,null,null,null,450063002,"PLANEACION TH",4530,null,null,null,857,850,"INVERSIONES SERVICIOS GENERALES"]
[null,null,null,null,null,null,null,null,null,null,null,null,null,null,null,450063003,"MONETIZACION APRENDZ",4530,null,null,null,858,850,"INVERSIONES PLANTA FISICA"]
[null,null,null,null,null,null,null,null,null,null,null,null,null,null,null,450063004,"CONSULTORIA JUR LAB",4530,null,null,null,860,800,"INVERSIONES DIRECCION FINANCIERA CONSOLIDADO"]
[null,null,null,null,null,null,null,null,null,null,null,null,null,null,null,451063001,"ADMON INFORMACION TH",4530,null,null,null,861,860,"INVERSIONES DIRECCION FINANCIERA"]
[null,null,null,null,null,null,null,null,null,null,null,null,null,null,null,451063002,"ADMON TALENTO HUMANO",4530,null,null,null,862,860,"INVERSIONES TESORERIA"]
[null,null,null,null,null,null,null,null,null,null,null,null,null,null,null,452067001,"BIENESTAR",4530,null,null,null,863,860,"INVERSIONES CONTABILIDAD Y PRESUPUESTO"]
[null,null,null,null,null,null,null,null,null,null,null,null,null,null,null,452067002,"BENEFLEX",4530,null,null,null,864,860,"INVERSIONES APOYO FINANCIERO"]
[null,null,null,null,null,null,null,null,null,null,null,null,null,null,null,452067003,"DCTOS DE BIENESTAR",4530,null,null,null,870,800,"INVERSIONES ADMISIONES Y REGISTRO"]
[null,null,null,null,null,null,null,null,null,null,null,null,null,null,null,453063001,"DLLO TALENTO HUMANO",4530,null,null,null,871,870,"INVERSIONES ADMISIONES Y REGISTRO DIRECCION"]
[null,null,null,null,null,null,null,null,null,null,null,null,null,null,null,453063002,"SELECCION PROMOCION",4530,null,null,null,875,800,"INVERSIONES DIR. TECNOLOGIAS DE INFORMACION"]
[null,null,null,null,null,null,null,null,null,null,null,null,null,null,null,453063003,"FORMACION PACTO",4530,null,null,null,876,875,"INVERSIONES DIR. TECNOLOGIAS DE INFORMACION DIRECCION"]
[null,null,null,null,null,null,null,null,null,null,null,null,null,null,null,453066001,"FORMACION",4530,null,null,null,885,801,"INVERSIONES DIRECCION DE GESTION HUMANA Y ORGANIZACIONAL"]
[null,null,null,null,null,null,null,null,null,null,null,null,null,null,null,460061001,"SECRETARIA GENERAL",4600,null,null,null,886,885,"INVERSIONES DIRECCION DE GESTION HUMANA Y ORGANIZACIONAL"]
[null,null,null,null,null,null,null,null,null,null,null,null,null,null,null,461063001,"ADMON DOCUMENTAL",4610,null,null,null,887,9998,"EXTENSION"]
[null,null,null,null,null,null,null,null,null,null,null,null,null,null,null,480061001,"VICE DESARROLLO Y EG","4800",null,null,null,888,887,"EXTENSION"]
[null,null,null,null,null,null,null,null,null,null,null,null,null,null,null,480061002,"CTP","4800",null,null,null,889,888,"EXTENSION"]
[null,null,null,null,null,null,null,null,null,null,null,null,null,null,null,480061003,"DIR. INT.DESARROLLO","4800",null,null,null,900,1000,"FONDOS"]
[null,null,null,null,null,null,null,null,null,null,null,null,null,null,null,500061001,"VIC ACADEMICA",5000,null,null,null,901,1457,"FONDO CAPACITACION DE PERSONAL 1%"]
[null,null,null,null,null,null,null,null,null,null,null,null,null,null,null,501011001,"CENTRO DE ESPAÑOL",5010,null,null,null,902,901,"FONDO DE DESAROLLO DE PERSONAL FACULTADES"]
[null,null,null,null,null,null,null,null,null,null,null,null,null,null,null,510061001,"DIR EDUCON",5100,null,null,null,903,902,"FONDO CAPACITACION PERSONAL ADMINISTRACION"]
[null,null,null,null,null,null,null,null,null,null,null,null,null,null,null,510014001,"CURSOS - EDUCON",5100,null,null,null,904,902,"FONDO CAPACITACION PERSONAL ARQUITECTURA Y DISEÑO"]
[null,null,null,null,null,null,null,null,null,null,null,null,null,null,null,510014002,"GDLN - EDUCON",5100,null,null,null,905,902,"FONDO CAPACITACION PERSONAL ARTES Y HUMANIDADES"]
[null,null,null,null,null,null,null,null,null,null,null,null,null,null,null,510014003,"ESC VERANO JOVENES",5100,null,null,null,906,902,"FONDO CAPACITACION PERSONAL CIDER"]
[null,null,null,null,null,null,null,null,null,null,null,null,null,null,null,510014004,"CURSOS LIBRES PREGRA",5100,null,null,null,907,902,"FONDO CAPACITACION PERSONAL CIENCIAS"]
[null,null,null,null,null,null,null,null,null,null,null,null,null,null,null,520061001,"ADMISION Y REGISTRO",5200,null,null,null,908,902,"FONDO CAPACITACION PERSONAL CIENCIAS SOCIALES"]
[null,null,null,null,null,null,null,null,null,null,null,null,null,null,null,521055001,"ADMISIONES",5210,null,null,null,909,902,"FONDO CAPACITACION PERSONAL DERECHO"]
[null,null,null,null,null,null,null,null,null,null,null,null,null,null,null,522056001,"REGISTRO ACADEMICO",5220,null,null,null,910,902,"FONDO CAPACITACION PERSONAL ECONOMIA"]
[null,null,null,null,null,null,null,null,null,null,null,null,null,null,null,523055001,"SCOUTING PREGRADO",5230,null,null,null,911,902,"FONDO CAPACITACION PERSONAL INGENIERIA"]
[null,null,null,null,null,null,null,null,null,null,null,null,null,null,null,523055002,"SCOUTING POSGRADOS",5200,null,null,null,912,1513,"FONDO DLLO PERSONAL ADMINISTRACION CENTRAL"]
[null,null,null,null,null,null,null,null,null,null,null,null,null,null,null,530061001,"DIR SIST BIBLIOTECAS",5300,null,null,null,913,901,"FONDO CAPACITACION PERSONAL APORTE UNIVERSIDAD"]
[null,null,null,null,null,null,null,null,null,null,null,null,null,null,null,531041001,"BIBLIOTECA UNIANDES","5310",null,null,null,914,53,"COL.CV-009/97 FORMACION NUEVOS INVESTIGADORES-INST.GENETICA"]
[null,null,null,null,null,null,null,null,null,null,null,null,null,null,null,531041002,"FDO DIR BIBLIOTECA",5300,null,null,null,915,99,"SIMPOSIO LOGICA MATEMATICA"]
[null,null,null,null,null,null,null,null,null,null,null,null,null,null,null,531041003,"BIBLIOTECA ADMON","5310",null,null,null,916,421,"COL.CV-068/86 PROGRAMA DE INVESTIGACION SOBRE PEQUEÑA INDUSTRIA"]
[null,null,null,null,null,null,null,null,null,null,null,null,null,null,null,531041004,"BIBLIOTECA ARQDIS",5300,null,null,null,917,407,"COL.RC-034/97 PROGRAMA PARA LA PROMOCION DE LA INVESTIGACION"]
[null,null,null,null,null,null,null,null,null,null,null,null,null,null,null,531041005,"BIBLIOTECA ARTES",5300,null,null,null,918,167,"COL.RC-073/96 TALLER CENTROS DE PRODUCCION"]
[null,null,null,null,null,null,null,null,null,null,null,null,null,null,null,531041006,"BIBLIOTECA CIENCIAS",5300,null,null,null,919,282,"COL.RC-117/94 RECONOCIMIENTO AUTOMATICO DE VOZ"]
[null,null,null,null,null,null,null,null,null,null,null,null,null,null,null,531041007,"BIBLIOTECA CISO",5300,null,null,null,920,192,"COL.RC-194/96 INFORMACION BIBLIOGRAFICA"]
[null,null,null,null,null,null,null,null,null,null,null,null,null,null,null,531041008,"BIBLIOTECA DERECHO",5300,null,null,null,921,282,"COL.RC-549/98 FORTALECIMIENTO MOX"]
[null,null,null,null,null,null,null,null,null,null,null,null,null,null,null,531041009,"BIBLIOTECA ECONOMIA",5300,null,null,null,922,356,"COL.RC-552/98 FORTALECIMIENTO MICROELECTRONICA"]
[null,null,null,null,null,null,null,null,null,null,null,null,null,null,null,531041010,"BIBLIOTECA ING",5300,null,null,null,923,139,"COL.RC-166/99 PAZ Y DERECHOS HUMANOS"]
[null,null,null,null,null,null,null,null,null,null,null,null,null,null,null,531041011,"BIBLIOTECA MEDICINA",5300,null,null,null,924,356,"COL.RC-411/97 LINEAS DE TRANSMISION"]
[null,null,null,null,null,null,null,null,null,null,null,null,null,null,null,531041012,"BIBLIOTECA EGOB",5300,null,null,null,925,244,"COL.RC-505/96 PUBLICACION LIBRO"]
[null,null,null,null,null,null,null,null,null,null,null,null,null,null,null,531041013,"BIBLIOTECA CIDER",5300,null,null,null,926,139,"COL.RC-553/98 FORTALECIMIENTO CIJUS"]
[null,null,null,null,null,null,null,null,null,null,null,null,null,null,null,531041014,"BIBLIOTECA CIFE",5300,null,null,null,927,327,"PROYECTO UESP"]
[null,null,null,null,null,null,null,null,null,null,null,null,null,null,null,531041015,"BIBLIOTECA VIC INV",5300,null,null,null,928,526,"F.FORD UNIVERSIDAD Y GESTION"]
[null,null,null,null,null,null,null,null,null,null,null,null,null,null,null,540052001,"CORO UNIANDES",5400,null,null,null,929,203,"MUJERES Y DIVERSIDAD AMAZON"]
[null,null,null,null,null,null,null,null,null,null,null,null,null,null,null,540061001,"DEC ESTUDIANTES",5400,null,null,null,930,93,"CONTROL CHAGAS COLOMBIA"]
[null,null,null,null,null,null,null,null,null,null,null,null,null,null,null,540065001,"CONSEJO ESTUDIANTIL",5400,null,null,null,931,111,"QUIMICA SISTEMA SENSOR DEL EFECTO TERMICO"]
[null,null,null,null,null,null,null,null,null,null,null,null,null,null,null,541052001,"CENTRO CULTURAL",5400,null,null,null,932,356,"INVESTIGACION BANCO DE LA REPUBLICA"]
[null,null,null,null,null,null,null,null,null,null,null,null,null,null,null,542052001,"DEPORTES",5400,null,null,null,933,124,"REVISTA TUTELA - LEGIS"]
[null,null,null,null,null,null,null,null,null,null,null,null,null,null,null,543045001,"CTP",5400,null,null,null,934,244,"LINEAS DE ATENCION PSICOLOGICA"]
[null,null,null,null,null,null,null,null,null,null,null,null,null,null,null,543045002,"PRACT TRAYEC PFNAL",5400,null,null,null,935,244,"CASAS DE JUVENTUD"]
[null,null,null,null,null,null,null,null,null,null,null,null,null,null,null,544051001,"PROG OPORTUNIDADES",5400,null,null,null,936,399,"CATEDRA MICROSOFT"]
[null,null,null,null,null,null,null,null,null,null,null,null,null,null,null,544053001,"CENTRO DE CONSEJERIA",5400,null,null,null,937,549,"INICIATIVA VERDE - RECICLAJE -"]
[null,null,null,null,null,null,null,null,null,null,null,null,null,null,null,544054001,"PROG APOYO BECARIOS",5400,null,null,null,938,549,"OFICINA PARA EL AVANCE INSTITUCIONAL GENERAL"]
[null,null,null,null,null,null,null,null,null,null,null,null,null,null,null,545051001,"CENTRO EST EN EXTERI",5400,null,null,null,939,244,"COL.RC-171/97 INVEST.ARQUEOLOGIA"]
[null,null,null,null,null,null,null,null,null,null,null,null,null,null,null,600061001,"VIC ADTIVA Y FRA",6000,null,null,null,940,53,"CIMPAT DIVERSIDAD RHODNIUS"]
[null,null,null,null,null,null,null,null,null,null,null,null,null,null,null,600061002,"IMPREVISTOS VIC AF",6000,null,null,null,941,336,"SUMINISTROS"]
[null,null,null,null,null,null,null,null,null,null,null,null,null,null,null,610061001,"DIR PLANTA FISICA",6100,null,null,null,942,118,"NAUFRAGOS Y NAVEGANTES EN TERRITORIOS HIPERMEDIALES"]
[null,null,null,null,null,null,null,null,null,null,null,null,null,null,null,610072002,"PF MANTENIMIENTO","6110",null,null,null,943,9999,"CITI SISTEMAS"]
[null,null,null,null,null,null,null,null,null,null,null,null,null,null,null,611072002,"MANTENIMIENTO ESTRATEGIA DE LIBERACION","6110",null,null,null,944,336,"ADMINISTRACION ING. CIVIL Y AMBIENTAL"]
[null,null,null,null,null,null,null,null,null,null,null,null,null,null,null,620061001,"GERENCIA DEL CAMPUS",6200,null,null,null,945,327,"PROYECTO CVC"]
[null,null,null,null,null,null,null,null,null,null,null,null,null,null,null,620061002,"JEFATURA DEL CAMPUS","6200",null,null,null,946,1931,"GUIA OPERACIÓN"]
[null,null,null,null,null,null,null,null,null,null,null,null,null,null,null,620061003,"PROY. GCIA CAMPUS","6200",null,null,null,947,51,"CURSO CHAGAS"]
[null,null,null,null,null,null,null,null,null,null,null,null,null,null,null,621000001,"SEG Y SER GRAL HCM",6210,null,null,null,948,1817,"ING. SISTEMAS FUNCIONAMIENTO I + C"]
[null,null,null,null,null,null,null,null,null,null,null,null,null,null,null,621043001,"AUDIOVISUALES","6310",null,null,null,949,341,"SIST. TRANSMISION Y DISTRIBUCION PROMOCION 11"]
[null,null,null,null,null,null,null,null,null,null,null,null,null,null,null,621061001,"ADMON DONACIONES",6210,null,null,null,950,1959,"CIAP VARIOS"]
[null,null,null,null,null,null,null,null,null,null,null,null,null,null,null,621061002,"OFICINA AVANCE INST",6210,null,null,null,951,1644,"PROGRAMA EXPOPYME"]
[null,null,null,null,null,null,null,null,null,null,null,null,null,null,null,621063001,"CORRESPONDENCIA",6210,null,null,null,952,282,"AMBIENTE EDUCATIVO MULTIMEDIA"]
[null,null,null,null,null,null,null,null,null,null,null,null,null,null,null,621063002,"PARQUEADEROS",6210,null,null,null,953,377,"FONDO PREMIACION A EMPLEADOS ADMINISTRACION"]
[null,null,null,null,null,null,null,null,null,null,null,null,null,null,null,621063003,"NOVICIADO OPERATIVO",6210,null,null,null,954,3907,"FONDO CREDITO EDUCATIVO FAC. ADMINISTRACION"]
[null,null,null,null,null,null,null,null,null,null,null,null,null,null,null,621063004,"NOVICIADO EVENTOS",6210,null,null,null,955,53,"CIMPAT PRIMERS DESING"]
[null,null,null,null,null,null,null,null,null,null,null,null,null,null,null,621063005,"CONTRATOS EXTERNOS",6210,null,null,null,956,53,"MALASSEZIA - COLCIENCIAS"]
[null,null,null,null,null,null,null,null,null,null,null,null,null,null,null,621063006,"CONJUNTO MULTIF GJQ",6210,null,null,null,957,53,"TOXOPLASMOSIS"]
[null,null,null,null,null,null,null,null,null,null,null,null,null,null,null,621073001,"GRUPO DE SEGURIDAD",6210,null,null,null,958,1959,"PLANTA WIESNER E.A.A.B."]
[null,null,null,null,null,null,null,null,null,null,null,null,null,null,null,621077001,"ASEO",6210,null,null,null,959,1262,"INICIATIVA E-BUSINESS"]
[null,null,null,null,null,null,null,null,null,null,null,null,null,null,null,621078001,"CARNETIZACION",6210,null,null,null,960,341,"ING. ELECTRICA TELEMATICA 15"]
[null,null,null,null,null,null,null,null,null,null,null,null,null,null,null,622063001,"ADQUISICIONES",6220,null,null,null,961,3898,"MAGISTER CON CONCENTRACIÓN."]
[null,null,null,null,null,null,null,null,null,null,null,null,null,null,null,622063002,"ALMACEN STOCK",6220,null,null,null,962,4001,"MAESTRIA EN EDUCACION"]
[null,null,null,null,null,null,null,null,null,null,null,null,null,null,null,622063003,"GESTION DE ACTIVO",6220,null,null,null,963,439,"ESPECIALIZACION EN CREACION MULTIMEDIA"]
[null,null,null,null,null,null,null,null,null,null,null,null,null,null,null,623031001,"LIBRERIA UNIANDES",6230,null,null,null,964,134,"CONVENIO DE PRACTICA ACADEMICA OJ 09 2000"]
[null,null,null,null,null,null,null,null,null,null,null,null,null,null,null,624057001,"DPTO MEDICO SALUD O",6240,null,null,null,965,53,"CIMPAT BANCO REPUBLICA CHAGAS"]
[null,null,null,null,null,null,null,null,null,null,null,null,null,null,null,624057002,"COMITE DE EMERGENCIA",6240,null,null,null,966,1152,"PROYECTO UNIANDES UPME"]
[null,null,null,null,null,null,null,null,null,null,null,null,null,null,null,630064001,"DIR DTI",6300,null,null,null,967,1261,"UNIANDES FOREC"]
[null,null,null,null,null,null,null,null,null,null,null,null,null,null,null,631044001,"SERVICIO CLIENTE DTI",6310,null,null,null,968,356,"ANALISIS DE CONFIABILIDAD EN LOS SISTEMAS DE POTENCIA"]
[null,null,null,null,null,null,null,null,null,null,null,null,null,null,null,632044001,"INFRESTRUCTURA ACAD",6320,null,null,null,969,407,"ING. SISTEMAS IVEN-RIVED-MINEDUCACION"]
[null,null,null,null,null,null,null,null,null,null,null,null,null,null,null,632064001,"INFRESTRUCTURA ADTVA",6320,null,null,null,970,167,"PROGRAMA ANDINO DE COMPETITIVIDAD"]
[null,null,null,null,null,null,null,null,null,null,null,null,null,null,null,633044001,"PROYECTOS DTI",6330,null,null,null,971,134,"CONVENIO INTERAMERICANO DE DERECHOS HUMANOS"]
[null,null,null,null,null,null,null,null,null,null,null,null,null,null,null,634044001,"ESTRATEGIA Y ARQUITECTURA",6340,null,null,null,972,2793,"COMITE DE EMERGENCIA"]
[null,null,null,null,null,null,null,null,null,null,null,null,null,null,null,640061001,"DIR FINANCIERA",6400,null,null,null,973,3897,"EMPREANDES"]
[null,null,null,null,null,null,null,null,null,null,null,null,null,null,null,641062001,"CONTABILIDAD",6410,null,null,null,974,557,"OFICINA GRANAHORRAR UNIANDES"]
[null,null,null,null,null,null,null,null,null,null,null,null,null,null,null,642062001,"TESORERIA",6420,null,null,null,975,421,"CIDER FOREC INGENIERIA"]
[null,null,null,null,null,null,null,null,null,null,null,null,null,null,null,643054001,"APOYO FINANCIERO","6430",null,null,null,976,421,"CIDER COLCIENCIAS AMBIENTALES"]
[null,null,null,null,null,null,null,null,null,null,null,null,null,null,null,644062001,"PRESUPUESTO",6440,null,null,null,977,327,"ING. CIVIL PROYECTO INSTRUMENTACION -CIOC"]
[null,null,null,null,null,null,null,null,null,null,null,null,null,null,null,700061001,"VIC INVESTIGACIONES",7000,null,null,null,978,327,"ING. CIVIL PROYECTO SAN CAYETANO"]
[null,null,null,null,null,null,null,null,null,null,null,null,null,null,null,700061002,"FDO AYUDA PROG DOCTO",7000,null,null,null,979,980,"DESARROLLOS INTERFASE - ICEBERG"]
[null,null,null,null,null,null,null,null,null,null,null,null,null,null,null,700061003,"EVENTOS VIC INVESTIG",7000,null,null,null,980,1000,"PROYECTO S Q L CONSOLIDADO"]
[null,null,null,null,null,null,null,null,null,null,null,null,null,null,null,700061004,"PROY ACADEM INSTIT",7000,null,null,null,981,3903,"PROYECTO CAF"]
[null,null,null,null,null,null,null,null,null,null,null,null,null,null,null,700061005,"FDO AYUDA PROG DOC",7000,null,null,null,982,51,"AMIBAS-COLCIENCIAS"]
[null,null,null,null,null,null,null,null,null,null,null,null,null,null,null,700022001,"APOYO U REGIONALES",7000,null,null,null,983,53,"CIMPAT PCR-COLCIENCIAS"]
[null,null,null,null,null,null,null,null,null,null,null,null,null,null,null,700022002,"CONVENIOS CONTRATOS",7000,null,null,null,984,4413,"BENEFLEX"]
[null,null,null,null,null,null,null,null,null,null,null,null,null,null,null,700023001,"EQUIPOS ROBUSTOS",7000,null,null,null,985,472,"CONVENIO PRACTICA TRAYECTORIA PROFESIONAL"]
[null,null,null,null,null,null,null,null,null,null,null,null,null,null,null,701022001,"COLCIENCIAS APOY DOC",7000,null,null,null,986,149,"FACULTAD DE ECONOMIA"]
[null,null,null,null,null,null,null,null,null,null,null,null,null,null,null,701022002,"COLC JOVENES INV",7000,null,null,null,987,149,"CONVENIO BID CAF"]
[null,null,null,null,null,null,null,null,null,null,null,null,null,null,null,701022003,"COLC INVESTIGACIONES",7000,null,null,null,988,327,"ING. CIVIL TCC"]
[null,null,null,null,null,null,null,null,null,null,null,null,null,null,null,701022004,"PASANTIAS DOCTORALES",7000,null,null,null,989,327,"ING. CIVIL PROYECTO RS-COL"]
[null,null,null,null,null,null,null,null,null,null,null,null,null,null,null,702063001,"OFICINA EDICIONES",7020,null,null,null,990,53,"CIMPAT TRIATOMA-COLCIENCIAS"]
[null,null,null,null,null,null,null,null,null,null,null,null,null,null,null,702063002,"COLECCION CBU",7020,null,null,null,991,1684,"VICEDECANATURA DE PREGRADO"]
[null,null,null,null,null,null,null,null,null,null,null,null,null,null,null,702063003,"COLECCION SENECA",7020,null,null,null,992,1684,"ESTUDIOS DE MERCADO"]
[null,null,null,null,null,null,null,null,null,null,null,null,null,null,null,703022001,"DIR CEIBA",7000,null,null,null,993,2201,"PDI"]
[null,null,null,null,null,null,null,null,null,null,null,null,null,null,null,703022002,"CEIBANDES",7000,null,null,null,994,1684,"FONDO DE GARANTIAS"]
[null,null,null,null,null,null,null,null,null,null,null,null,null,null,null,800181001,"DON SIN DEST ESPECIF",6400,null,null,null,995,270,"FONDO DE CAPACITACION"]
[null,null,null,null,null,null,null,null,null,null,null,null,null,null,null,800181002,"PAGARE FUND SANTAFE",6400,null,null,null,996,3724,"INGENIERIA QUIMICA ADMINISTRACION"]
[null,null,null,null,null,null,null,null,null,null,null,null,null,null,null,800181003,"F PAT APO FINANC EST",6000,null,null,null,997,2582,"ING. MECANICA ADMINISTRACION"]
[null,null,null,null,null,null,null,null,null,null,null,null,null,null,null,800181004,"FDO 26 PRESTAMOS GAR",6400,null,null,null,998,1647,"INGENIERIA INDUSTRIAL ADMINISTRACION"]
[null,null,null,null,null,null,null,null,null,null,null,null,null,null,null,800181005,"FONDO WIEDERMANN",6000,null,null,null,999,1149,"FONDO DE REPOSICION HUMANIDADES Y LITERATURA"]
[null,null,null,null,null,null,null,null,null,null,null,null,null,null,null,800181007,"FD Q.E PROXIMO SIGLO",6000,null,null,null,1000,740,"INVERSIONES MAYORES - PROYECTOS ADMON CENTRAL -"]
[null,null,null,null,null,null,null,null,null,null,null,null,null,null,null,800181008,"HARVARD ANDES FUND",6000,null,null,null,1001,413,"MAESTRIAS 25 AÑOS"]
[null,null,null,null,null,null,null,null,null,null,null,null,null,null,null,800181009,"FDO PAT JORGE STEINE",6000,null,null,null,1002,93,"CONTROL CUANTICO POZOS SEMICONDUCTORES"]
[null,null,null,null,null,null,null,null,null,null,null,null,null,null,null,810181001,"FDO GRETTEL WERNHER",6000,null,null,null,1003,93,"SISTEMAS DE COULUMB"]
[null,null,null,null,null,null,null,null,null,null,null,null,null,null,null,810181002,"DON FUN BOL DAVI ECO",2200,null,null,null,1004,93,"FISICA NANOESTRUCTURAS ESPECTROSCOPIA ULTRARAPIDA"]
[null,null,null,null,null,null,null,null,null,null,null,null,null,null,null,810181003,"DON FUN BOL DAVI BIO",1612,null,null,null,1005,557,"SOPORTE TECNICO"]
[null,null,null,null,null,null,null,null,null,null,null,null,null,null,null,810381001,"DON EL TIEMPO 1997",6400,null,null,null,1006,53,"CONVOCATORIA CIMPAT"]
[null,null,null,null,null,null,null,null,null,null,null,null,null,null,null,810381002,"DON BCO SANTDER 2002",6400,null,null,null,1007,53,"CONVOCATORIA AMIBAS"]
[null,null,null,null,null,null,null,null,null,null,null,null,null,null,null,810381003,"DONACIONE UNIANDINOS",6400,null,null,null,1008,53,"CONVOCATORIA CHAGAS"]
[null,null,null,null,null,null,null,null,null,null,null,null,null,null,null,810381004,"DON FILMTEX",4400,null,null,null,1009,93,"GRUPO DE CAOS Y SISTEMAS COMPLEJOS"]
[null,null,null,null,null,null,null,null,null,null,null,null,null,null,null,810481101,"PROG APOY JOVENS INV",7000,null,null,null,1010,93,"GRUPO DE FISICA DE ALTAS ENERGIAS"]
[null,null,null,null,null,null,null,null,null,null,null,null,null,null,null,810481201,"PROYECT UNIANDES UTB",6400,null,null,null,1011,93,"GRUPO DE FISICA DE LA MATERIA CONDENSADA"]
[null,null,null,null,null,null,null,null,null,null,null,null,null,null,null,810481202,"UNIANDES UTB CON ESP",6400,null,null,null,1012,521,"CENTRO DE INVESTIGACION Y FORMACION EN EDUCACION - CIFE"]
[null,null,null,null,null,null,null,null,null,null,null,null,null,null,null,810481301,"ED J",4400,null,null,null,1013,1012,"MAESTRIA EN EDUCACION"]
[null,null,null,null,null,null,null,null,null,null,null,null,null,null,null,810481302,"ED GERMANIA",4400,null,null,null,1014,1414,"EDUCACION UNIANDES"]
[null,null,null,null,null,null,null,null,null,null,null,null,null,null,null,810481303,"ED MARIO LASERNA",4400,null,null,null,1015,1012,"PROYECTOS CIFE"]
[null,null,null,null,null,null,null,null,null,null,null,null,null,null,null,810481304,"CTRO CULTURAL Y DEP","6200",null,null,null,1016,201,"MAESTRIA EN ANTROPOLOGIA"]
[null,null,null,null,null,null,null,null,null,null,null,null,null,null,null,810481305,"ED JULIO MARIO",4400,null,null,null,1017,239,"MAESTRIA EN PSICOLOGIA"]
[null,null,null,null,null,null,null,null,null,null,null,null,null,null,null,810481306,"ED FAC MEDICINA NRTE",4400,null,null,null,1018,1487,"SILLA PROFESORAL SANFORD"]
[null,null,null,null,null,null,null,null,null,null,null,null,null,null,null,810481401,"FDO FOPRE",5400,null,null,null,1019,1635,"SILLA PROFESORAL CORONA"]
[null,null,null,null,null,null,null,null,null,null,null,null,null,null,null,810481402,"DON KORN FERRY",4400,null,null,null,1020,139,"ANALISIS CUALITATIVO DE LAS SENTENCIAS"]
[null,null,null,null,null,null,null,null,null,null,null,null,null,null,null,810481403,"DON ALIANZA EDUCATIV",6400,null,null,null,1021,456,"ESPECIALIZACION EN GESTION DE RIESGOS INDUSTRIALES Y OCUPACIONALES"]
[null,null,null,null,null,null,null,null,null,null,null,null,null,null,null,810481404,"F G APO FINERO ESTUD",4400,null,null,null,1022,244,"PUBLICO Y PRIVADO EN BOGOTA RC 211-00"]
[null,null,null,null,null,null,null,null,null,null,null,null,null,null,null,810481406,"FDO D ROTHLISBERGER",4400,null,null,null,1023,244,"BAHIA DE NEGUANJE RC 128-00"]
[null,null,null,null,null,null,null,null,null,null,null,null,null,null,null,810481407,"FDO APOYO FIN CIDER",4400,null,null,null,1024,244,"RIESGOS DE SALUD EN HOMBRE RC 157-00"]
[null,null,null,null,null,null,null,null,null,null,null,null,null,null,null,810481408,"BECA FLIA ESPINOSA",4400,null,null,null,1025,244,"IDENTIDADES COLECTIVAS RC 129-00"]
[null,null,null,null,null,null,null,null,null,null,null,null,null,null,null,810481409,"FONDO Q.E HORIZONTE",4400,null,null,null,1026,244,"DENGUE Y CULTURA RC 202-00"]
[null,null,null,null,null,null,null,null,null,null,null,null,null,null,null,810481410,"BCA CALASANZ CBOLVAR",4400,null,null,null,1027,244,"CONTRABANDO SIGLO XIX RC 154-00"]
[null,null,null,null,null,null,null,null,null,null,null,null,null,null,null,810481411,"BECA BBVA MAES E GOB",4400,null,null,null,1028,244,"SEGURIDAD CIUDADANA RC 490-00"]
[null,null,null,null,null,null,null,null,null,null,null,null,null,null,null,810481412,"LEONOR ESCANDON D",4400,null,null,null,1029,244,"LA CRUZ Y LA ESPADA RC 459-00"]
[null,null,null,null,null,null,null,null,null,null,null,null,null,null,null,810481413,"FUNDACION BERCORP",4400,null,null,null,1030,244,"JOVENES INVESTIGADORES 2000 RC 057-047-00"]
[null,null,null,null,null,null,null,null,null,null,null,null,null,null,null,810481414,"BECA CONSULTORIA O",4400,null,null,null,1031,244,"PROYECTOS LINGUISTICA"]
[null,null,null,null,null,null,null,null,null,null,null,null,null,null,null,810481415,"BECA BAKER HUGHES",4400,null,null,null,1032,93,"DINAMICA DE EFECTOS COLECTIVOS EN PUNTOS CUANTICOS"]
[null,null,null,null,null,null,null,null,null,null,null,null,null,null,null,810481501,"FDO GAB VEGALARA MBA",6400,null,null,null,1033,244,"COOPERACION CIENTIFICA RC 294-99"]
[null,null,null,null,null,null,null,null,null,null,null,null,null,null,null,810481502,"FEGV Q.E MEDICINA",2600,null,null,null,1034,356,"JOVENES INVESTIGADORES CMUA"]
[null,null,null,null,null,null,null,null,null,null,null,null,null,null,null,810481503,"FEGV DOC EN ADMON",6400,null,null,null,1035,124,"FONDO CONCURSOS"]
[null,null,null,null,null,null,null,null,null,null,null,null,null,null,null,810481504,"FEGV BCA CASA TORO75",4400,null,null,null,1036,472,"CORO UNIANDES 40 AÑOS"]
[null,null,null,null,null,null,null,null,null,null,null,null,null,null,null,810481505,"BECAS REGIONALES",4400,null,null,null,1037,601,"COSTO DE PERSONAL DISTRIBUIDOS"]
[null,null,null,null,null,null,null,null,null,null,null,null,null,null,null,810481601,"Q.E ADMINISTRACION",1000,null,null,null,1039,48,"LEMA"]
[null,null,null,null,null,null,null,null,null,null,null,null,null,null,null,810481602,"Q.E ARQUITECTURA",1200,null,null,null,1040,282,"LIDIE"]
[null,null,null,null,null,null,null,null,null,null,null,null,null,null,null,810481603,"Q.E ARTES",1400,null,null,null,1041,1934,"LIDIE DONACIONES"]
[null,null,null,null,null,null,null,null,null,null,null,null,null,null,null,810481604,"Q.E FISICA",1615,null,null,null,1042,1934,"LIDIE CONTRATOS"]
[null,null,null,null,null,null,null,null,null,null,null,null,null,null,null,810481605,"Q.E ANTROPOLOGIA",1812,null,null,null,1043,1040,"CIFI SECRETARIA"]
[null,null,null,null,null,null,null,null,null,null,null,null,null,null,null,810481607,"Q.E FAC INGENIERIA",2400,null,null,null,1044,1040,"COLCIENCIAS ALBERTO MERANI"]
[null,null,null,null,null,null,null,null,null,null,null,null,null,null,null,810481608,"Q.E MEDICINA",2600,null,null,null,1045,1040,"CIFI SENA"]
[null,null,null,null,null,null,null,null,null,null,null,null,null,null,null,810481609,"Q.E C BIOLOGICAS",1600,null,null,null,1046,382,"MAESTRIA EN CIENCIAS BIOMEDICAS"]
[null,null,null,null,null,null,null,null,null,null,null,null,null,null,null,810481610,"Q.E DERECHO",2000,null,null,null,1047,167,"LONDON SCHOOL OF ECONOMICS"]
[null,null,null,null,null,null,null,null,null,null,null,null,null,null,null,810481611,"FONDO PROG Q.E",4400,null,null,null,1048,647,"PROYECTO DE LA POLA"]
[null,null,null,null,null,null,null,null,null,null,null,null,null,null,null,810481612,"FONDO Q.E UNIANDINOS",4400,null,null,null,1049,647,"CONSTRUCCIONES BLOQUE B CONSOLIDADO"]
[null,null,null,null,null,null,null,null,null,null,null,null,null,null,null,810481613,"F Q.E M FUT FOUNDATI",4400,null,null,null,1050,1049,"CONSTRUCCIONES BLOQUE B Y L"]
[null,null,null,null,null,null,null,null,null,null,null,null,null,null,null,810481614,"FONDO Q.E RTI",4400,null,null,null,1051,413,"OPCION EN DESARROLLO"]
[null,null,null,null,null,null,null,null,null,null,null,null,null,null,null,810481615,"Q.E ING CIVIL",2412,null,null,null,1052,1899,"GRUPO COVERSION DE ENERGIA"]
[null,null,null,null,null,null,null,null,null,null,null,null,null,null,null,810481616,"Q.E ING SISTEMAS",2427,null,null,null,1053,1052,"COVERSION DE ENERGIA SENA"]
[null,null,null,null,null,null,null,null,null,null,null,null,null,null,null,810481617,"Q.E ING ELECTRICA",2415,null,null,null,1054,1982,"COVERSION DE ENERGIA DOCTORADO"]
[null,null,null,null,null,null,null,null,null,null,null,null,null,null,null,810481619,"Q.E ING INDUSTRIAL",2418,null,null,null,1055,1981,"COVERSION DE ENERGIA SERVICIOS"]
[null,null,null,null,null,null,null,null,null,null,null,null,null,null,null,810481621,"Q.E ING QUIMICA",2424,null,null,null,1056,1465,"FONDO RECONOCIMIENTO ACADEMICO - FACULTADES"]
[null,null,null,null,null,null,null,null,null,null,null,null,null,null,null,810481622,"Q.E LENGUAJES",1824,null,null,null,1057,1056,"FONDO RECONOCIMIENTO ACADEMICO ADMINISTRACION"]
[null,null,null,null,null,null,null,null,null,null,null,null,null,null,null,810481624,"Q.E MICROBIOLOGIA",4400,null,null,null,1058,1056,"FONDO RECONOCIMIENTO ACADEMICO ARQUITECTURA"]
[null,null,null,null,null,null,null,null,null,null,null,null,null,null,null,810481633,"FDO Q.E DATA CREDITO",4400,null,null,null,1063,1056,"FONDO RECONOCIMIENTO ACADEMICO INGENIERIA"]
[null,null,null,null,null,null,null,null,null,null,null,null,null,null,null,810481636,"FDO Q.E ENR CAVALIER",4400,null,null,null,1066,282,"CIFI PETROBAS"]
[null,null,null,null,null,null,null,null,null,null,null,null,null,null,null,810481638,"Q.E ING GENERAL",4400,null,null,null,1068,397,"ECOMER ESPECIALIZACION EN COMERCIO ELECTRONICO"]
[null,null,null,null,null,null,null,null,null,null,null,null,null,null,null,810481643,"FONDO Q.E BAVARIA",4400,null,null,null,1073,1459,"DONACIONES SIN DESTINACION ESPECIFICA"]
[null,null,null,null,null,null,null,null,null,null,null,null,null,null,null,810481648,"F Q.E CARLOS PACHECO",4400,null,null,null,1082,24,"LARC"]
[null,null,null,null,null,null,null,null,null,null,null,null,null,null,null,810481652,"Q.E SCHLUMBERG SUREN",4400,null,null,null,1086,647,"MOBILIARIO EDIFICIO O"]
[null,null,null,null,null,null,null,null,null,null,null,null,null,null,null,810481653,"BECA Q.E DISAN",4400,null,null,null,1087,647,"REMODELACION SALON G104"]
[null,null,null,null,null,null,null,null,null,null,null,null,null,null,null,810481702,"PROG QRO EST BBVA",4400,null,null,null,1092,1935,"LIDIE META"]
[null,null,null,null,null,null,null,null,null,null,null,null,null,null,null,810581004,"FDO GENERAL",4400,null,null,null,1096,33,"PROGRAMA DISEÑANDO"]
[null,null,null,null,null,null,null,null,null,null,null,null,null,null,null,810681102,"FDO PAT Q.E ANH GEOC",1600,null,null,null,1101,1457,"FONDO DESARROLLO DOCENTE CONSOLIDADO"]
[null,null,null,null,null,null,null,null,null,null,null,null,null,null,null,810681105,"F PAT SP PACIFIC RUB",6200,null,null,null,1104,1103,"FONDO DESARROLLO DOCENTE ADMINISTRACION"]
[null,null,null,null,null,null,null,null,null,null,null,null,null,null,null,810981001,"ANT DON PROFICOL CAR",6400,null,null,null,1106,1103,"FONDO DESARROLLO DOCENTE ARTES Y HUMANIDADES"]
[null,null,null,null,null,null,null,null,null,null,null,null,null,null,null,850011001,"FDO ADMON",1000,null,null,null,1111,1103,"FONDO DESARROLLO DOCENTE ECONOMIA"]
[null,null,null,null,null,null,null,null,null,null,null,null,null,null,null,850011003,"FDO DERECHO",2000,null,null,null,1113,1101,"FONDO DESARROLLO DOCENTE ADMINISTRACION CENTRAL"]
[null,null,null,null,null,null,null,null,null,null,null,null,null,null,null,851046101,"PROMOCION REGIONAL",1000,null,null,null,1116,1950,"CIFI - BID"]
[null,null,null,null,null,null,null,null,null,null,null,null,null,null,null,851146002,"INVERSION DECANATURA",1200,null,null,null,1121,93,"COMPUTACION CUANTICA: COHERENCIA Y DECOHERENCIA"]
[null,null,null,null,null,null,null,null,null,null,null,null,null,null,null,851246002,"INVER LAB QUIMICA",1600,null,null,null,1125,244,"CLIENTELISMO LSE"]
[null,null,null,null,null,null,null,null,null,null,null,null,null,null,null,851246007,"FISICA LAB MUESTRAS",1600,null,null,null,1130,1129,"REMODELACION DPTO. DISEÑO INDUSTRIAL"]
[null,null,null,null,null,null,null,null,null,null,null,null,null,null,null,851246010,"FISICA ALTA ENERGIA",1600,null,null,null,1133,244,"EMBAJADA HOLANDESA"]
[null,null,null,null,null,null,null,null,null,null,null,null,null,null,null,851346001,"SUPERAVIT 25% DCHO",2000,null,null,null,1135,1129,"REMODELACION LABORATORIOS ING. ELECTRICA"]
[null,null,null,null,null,null,null,null,null,null,null,null,null,null,null,851546001,"APOYO DOC ANTROPOL",1800,null,null,null,1140,1981,"CIFI-DAMA-PNUD"]
[null,null,null,null,null,null,null,null,null,null,null,null,null,null,null,851546003,"APOYO DOC HISTORIA",1800,null,null,null,1142,421,"CIDER COMUNICACIONES"]
[null,null,null,null,null,null,null,null,null,null,null,null,null,null,null,851646002,"INVER PDD INDUSTRIAL",2418,null,null,null,1145,752,"FONDO DE REPOSICION ARQUITECTURA Y DISEÑO"]
[null,null,null,null,null,null,null,null,null,null,null,null,null,null,null,851646007,"INVERSION",2424,null,null,null,1150,647,"REMODELACION EDIFICIO HERMES"]
[null,null,null,null,null,null,null,null,null,null,null,null,null,null,null,851646011,"PDI SISTEMAS",2427,null,null,null,1154,421,"CIDER ICBF"]
[null,null,null,null,null,null,null,null,null,null,null,null,null,null,null,851746001,"SUPERAVIT 25% ARTES",1412,null,null,null,1159,377,"FONDO SUPERAVIT INGENIERIA"]
[null,null,null,null,null,null,null,null,null,null,null,null,null,null,null,853047001,"AJUSTE ESTRUCTURAL",4500,null,null,null,1160,341,"ING. ELECTRICA TELEMATICA 16"]
[null,null,null,null,null,null,null,null,null,null,null,null,null,null,null,853122005,"CONVOC GRUPOS",7000,null,null,null,1166,2199,"CIFI - RED DE EMPRESAS"]
[null,null,null,null,null,null,null,null,null,null,null,null,null,null,null,853247001,"APORTE ADMON CENTRAL",6400,null,null,null,1169,1012,"EDUCACION PARA LA PAZ"]
[null,null,null,null,null,null,null,null,null,null,null,null,null,null,null,853247105,"PDD CISO",4530,null,null,null,1174,647,"REMODELACION PISO 5 ED. FRANCO TOTAL"]
[null,null,null,null,null,null,null,null,null,null,null,null,null,null,null,853247106,"PDD DERECHO",4530,null,null,null,1175,647,"REMODELACION PISO 5ED. FRANCO PARCIAL"]
[null,null,null,null,null,null,null,null,null,null,null,null,null,null,null,853247110,"PDD  EGOB",4530,null,null,null,1179,647,"CONSTRUCCION PISO 3 CAFETERIA CENTRAL"]
[null,null,null,null,null,null,null,null,null,null,null,null,null,null,null,853266002,"PDA DIREDUCONTI","4530",null,null,null,1183,1181,"PLANEACION"]
[null,null,null,null,null,null,null,null,null,null,null,null,null,null,null,853266105,"PDA FAC ECONOMIA",4530,null,null,null,1188,1181,"FACULTAD DE INGENIERIA W,Z, CITEC"]
[null,null,null,null,null,null,null,null,null,null,null,null,null,null,null,853266106,"PDA FAC ING",4530,null,null,null,1189,647,"CONSOLIDACION ETAPA I ED. Z"]
[null,null,null,null,null,null,null,null,null,null,null,null,null,null,null,853266112,"PDA DEC ESTUDIANTES",4530,null,null,null,1195,1194,"ARQUITECTURA"]
[null,null,null,null,null,null,null,null,null,null,null,null,null,null,null,853266115,"PDA DIR DESARROLLO",4530,null,null,null,1198,1194,"DERECHO"]
[null,null,null,null,null,null,null,null,null,null,null,null,null,null,null,853266120,"PDA GHO",4530,null,null,null,1203,647,"PLAN RESERVA HIDRICA"]
[null,null,null,null,null,null,null,null,null,null,null,null,null,null,null,853266121,"PDA LIBRERIA",4530,null,null,null,1204,647,"PLAN CAMBIO A GAS NATURAL"]
[null,null,null,null,null,null,null,null,null,null,null,null,null,null,null,853266125,"PDA VIC INVESTIG",4530,null,null,null,1208,647,"ACTUALIZACION ASCENSOR ED. W."]
[null,null,null,null,null,null,null,null,null,null,null,null,null,null,null,853366003,"CAP ARTES",1400,null,null,null,1213,99,"GRAFOS"]
[null,null,null,null,null,null,null,null,null,null,null,null,null,null,null,853366007,"CAP ECONOMIA",2200,null,null,null,1217,1962,"ADMINISTRACION CIIACUA"]
[null,null,null,null,null,null,null,null,null,null,null,null,null,null,null,853366008,"CAP INGENIERIA",2400,null,null,null,1218,137,"CIJUS POLITICAS DE COMPETENCIA"]
[null,null,null,null,null,null,null,null,null,null,null,null,null,null,null,853366101,"RECTORIA",4000,null,null,null,1223,1960,"COLCIENCIA SILLA DE RUEDAS"]
[null,null,null,null,null,null,null,null,null,null,null,null,null,null,null,853366104,"AUDITORIA",4200,null,null,null,1226,53,"CONVOCATORIA COLCIENCIAS - 2002"]
[null,null,null,null,null,null,null,null,null,null,null,null,null,null,null,853366301,"VIC INVESTIGACIONES",7000,null,null,null,1232,244,"OBSERVATORIO LEGISLATIVO 2002"]
[null,null,null,null,null,null,null,null,null,null,null,null,null,null,null,853366302,"EDICIONES",7020,null,null,null,1233,1951,"COLCIENCIAS INVERNADERO"]
[null,null,null,null,null,null,null,null,null,null,null,null,null,null,null,853366405,"ADMISIONES REGISTRO",5200,null,null,null,1238,1963,"RIO BOGOTA FASE II"]
[null,null,null,null,null,null,null,null,null,null,null,null,null,null,null,853366504,"DTI","4530",null,null,null,1242,1298,"CLEFA (CONGRESO LATINOAMERICANO DE ESCUELAS Y FACULTADES DE ARQUITECTURA."]
[null,null,null,null,null,null,null,null,null,null,null,null,null,null,null,853366604,"DEPARTAMENTO MEDICO",6240,null,null,null,1246,1181,"ARREGLOS CERRAMIENTOS CITEC"]
[null,null,null,null,null,null,null,null,null,null,null,null,null,null,null,853366605,"LIBRERIA",6230,null,null,null,1247,1181,"REMODELACION AUDITORIO LLERAS"]
[null,null,null,null,null,null,null,null,null,null,null,null,null,null,null,853366705,"APOYO FINANCIERO",6430,null,null,null,1252,1181,"REMODELACION SALONES EDIFICIO RICHARD"]
[null,null,null,null,null,null,null,null,null,null,null,null,null,null,null,853447102,"REC ACAD ARQ",1200,null,null,null,1255,362,"PROYECTOS DE INGENIERIA INDUSTRIAL"]
[null,null,null,null,null,null,null,null,null,null,null,null,null,null,null,853447108,"REC ACAD ARTES",1400,null,null,null,1261,282,"CIFI- SIN GRUPO"]
[null,null,null,null,null,null,null,null,null,null,null,null,null,null,null,853447109,"REC ACAD CIDER",3000,null,null,null,1262,282,"CIFI - PROYECTOS FACULTAD"]
[null,null,null,null,null,null,null,null,null,null,null,null,null,null,null,853511102,"ICESI",6400,null,null,null,1267,282,"CIFI - COLCIENCIAS VARIOS"]
[null,null,null,null,null,null,null,null,null,null,null,null,null,null,null,853511106,"UNIVERSIDAD NORTE",6400,null,null,null,1271,282,"CIFI - CGSR"]
[null,null,null,null,null,null,null,null,null,null,null,null,null,null,null,853699003,"ECONOMIA",2200,null,null,null,1276,1979,"CIF - COLCIENCIAS ARTERIA"]
[null,null,null,null,null,null,null,null,null,null,null,null,null,null,null,853699006,"CIDER",3000,null,null,null,1279,137,"CONTRATO NO. 200208 DE 2002 \"GUERRA Y DERECHO"]
[null,null,null,null,null,null,null,null,null,null,null,null,null,null,null,853699101,"DPTO ARQUITECTURA",1212,null,null,null,1281,53,"GLIFOSATO - COLCIENCIAS"]
[null,null,null,null,null,null,null,null,null,null,null,null,null,null,null,853699203,"DPTO MUSICA",1415,null,null,null,1286,1285,"DONACION BANCO SANTANDER 2002"]
[null,null,null,null,null,null,null,null,null,null,null,null,null,null,null,853699205,"CEPER",1421,null,null,null,1288,1761,"SERVICIOS DISEÑO"]
[null,null,null,null,null,null,null,null,null,null,null,null,null,null,null,853699303,"FISICA",1615,null,null,null,1291,1897,"GRUPO GIAP ( IM - IEE - IQ - ISC )"]
[null,null,null,null,null,null,null,null,null,null,null,null,null,null,null,853699403,"CIENCIA POLITICA",1815,null,null,null,1296,1963,"CIFI PORCE"]
[null,null,null,null,null,null,null,null,null,null,null,null,null,null,null,853699407,"PSICOLOGIA",1827,null,null,null,1300,28,"POSTGRADOS Y ESPECIALIZACIONES ARQUITECTURA"]
[null,null,null,null,null,null,null,null,null,null,null,null,null,null,null,853699504,"IIND",2418,null,null,null,1305,1181,"REMODELACION VAX"]
[null,null,null,null,null,null,null,null,null,null,null,null,null,null,null,853699507,"ISIS",2427,null,null,null,1308,3898,"MAESTRIA EN RECURSOS HUMANOS"]
[null,null,null,null,null,null,null,null,null,null,null,null,null,null,null,853699509,"FONDOS INVESTIGACION",2406,null,null,null,1310,1993,"CIFI BP"]
[null,null,null,null,null,null,null,null,null,null,null,null,null,null,null,853698004,"AUDITORIA",4200,null,null,null,1315,99,"PROYECTOS DE INVESTIGACIÓN MATEMÁTICAS"]
[null,null,null,null,null,null,null,null,null,null,null,null,null,null,null,853698006,"DIR PLANEACION",4300,null,null,null,1317,1670,"PROYECTO FACULTAD DE MEDICINA"]
[null,null,null,null,null,null,null,null,null,null,null,null,null,null,null,853698009,"ADMON DOCUMENTAL",4610,null,null,null,1320,137,"VIOLENCIA INTRAFAMILIAR"]
[null,null,null,null,null,null,null,null,null,null,null,null,null,null,null,853698014,"DEC ESTUDIANTES",5400,null,null,null,1325,1457,"FONDO DE DESARROLLO NO DOCENTE (CONSOLIDADO)"]
[null,null,null,null,null,null,null,null,null,null,null,null,null,null,null,853698018,"PLANTA FISICA",6100,null,null,null,1329,137,"ESTATUTO DEL ABOGADO"]
[null,null,null,null,null,null,null,null,null,null,null,null,null,null,null,853698023,"DEPARTAMENTO MEDICO",6240,null,null,null,1334,122,"REVISTA DE DERECHO PRIVADO"]
[null,null,null,null,null,null,null,null,null,null,null,null,null,null,null,853698024,"LIBRERIA",6230,null,null,null,1335,199,"REVISTA ANTROPOLOGIA"]
[null,null,null,null,null,null,null,null,null,null,null,null,null,null,null,853698028,"PRESUPUESTO",6440,null,null,null,1339,1338,"EDIFICIO J"]
[null,null,null,null,null,null,null,null,null,null,null,null,null,null,null,853722004,"P CIENCIAS FINVG",7000,null,null,null,1344,2814,"FONDO QUIERO ESTUDIAR ARQUITECTURA"]
[null,null,null,null,null,null,null,null,null,null,null,null,null,null,null,853722009,"P MEDICINA FINVG",7000,null,null,null,1349,2814,"FONDO QUIERO ESTUDIAR FACULTAD DE INGENIERIA"]
[null,null,null,null,null,null,null,null,null,null,null,null,null,null,null,853722011,"P CIFE FINVG",7000,null,null,null,1351,3637,"FONDO BECA CIRO ANGARITA BARON"]
[null,null,null,null,null,null,null,null,null,null,null,null,null,null,null,860076002,"INVERS MENORES PF",6100,null,null,null,1354,421,"PLAN INTERNACIONAL"]
[null,null,null,null,null,null,null,null,null,null,null,null,null,null,null,860076006,"EST POLICIA REC UAN",6100,null,null,null,1358,1148,"FONDO DE REPOSICION MOX"]
[null,null,null,null,null,null,null,null,null,null,null,null,null,null,null,860344004,"ESTRAT. Y ARQUIT.","6340",null,null,null,1363,1181,"REMODELACION ARCHIVO INSTITUCIONAL"]
[null,null,null,null,null,null,null,null,null,null,null,null,null,null,null,860364001,"INFRESTRUCTURA ADTVA",6300,null,null,null,1364,1181,"REMODELACION SALAS DE COMPUTO DE MATEMATICAS"]
[null,null,null,null,null,null,null,null,null,null,null,null,null,null,null,860676002,"PROGRAMA ICEBERG",6400,null,null,null,1368,1181,"REMODELACION CASITA ÑH"]
[null,null,null,null,null,null,null,null,null,null,null,null,null,null,null,861061004,"INVER JURIDICA",4100,null,null,null,1373,1012,"SERVICIOS ALIANZA"]
[null,null,null,null,null,null,null,null,null,null,null,null,null,null,null,861161002,"INVER ADMON DOCUMTAL",4600,null,null,null,1378,1376,"REMODELACION BAÑOS ARQUITECTURA"]
[null,null,null,null,null,null,null,null,null,null,null,null,null,null,null,861261002,"INVER ADMISIONES",5200,null,null,null,1380,2546,"INV. MAYORES - COMITÉ DE EMERGENCIA"]
[null,null,null,null,null,null,null,null,null,null,null,null,null,null,null,861261005,"INVER DEC ESTUDIANTE",5400,null,null,null,1383,1376,"REMODELACION PUNTO FIJO BQ G"]
[null,null,null,null,null,null,null,null,null,null,null,null,null,null,null,861461001,"INVER DIR ADTIVA",6200,null,null,null,1388,1376,"DIVISIONES BAÑOS"]
[null,null,null,null,null,null,null,null,null,null,null,null,null,null,null,861461005,"INVER SERVICIOS GLES",6210,null,null,null,1392,1285,"DONACIONES LAMITECH"]
[null,null,null,null,null,null,null,null,null,null,null,null,null,null,null,861461006,"INVER DTO MEDICO",6240,null,null,null,1393,1285,"DONACIONES FILMTEX"]
[null,null,null,null,null,null,null,null,null,null,null,null,null,null,null,861561003,"INVER CONTAB Y PPTO",6410,null,null,null,1398,1963,"MAC - MANIZALES"]
[null,null,null,null,null,null,null,null,null,null,null,null,null,null,null,861661002,"INVER EDICIONES",7020,null,null,null,1401,986,"FONDO PREMIO TESIS ECONOMIA"]
[null,null,null,null,null,null,null,null,null,null,null,null,null,null,null,992099003,"CONV FUN STAFE OTROS","6400",null,null,null,1407,521,"EDUCACION UNIANDES"]
[null,null,null,null,null,null,null,null,null,null,null,null,null,null,null,992099004,"COVH MEDICINA",2600,null,null,null,1408,521,"ASOCIACION ALIANZA"]
[null,null,null,null,null,null,null,null,null,null,null,null,null,null,null,999925002,"FDO EDUARDO ALVAREZ",6410,null,null,null,1413,4001,"ESPECIALIZACION EN EDUCACION"]
[null,null,null,null,null,null,null,null,null,null,null,null,null,null,null,999925006,"C BIOL DON PROFI CAR",6410,null,null,null,1417,341,"TEMATICA 17"]
[null,null,null,null,null,null,null,null,null,null,null,null,null,null,null,999925010,"FONDO GRETEL WERNHER",6410,null,null,null,1421,3926,"FONDO DE DESARROLLO NO DOCENTE - FAC. DERECHO"]
[null,null,null,null,null,null,null,null,null,null,null,null,null,null,null,999925011,"ANTRO DON PROFI CARM",6410,null,null,null,1422,3926,"FONDO DE DESARROLLO NO DOCENTE - DIRECCION DE GESTION HUMANA Y ORGANIZACIONAL"]
[null,null,null,null,null,null,null,null,null,null,null,null,null,null,null,999925016,"FDO AYUDA PROG DOCTO",6410,null,null,null,1427,2546,"SERV. GRALES DOTACION AUDIOVISUALES"]
[null,null,null,null,null,null,null,null,null,null,null,null,null,null,null,999925019,"FDO Q.E UNIANDINOS",6410,null,null,null,1430,1181,"ARREGLO OFICINAS DE ARTE"]
[null,null,null,null,null,null,null,null,null,null,null,null,null,null,null,999925025,"F Q.E CINECO 80 AÑOS",6410,null,null,null,1436,1481,"OPTIMIZACION"]
[null,null,null,null,null,null,null,null,null,null,null,null,null,null,null,999925026,"FDO GABRIEL VEGA Q.E",6410,null,null,null,1437,1181,"REFORESTACION"]
[null,null,null,null,null,null,null,null,null,null,null,null,null,null,null,999925031,"FDO CARLOS PACHECO D",6410,null,null,null,1442,1181,"REMODELACION OFICINAS ADMINISTRACION"]
[null,null,null,null,null,null,null,null,null,null,null,null,null,null,null,999925035,"HARVARD ANDES FUND",6410,null,null,null,1446,2545,"SOFTWARE SALONES"]
[null,null,null,null,null,null,null,null,null,null,null,null,null,null,null,999925040,"BECA Q.E DISAN",6410,null,null,null,1451,1181,"BLOQUE R - ARREGLO BAÑOS Y SALONES"]
[null,null,null,null,null,null,null,null,null,null,null,null,null,null,null,999926002,"FDO PROG ESPEC FOPRE",6410,null,null,null,1454,93,"SENSIBILIDAD MICROSCOPICA"]
[null,null,null,null,null,null,null,null,null,null,null,null,null,null,null,999926004,"U TECNOLOGIC BOLIVAR",6410,null,null,null,1456,9994,"FONDO DE FACULTADES"]
[null,null,null,null,null,null,null,null,null,null,null,null,null,null,null,999926009,"FDO PONY MAL BAVARIA",6410,null,null,null,1461,1805,"FONDO PARA RECONOCIMIENTO DE NUEVO MATERIAL"]
[null,null,null,null,null,null,null,null,null,null,null,null,null,null,null,999926012,"FDO LEONOR  ESCANDON",6410,null,null,null,1464,902,"FDO. CAPACITACION PERSONAL FAC. MEDICINA"]
[null,null,null,null,null,null,null,null,null,null,null,null,null,null,null,999926014,"FUNDACION BELCORP",6410,null,null,null,1466,1465,"FONDO DE RECONOCIMIENTO ACADEMICO - APORTES"]
[null,null,null,null,null,null,null,null,null,null,null,null,null,null,null,999911605,"PREG HISTORIA D ARTE",6200,null,null,null,1471,560,"INV. DTI INFRAESTRUCTURA"]
[null,null,null,null,null,null,null,null,null,null,null,null,null,null,null,999911609,"PREG DISEÑO",6200,null,null,null,1475,244,"PROYECTO CONGRESO VISIBLE"]
[null,null,null,null,null,null,null,null,null,null,null,null,null,null,null,999911614,"PREG HISTORIA",6200,null,null,null,1480,1479,"PLANTA FISICA MEDIDAS DE SEGURIDAD 2003"]
[null,null,null,null,null,null,null,null,null,null,null,null,null,null,null,999911617,"PREG INGE CIVIL Y AM",6200,null,null,null,1483,1460,"DONACIONES FUNDACION SANTA FE 2002 - FAC. MEDICINA"]
[null,null,null,null,null,null,null,null,null,null,null,null,null,null,null,999911619,"PREG INGE ELECT ELEC",6200,null,null,null,1485,1483,"DONACION FIDUCIARIA DAVIVIENDA S.A."]
[null,null,null,null,null,null,null,null,null,null,null,null,null,null,null,999911624,"PREG MATEMATICAS",6200,null,null,null,1490,93,"PROPIEDADES UNIVERSALES"]
[null,null,null,null,null,null,null,null,null,null,null,null,null,null,null,999911627,"PREG MUSICA",6200,null,null,null,1493,1481,"ARREGLO FINCA NOVICIADO"]
[null,null,null,null,null,null,null,null,null,null,null,null,null,null,null,999911629,"PREG QUIMICA",6200,null,null,null,1495,1462,"OVERHEAD COLCIENCIAS Y SIMILARES"]
[null,null,null,null,null,null,null,null,null,null,null,null,null,null,null,999999603,"BCA CONVENIO  EBIS",6400,null,null,null,1500,1481,"DECANATURA DE ECONOMIA Y SALA DE JUNTAS"]
[null,null,null,null,null,null,null,null,null,null,null,null,null,null,null,null,null,null,null,null,null,1505,208,"REVISTA COLOMBIA INTERNACIONAL"]
[null,null,null,null,null,null,null,null,null,null,null,null,null,null,null,null,null,null,null,null,null,1509,244,"POLITICA Y DESCENTRALIZACION LSE"]
[null,null,null,null,null,null,null,null,null,null,null,null,null,null,null,null,null,null,null,null,null,1510,1993,"CIFI ECOPETROL"]
[null,null,null,null,null,null,null,null,null,null,null,null,null,null,null,null,null,null,null,null,null,1514,1513,"FONDO DESARROLLO PERSONAL RECTORIA CONSOLIDADO"]
[null,null,null,null,null,null,null,null,null,null,null,null,null,null,null,null,null,null,null,null,null,1519,1514,"CAPACITACION - AUDITORIA"]
[null,null,null,null,null,null,null,null,null,null,null,null,null,null,null,null,null,null,null,null,null,1524,1521,"CAPACITACION - SISTEMA DE BIBLIOTECAS"]
[null,null,null,null,null,null,null,null,null,null,null,null,null,null,null,null,null,null,null,null,null,1526,1521,"CAPACITACION - EDUCACION CONTINUADA"]
[null,null,null,null,null,null,null,null,null,null,null,null,null,null,null,null,null,null,null,null,null,1529,1513,"FONDO DE CAPACITACION - SECRETARIA GENERAL CONSOLIDADO"]
[null,null,null,null,null,null,null,null,null,null,null,null,null,null,null,null,null,null,null,null,null,1534,1533,"CAPACITACION - DIRECCION ADMINISTRATIVA"]
[null,null,null,null,null,null,null,null,null,null,null,null,null,null,null,null,null,null,null,null,null,1538,1533,"CAPACITACION - APOYO AL MEJORAMIENTO CONTINUO"]
[null,null,null,null,null,null,null,null,null,null,null,null,null,null,null,null,null,null,null,null,null,1539,1533,"CAPACITACION - SERVICIOS GENERALES"]
[null,null,null,null,null,null,null,null,null,null,null,null,null,null,null,null,null,null,null,null,null,1543,1541,"CAPACITACION - TESORERIA"]
[null,null,null,null,null,null,null,null,null,null,null,null,null,null,null,null,null,null,null,null,null,1548,1513,"CAPACITACION - DIRECCION TECNOLOGIA E INFORMACION"]
[null,null,null,null,null,null,null,null,null,null,null,null,null,null,null,null,null,null,null,null,null,1553,44,"DOCENCIA INMUNOLOGÍA"]
[null,null,null,null,null,null,null,null,null,null,null,null,null,null,null,null,null,null,null,null,null,1555,1181,"TRASLADOS BLOQUE Q"]
[null,null,null,null,null,null,null,null,null,null,null,null,null,null,null,null,null,null,null,null,null,1558,1459,"FONDO 25- FONDO PATRIMONIAL PARA APOYO FINANCIERO DE ESTUDIANTES"]
[null,null,null,null,null,null,null,null,null,null,null,null,null,null,null,null,null,null,null,null,null,1563,282,"CIFI CHAINA"]
[null,null,null,null,null,null,null,null,null,null,null,null,null,null,null,null,null,null,null,null,null,1567,1481,"OBRAS ADICIONALES TRASLADOS EDIFICIO J"]
[null,null,null,null,null,null,null,null,null,null,null,null,null,null,null,null,null,null,null,null,null,1568,1181,"EDIFICIO W INGENIERIA DE SISTEMAS"]
[null,null,null,null,null,null,null,null,null,null,null,null,null,null,null,null,null,null,null,null,null,1573,1950,"GASES DEL CARIBE"]
[null,null,null,null,null,null,null,null,null,null,null,null,null,null,null,null,null,null,null,null,null,1576,415,"ESPECIALIZACION PLANIFICACION Y ADMINISTRACION DEL DESARROLLO REGIONAL, CON O.T."]
[null,null,null,null,null,null,null,null,null,null,null,null,null,null,null,null,null,null,null,null,null,1582,1181,"REDELACION MOBILIARIO CAFETERIA CENTRAL"]
[null,null,null,null,null,null,null,null,null,null,null,null,null,null,null,null,null,null,null,null,null,1583,1513,"CAPACITACION - JARDIN INFANTIL"]
[null,null,null,null,null,null,null,null,null,null,null,null,null,null,null,null,null,null,null,null,null,1589,1481,"ARREGLO DEPARTAMENTO DE HISTORIA"]
[null,null,null,null,null,null,null,null,null,null,null,null,null,null,null,null,null,null,null,null,null,1592,421,"PLAN PARCIAL"]
[null,null,null,null,null,null,null,null,null,null,null,null,null,null,null,null,null,null,null,null,null,1596,341,"AUTOMATIZACION INDUSTRIAL -9"]
[null,null,null,null,null,null,null,null,null,null,null,null,null,null,null,null,null,null,null,null,null,1597,87,"FISICA POSGRADO"]
[null,null,null,null,null,null,null,null,null,null,null,null,null,null,null,null,null,null,null,null,null,1602,1342,"FONDO GENERAL DE APOYO FINANCIERO A ESTUDIANTES"]
[null,null,null,null,null,null,null,null,null,null,null,null,null,null,null,null,null,null,null,null,null,1605,2286,"CONVENIO MINISTERIO DE VIVIENDA - KFW"]
[null,null,null,null,null,null,null,null,null,null,null,null,null,null,null,null,null,null,null,null,null,1611,337,"ING. ELECTRICA ADMINISTRACION"]
[null,null,null,null,null,null,null,null,null,null,null,null,null,null,null,null,null,null,null,null,null,1612,99,"MATEMATICAS UED"]
[null,null,null,null,null,null,null,null,null,null,null,null,null,null,null,null,null,null,null,null,null,1618,1481,"SONIDO SALA DE CONCEJO NAVAS"]
[null,null,null,null,null,null,null,null,null,null,null,null,null,null,null,null,null,null,null,null,null,1621,42,"FONDO OVERHEAD"]
[null,null,null,null,null,null,null,null,null,null,null,null,null,null,null,null,null,null,null,null,null,1626,1963,"CIACUA - ACUAVALLE"]
[null,null,null,null,null,null,null,null,null,null,null,null,null,null,null,null,null,null,null,null,null,1627,2251,"ECAES - ING. CIVIL"]
[null,null,null,null,null,null,null,null,null,null,null,null,null,null,null,null,null,null,null,null,null,1631,2245,"ECAES - ING. QUIMICA"]
[null,null,null,null,null,null,null,null,null,null,null,null,null,null,null,null,null,null,null,null,null,1636,421,"IDCT"]
[null,null,null,null,null,null,null,null,null,null,null,null,null,null,null,null,null,null,null,null,null,1639,87,"MEDICION CUANTICA"]
[null,null,null,null,null,null,null,null,null,null,null,null,null,null,null,null,null,null,null,null,null,1641,1742,"SUBESTACION J-A-I-M CIMIC"]
[null,null,null,null,null,null,null,null,null,null,null,null,null,null,null,null,null,null,null,null,null,1646,1979,"COL - PIE INSENSIBLE"]
[null,null,null,null,null,null,null,null,null,null,null,null,null,null,null,null,null,null,null,null,null,1651,1649,"PROGRAMA DE CONSECUCION DE RECURSOS"]
[null,null,null,null,null,null,null,null,null,null,null,null,null,null,null,null,null,null,null,null,null,1655,53,"CDIA"]
[null,null,null,null,null,null,null,null,null,null,null,null,null,null,null,null,null,null,null,null,null,1656,244,"CIENCIA POLITICA EN EL NRG"]
[null,null,null,null,null,null,null,null,null,null,null,null,null,null,null,null,null,null,null,null,null,1660,244,"ALEMANIA COLOMBIA"]
[null,null,null,null,null,null,null,null,null,null,null,null,null,null,null,null,null,null,null,null,null,1665,122,"PROGRAMA SERVICIOS JURIDICOS NO REMUNERADOS"]
[null,null,null,null,null,null,null,null,null,null,null,null,null,null,null,null,null,null,null,null,null,1668,421,"PNUD"]
[null,null,null,null,null,null,null,null,null,null,null,null,null,null,null,null,null,null,null,null,null,1670,9998,"FACULTAD DE MEDICINA"]
[null,null,null,null,null,null,null,null,null,null,null,null,null,null,null,null,null,null,null,null,null,1675,439,"ESPECIALIZACION EN HISTORIA Y TEORIA DEL ARTE MODERNO Y CONTEMPORANEO"]
[null,null,null,null,null,null,null,null,null,null,null,null,null,null,null,null,null,null,null,null,null,1680,1145,"FONDO DE REPOSICION DECANATURA DE ARQUITECTURA"]
[null,null,null,null,null,null,null,null,null,null,null,null,null,null,null,null,null,null,null,null,null,1684,270,"DECANATURA ADMINISTRACION"]
[null,null,null,null,null,null,null,null,null,null,null,null,null,null,null,null,null,null,null,null,null,1685,3569,"MAESTRIA DE HISTORIA"]
[null,null,null,null,null,null,null,null,null,null,null,null,null,null,null,null,null,null,null,null,null,1689,4002,"FONDO INVESTIGACIONES"]
[null,null,null,null,null,null,null,null,null,null,null,null,null,null,null,null,null,null,null,null,null,1694,1701,"REMODELACION LABORATORIO DE HIDRAULICA"]
[null,null,null,null,null,null,null,null,null,null,null,null,null,null,null,null,null,null,null,null,null,1699,1964,"COLCIENCIAS ALCANTARILLADO DE CHIA"]
[null,null,null,null,null,null,null,null,null,null,null,null,null,null,null,null,null,null,null,null,null,1701,647,"OPTIMIZACION - CONSOLIDADOR 2004"]
[null,null,null,null,null,null,null,null,null,null,null,null,null,null,null,null,null,null,null,null,null,1704,1705,"BECAS SCHLUMBERGER SURENCO"]
[null,null,null,null,null,null,null,null,null,null,null,null,null,null,null,null,null,null,null,null,null,1709,270,"PREGRADO"]
[null,null,null,null,null,null,null,null,null,null,null,null,null,null,null,null,null,null,null,null,null,1713,1647,"INSTITUTE OF INDUSTRIAL ENGINEERS"]
[null,null,null,null,null,null,null,null,null,null,null,null,null,null,null,null,null,null,null,null,null,1714,1147,"FONDO DE REPOSICIÓN PSICOLOGIA"]
[null,null,null,null,null,null,null,null,null,null,null,null,null,null,null,null,null,null,null,null,null,1718,3906,"POLITICAS PUBLICAS EN EDUCACION"]
[null,null,null,null,null,null,null,null,null,null,null,null,null,null,null,null,null,null,null,null,null,1723,1342,"FONDO DORA ROTHLISBERGER"]
[null,null,null,null,null,null,null,null,null,null,null,null,null,null,null,null,null,null,null,null,null,1728,244,"CONGRESO VISIBLE CANADA"]
[null,null,null,null,null,null,null,null,null,null,null,null,null,null,null,null,null,null,null,null,null,1730,647,"MARIO LASERNA - CONSOLIDADOR"]
[null,null,null,null,null,null,null,null,null,null,null,null,null,null,null,null,null,null,null,null,null,1733,1701,"EDIFICIO FRANCO P2 Y P3 PSICOLOGIA"]
[null,null,null,null,null,null,null,null,null,null,null,null,null,null,null,null,null,null,null,null,null,1738,2531,"CENTRO CULTURAL Y DEPORTIVO OBRA"]
[null,null,null,null,null,null,null,null,null,null,null,null,null,null,null,null,null,null,null,null,null,1740,1729,"PLANTA FISICA ED.BLOQUE Q"]
[null,null,null,null,null,null,null,null,null,null,null,null,null,null,null,null,null,null,null,null,null,1743,1608,"TECNOLOGIA ED,BLOQUE J"]
[null,null,null,null,null,null,null,null,null,null,null,null,null,null,null,null,null,null,null,null,null,1748,1741,"BLOQUE Q TOTAL"]
[null,null,null,null,null,null,null,null,null,null,null,null,null,null,null,null,null,null,null,null,null,1752,2219,"BLOQUE A E I"]
[null,null,null,null,null,null,null,null,null,null,null,null,null,null,null,null,null,null,null,null,null,1757,1992,"COLCIENCIAS SISTEMAS CORPORATIVOS"]
[null,null,null,null,null,null,null,null,null,null,null,null,null,null,null,null,null,null,null,null,null,1758,93,"PROCESOS DIFRACTIVOS"]
[null,null,null,null,null,null,null,null,null,null,null,null,null,null,null,null,null,null,null,null,null,1764,137,"EMPLEO Y JUVENTUD"]
[null,null,null,null,null,null,null,null,null,null,null,null,null,null,null,null,null,null,null,null,null,1767,1462,"FONDO DE APOYO A PROFESORES ASISTENTES"]
[null,null,null,null,null,null,null,null,null,null,null,null,null,null,null,null,null,null,null,null,null,1769,2428,"COLEGIOS SLB"]
[null,null,null,null,null,null,null,null,null,null,null,null,null,null,null,null,null,null,null,null,null,1772,421,"CAF"]
[null,null,null,null,null,null,null,null,null,null,null,null,null,null,null,null,null,null,null,null,null,1777,415,"ESPECIALIZACION OT DU 2004-2005"]
[null,null,null,null,null,null,null,null,null,null,null,null,null,null,null,null,null,null,null,null,null,1781,244,"CONGRESO VISIBLE NED - 2004"]
[null,null,null,null,null,null,null,null,null,null,null,null,null,null,null,null,null,null,null,null,null,1786,1701,"ADECUACIONES BLOQUE M1"]
[null,null,null,null,null,null,null,null,null,null,null,null,null,null,null,null,null,null,null,null,null,1787,3898,"MBA - BOLIVIA"]
[null,null,null,null,null,null,null,null,null,null,null,null,null,null,null,null,null,null,null,null,null,1793,1701,"GRANAHORRAR"]
[null,null,null,null,null,null,null,null,null,null,null,null,null,null,null,null,null,null,null,null,null,1796,1795,"CONVENIO UNIVERSIDAD MINUTO DE DIOS"]
[null,null,null,null,null,null,null,null,null,null,null,null,null,null,null,null,null,null,null,null,null,1801,1927,"COLCIENCIAS PNPC"]
[null,null,null,null,null,null,null,null,null,null,null,null,null,null,null,null,null,null,null,null,null,1802,1483,"FACULTAD DE MEDICINA FONDO GENERAL"]
[null,null,null,null,null,null,null,null,null,null,null,null,null,null,null,null,null,null,null,null,null,1806,1670,"MEDICINA INVESTIGACION"]
[null,null,null,null,null,null,null,null,null,null,null,null,null,null,null,null,null,null,null,null,null,1811,3903,"E-BUSINESS GDLN"]
[null,null,null,null,null,null,null,null,null,null,null,null,null,null,null,null,null,null,null,null,null,1814,1338,"EDIFICIO MARIO LASERNA"]
[null,null,null,null,null,null,null,null,null,null,null,null,null,null,null,null,null,null,null,null,null,1816,244,"SEGURIDAD TRANSREGIONAL FORD"]
[null,null,null,null,null,null,null,null,null,null,null,null,null,null,null,null,null,null,null,null,null,1821,1820,"JAIRO ESCOBAR"]
[null,null,null,null,null,null,null,null,null,null,null,null,null,null,null,null,null,null,null,null,null,1826,1972,"E.A.A.B. MICROORGANISMOS"]
[null,null,null,null,null,null,null,null,null,null,null,null,null,null,null,null,null,null,null,null,null,1830,1926,"GUIA ACCI"]
[null,null,null,null,null,null,null,null,null,null,null,null,null,null,null,null,null,null,null,null,null,1831,1337,"DONACIONES PARA EL DESARROLLO DOCENTE Y ACADEMICO"]
[null,null,null,null,null,null,null,null,null,null,null,null,null,null,null,null,null,null,null,null,null,1835,341,"AUTOMATIZACION INDUSTRIAL 11"]
[null,null,null,null,null,null,null,null,null,null,null,null,null,null,null,null,null,null,null,null,null,1840,1820,"PABLO FIGUEROA"]
[null,null,null,null,null,null,null,null,null,null,null,null,null,null,null,null,null,null,null,null,null,1843,1993,"CIFI - TIEMPO"]
[null,null,null,null,null,null,null,null,null,null,null,null,null,null,null,null,null,null,null,null,null,1845,2283,"PROYECTO INVESTIGACION R RUBIO"]
[null,null,null,null,null,null,null,null,null,null,null,null,null,null,null,null,null,null,null,null,null,1850,208,"DONACION KETTERING FOUNDATION 2004"]
[null,null,null,null,null,null,null,null,null,null,null,null,null,null,null,null,null,null,null,null,null,1855,1925,"UNIANDES - CODENSA"]
[null,null,null,null,null,null,null,null,null,null,null,null,null,null,null,null,null,null,null,null,null,1859,167,"PLAN INVESTIGACION J. TOVAR"]
[null,null,null,null,null,null,null,null,null,null,null,null,null,null,null,null,null,null,null,null,null,1860,167,"PLAN INVESTIGACION M. ESLAVA"]
[null,null,null,null,null,null,null,null,null,null,null,null,null,null,null,null,null,null,null,null,null,1865,154,"ECAES ECONOMIA"]
[null,null,null,null,null,null,null,null,null,null,null,null,null,null,null,null,null,null,null,null,null,1869,3390,"PROYECTO INVESTIGACION L. MORALES"]
[null,null,null,null,null,null,null,null,null,null,null,null,null,null,null,null,null,null,null,null,null,1874,167,"REFORMA LABORAL Y AJUSTE SECTOR SOCIAL"]
[null,null,null,null,null,null,null,null,null,null,null,null,null,null,null,null,null,null,null,null,null,1877,167,"CONVENIO DANE"]
[null,null,null,null,null,null,null,null,null,null,null,null,null,null,null,null,null,null,null,null,null,1879,1820,"LUIS CAMACHO"]
[null,null,null,null,null,null,null,null,null,null,null,null,null,null,null,null,null,null,null,null,null,1884,2429,"PROY.COLCIENCIAS - COMPETENCIAS CIUDADANAS"]
[null,null,null,null,null,null,null,null,null,null,null,null,null,null,null,null,null,null,null,null,null,1888,549,"CARNETIZACION"]
[null,null,null,null,null,null,null,null,null,null,null,null,null,null,null,null,null,null,null,null,null,1889,53,"CARTAGENA"]
[null,null,null,null,null,null,null,null,null,null,null,null,null,null,null,null,null,null,null,null,null,1894,442,"MAESTRIA EN LITERATURA"]
[null,null,null,null,null,null,null,null,null,null,null,null,null,null,null,null,null,null,null,null,null,1898,282,"CONSOLIDADO INVESTIGACION CIVIL Y AMBIENTAL"]
[null,null,null,null,null,null,null,null,null,null,null,null,null,null,null,null,null,null,null,null,null,1903,282,"GUIA"]
[null,null,null,null,null,null,null,null,null,null,null,null,null,null,null,null,null,null,null,null,null,1906,1896,"GRUPO LIDIE"]
[null,null,null,null,null,null,null,null,null,null,null,null,null,null,null,null,null,null,null,null,null,1908,1896,"GRUPO TICSW"]
[null,null,null,null,null,null,null,null,null,null,null,null,null,null,null,null,null,null,null,null,null,1913,1898,"GRUPO CIMOC"]
[null,null,null,null,null,null,null,null,null,null,null,null,null,null,null,null,null,null,null,null,null,1915,1898,"GRUPO GIIA"]
[null,null,null,null,null,null,null,null,null,null,null,null,null,null,null,null,null,null,null,null,null,1918,1900,"GRUPO PYLO"]
[null,null,null,null,null,null,null,null,null,null,null,null,null,null,null,null,null,null,null,null,null,1923,1902,"ASOCOLFLORES"]
[null,null,null,null,null,null,null,null,null,null,null,null,null,null,null,null,null,null,null,null,null,1927,1903,"GUIA INVESTIGACION"]
[null,null,null,null,null,null,null,null,null,null,null,null,null,null,null,null,null,null,null,null,null,1932,1905,"RED DE EMPRESAS"]
[null,null,null,null,null,null,null,null,null,null,null,null,null,null,null,null,null,null,null,null,null,1933,1906,"LIDIE ADMINISTRACION"]
[null,null,null,null,null,null,null,null,null,null,null,null,null,null,null,null,null,null,null,null,null,1939,1289,"TESO ADMINISTRACION"]
[null,null,null,null,null,null,null,null,null,null,null,null,null,null,null,null,null,null,null,null,null,1942,1908,"TICSW ADMINISTRACION"]
[null,null,null,null,null,null,null,null,null,null,null,null,null,null,null,null,null,null,null,null,null,1944,1908,"TICSW INVESTIGACIONES"]
[null,null,null,null,null,null,null,null,null,null,null,null,null,null,null,null,null,null,null,null,null,1947,1909,"SER INVESTIGACION"]
[null,null,null,null,null,null,null,null,null,null,null,null,null,null,null,null,null,null,null,null,null,1952,1911,"GEST ADMINISTRACION"]
[null,null,null,null,null,null,null,null,null,null,null,null,null,null,null,null,null,null,null,null,null,1956,1496,"CMUA CONSULTORIA"]
[null,null,null,null,null,null,null,null,null,null,null,null,null,null,null,null,null,null,null,null,null,1961,1912,"SIN GRUPO CONSULTORIA"]
[null,null,null,null,null,null,null,null,null,null,null,null,null,null,null,null,null,null,null,null,null,1962,772,"CIACUA ADMINISTRACION"]
[null,null,null,null,null,null,null,null,null,null,null,null,null,null,null,null,null,null,null,null,null,1968,1914,"ESTRUCTURA Y GEOTECNIA ADMINISTRACION"]
[null,null,null,null,null,null,null,null,null,null,null,null,null,null,null,null,null,null,null,null,null,1971,1915,"G.I.I.A. ADMINISTRACION"]
[null,null,null,null,null,null,null,null,null,null,null,null,null,null,null,null,null,null,null,null,null,1976,1916,"GERENCIA DE PROYECTOS INVESTIGACION"]
[null,null,null,null,null,null,null,null,null,null,null,null,null,null,null,null,null,null,null,null,null,1977,1264,"BIOMEDICA ADMINISTRACION"]
[null,null,null,null,null,null,null,null,null,null,null,null,null,null,null,null,null,null,null,null,null,1981,1052,"CONVERSION DE ENERGIA CONSULTORIA"]
[null,null,null,null,null,null,null,null,null,null,null,null,null,null,null,null,null,null,null,null,null,1986,1917,"MECANICA SIN GRUPO CONSULTORIA"]
[null,null,null,null,null,null,null,null,null,null,null,null,null,null,null,null,null,null,null,null,null,1990,1919,"COPA ADMINISTRACION"]
[null,null,null,null,null,null,null,null,null,null,null,null,null,null,null,null,null,null,null,null,null,1991,1919,"COPA CONSULTORIA"]
[null,null,null,null,null,null,null,null,null,null,null,null,null,null,null,null,null,null,null,null,null,1996,1934,"PROYECTOS VARIOS"]
[null,null,null,null,null,null,null,null,null,null,null,null,null,null,null,null,null,null,null,null,null,1999,1939,"ADMINISTRACION TESO"]
[null,null,null,null,null,null,null,null,null,null,null,null,null,null,null,null,null,null,null,null,null,2005,1946,"PROYECTOS VARIOS SER"]
[null,null,null,null,null,null,null,null,null,null,null,null,null,null,null,null,null,null,null,null,null,2006,1947,"SER VARIOS"]
[null,null,null,null,null,null,null,null,null,null,null,null,null,null,null,null,null,null,null,null,null,2010,1951,"COLCIENCIAS VARIOS POTENCIA Y ENERGIA"]
[null,null,null,null,null,null,null,null,null,null,null,null,null,null,null,null,null,null,null,null,null,2015,1957,"COLCIENCIAS VARIOS CMUA"]
[null,null,null,null,null,null,null,null,null,null,null,null,null,null,null,null,null,null,null,null,null,2019,93,"SISTEMAS MESOSCOPICOS"]
[null,null,null,null,null,null,null,null,null,null,null,null,null,null,null,null,null,null,null,null,null,2020,1938,"COLCIENCIAS VARIOS CIFI INFORMATICA"]
[null,null,null,null,null,null,null,null,null,null,null,null,null,null,null,null,null,null,null,null,null,2025,1963,"PROYECTOS VARIOS CIACUA"]
[null,null,null,null,null,null,null,null,null,null,null,null,null,null,null,null,null,null,null,null,null,2028,1967,"COLCIENCIAS VARIOS CIMOC"]
[null,null,null,null,null,null,null,null,null,null,null,null,null,null,null,null,null,null,null,null,null,2034,1976,"COLCIENCIAS VARIOS GERENCIA DE PROYECTOS"]
[null,null,null,null,null,null,null,null,null,null,null,null,null,null,null,null,null,null,null,null,null,2035,1977,"ADMINISTRACION BIOMEDICA"]
[null,null,null,null,null,null,null,null,null,null,null,null,null,null,null,null,null,null,null,null,null,2040,1982,"COLCIENCIAS VARIOS CONVERSION DE ENERGIA"]
[null,null,null,null,null,null,null,null,null,null,null,null,null,null,null,null,null,null,null,null,null,2044,1986,"PROYECTOS VARIOS MECANICA SIN GRUPO"]
[null,null,null,null,null,null,null,null,null,null,null,null,null,null,null,null,null,null,null,null,null,2049,1991,"PROYECTOS VARIOS COPA"]
[null,null,null,null,null,null,null,null,null,null,null,null,null,null,null,null,null,null,null,null,null,2052,1902,"E.A.A.B"]
[null,null,null,null,null,null,null,null,null,null,null,null,null,null,null,null,null,null,null,null,null,2054,421,"PROYECTOS 2005"]
[null,null,null,null,null,null,null,null,null,null,null,null,null,null,null,null,null,null,null,null,null,2059,1820,"GONZALO MEJIA"]
[null,null,null,null,null,null,null,null,null,null,null,null,null,null,null,null,null,null,null,null,null,2061,1820,"CLAUDIA GONZALEZ"]
[null,null,null,null,null,null,null,null,null,null,null,null,null,null,null,null,null,null,null,null,null,2064,2864,"FEGV MBA"]
[null,null,null,null,null,null,null,null,null,null,null,null,null,null,null,null,null,null,null,null,null,2069,1806,"INVESTIGACION RICKETTSIAS"]
[null,null,null,null,null,null,null,null,null,null,null,null,null,null,null,null,null,null,null,null,null,2073,244,"VIH CARTAGENA"]
[null,null,null,null,null,null,null,null,null,null,null,null,null,null,null,null,null,null,null,null,null,2078,2284,"CUADERNOS AZULES"]
[null,null,null,null,null,null,null,null,null,null,null,null,null,null,null,null,null,null,null,null,null,2081,1684,"FONDO MOX CONSOLIDADO"]
[null,null,null,null,null,null,null,null,null,null,null,null,null,null,null,null,null,null,null,null,null,2083,103,"JOVENES INVESTIGADORES MATEMATICAS"]
[null,null,null,null,null,null,null,null,null,null,null,null,null,null,null,null,null,null,null,null,null,2088,2092,"FONDO DE BECAS ALIANZA EDUCATIVA"]
[null,null,null,null,null,null,null,null,null,null,null,null,null,null,null,null,null,null,null,null,null,2090,1979,"ARTERIA CAROTIDA II"]
[null,null,null,null,null,null,null,null,null,null,null,null,null,null,null,null,null,null,null,null,null,2093,1984,"COLCIENCIAS PELICULAS"]
[null,null,null,null,null,null,null,null,null,null,null,null,null,null,null,null,null,null,null,null,null,2098,647,"OPTIMIZACION - CONSOLIDADOR 2005"]
[null,null,null,null,null,null,null,null,null,null,null,null,null,null,null,null,null,null,null,null,null,2102,470,"FONDO DOTACION DE BIBLIOTECAS"]
[null,null,null,null,null,null,null,null,null,null,null,null,null,null,null,null,null,null,null,null,null,2107,2102,"FONDO DOTACION BIBLIOTECA ECONOMIA"]
[null,null,null,null,null,null,null,null,null,null,null,null,null,null,null,null,null,null,null,null,null,2108,2102,"FONDO DOTACION BIBLIOTECA CIENCIAS SOCIALES"]
[null,null,null,null,null,null,null,null,null,null,null,null,null,null,null,null,null,null,null,null,null,2112,2102,"FONDO DOTACION BIBLIOTECA MEDICINA"]
[null,null,null,null,null,null,null,null,null,null,null,null,null,null,null,null,null,null,null,null,null,2117,167,"ACTIVIDADES DE INVESTIGACION FABIO SANCHEZ"]
[null,null,null,null,null,null,null,null,null,null,null,null,null,null,null,null,null,null,null,null,null,2119,99,"ESCUELA 2005"]
[null,null,null,null,null,null,null,null,null,null,null,null,null,null,null,null,null,null,null,null,null,2122,159,"ESPECIALIZACION EN ECONOMIA SOCIAL"]
[null,null,null,null,null,null,null,null,null,null,null,null,null,null,null,null,null,null,null,null,null,2127,149,"CONCEJO ESTUDIANTIL DE ECONOMIA"]
[null,null,null,null,null,null,null,null,null,null,null,null,null,null,null,null,null,null,null,null,null,2131,1761,"DISEÑO EDUCACION CONTINUADA"]
[null,null,null,null,null,null,null,null,null,null,null,null,null,null,null,null,null,null,null,null,null,2136,2098,"ADECUACION BLOQUE Y SOTANO - MEDICINA"]
[null,null,null,null,null,null,null,null,null,null,null,null,null,null,null,null,null,null,null,null,null,2137,42,"APOYO COMITE I & P"]
[null,null,null,null,null,null,null,null,null,null,null,null,null,null,null,null,null,null,null,null,null,2141,1806,"MODELADO RIÑON 3D"]
[null,null,null,null,null,null,null,null,null,null,null,null,null,null,null,null,null,null,null,null,null,2146,1806,"NOVARTIS CONSULTORIA"]
[null,null,null,null,null,null,null,null,null,null,null,null,null,null,null,null,null,null,null,null,null,2151,2219,"ADECUACIONES MENORES DTI"]
[null,null,null,null,null,null,null,null,null,null,null,null,null,null,null,null,null,null,null,null,null,2153,2219,"EDIFICIO LIGA - EQUIPOS DE TECNOLOGIA DTI"]
[null,null,null,null,null,null,null,null,null,null,null,null,null,null,null,null,null,null,null,null,null,2156,2219,"CAMPITO V - EQUIPOS DE TECNOLOGIA DTI"]
[null,null,null,null,null,null,null,null,null,null,null,null,null,null,null,null,null,null,null,null,null,2161,2159,"IMAGINE CONSULTORIA"]
[null,null,null,null,null,null,null,null,null,null,null,null,null,null,null,null,null,null,null,null,null,2165,1954,"COLCIENCIAS VARIOS GEST"]
[null,null,null,null,null,null,null,null,null,null,null,null,null,null,null,null,null,null,null,null,null,2166,1966,"PROYECTO MUNDO AVENTURA"]
[null,null,null,null,null,null,null,null,null,null,null,null,null,null,null,null,null,null,null,null,null,2171,1968,"ADMINISTRACION ESTRUCTURA Y GEOTECNIA"]
[null,null,null,null,null,null,null,null,null,null,null,null,null,null,null,null,null,null,null,null,null,2174,1969,"ALFA"]
[null,null,null,null,null,null,null,null,null,null,null,null,null,null,null,null,null,null,null,null,null,2180,1975,"CIGEC"]
[null,null,null,null,null,null,null,null,null,null,null,null,null,null,null,null,null,null,null,null,null,2182,1972,"EPFL - GOBIERNO SUIZO"]
[null,null,null,null,null,null,null,null,null,null,null,null,null,null,null,null,null,null,null,null,null,2185,2184,"ADMINISTRACION TRANSPORTES"]
[null,null,null,null,null,null,null,null,null,null,null,null,null,null,null,null,null,null,null,null,null,2190,1984,"COLCIENCIAS MATRIZ DE PVC REFORZADO"]
[null,null,null,null,null,null,null,null,null,null,null,null,null,null,null,null,null,null,null,null,null,2194,1992,"COLCIENCIAS VARIOS COPA"]
[null,null,null,null,null,null,null,null,null,null,null,null,null,null,null,null,null,null,null,null,null,2195,282,"CONSOLIDADO INVESTIGACION QUIMICA"]
[null,null,null,null,null,null,null,null,null,null,null,null,null,null,null,null,null,null,null,null,null,2200,2201,"DIRECCION DE INFRAESTRUCTURA Y LABORATORIO"]
[null,null,null,null,null,null,null,null,null,null,null,null,null,null,null,null,null,null,null,null,null,2203,167,"MODELOS CONFIS"]
[null,null,null,null,null,null,null,null,null,null,null,null,null,null,null,null,null,null,null,null,null,2209,2428,"PEQUEÑOS CIENTIFICOS TALLER DE FORMACION"]
[null,null,null,null,null,null,null,null,null,null,null,null,null,null,null,null,null,null,null,null,null,2210,1950,"PROYECTO ESTRATEGICO Y COMPETITIVIDAD"]
[null,null,null,null,null,null,null,null,null,null,null,null,null,null,null,null,null,null,null,null,null,2215,1760,"SERVICIOS ARQUITECTURA"]
[null,null,null,null,null,null,null,null,null,null,null,null,null,null,null,null,null,null,null,null,null,2219,647,"OPTIMIZACION CONSOLIDADOR DTI"]
[null,null,null,null,null,null,null,null,null,null,null,null,null,null,null,null,null,null,null,null,null,2224,1969,"RELLENO FLUIDO"]
[null,null,null,null,null,null,null,null,null,null,null,null,null,null,null,null,null,null,null,null,null,2227,167,"IMPLICACIONES ECONOMICAS DE LA PRODUCCION DE HIDROCARBUROS"]
[null,null,null,null,null,null,null,null,null,null,null,null,null,null,null,null,null,null,null,null,null,2229,2219,"CASA ESPINOSA, EQUIPOS DE TECNOLOGIA - DTI"]
[null,null,null,null,null,null,null,null,null,null,null,null,null,null,null,null,null,null,null,null,null,2234,137,"COSTUMBRE MERCANTL"]
[null,null,null,null,null,null,null,null,null,null,null,null,null,null,null,null,null,null,null,null,null,2236,93,"PUNTOS CUANTICOS INTERACTUANTES"]
[null,null,null,null,null,null,null,null,null,null,null,null,null,null,null,null,null,null,null,null,null,2239,1744,"EQUIPOS DE LABORATORIO EDIFICIO MARIO LASERNA"]
[null,null,null,null,null,null,null,null,null,null,null,null,null,null,null,null,null,null,null,null,null,2244,2284,"CUADERNOS AZULES VOL 2"]
[null,null,null,null,null,null,null,null,null,null,null,null,null,null,null,null,null,null,null,null,null,2248,167,"REFINERIA Y PLANTA OLEFINAS EN CARTAGENA"]
[null,null,null,null,null,null,null,null,null,null,null,null,null,null,null,null,null,null,null,null,null,2253,2875,"EXPOPYME 5"]
[null,null,null,null,null,null,null,null,null,null,null,null,null,null,null,null,null,null,null,null,null,2256,1928,"FONDO DE INVESTIGACION 2005"]
[null,null,null,null,null,null,null,null,null,null,null,null,null,null,null,null,null,null,null,null,null,2258,397,"ESPECIALIZACION EN SEGURIDAD DE LA INFORMACION"]
[null,null,null,null,null,null,null,null,null,null,null,null,null,null,null,null,null,null,null,null,null,2264,415,"ESPECIALIZACION PADRE DIARIA 2006"]
[null,null,null,null,null,null,null,null,null,null,null,null,null,null,null,null,null,null,null,null,null,2267,1965,"CIMOC II - ADMINISTRACION"]
[null,null,null,null,null,null,null,null,null,null,null,null,null,null,null,null,null,null,null,null,null,2269,1852,"JALLA 2006"]
[null,null,null,null,null,null,null,null,null,null,null,null,null,null,null,null,null,null,null,null,null,2274,341,"ESP.EN TRANSMISION Y DISTRIBUCION 14"]
[null,null,null,null,null,null,null,null,null,null,null,null,null,null,null,null,null,null,null,null,null,2279,2278,"LINEA DE INVEST. G.T. REFINACION DE PETROLEOS"]
[null,null,null,null,null,null,null,null,null,null,null,null,null,null,null,null,null,null,null,null,null,2283,33,"PROYECTOS JOVENES INVESTIGADORES ARQUITECTURA"]
[null,null,null,null,null,null,null,null,null,null,null,null,null,null,null,null,null,null,null,null,null,2284,33,"GRUPO DE INVESTIGACION ARQUITECTURA ACE"]
[null,null,null,null,null,null,null,null,null,null,null,null,null,null,null,null,null,null,null,null,null,2288,2285,"CONSTRUCCION DE LO PUBLICO INVESTIGACIONES Y CONSULTORIAS"]
[null,null,null,null,null,null,null,null,null,null,null,null,null,null,null,null,null,null,null,null,null,2293,1760,"ACREDITACION PROGRAMA DE ARQUITECTURA"]
[null,null,null,null,null,null,null,null,null,null,null,null,null,null,null,null,null,null,null,null,null,2296,379,"MECANICA PREGRADO CONSOLIDADOR"]
[null,null,null,null,null,null,null,null,null,null,null,null,null,null,null,null,null,null,null,null,null,2298,379,"ING. MECANICA LABORATORIOS"]
[null,null,null,null,null,null,null,null,null,null,null,null,null,null,null,null,null,null,null,null,null,2303,167,"MERCADO DE SUELO Y DE VIVIENDA EN BUCARAMANGA Y CARTAGENA"]
[null,null,null,null,null,null,null,null,null,null,null,null,null,null,null,null,null,null,null,null,null,2308,1926,"PROYECTO GUIA - SECRETARIA DE SALUD"]
[null,null,null,null,null,null,null,null,null,null,null,null,null,null,null,null,null,null,null,null,null,2312,2286,"PUBLICACION CIUDADES URGENTES"]
[null,null,null,null,null,null,null,null,null,null,null,null,null,null,null,null,null,null,null,null,null,2313,2285,"PUBLICACION VIAJES POR LA CIUDAD"]
[null,null,null,null,null,null,null,null,null,null,null,null,null,null,null,null,null,null,null,null,null,2317,2098,"OTRAS OBRAS OPTIMIZACION - 2005"]
[null,null,null,null,null,null,null,null,null,null,null,null,null,null,null,null,null,null,null,null,null,2322,415,"ORGANIZACION -RESPONSABILIDAD SOCIAL Y DESARROLLO 2006-2007"]
[null,null,null,null,null,null,null,null,null,null,null,null,null,null,null,null,null,null,null,null,null,2327,2546,"CONTROL DE ACCESO PORTERIAS"]
[null,null,null,null,null,null,null,null,null,null,null,null,null,null,null,null,null,null,null,null,null,2329,124,"DERECHO PUBLICO"]
[null,null,null,null,null,null,null,null,null,null,null,null,null,null,null,null,null,null,null,null,null,2332,124,"DERECHO INTERNACIONAL"]
[null,null,null,null,null,null,null,null,null,null,null,null,null,null,null,null,null,null,null,null,null,2337,53,"NOOA"]
[null,null,null,null,null,null,null,null,null,null,null,null,null,null,null,null,null,null,null,null,null,2341,137,"LILIANA OBREGON - PAIPA"]
[null,null,null,null,null,null,null,null,null,null,null,null,null,null,null,null,null,null,null,null,null,2342,1966,"PROYECTO IBAGUE"]
[null,null,null,null,null,null,null,null,null,null,null,null,null,null,null,null,null,null,null,null,null,2347,53,"KEW"]
[null,null,null,null,null,null,null,null,null,null,null,null,null,null,null,null,null,null,null,null,null,2350,2814,"FONDO PROGRAMA QUIERO ESTUDIAR"]
[null,null,null,null,null,null,null,null,null,null,null,null,null,null,null,null,null,null,null,null,null,2356,2098,"REMODELACION DIRECCION JURIDICA - 05"]
[null,null,null,null,null,null,null,null,null,null,null,null,null,null,null,null,null,null,null,null,null,2358,167,"CAUSAS DE LA DESERCION ESCOLAR"]
[null,null,null,null,null,null,null,null,null,null,null,null,null,null,null,null,null,null,null,null,null,2361,1972,"EMGESA 3RA ETAPA"]
[null,null,null,null,null,null,null,null,null,null,null,null,null,null,null,null,null,null,null,null,null,2366,2284,"SEGUIMIENTO EDIFICIO MARIO LASERNA"]
[null,null,null,null,null,null,null,null,null,null,null,null,null,null,null,null,null,null,null,null,null,2370,167,"PLAN INVESTIGACION A. RIASCOS"]
[null,null,null,null,null,null,null,null,null,null,null,null,null,null,null,null,null,null,null,null,null,2371,167,"PLAN INVESTIGACION J. MALDONADO"]
[null,null,null,null,null,null,null,null,null,null,null,null,null,null,null,null,null,null,null,null,null,2376,2375,"ANTROPOLOGIA - DONACION PROFICOL EL CARMEN"]
[null,null,null,null,null,null,null,null,null,null,null,null,null,null,null,null,null,null,null,null,null,2379,2377,"ADECUACIONES LABORATORIO DE INMUNOLOGIA - 06"]
[null,null,null,null,null,null,null,null,null,null,null,null,null,null,null,null,null,null,null,null,null,2385,137,"ESTATUTOS Y REGLAMENTOS DE LAS UNIVERSIDADES PUBLICAS"]
[null,null,null,null,null,null,null,null,null,null,null,null,null,null,null,null,null,null,null,null,null,2386,1969,"CARBONES DEL CESAR"]
[null,null,null,null,null,null,null,null,null,null,null,null,null,null,null,null,null,null,null,null,null,2392,2377,"ADECUACIONES LABORATORIO DE ERGONOMIA - DISEÑO INDUSTRIAL 06"]
[null,null,null,null,null,null,null,null,null,null,null,null,null,null,null,null,null,null,null,null,null,2395,1966,"PROYECTO DPAE-MICROZONIFICACION SISMICA"]
[null,null,null,null,null,null,null,null,null,null,null,null,null,null,null,null,null,null,null,null,null,2400,1973,"CALIDAD DEL AIRE EN NIÑOS"]
[null,null,null,null,null,null,null,null,null,null,null,null,null,null,null,null,null,null,null,null,null,2401,1928,"FONDO DE INVESTIGACION 2006"]
[null,null,null,null,null,null,null,null,null,null,null,null,null,null,null,null,null,null,null,null,null,2405,2399,"CALIDAD DEL AIRE INVESTIGACION"]
[null,null,null,null,null,null,null,null,null,null,null,null,null,null,null,null,null,null,null,null,null,2410,2377,"REMODELACION NOVIICIADO-06"]
[null,null,null,null,null,null,null,null,null,null,null,null,null,null,null,null,null,null,null,null,null,2413,2377,"REMODELACION OFICINAS ARQUITECTURA Y CIFAD-06"]
[null,null,null,null,null,null,null,null,null,null,null,null,null,null,null,null,null,null,null,null,null,2415,1963,"PROYECTO BANCO MUNDIAL A2"]
[null,null,null,null,null,null,null,null,null,null,null,null,null,null,null,null,null,null,null,null,null,2421,164,"ACTIVIDADES DE INVESTIGACION M. LLORENTE"]
[null,null,null,null,null,null,null,null,null,null,null,null,null,null,null,null,null,null,null,null,null,2424,1937,"INFORMATICA FENALCO"]
[null,null,null,null,null,null,null,null,null,null,null,null,null,null,null,null,null,null,null,null,null,2429,2426,"INVESTIGACION LIDIE - PEQUEÑOS CIENTIFICOS"]
[null,null,null,null,null,null,null,null,null,null,null,null,null,null,null,null,null,null,null,null,null,2430,3656,"RED SEKN"]
[null,null,null,null,null,null,null,null,null,null,null,null,null,null,null,null,null,null,null,null,null,2434,124,"PLANES ESTRATEGICOS AREAS DE PREGRADO"]
[null,null,null,null,null,null,null,null,null,null,null,null,null,null,null,null,null,null,null,null,null,2439,647,"ADECUACION BLOQUE Y SOTANO-MEDICINA-2006"]
[null,null,null,null,null,null,null,null,null,null,null,null,null,null,null,null,null,null,null,null,null,2442,366,"ING. INDUSTRIAL ESPECIALIZACION EN SISTEMAS INFORMACION ESIO"]
[null,null,null,null,null,null,null,null,null,null,null,null,null,null,null,null,null,null,null,null,null,2444,2442,"ESPECIALIZACION EN SISTEMAS INFORMACION PROM 18"]
[null,null,null,null,null,null,null,null,null,null,null,null,null,null,null,null,null,null,null,null,null,2449,366,"ING. INDUSTRIAL ESPECIALIZACION EN GERENCIA DE EMPRESAS TELECOMUNICAC. GERTEL"]
[null,null,null,null,null,null,null,null,null,null,null,null,null,null,null,null,null,null,null,null,null,2454,2286,"MESA NACIONAL DE DIALOGOS SOBRE REASENTAMIENTOS"]
[null,null,null,null,null,null,null,null,null,null,null,null,null,null,null,null,null,null,null,null,null,2458,167,"HOGARES  COMUNITARIOS"]
[null,null,null,null,null,null,null,null,null,null,null,null,null,null,null,null,null,null,null,null,null,2459,1300,"ESPECIALIZACION CIUDAD Y ARQUITECTURA"]
[null,null,null,null,null,null,null,null,null,null,null,null,null,null,null,null,null,null,null,null,null,2463,341,"TELEMATICA - 21"]
[null,null,null,null,null,null,null,null,null,null,null,null,null,null,null,null,null,null,null,null,null,2468,3389,"GRUPO DE INVESTIGACION DISEÑO PRODUCTO"]
[null,null,null,null,null,null,null,null,null,null,null,null,null,null,null,null,null,null,null,null,null,2473,2472,"DIPS PROYECTOS"]
[null,null,null,null,null,null,null,null,null,null,null,null,null,null,null,null,null,null,null,null,null,2475,2474,"PEDAGOGIA PROYECTOS"]
[null,null,null,null,null,null,null,null,null,null,null,null,null,null,null,null,null,null,null,null,null,2478,1342,"FONDO HORIZONTES"]
[null,null,null,null,null,null,null,null,null,null,null,null,null,null,null,null,null,null,null,null,null,2483,244,"CONGRESO VISIBLE NED 2006"]
[null,null,null,null,null,null,null,null,null,null,null,null,null,null,null,null,null,null,null,null,null,2487,1926,"GUIA ITEB"]
[null,null,null,null,null,null,null,null,null,null,null,null,null,null,null,null,null,null,null,null,null,2488,2877,"SUMAQ - ENTER"]
[null,null,null,null,null,null,null,null,null,null,null,null,null,null,null,null,null,null,null,null,null,2492,647,"PLAN DE REGULARIZACION 2006"]
[null,null,null,null,null,null,null,null,null,null,null,null,null,null,null,null,null,null,null,null,null,2497,2377,"ADECUACION CASA ANTROPOLOGA - 2006"]
[null,null,null,null,null,null,null,null,null,null,null,null,null,null,null,null,null,null,null,null,null,2502,2508,"PROYECTOS VARIOS LIDIE (1996)"]
[null,null,null,null,null,null,null,null,null,null,null,null,null,null,null,null,null,null,null,null,null,2504,1012,"JARDIN BOTANICO"]
[null,null,null,null,null,null,null,null,null,null,null,null,null,null,null,null,null,null,null,null,null,2507,1012,"LIDIE ADMINISTRACION"]
[null,null,null,null,null,null,null,null,null,null,null,null,null,null,null,null,null,null,null,null,null,2512,1986,"PROYECTO UNIANDES - INDUMIL"]
[null,null,null,null,null,null,null,null,null,null,null,null,null,null,null,null,null,null,null,null,null,2514,1745,"DOTACION TECNOLOGIA MARIO LASERNA"]
[null,null,null,null,null,null,null,null,null,null,null,null,null,null,null,null,null,null,null,null,null,2517,1744,"DOTACION Y MOBILIARIO MARIO LASERNA"]
[null,null,null,null,null,null,null,null,null,null,null,null,null,null,null,null,null,null,null,null,null,2522,2515,"IMPUESTOS Y OTROS GASTOS EDIFICIO JULIO MARIO SANTODOMINGO"]
[null,null,null,null,null,null,null,null,null,null,null,null,null,null,null,null,null,null,null,null,null,2526,2531,"IMPUESTOS Y OTROS GASTOS CENTRO CULTURAL Y DEPORTIVO"]
[null,null,null,null,null,null,null,null,null,null,null,null,null,null,null,null,null,null,null,null,null,2531,2516,"PLANTA FISICA CENTRO CULTURAL Y DEPORTIVO"]
[null,null,null,null,null,null,null,null,null,null,null,null,null,null,null,null,null,null,null,null,null,2533,2532,"DOTACION TECNOLOGIA CENTRO CULTURAL Y DEPORTIVO"]
[null,null,null,null,null,null,null,null,null,null,null,null,null,null,null,null,null,null,null,null,null,2536,2377,"OPTIMIZACION Y OBRAS MENORES"]
[null,null,null,null,null,null,null,null,null,null,null,null,null,null,null,null,null,null,null,null,null,2541,1902,"UNIANDES VLIR"]
[null,null,null,null,null,null,null,null,null,null,null,null,null,null,null,null,null,null,null,null,null,2543,1940,"UNIANDES CONTROL INTERNO"]
[null,null,null,null,null,null,null,null,null,null,null,null,null,null,null,null,null,null,null,null,null,2546,740,"INVERSIONES MAYORES DIRECCION ADMINISTRATIVA CONSOLIDADO"]
[null,null,null,null,null,null,null,null,null,null,null,null,null,null,null,null,null,null,null,null,null,2551,1795,"GIMNASIO MODERNO"]
[null,null,null,null,null,null,null,null,null,null,null,null,null,null,null,null,null,null,null,null,null,2555,1795,"UNIVERSIDAD NORTE"]
[null,null,null,null,null,null,null,null,null,null,null,null,null,null,null,null,null,null,null,null,null,2560,1342,"FONDO MISYS FOUNDATION"]
[null,null,null,null,null,null,null,null,null,null,null,null,null,null,null,null,null,null,null,null,null,2561,1012,"PROEVA MEDICINA"]
[null,null,null,null,null,null,null,null,null,null,null,null,null,null,null,null,null,null,null,null,null,2567,2566,"GUIA PROYECTOS GENERAL"]
[null,null,null,null,null,null,null,null,null,null,null,null,null,null,null,null,null,null,null,null,null,2570,2566,"MEALS - ECOPETROL"]
[null,null,null,null,null,null,null,null,null,null,null,null,null,null,null,null,null,null,null,null,null,2575,2284,"CUADERNOS AZULES - NARANJA"]
[null,null,null,null,null,null,null,null,null,null,null,null,null,null,null,null,null,null,null,null,null,2576,156,"DOCTORADO EN ECONOMIA"]
[null,null,null,null,null,null,null,null,null,null,null,null,null,null,null,null,null,null,null,null,null,2580,421,"CAMBIO DE PAISAJE EN VILLA DE LEYVA Y LAGUNA DE FUQUENE"]
[null,null,null,null,null,null,null,null,null,null,null,null,null,null,null,null,null,null,null,null,null,2585,601,"CAPACITACION PRESUPUESTO"]
[null,null,null,null,null,null,null,null,null,null,null,null,null,null,null,null,null,null,null,null,null,2588,415,"ESP. GESTION REGIONAL DEL DESARROLLO 2007-2008"]
[null,null,null,null,null,null,null,null,null,null,null,null,null,null,null,null,null,null,null,null,null,2590,421,"SEMINARIO ESTUDIOS SOBRE DESARROLLO 2006"]
[null,null,null,null,null,null,null,null,null,null,null,null,null,null,null,null,null,null,null,null,null,2596,3363,"INVERSIONES PDD ING. INDUSTRIAL"]
[null,null,null,null,null,null,null,null,null,null,null,null,null,null,null,null,null,null,null,null,null,2599,2598,"ESPECIALIZACIÓN AMBIENTAL ADMINISTRACIÓN"]
[null,null,null,null,null,null,null,null,null,null,null,null,null,null,null,null,null,null,null,null,null,2604,321,"ESPECIALIZACIÓN INFRAESTRUCTURA VIAL"]
[null,null,null,null,null,null,null,null,null,null,null,null,null,null,null,null,null,null,null,null,null,2605,2604,"ESPECIALIZACIÓN INFRA-VIAL ADMINISTRACIÓN"]
[null,null,null,null,null,null,null,null,null,null,null,null,null,null,null,null,null,null,null,null,null,2609,2608,"CIFI GRUPO DE MODELAMIENTO Y ANALISIS ECONOMIA ADMINISTRACION"]
[null,null,null,null,null,null,null,null,null,null,null,null,null,null,null,null,null,null,null,null,null,2614,2611,"COLCIENCIAS VARIOS MODELAMIENTO Y ANALISIS ECONOMIA"]
[null,null,null,null,null,null,null,null,null,null,null,null,null,null,null,null,null,null,null,null,null,2617,2616,"ADMINISTRACION COMIT"]
[null,null,null,null,null,null,null,null,null,null,null,null,null,null,null,null,null,null,null,null,null,2619,2618,"PROYECTOS VARIOS COMIT"]
[null,null,null,null,null,null,null,null,null,null,null,null,null,null,null,null,null,null,null,null,null,2624,2480,"EGOB - POSGRADO"]
[null,null,null,null,null,null,null,null,null,null,null,null,null,null,null,null,null,null,null,null,null,2629,435,"CELEBRACION ALBERTO MAGNO"]
[null,null,null,null,null,null,null,null,null,null,null,null,null,null,null,null,null,null,null,null,null,2633,53,"PROYECTO BAYER"]
[null,null,null,null,null,null,null,null,null,null,null,null,null,null,null,null,null,null,null,null,null,2634,2814,"FONDO QUIERO ESTUDIAR INGENIERÍA CIVIL"]
[null,null,null,null,null,null,null,null,null,null,null,null,null,null,null,null,null,null,null,null,null,2639,2814,"FONDO QUIERO ESTUDIAR INGENIERÍA MECÁNICA"]
[null,null,null,null,null,null,null,null,null,null,null,null,null,null,null,null,null,null,null,null,null,2643,2814,"FONDO QUIERO ESTUDIAR MICROBIOLOGÍA"]
[null,null,null,null,null,null,null,null,null,null,null,null,null,null,null,null,null,null,null,null,null,2648,1760,"EDUCACION CONTINUADA HOLCIM"]
[null,null,null,null,null,null,null,null,null,null,null,null,null,null,null,null,null,null,null,null,null,2651,2814,"FONDO QUIERO ESTUDIAR CIENCIA POLITICA"]
[null,null,null,null,null,null,null,null,null,null,null,null,null,null,null,null,null,null,null,null,null,2653,2814,"FONDO QUIERO ESTUDIAR FILOSOFIA"]
[null,null,null,null,null,null,null,null,null,null,null,null,null,null,null,null,null,null,null,null,null,2658,42,"BIOLOGIA EVOLUTIVA DE VERTEBRADOS, C. CADENA"]
[null,null,null,null,null,null,null,null,null,null,null,null,null,null,null,null,null,null,null,null,null,2662,128,"DOCTORADO EN DERECHO"]
[null,null,null,null,null,null,null,null,null,null,null,null,null,null,null,null,null,null,null,null,null,2663,544,"CONSULTORIA JURIDICA LABORAL"]
[null,null,null,null,null,null,null,null,null,null,null,null,null,null,null,null,null,null,null,null,null,2668,2546,"CARNETIZACION"]
[null,null,null,null,null,null,null,null,null,null,null,null,null,null,null,null,null,null,null,null,null,2672,2219,"DOTACION TECNOLOGIA BLOQUE CI-CITEC"]
[null,null,null,null,null,null,null,null,null,null,null,null,null,null,null,null,null,null,null,null,null,2677,53,"BENEFIT"]
[null,null,null,null,null,null,null,null,null,null,null,null,null,null,null,null,null,null,null,null,null,2680,53,"CORPOICA - COLCIENCIAS"]
[null,null,null,null,null,null,null,null,null,null,null,null,null,null,null,null,null,null,null,null,null,2682,1984,"COLCIENCIAS CIPP MAECO"]
[null,null,null,null,null,null,null,null,null,null,null,null,null,null,null,null,null,null,null,null,null,2687,137,"DISCRIMINACION POBLACION AFROCOLOMBIANA"]
[null,null,null,null,null,null,null,null,null,null,null,null,null,null,null,null,null,null,null,null,null,2689,2688,"ADMINISTRACION Y PROMOCION"]
[null,null,null,null,null,null,null,null,null,null,null,null,null,null,null,null,null,null,null,null,null,2692,2688,"COMFANDI 2006-2007"]
[null,null,null,null,null,null,null,null,null,null,null,null,null,null,null,null,null,null,null,null,null,2697,2688,"EVALUACION"]
[null,null,null,null,null,null,null,null,null,null,null,null,null,null,null,null,null,null,null,null,null,2701,445,"BECA INTERPRETES DE CUERDA ORQUESTA UNIANDES"]
[null,null,null,null,null,null,null,null,null,null,null,null,null,null,null,null,null,null,null,null,null,2706,1979,"COLCIENCIAS MANGUITO ROTADO"]
[null,null,null,null,null,null,null,null,null,null,null,null,null,null,null,null,null,null,null,null,null,2709,167,"EXCLUSION SOCIAL Y CONFIANZA"]
[null,null,null,null,null,null,null,null,null,null,null,null,null,null,null,null,null,null,null,null,null,2711,42,"GENES DE VIRULENCIA EN XANTHOMONAS, A. BERNAL"]
[null,null,null,null,null,null,null,null,null,null,null,null,null,null,null,null,null,null,null,null,null,2716,2877,"PROYECTO PNUD"]
[null,null,null,null,null,null,null,null,null,null,null,null,null,null,null,null,null,null,null,null,null,2718,53,"COLCIENCIAS 2007"]
[null,null,null,null,null,null,null,null,null,null,null,null,null,null,null,null,null,null,null,null,null,2721,1647,"INVERSIONES"]
[null,null,null,null,null,null,null,null,null,null,null,null,null,null,null,null,null,null,null,null,null,2726,1937,"UNIANDES ASOFONDOS"]
[null,null,null,null,null,null,null,null,null,null,null,null,null,null,null,null,null,null,null,null,null,2730,1820,"MARIA DEL PILAR VILLAMIL"]
[null,null,null,null,null,null,null,null,null,null,null,null,null,null,null,null,null,null,null,null,null,2735,647,"CASA ANTROPOLOGA - 2007"]
[null,null,null,null,null,null,null,null,null,null,null,null,null,null,null,null,null,null,null,null,null,2736,647,"CASA ESPINOSA - 2007"]
[null,null,null,null,null,null,null,null,null,null,null,null,null,null,null,null,null,null,null,null,null,2742,2219,"DOTACION TECNOLOGIA ANDEN CICLORUTA"]
[null,null,null,null,null,null,null,null,null,null,null,null,null,null,null,null,null,null,null,null,null,2745,2219,"DOTACION TECNOLOGIA BIBLIOTECA DE DERECHO BLOQUE RGC"]
[null,null,null,null,null,null,null,null,null,null,null,null,null,null,null,null,null,null,null,null,null,2750,2219,"DOTACION TECNOLOGIA BLOQUE I OFICINAS"]
[null,null,null,null,null,null,null,null,null,null,null,null,null,null,null,null,null,null,null,null,null,2751,2219,"DOTACION TECNOLOGIA ESCUELA DE GOBIERNO BLOQUE NH"]
[null,null,null,null,null,null,null,null,null,null,null,null,null,null,null,null,null,null,null,null,null,2755,2219,"DOTACION TECNOLOGIA LABORATORIOS DE FISICA BLOQUE Q"]
[null,null,null,null,null,null,null,null,null,null,null,null,null,null,null,null,null,null,null,null,null,2760,2714,"GASES ESPECIALES LABORATORIOS FISICA, QUIMICA, MEDICINA - 2007"]
[null,null,null,null,null,null,null,null,null,null,null,null,null,null,null,null,null,null,null,null,null,2763,1707,"CONGRESO SOCIEDAD LATINOAMER. DE MUTAGENESIS, CARCINOGENESIS Y TERATOG ALAMCTA"]
[null,null,null,null,null,null,null,null,null,null,null,null,null,null,null,null,null,null,null,null,null,2765,1611,"IEEL MODELAJE Y ANALISIS (ENERGIA, AMBIENTE Y ECONOMIA)"]
[null,null,null,null,null,null,null,null,null,null,null,null,null,null,null,null,null,null,null,null,null,2771,1920,"SIN GRUPO ADMINISTRACION"]
[null,null,null,null,null,null,null,null,null,null,null,null,null,null,null,null,null,null,null,null,null,2774,4011,"CIFE ADMINISTRACION"]
[null,null,null,null,null,null,null,null,null,null,null,null,null,null,null,null,null,null,null,null,null,2779,4011,"CIFE CIDER"]
[null,null,null,null,null,null,null,null,null,null,null,null,null,null,null,null,null,null,null,null,null,2780,4011,"CIFE INDUSTRIAL"]
[null,null,null,null,null,null,null,null,null,null,null,null,null,null,null,null,null,null,null,null,null,2784,435,"FONDO REPRESENTANTES ESTUDIANTILES"]
[null,null,null,null,null,null,null,null,null,null,null,null,null,null,null,null,null,null,null,null,null,2789,2714,"ADECUACIONES DTI - 2007"]
[null,null,null,null,null,null,null,null,null,null,null,null,null,null,null,null,null,null,null,null,null,2793,536,"DEPARTAMENTO MEDICO CONSOLIDADO"]
[null,null,null,null,null,null,null,null,null,null,null,null,null,null,null,null,null,null,null,null,null,2794,850,"INVERSIONES MAYORES DEPARTAMENTO MEDICO"]
[null,null,null,null,null,null,null,null,null,null,null,null,null,null,null,null,null,null,null,null,null,2799,647,"ADECUACION OFICINAS RGC DERECHO-2007"]
[null,null,null,null,null,null,null,null,null,null,null,null,null,null,null,null,null,null,null,null,null,2802,647,"ADECUACION BIBLIOTECA CIDER-2007"]
[null,null,null,null,null,null,null,null,null,null,null,null,null,null,null,null,null,null,null,null,null,2808,3580,"OFICINAS DE FÍSICA BLOQUE I DISEÑOS"]
[null,null,null,null,null,null,null,null,null,null,null,null,null,null,null,null,null,null,null,null,null,2809,647,"BLOQUE S1-2007"]
[null,null,null,null,null,null,null,null,null,null,null,null,null,null,null,null,null,null,null,null,null,2814,1342,"QUIERO ESTUDIAR CONSOLIDADOR"]
[null,null,null,null,null,null,null,null,null,null,null,null,null,null,null,null,null,null,null,null,null,2818,2278,"LINEA DE INVEST. G.T. TRANSPORTE DE PETROLEOS"]
[null,null,null,null,null,null,null,null,null,null,null,null,null,null,null,null,null,null,null,null,null,2823,42,"MARICARMEN MARTINEZ - PROFESORA ASISTENTE"]
[null,null,null,null,null,null,null,null,null,null,null,null,null,null,null,null,null,null,null,null,null,2826,244,"CONGRESO VISIBLE NED - 2007"]
[null,null,null,null,null,null,null,null,null,null,null,null,null,null,null,null,null,null,null,null,null,2828,435,"ADMINISTRACION ORQUESTA UNIANDES"]
[null,null,null,null,null,null,null,null,null,null,null,null,null,null,null,null,null,null,null,null,null,2831,1670,"FONDO SEMILLA LUIS FELIPE OROZCO"]
[null,null,null,null,null,null,null,null,null,null,null,null,null,null,null,null,null,null,null,null,null,2837,2714,"SALONES EDIFICIO LLERAS 2007"]
[null,null,null,null,null,null,null,null,null,null,null,null,null,null,null,null,null,null,null,null,null,2838,137,"RELATORIA DE LA PGN"]
[null,null,null,null,null,null,null,null,null,null,null,null,null,null,null,null,null,null,null,null,null,2843,3338,"APOYO A UNIVERSIDADES REGIONALES"]
[null,null,null,null,null,null,null,null,null,null,null,null,null,null,null,null,null,null,null,null,null,2847,2814,"FONDO QUIERO ESTUDIAR INGENIERIA GENERAL"]
[null,null,null,null,null,null,null,null,null,null,null,null,null,null,null,null,null,null,null,null,null,2852,3895,"VISITAS"]
[null,null,null,null,null,null,null,null,null,null,null,null,null,null,null,null,null,null,null,null,null,2855,3895,"ACREDITACIONES Y MEMBRESIAS"]
[null,null,null,null,null,null,null,null,null,null,null,null,null,null,null,null,null,null,null,null,null,2857,167,"MIDAS PROYECTO AGRICOLA"]
[null,null,null,null,null,null,null,null,null,null,null,null,null,null,null,null,null,null,null,null,null,2862,1993,"UNIANDES A.C.I."]
[null,null,null,null,null,null,null,null,null,null,null,null,null,null,null,null,null,null,null,null,null,2864,1342,"FONDO EDUCATIVO GABRIEL VEGALARA"]
[null,null,null,null,null,null,null,null,null,null,null,null,null,null,null,null,null,null,null,null,null,2867,167,"ENCUESTA PREFERENCIAS POLITICAS"]
[null,null,null,null,null,null,null,null,null,null,null,null,null,null,null,null,null,null,null,null,null,2872,2566,"MERCADO DE CAPITALES"]
[null,null,null,null,null,null,null,null,null,null,null,null,null,null,null,null,null,null,null,null,null,2876,2566,"INNOVACION"]
[null,null,null,null,null,null,null,null,null,null,null,null,null,null,null,null,null,null,null,null,null,2881,2566,"CEC PROYECTOS GENERALES"]
[null,null,null,null,null,null,null,null,null,null,null,null,null,null,null,null,null,null,null,null,null,2882,2868,"ZONAS FRANCAS"]
[null,null,null,null,null,null,null,null,null,null,null,null,null,null,null,null,null,null,null,null,null,2888,244,"DIFERENTES RECURSOS - IDRC"]
[null,null,null,null,null,null,null,null,null,null,null,null,null,null,null,null,null,null,null,null,null,2891,1972,"E.A.A.B. HUMEDAL NATURALES"]
[null,null,null,null,null,null,null,null,null,null,null,null,null,null,null,null,null,null,null,null,null,2893,1966,"UNIANDES SEGUROS BOLIVAR"]
[null,null,null,null,null,null,null,null,null,null,null,null,null,null,null,null,null,null,null,null,null,2896,1937,"INFORMATICA PROCURADURIA"]
[null,null,null,null,null,null,null,null,null,null,null,null,null,null,null,null,null,null,null,null,null,2901,2900,"UNIANDES - UTB (CONVENIO ESPECIAL)"]
[null,null,null,null,null,null,null,null,null,null,null,null,null,null,null,null,null,null,null,null,null,2905,1670,"ESCLEROSIS MULTIPLE Y ASOCIACION ALELOS"]
[null,null,null,null,null,null,null,null,null,null,null,null,null,null,null,null,null,null,null,null,null,2910,167,"PLAN INVESTIGACION - D. MEJIA"]
[null,null,null,null,null,null,null,null,null,null,null,null,null,null,null,null,null,null,null,null,null,2911,2714,"SALAS DISEÑO INDUSTRIAL - 2007"]
[null,null,null,null,null,null,null,null,null,null,null,null,null,null,null,null,null,null,null,null,null,2915,2298,"ING. MECANICA CONCEPTOS TECNICOS"]
[null,null,null,null,null,null,null,null,null,null,null,null,null,null,null,null,null,null,null,null,null,2920,601,"SILLA PROFESORAL SANFORD - UNIVERSIDAD"]
[null,null,null,null,null,null,null,null,null,null,null,null,null,null,null,null,null,null,null,null,null,2925,1820,"OSCAR ALVAREZ"]
[null,null,null,null,null,null,null,null,null,null,null,null,null,null,null,null,null,null,null,null,null,2927,1820,"JUAN FRANCISCO CORREAL"]
[null,null,null,null,null,null,null,null,null,null,null,null,null,null,null,null,null,null,null,null,null,2930,167,"PLAN INVESTIGACION - A. CAMACHO"]
[null,null,null,null,null,null,null,null,null,null,null,null,null,null,null,null,null,null,null,null,null,2935,1967,"GUADUA LAMINADA"]
[null,null,null,null,null,null,null,null,null,null,null,null,null,null,null,null,null,null,null,null,null,2939,128,"ESPECIALIZACION DERECHO URBANO"]
[null,null,null,null,null,null,null,null,null,null,null,null,null,null,null,null,null,null,null,null,null,2940,1993,"CANDANE"]
[null,null,null,null,null,null,null,null,null,null,null,null,null,null,null,null,null,null,null,null,null,2944,2714,"ADECUACION NUEVAS OFICINAS ARQUITECTURA-2007"]
[null,null,null,null,null,null,null,null,null,null,null,null,null,null,null,null,null,null,null,null,null,2949,167,"COMPARTEL - TELEFONIA RURAL COMUNITARIA"]
[null,null,null,null,null,null,null,null,null,null,null,null,null,null,null,null,null,null,null,null,null,2954,1670,"TEACHING DAY TCA"]
[null,null,null,null,null,null,null,null,null,null,null,null,null,null,null,null,null,null,null,null,null,2956,3999,"MINEDUC-MTIC 2007"]
[null,null,null,null,null,null,null,null,null,null,null,null,null,null,null,null,null,null,null,null,null,2959,137,"REUNION CLACSO GT-2007"]
[null,null,null,null,null,null,null,null,null,null,null,null,null,null,null,null,null,null,null,null,null,2964,2092,"MAESTRIA EID 2008"]
[null,null,null,null,null,null,null,null,null,null,null,null,null,null,null,null,null,null,null,null,null,2968,415,"ESP ORGANIZACIONES, RESPONSABILIDAD SOCIAL Y DESARROLLO 2008-2009"]
[null,null,null,null,null,null,null,null,null,null,null,null,null,null,null,null,null,null,null,null,null,2969,415,"ESP GESTION REGIONAL DEL DESARROLLO 2008-2009"]
[null,null,null,null,null,null,null,null,null,null,null,null,null,null,null,null,null,null,null,null,null,2974,124,"JUSTICIA COLECTIVA G-DIP"]
[null,null,null,null,null,null,null,null,null,null,null,null,null,null,null,null,null,null,null,null,null,2977,647,"PLANTA FISICA NUEVO BLOQUE W"]
[null,null,null,null,null,null,null,null,null,null,null,null,null,null,null,null,null,null,null,null,null,2983,3363,"CURRICULUM INNOVADOR"]
[null,null,null,null,null,null,null,null,null,null,null,null,null,null,null,null,null,null,null,null,null,2984,3363,"CUERPO PROFESORAL MOTIVADO"]
[null,null,null,null,null,null,null,null,null,null,null,null,null,null,null,null,null,null,null,null,null,2989,2873,"CAMARA DE COMERCIO BARRANCABERMEJA"]
[null,null,null,null,null,null,null,null,null,null,null,null,null,null,null,null,null,null,null,null,null,2993,2219,"DOTACION TECNOLOGIA EDIFICIO TX"]
[null,null,null,null,null,null,null,null,null,null,null,null,null,null,null,null,null,null,null,null,null,2998,2995,"CATEGORIA 2"]
[null,null,null,null,null,null,null,null,null,null,null,null,null,null,null,null,null,null,null,null,null,3001,2996,"CATEGORIA 2"]
[null,null,null,null,null,null,null,null,null,null,null,null,null,null,null,null,null,null,null,null,null,3003,2996,"CATEGORIA 4"]
[null,null,null,null,null,null,null,null,null,null,null,null,null,null,null,null,null,null,null,null,null,3006,2997,"CATEGORIA 4"]
[null,null,null,null,null,null,null,null,null,null,null,null,null,null,null,null,null,null,null,null,null,3012,2999,"PACC 06"]
[null,null,null,null,null,null,null,null,null,null,null,null,null,null,null,null,null,null,null,null,null,3013,2999,"PACC 07"]
[null,null,null,null,null,null,null,null,null,null,null,null,null,null,null,null,null,null,null,null,null,3018,2999,"PACC 12"]
[null,null,null,null,null,null,null,null,null,null,null,null,null,null,null,null,null,null,null,null,null,3022,1905,"COLCIENCIAS DAAD"]
[null,null,null,null,null,null,null,null,null,null,null,null,null,null,null,null,null,null,null,null,null,3027,439,"LABORATORIO FOTOGRAFIA"]
[null,null,null,null,null,null,null,null,null,null,null,null,null,null,null,null,null,null,null,null,null,3030,439,"LABORATORIO PC"]
[null,null,null,null,null,null,null,null,null,null,null,null,null,null,null,null,null,null,null,null,null,3032,1972,"CALIDAD DEL AIRE U D CHILE"]
[null,null,null,null,null,null,null,null,null,null,null,null,null,null,null,null,null,null,null,null,null,3037,53,"U MICROORGANISMOS Y METABOLISMO EDAFICO - CENICAFE"]
[null,null,null,null,null,null,null,null,null,null,null,null,null,null,null,null,null,null,null,null,null,3040,445,"INSUMOS LABORATORIOS MUSICA"]
[null,null,null,null,null,null,null,null,null,null,null,null,null,null,null,null,null,null,null,null,null,3042,1760,"SEGUIMIENTO EDIFICIO NUEVO W"]
[null,null,null,null,null,null,null,null,null,null,null,null,null,null,null,null,null,null,null,null,null,3047,1744,"DISEÑO OBRAS ADICIONALES ED MARIO LASERNA"]
[null,null,null,null,null,null,null,null,null,null,null,null,null,null,null,null,null,null,null,null,null,3052,2515,"GERENCIA E INTERVENTORIA OBRAS ADICIONALES PARQUEADERO FENICIA"]
[null,null,null,null,null,null,null,null,null,null,null,null,null,null,null,null,null,null,null,null,null,3056,321,"ESPECIALIZACION AMBIENTAL 2008-I"]
[null,null,null,null,null,null,null,null,null,null,null,null,null,null,null,null,null,null,null,null,null,3057,321,"ESPECIALIZACION STMAS HIDRICOS URBANOS 2008-II"]
[null,null,null,null,null,null,null,null,null,null,null,null,null,null,null,null,null,null,null,null,null,3061,2879,"MINAMBIENTE"]
[null,null,null,null,null,null,null,null,null,null,null,null,null,null,null,null,null,null,null,null,null,3066,397,"ESPECIALIZACION EN SEGURIDAD DE LA INFORMACION PROMOCION 3 (2008)"]
[null,null,null,null,null,null,null,null,null,null,null,null,null,null,null,null,null,null,null,null,null,3069,167,"RECURSOS HIDROBIOLOGICOS EN EL CARIBE"]
[null,null,null,null,null,null,null,null,null,null,null,null,null,null,null,null,null,null,null,null,null,3071,3070,"PROYECTOS VARIOS INGENIERIA QUIMICA"]
[null,null,null,null,null,null,null,null,null,null,null,null,null,null,null,null,null,null,null,null,null,3076,42,"STEFAN M. SOLTUZ - PROF. ASISTENTE"]
[null,null,null,null,null,null,null,null,null,null,null,null,null,null,null,null,null,null,null,null,null,3081,1342,"BECA CALASANZ CIUDAD BOLIVAR"]
[null,null,null,null,null,null,null,null,null,null,null,null,null,null,null,null,null,null,null,null,null,3085,3082,"CDPP CONSULTORIA"]
[null,null,null,null,null,null,null,null,null,null,null,null,null,null,null,null,null,null,null,null,null,3086,3085,"PROYECTOS VARIOS CDPP"]
[null,null,null,null,null,null,null,null,null,null,null,null,null,null,null,null,null,null,null,null,null,3090,244,"PSICOLOGIA SOCIAL Y POSTCONFLICTO - IDRC"]
[null,null,null,null,null,null,null,null,null,null,null,null,null,null,null,null,null,null,null,null,null,3095,2286,"PROYECTO JOVENES INVESTIGADORES"]
[null,null,null,null,null,null,null,null,null,null,null,null,null,null,null,null,null,null,null,null,null,3100,42,"BIOPROPECCION DE MICROORGANISMOS"]
[null,null,null,null,null,null,null,null,null,null,null,null,null,null,null,null,null,null,null,null,null,3102,42,"MEMBRANAS CELULARES"]
[null,null,null,null,null,null,null,null,null,null,null,null,null,null,null,null,null,null,null,null,null,3105,103,"ESTUDIO DE PRODUCTO SIMETRICO"]
[null,null,null,null,null,null,null,null,null,null,null,null,null,null,null,null,null,null,null,null,null,3110,1951,"COLCIENCIAS TRANSPORTE ELECTICO MASIVO"]
[null,null,null,null,null,null,null,null,null,null,null,null,null,null,null,null,null,null,null,null,null,3114,601,"PROYECTOS URBANISTICOS ESPECIALES"]
[null,null,null,null,null,null,null,null,null,null,null,null,null,null,null,null,null,null,null,null,null,3115,53,"ICGEB - COLCIENCIAS"]
[null,null,null,null,null,null,null,null,null,null,null,null,null,null,null,null,null,null,null,null,null,3119,163,"CEDE 50 AÑOS"]
[null,null,null,null,null,null,null,null,null,null,null,null,null,null,null,null,null,null,null,null,null,3124,647,"OPTIMIZACION CONSOLIDADOR 2008"]
[null,null,null,null,null,null,null,null,null,null,null,null,null,null,null,null,null,null,null,null,null,3129,1967,"TITAN"]
[null,null,null,null,null,null,null,null,null,null,null,null,null,null,null,null,null,null,null,null,null,3131,1972,"GIIA SDA COMBUSTIBLES LÍQUIDOS"]
[null,null,null,null,null,null,null,null,null,null,null,null,null,null,null,null,null,null,null,null,null,3134,3903,"CONSOLIDADO FUNDACION MOORE"]
[null,null,null,null,null,null,null,null,null,null,null,null,null,null,null,null,null,null,null,null,null,3139,244,"MAESTRIAS COLCIENCIAS"]
[null,null,null,null,null,null,null,null,null,null,null,null,null,null,null,null,null,null,null,null,null,3143,167,"PROGRAMA DESARRAIGADOS"]
[null,null,null,null,null,null,null,null,null,null,null,null,null,null,null,null,null,null,null,null,null,3144,3124,"Circulación Piscina al Bloque I -2008"]
[null,null,null,null,null,null,null,null,null,null,null,null,null,null,null,null,null,null,null,null,null,3150,3905,"Balas 2008"]
[null,null,null,null,null,null,null,null,null,null,null,null,null,null,null,null,null,null,null,null,null,3153,1993,"LIBERTY SEGUROS"]
[null,null,null,null,null,null,null,null,null,null,null,null,null,null,null,null,null,null,null,null,null,3158,1670,"Emergencias Toxicológicas"]
[null,null,null,null,null,null,null,null,null,null,null,null,null,null,null,null,null,null,null,null,null,3159,2286,"PROYECTO CATARCIS 2 MIN. VIVIENDA"]
[null,null,null,null,null,null,null,null,null,null,null,null,null,null,null,null,null,null,null,null,null,3165,2877,"ACAC II"]
[null,null,null,null,null,null,null,null,null,null,null,null,null,null,null,null,null,null,null,null,null,3168,3124,"ADECUACIONES OFICINAS ARQUITECTURA II EPATA 2008"]
[null,null,null,null,null,null,null,null,null,null,null,null,null,null,null,null,null,null,null,null,null,3173,1905,"COLCIENCIAS FORMACION DE LIDERES EN INNOVACIÓN"]
[null,null,null,null,null,null,null,null,null,null,null,null,null,null,null,null,null,null,null,null,null,3174,3173,"ERNESTO AGUILERA"]
[null,null,null,null,null,null,null,null,null,null,null,null,null,null,null,null,null,null,null,null,null,3178,3303,"Competencia Moot"]
[null,null,null,null,null,null,null,null,null,null,null,null,null,null,null,null,null,null,null,null,null,3181,902,"FONDO DE CAPACITACION ESCUELA DE GOBIERNO"]
[null,null,null,null,null,null,null,null,null,null,null,null,null,null,null,null,null,null,null,null,null,3187,2877,"AGENDA DE CONECTIVIDAD"]
[null,null,null,null,null,null,null,null,null,null,null,null,null,null,null,null,null,null,null,null,null,3188,1852,"FIESTA Y REPRESENTACION"]
[null,null,null,null,null,null,null,null,null,null,null,null,null,null,null,null,null,null,null,null,null,3194,244,"WOMENS CAMPAING I 2008"]
[null,null,null,null,null,null,null,null,null,null,null,null,null,null,null,null,null,null,null,null,null,3197,53,"ECOS NORD COLCIENCIAS - P. STEVENSON"]
[null,null,null,null,null,null,null,null,null,null,null,null,null,null,null,null,null,null,null,null,null,3202,42,"CARLOS HERNANDEZ - PROF. ASISTENTE"]
[null,null,null,null,null,null,null,null,null,null,null,null,null,null,null,null,null,null,null,null,null,3203,3906,"FORO DE INNOVACION"]
[null,null,null,null,null,null,null,null,null,null,null,null,null,null,null,null,null,null,null,null,null,3207,3390,"PROYECTO DE INVESTIGACION M. GONZALEZ"]
[null,null,null,null,null,null,null,null,null,null,null,null,null,null,null,null,null,null,null,null,null,3212,2442,"ESPECIALIZACION EN SISTEMA INFORMACION PROM 21 AGOSTO 2009 - JULIO 2010"]
[null,null,null,null,null,null,null,null,null,null,null,null,null,null,null,null,null,null,null,null,null,3215,1852,"PROYECTO DIOSA DIANA"]
[null,null,null,null,null,null,null,null,null,null,null,null,null,null,null,null,null,null,null,null,null,3217,3216,"ADMON INTEGRIDAD ESTRUCTURAL"]
[null,null,null,null,null,null,null,null,null,null,null,null,null,null,null,null,null,null,null,null,null,3222,3221,"COLCIENCIAS VARIOS INTEGRIDAD E. VARIOS"]
[null,null,null,null,null,null,null,null,null,null,null,null,null,null,null,null,null,null,null,null,null,3227,2163,"COLCIENCIAS CELDAS DE MANUFACTURA FLEXIBLE"]
[null,null,null,null,null,null,null,null,null,null,null,null,null,null,null,null,null,null,null,null,null,3231,3124,"ED. JULIO MARIO SANTO DOMINGO ADICIONALES DPF - 2008"]
[null,null,null,null,null,null,null,null,null,null,null,null,null,null,null,null,null,null,null,null,null,3232,137,"CONCURSO FOTOGRAFIA DD.HH"]
[null,null,null,null,null,null,null,null,null,null,null,null,null,null,null,null,null,null,null,null,null,3236,2219,"DOTACION TECNOLOGIA PROGRAMA DE ARQUITECTURA, DISEÑO Y ARTE"]
[null,null,null,null,null,null,null,null,null,null,null,null,null,null,null,null,null,null,null,null,null,3241,2219,"DOTACION TECNOLOGIA ASCENSOR EDIFICIO NAVAS"]
[null,null,null,null,null,null,null,null,null,null,null,null,null,null,null,null,null,null,null,null,null,3244,3124,"ADECUACION BLOQUE ÑH AUDITORIA INTERNA,CIFE,SALUD OCUPACIONAL"]
[null,null,null,null,null,null,null,null,null,null,null,null,null,null,null,null,null,null,null,null,null,3246,3899,"CAPITAL SEMILLA:PROCESOS EMOCIONALES Y COGNITIVOS DE LA ELECCION DEL CONSUMIDOR"]
[null,null,null,null,null,null,null,null,null,null,null,null,null,null,null,null,null,null,null,null,null,3251,2620,"COMUNIDAD EUROPEA EELA - 2"]
[null,null,null,null,null,null,null,null,null,null,null,null,null,null,null,null,null,null,null,null,null,3256,647,"EDIFICIO O VENTANERIA Y SALONES - 2008"]
[null,null,null,null,null,null,null,null,null,null,null,null,null,null,null,null,null,null,null,null,null,3260,647,"PROYECTO ARQUITECTURA DISEÑO Y ARTE"]
[null,null,null,null,null,null,null,null,null,null,null,null,null,null,null,null,null,null,null,null,null,3261,647,"REMODELACION BIBLIOTECA Y CASA BLOQUE I"]
[null,null,null,null,null,null,null,null,null,null,null,null,null,null,null,null,null,null,null,null,null,3265,42,"EDGAR PATIÑO - PROF. ASISTENTE"]
[null,null,null,null,null,null,null,null,null,null,null,null,null,null,null,null,null,null,null,null,null,3270,167,"ACTIVIDADES DE INVESTIGACION R. SUESCUN"]
[null,null,null,null,null,null,null,null,null,null,null,null,null,null,null,null,null,null,null,null,null,3275,1972,"EAAB MODELO CALIDAD DE RIOS"]
[null,null,null,null,null,null,null,null,null,null,null,null,null,null,null,null,null,null,null,null,null,3277,167,"ALUMBRADO NAVIDEÑO EN BOGOTA"]
[null,null,null,null,null,null,null,null,null,null,null,null,null,null,null,null,null,null,null,null,null,3280,341,"ING. ELECTRIC A AUTOMATIZACION - 15"]
[null,null,null,null,null,null,null,null,null,null,null,null,null,null,null,null,null,null,null,null,null,3285,1966,"EMPRESA IBAGUEREÑA DE ACUEDUCTO"]
[null,null,null,null,null,null,null,null,null,null,null,null,null,null,null,null,null,null,null,null,null,3289,1760,"ESTUDIO DE REFORMA CURRICULAR ARQUITECTURA"]
[null,null,null,null,null,null,null,null,null,null,null,null,null,null,null,null,null,null,null,null,null,3290,3899,"PROYECTO - LABORATORIO DE CIENCIAS DE LA DECISIÓN"]
[null,null,null,null,null,null,null,null,null,null,null,null,null,null,null,null,null,null,null,null,null,3294,93,"BANREP200811 - A. BOTERO"]
[null,null,null,null,null,null,null,null,null,null,null,null,null,null,null,null,null,null,null,null,null,3299,3296,"TECNOLOGIA Y SOCIEDAD INVESTIGACION"]
[null,null,null,null,null,null,null,null,null,null,null,null,null,null,null,null,null,null,null,null,null,3304,3303,"WRI"]
[null,null,null,null,null,null,null,null,null,null,null,null,null,null,null,null,null,null,null,null,null,3306,1985,"DIACO CAPACITACION ACELERADA"]
[null,null,null,null,null,null,null,null,null,null,null,null,null,null,null,null,null,null,null,null,null,3309,2871,"CERRO MATOSO"]
[null,null,null,null,null,null,null,null,null,null,null,null,null,null,null,null,null,null,null,null,null,3314,3124,"TRASLADO RECURSOS HUMANOS MONJA - 2008"]
[null,null,null,null,null,null,null,null,null,null,null,null,null,null,null,null,null,null,null,null,null,3316,445,"SEMINARIOS MUSICA"]
[null,null,null,null,null,null,null,null,null,null,null,null,null,null,null,null,null,null,null,null,null,3319,647,"PROGRAMA DE ARQUITECTURA DISEÑO Y ARTE"]
[null,null,null,null,null,null,null,null,null,null,null,null,null,null,null,null,null,null,null,null,null,3324,137,"JUSTICIA GLOBAL"]
[null,null,null,null,null,null,null,null,null,null,null,null,null,null,null,null,null,null,null,null,null,3328,1991,"AB PROYECTOS SISTEMAS DE RECOLECCION"]
[null,null,null,null,null,null,null,null,null,null,null,null,null,null,null,null,null,null,null,null,null,3333,1806,"FONDO DE INVESTIGACION JOHN MARIO GONZALEZ"]
[null,null,null,null,null,null,null,null,null,null,null,null,null,null,null,null,null,null,null,null,null,3334,167,"ACTIVIDADES DE INVESTIGACION - M. URRUTIA"]
[null,null,null,null,null,null,null,null,null,null,null,null,null,null,null,null,null,null,null,null,null,3340,1080,"INTERCAMBIOS DE MAESTRIA"]
[null,null,null,null,null,null,null,null,null,null,null,null,null,null,null,null,null,null,null,null,null,3343,8,"DOCTORADO CONSOLIDADO"]
[null,null,null,null,null,null,null,null,null,null,null,null,null,null,null,null,null,null,null,null,null,3348,2219,"DOTACION TECNOLOGIA PUENTE"]
[null,null,null,null,null,null,null,null,null,null,null,null,null,null,null,null,null,null,null,null,null,3349,2219,"DOTACION TECNOLOGIA BIBLIOTECA CEDE"]
[null,null,null,null,null,null,null,null,null,null,null,null,null,null,null,null,null,null,null,null,null,3353,2219,"DOTACION TECNOLOGIA LABORATORIO LEMA"]
[null,null,null,null,null,null,null,null,null,null,null,null,null,null,null,null,null,null,null,null,null,3357,3356,"EJECUCION SUPERAVIT ACUMULADO DE FAC  ADMINISTRACION A 2007 DIC."]
[null,null,null,null,null,null,null,null,null,null,null,null,null,null,null,null,null,null,null,null,null,3362,3356,"EJECUCION SUPERAVIT ACUMULADO DE FAC  CIENCIAS SOCIALES "]
[null,null,null,null,null,null,null,null,null,null,null,null,null,null,null,null,null,null,null,null,null,3363,3356,"EJECUCION SUPERAVIT ACUMULADO DE FAC  DE INGENIERIA A 2007 DIC."]
[null,null,null,null,null,null,null,null,null,null,null,null,null,null,null,null,null,null,null,null,null,3369,4197,"CONSOLIDADOR FACULTAD DE ARQUITECTURA"]
[null,null,null,null,null,null,null,null,null,null,null,null,null,null,null,null,null,null,null,null,null,3372,4197,"CONSOLIDADOR FACULTAD DE CIENCIAS SOCIALES"]
[null,null,null,null,null,null,null,null,null,null,null,null,null,null,null,null,null,null,null,null,null,3377,1972,"DIGESTION DE LODOS PTAR"]
[null,null,null,null,null,null,null,null,null,null,null,null,null,null,null,null,null,null,null,null,null,3378,2610,"PROYECCION DE INVERSIONES CODENSA"]
[null,null,null,null,null,null,null,null,null,null,null,null,null,null,null,null,null,null,null,null,null,3382,111,"BANREP200818 - A. REIBER"]
[null,null,null,null,null,null,null,null,null,null,null,null,null,null,null,null,null,null,null,null,null,3387,3124,"ADECUACION RECURSOS HUMANOS CASITA AMARILLA BLOQUE ÑF - 2008"]
[null,null,null,null,null,null,null,null,null,null,null,null,null,null,null,null,null,null,null,null,null,3390,3389,"PROYECTO JOVENES INVESTIGADORES DISEÑO"]
[null,null,null,null,null,null,null,null,null,null,null,null,null,null,null,null,null,null,null,null,null,3392,167,"LIBRO 50 AÑOS D.N.P."]
[null,null,null,null,null,null,null,null,null,null,null,null,null,null,null,null,null,null,null,null,null,3397,53,"UNIVERSIDAD NACIONAL DE COLOMBIA - SEDE BOGOTA CONTRATO NO. 205-2008Z4490-3489"]
[null,null,null,null,null,null,null,null,null,null,null,null,null,null,null,null,null,null,null,null,null,3402,11,"NEGOCIACION"]
[null,null,null,null,null,null,null,null,null,null,null,null,null,null,null,null,null,null,null,null,null,3406,11,"GESTION DE RIESGO Y CONTROL DE INSTITUCIONES FINANCIERAS"]
[null,null,null,null,null,null,null,null,null,null,null,null,null,null,null,null,null,null,null,null,null,3407,3363,"PDI DEPARTAMENTO DE INGENIERIA ELECTRICA Y ELECTRONICA"]
[null,null,null,null,null,null,null,null,null,null,null,null,null,null,null,null,null,null,null,null,null,3411,3926,"FONDO DE DESARROLLO NO DOCENTE - DIRECCION FINANCIERA"]
[null,null,null,null,null,null,null,null,null,null,null,null,null,null,null,null,null,null,null,null,null,3416,415,"ESPECIALIZACION GPOL 2009"]
[null,null,null,null,null,null,null,null,null,null,null,null,null,null,null,null,null,null,null,null,null,3419,415,"ESPECIALIZACION GRD 2009 - 2010"]
[null,null,null,null,null,null,null,null,null,null,null,null,null,null,null,null,null,null,null,null,null,3421,3899,"CAPITAL SEMILLA: MODELOS Y TOMA DE DESICIONES EN MERCADEO"]
[null,null,null,null,null,null,null,null,null,null,null,null,null,null,null,null,null,null,null,null,null,3426,1820,"DARIO ERNESTO CORREAL TORRES"]
[null,null,null,null,null,null,null,null,null,null,null,null,null,null,null,null,null,null,null,null,null,3431,167,"ENCUESTA CIDE"]
[null,null,null,null,null,null,null,null,null,null,null,null,null,null,null,null,null,null,null,null,null,3435,3371,"ESTRELLAS, NEBULOSAS Y GALAXIAS: ASTRONOMIA PRACTICA"]
[null,null,null,null,null,null,null,null,null,null,null,null,null,null,null,null,null,null,null,null,null,3436,1972,"AREAS DE CONTAMINACION MAVDT"]
[null,null,null,null,null,null,null,null,null,null,null,null,null,null,null,null,null,null,null,null,null,3441,421,"DNP - CALIDAD DE EMPLEO"]
[null,null,null,null,null,null,null,null,null,null,null,null,null,null,null,null,null,null,null,null,null,3445,3444,"FONDO PARA INCENTIVO DE LA INVESTIGACION"]
[null,null,null,null,null,null,null,null,null,null,null,null,null,null,null,null,null,null,null,null,null,3450,321,"ESPECIALIZACION EN AMBIENTAL 2009-1"]
[null,null,null,null,null,null,null,null,null,null,null,null,null,null,null,null,null,null,null,null,null,3453,3372,"II CONGRESO INTERNACIONAL DE ANTROPOLOGIA"]
[null,null,null,null,null,null,null,null,null,null,null,null,null,null,null,null,null,null,null,null,null,3455,3571,"DOCTORADO EN PSICOLOGIA"]
[null,null,null,null,null,null,null,null,null,null,null,null,null,null,null,null,null,null,null,null,null,3460,2480,"EGOB INVESTIGACIONES CONSOLIDADO"]
[null,null,null,null,null,null,null,null,null,null,null,null,null,null,null,null,null,null,null,null,null,3462,3124,"ARREGLO FACHADA EDIFICIO JULIO MARIO SANTO DOMINGO - 2008"]
[null,null,null,null,null,null,null,null,null,null,null,null,null,null,null,null,null,null,null,null,null,3465,3569,"DOCTORADO EN HISTORIA"]
[null,null,null,null,null,null,null,null,null,null,null,null,null,null,null,null,null,null,null,null,null,3470,3903,"EVENTO ITC"]
[null,null,null,null,null,null,null,null,null,null,null,null,null,null,null,null,null,null,null,null,null,3474,1963,"ACTUALIZACION RAS"]
[null,null,null,null,null,null,null,null,null,null,null,null,null,null,null,null,null,null,null,null,null,3479,53,"COLCIENCIAS 1204-452-21129 J. DUSSAN"]
[null,null,null,null,null,null,null,null,null,null,null,null,null,null,null,null,null,null,null,null,null,3482,53,"COLCIENCIAS 1204-452-21090 M. VIVES"]
[null,null,null,null,null,null,null,null,null,null,null,null,null,null,null,null,null,null,null,null,null,3484,107,"BANREP200824-J.MORENO"]
[null,null,null,null,null,null,null,null,null,null,null,null,null,null,null,null,null,null,null,null,null,3489,1937,"INFORMATICA MINCOMUNICACIONES - ACAC FASE II"]
[null,null,null,null,null,null,null,null,null,null,null,null,null,null,null,null,null,null,null,null,null,3491,1975,"T - LAPSE PRODESA"]
[null,null,null,null,null,null,null,null,null,null,null,null,null,null,null,null,null,null,null,null,null,3494,3390,"PROTIPADO EN DIDEÑO"]
[null,null,null,null,null,null,null,null,null,null,null,null,null,null,null,null,null,null,null,null,null,3499,1979,"COLCIENCIAS DEFORMACION DE MEMBRANAS"]
[null,null,null,null,null,null,null,null,null,null,null,null,null,null,null,null,null,null,null,null,null,3503,2102,"FONDO DOTACION BIBLIOTECA ESCUELA DE GOBIERNO"]
[null,null,null,null,null,null,null,null,null,null,null,null,null,null,null,null,null,null,null,null,null,3508,1972,"EAAB DESARROLLO LIMPIO VERTIMENTOS INDUSTRIALES"]
[null,null,null,null,null,null,null,null,null,null,null,null,null,null,null,null,null,null,null,null,null,3509,167,"PLANTACION SOYA Y MAIZ COACOL - CEGA"]
[null,null,null,null,null,null,null,null,null,null,null,null,null,null,null,null,null,null,null,null,null,3515,108,"I JORNADAS DE ADSORCION Y MATERIALES POROSOS"]
[null,null,null,null,null,null,null,null,null,null,null,null,null,null,null,null,null,null,null,null,null,3518,397,"ESPECIALIZACION EN SEGURIDAD DE LA INFORMACION PROMOCION 4 (2009)"]
[null,null,null,null,null,null,null,null,null,null,null,null,null,null,null,null,null,null,null,null,null,3523,53,"AZA 08-836 A. AMEZQUITA"]
[null,null,null,null,null,null,null,null,null,null,null,null,null,null,null,null,null,null,null,null,null,3524,42,"BEATRIZ SABOGAL - PROF. ASISTENTE"]
[null,null,null,null,null,null,null,null,null,null,null,null,null,null,null,null,null,null,null,null,null,3528,3087,"COLCIENCIAS ALCOHOL CARBURANTE"]
[null,null,null,null,null,null,null,null,null,null,null,null,null,null,null,null,null,null,null,null,null,3532,1852,"PROYECTO HETERONIMIA POETICA"]
[null,null,null,null,null,null,null,null,null,null,null,null,null,null,null,null,null,null,null,null,null,3537,1852,"PROYECTO JUAN MEJIA"]
[null,null,null,null,null,null,null,null,null,null,null,null,null,null,null,null,null,null,null,null,null,3538,1852,"PROYECTO JORGE GARCIA"]
[null,null,null,null,null,null,null,null,null,null,null,null,null,null,null,null,null,null,null,null,null,3544,647,"REMODELACION AUDITORIO LLERAS - 2009"]
[null,null,null,null,null,null,null,null,null,null,null,null,null,null,null,null,null,null,null,null,null,3547,1963,"EAAB RED DE DISTRIBUCION"]
[null,null,null,null,null,null,null,null,null,null,null,null,null,null,null,null,null,null,null,null,null,3552,2864,"FEGV DOCTORADO EN ADMINISTRACION"]
[null,null,null,null,null,null,null,null,null,null,null,null,null,null,null,null,null,null,null,null,null,3553,1056,"FONDO RECONOCIMIENTO ACADEMICO ESCUELA DE GOBIERNO"]
[null,null,null,null,null,null,null,null,null,null,null,null,null,null,null,null,null,null,null,null,null,3557,3556,"ADMINISTRACION SUR"]
[null,null,null,null,null,null,null,null,null,null,null,null,null,null,null,null,null,null,null,null,null,3562,3362,"APOYO DOCTORADO ANTROPOLOGIA"]
[null,null,null,null,null,null,null,null,null,null,null,null,null,null,null,null,null,null,null,null,null,3566,647,"OPTIMIZACION CONSOLIDADOR - 2009"]
[null,null,null,null,null,null,null,null,null,null,null,null,null,null,null,null,null,null,null,null,null,3567,3566,"REPARACION VIA HACIENDA EL NOVICIADO - 2009"]
[null,null,null,null,null,null,null,null,null,null,null,null,null,null,null,null,null,null,null,null,null,3572,1928,"FONDO DE INVESTIGACION 2009"]
[null,null,null,null,null,null,null,null,null,null,null,null,null,null,null,null,null,null,null,null,null,3575,2876,"BID INNOVACION"]
[null,null,null,null,null,null,null,null,null,null,null,null,null,null,null,null,null,null,null,null,null,3581,3580,"OFICINAS DE FISICA BLOQUE I OBRA CIVIL"]
[null,null,null,null,null,null,null,null,null,null,null,null,null,null,null,null,null,null,null,null,null,3582,3580,"OFICINAS DE FISICA BLOQUE I IMPUESTOS Y OTROS GASTOS"]
[null,null,null,null,null,null,null,null,null,null,null,null,null,null,null,null,null,null,null,null,null,3587,167,"ARRECIFES CORALINOS PROTEGIDOS - NOAA"]
[null,null,null,null,null,null,null,null,null,null,null,null,null,null,null,null,null,null,null,null,null,3591,167,"PATRONES DE DESPLAZAMIENTO DE TRABAJADORES - ACUERDO HARVARD"]
[null,null,null,null,null,null,null,null,null,null,null,null,null,null,null,null,null,null,null,null,null,3595,1684,"FUNDRAISING"]
[null,null,null,null,null,null,null,null,null,null,null,null,null,null,null,null,null,null,null,null,null,3596,1820,"JUAN PABLO BOCAREJO"]
[null,null,null,null,null,null,null,null,null,null,null,null,null,null,null,null,null,null,null,null,null,3601,324,"ELAGEC III ( ENCUENTRO LATINOAMERICANO DE GESTION Y ECONOMIA DE LA CONSTRUCCION)"]
[null,null,null,null,null,null,null,null,null,null,null,null,null,null,null,null,null,null,null,null,null,3604,1960,"COLCIENCIAS SIMULACION DE TIRO"]
[null,null,null,null,null,null,null,null,null,null,null,null,null,null,null,null,null,null,null,null,null,3610,156,"MAESTRIA APLICADA EN ECONOMIA"]
[null,null,null,null,null,null,null,null,null,null,null,null,null,null,null,null,null,null,null,null,null,3611,3371,"PP EN GESTION DE CALIDAD E INOCUIDAD EN LA INDUSTRIA Y AUDITOR INTERNO EN HACCP"]
[null,null,null,null,null,null,null,null,null,null,null,null,null,null,null,null,null,null,null,null,null,3616,2688,"COT MEN GUA 2009"]
[null,null,null,null,null,null,null,null,null,null,null,null,null,null,null,null,null,null,null,null,null,3620,210,"CIENCIA POLITICA DOCTORADO"]
[null,null,null,null,null,null,null,null,null,null,null,null,null,null,null,null,null,null,null,null,null,3625,1670,"CELEBRACION \" EL BOBO\""]
[null,null,null,null,null,null,null,null,null,null,null,null,null,null,null,null,null,null,null,null,null,3628,167,"PREMIO LIBRO JC. ECHEVERRY / M DEL P. LOPEZ"]
[null,null,null,null,null,null,null,null,null,null,null,null,null,null,null,null,null,null,null,null,null,3630,53,"BANREP200909 - B. ZIMMERMMANN"]
[null,null,null,null,null,null,null,null,null,null,null,null,null,null,null,null,null,null,null,null,null,3635,167,"ACTUALIZACION DEL MODELO CONFIS"]
[null,null,null,null,null,null,null,null,null,null,null,null,null,null,null,null,null,null,null,null,null,3637,124,"FONDO BECA CIRO ANGARITA CONSOLIDADOR"]
[null,null,null,null,null,null,null,null,null,null,null,null,null,null,null,null,null,null,null,null,null,3640,1670,"MEDICINA PREGRADO CONSOLIDADOR"]
[null,null,null,null,null,null,null,null,null,null,null,null,null,null,null,null,null,null,null,null,null,3645,3566,"TRASLADOS BIBLIOTECA DE ECONOMIA - 2009"]
[null,null,null,null,null,null,null,null,null,null,null,null,null,null,null,null,null,null,null,null,null,3649,3358,"PLAN DE INVERSIONES DECANATURA"]
[null,null,null,null,null,null,null,null,null,null,null,null,null,null,null,null,null,null,null,null,null,3654,167,"PROYECTOS VARIOS CEDE 2009"]
[null,null,null,null,null,null,null,null,null,null,null,null,null,null,null,null,null,null,null,null,null,3657,3656,"IESO PROYECTOS VARIOS"]
[null,null,null,null,null,null,null,null,null,null,null,null,null,null,null,null,null,null,null,null,null,3659,362,"ING. INDUSTRIAL PREGRADO CONSOLIDADOR"]
[null,null,null,null,null,null,null,null,null,null,null,null,null,null,null,null,null,null,null,null,null,3664,167,"BIOTECNOLOGIA PARA CARNE BOVINA"]
[null,null,null,null,null,null,null,null,null,null,null,null,null,null,null,null,null,null,null,null,null,3666,3899,"CAPITAL SEMILLA: INDICADORES EMPRESAS EN CRISIS"]
[null,null,null,null,null,null,null,null,null,null,null,null,null,null,null,null,null,null,null,null,null,3669,3358,"PLAN DE INVERSIONES DISEÑO"]
[null,null,null,null,null,null,null,null,null,null,null,null,null,null,null,null,null,null,null,null,null,3674,1806,"FONDO INVESTIGACION CARLOS FRANCO"]
[null,null,null,null,null,null,null,null,null,null,null,null,null,null,null,null,null,null,null,null,null,3678,3371,"HONGOS OPORTUNISTAS PATOGENOS: IDENTIFICACION Y CARACTERIZACION"]
[null,null,null,null,null,null,null,null,null,null,null,null,null,null,null,null,null,null,null,null,null,3683,3566,"ADECUACION CASA ESPINOSA CONVENIO ROOSVELT -2009"]
[null,null,null,null,null,null,null,null,null,null,null,null,null,null,null,null,null,null,null,null,null,3684,1806,"FONDO DE INVESTIGACION CARLOS CHIRIBOGA"]
[null,null,null,null,null,null,null,null,null,null,null,null,null,null,null,null,null,null,null,null,null,3688,3691,"FONDO BBVA"]
[null,null,null,null,null,null,null,null,null,null,null,null,null,null,null,null,null,null,null,null,null,3693,2610,"CODENSA CAMBIO CLIMATICO FASE II"]
[null,null,null,null,null,null,null,null,null,null,null,null,null,null,null,null,null,null,null,null,null,3698,461,"SOPORTE SITIOS WEB"]
[null,null,null,null,null,null,null,null,null,null,null,null,null,null,null,null,null,null,null,null,null,3700,4197,"CURSOS CORPORATIVOS"]
[null,null,null,null,null,null,null,null,null,null,null,null,null,null,null,null,null,null,null,null,null,3703,2879,"CORPORINOQUIA"]
[null,null,null,null,null,null,null,null,null,null,null,null,null,null,null,null,null,null,null,null,null,3707,391,"INVERSION"]
[null,null,null,null,null,null,null,null,null,null,null,null,null,null,null,null,null,null,null,null,null,3712,2545,"WORK FLOW"]
[null,null,null,null,null,null,null,null,null,null,null,null,null,null,null,null,null,null,null,null,null,3713,2545,"NOTAS"]
[null,null,null,null,null,null,null,null,null,null,null,null,null,null,null,null,null,null,null,null,null,3717,3372,"CHINO III"]
[null,null,null,null,null,null,null,null,null,null,null,null,null,null,null,null,null,null,null,null,null,3722,439,"CURSO VERANO ARTE"]
[null,null,null,null,null,null,null,null,null,null,null,null,null,null,null,null,null,null,null,null,null,3727,1992,"INTERFACULTADES TRANSPORTE ESCOLAR"]
[null,null,null,null,null,null,null,null,null,null,null,null,null,null,null,null,null,null,null,null,null,3729,1941,"INTERFACULTADES CICLOVIAS Y CICLORUTAS"]
[null,null,null,null,null,null,null,null,null,null,null,null,null,null,null,null,null,null,null,null,null,3732,3731,"EL PLAN PILOTO DE LE CORBUSIER PARA BOGOTA"]
[null,null,null,null,null,null,null,null,null,null,null,null,null,null,null,null,null,null,null,null,null,3737,3731,"PROYECTO DE VIVIENDA EN EL TROPICO HUMEDO"]
[null,null,null,null,null,null,null,null,null,null,null,null,null,null,null,null,null,null,null,null,null,3741,3731,"CARTILLAS DE ARQUITECTURA PARA ARQUITECTOS"]
[null,null,null,null,null,null,null,null,null,null,null,null,null,null,null,null,null,null,null,null,null,3742,1977,"SIB - SIPAIM 2009"]
[null,null,null,null,null,null,null,null,null,null,null,null,null,null,null,null,null,null,null,null,null,3747,3372,"CHINO IV"]
[null,null,null,null,null,null,null,null,null,null,null,null,null,null,null,null,null,null,null,null,null,3750,1820,"JUAN CARLOS BOHORQUEZ"]
[null,null,null,null,null,null,null,null,null,null,null,null,null,null,null,null,null,null,null,null,null,3756,3899,"CAPITAL SEMILLA: RIESGO MACRO"]
[null,null,null,null,null,null,null,null,null,null,null,null,null,null,null,null,null,null,null,null,null,3757,3899,"CAPITAL SEMILLA: ANALISIS INSTITUCIONAL Y DEL COMPORTAMIENTO PARA EL ESTUDIO DE LA GESTACION COLECTIVA"]
[null,null,null,null,null,null,null,null,null,null,null,null,null,null,null,null,null,null,null,null,null,3762,3389,"CONVOCATORIA PROY. INVESTIGACION Y CREACION 2009"]
[null,null,null,null,null,null,null,null,null,null,null,null,null,null,null,null,null,null,null,null,null,3766,3762,"SISTEMA TRANSPERIFERICO"]
[null,null,null,null,null,null,null,null,null,null,null,null,null,null,null,null,null,null,null,null,null,3770,3767,"REDES"]
[null,null,null,null,null,null,null,null,null,null,null,null,null,null,null,null,null,null,null,null,null,3771,1960,"ECOS NORD VALIDACION INDUSTRIAL"]
[null,null,null,null,null,null,null,null,null,null,null,null,null,null,null,null,null,null,null,null,null,3776,3372,"PROGRAMA DE INGLES PARA EMPLEADOS NIVEL BASICO I"]
[null,null,null,null,null,null,null,null,null,null,null,null,null,null,null,null,null,null,null,null,null,3779,3370,"CURSOS LIBRES DE POSGRADO - CEPER"]
[null,null,null,null,null,null,null,null,null,null,null,null,null,null,null,null,null,null,null,null,null,3785,2877,"PNTIC"]
[null,null,null,null,null,null,null,null,null,null,null,null,null,null,null,null,null,null,null,null,null,3786,3566,"ADECUACION OFICINAS EDUCACION CONTINUADA - 2009"]
[null,null,null,null,null,null,null,null,null,null,null,null,null,null,null,null,null,null,null,null,null,3791,1707,"PROTEINAS DE PLASMODIUM FALCIPARUM"]
[null,null,null,null,null,null,null,null,null,null,null,null,null,null,null,null,null,null,null,null,null,3795,1937,"SISCO ACAC - MINCOMUNICACIONES"]
[null,null,null,null,null,null,null,null,null,null,null,null,null,null,null,null,null,null,null,null,null,3800,24,"DUKE EXPERIMENTO"]
[null,null,null,null,null,null,null,null,null,null,null,null,null,null,null,null,null,null,null,null,null,3803,4197,"CONSOLIDADOR CIDER - 2009"]
[null,null,null,null,null,null,null,null,null,null,null,null,null,null,null,null,null,null,null,null,null,3805,3372,"EL JAPON DEL ZEN Y EL JAPON DEL POP \"LA CULTURA DEL SOL NACIENTE\""]
[null,null,null,null,null,null,null,null,null,null,null,null,null,null,null,null,null,null,null,null,null,3810,3803,"PROG.DE ESPAÑOL EMPL DE LOS ANDES - TALLER DE COMUNICACION ESCRITA - NIVEL 1"]
[null,null,null,null,null,null,null,null,null,null,null,null,null,null,null,null,null,null,null,null,null,3813,3803,"PRODUCCION, MEDIO AMBIENTE Y DESARROLLO - 2009"]
[null,null,null,null,null,null,null,null,null,null,null,null,null,null,null,null,null,null,null,null,null,3815,4197,"CONSOLIDADOR ESCUELA DE GOBIERNO"]
[null,null,null,null,null,null,null,null,null,null,null,null,null,null,null,null,null,null,null,null,null,3820,3370,"TALLER DE INTERPRETACION BARROCA PARA CUERDAS POR STANLEY RITCHIE"]
[null,null,null,null,null,null,null,null,null,null,null,null,null,null,null,null,null,null,null,null,null,3825,167,"LICENCIAMIENTO AMBIENTAL"]
[null,null,null,null,null,null,null,null,null,null,null,null,null,null,null,null,null,null,null,null,null,3829,1940,"ARMADA NACIONAL MECI FASE II"]
[null,null,null,null,null,null,null,null,null,null,null,null,null,null,null,null,null,null,null,null,null,3832,137,"GTZ  SOBERANIA NACIONAL"]
[null,null,null,null,null,null,null,null,null,null,null,null,null,null,null,null,null,null,null,null,null,3834,3926,"FONDO DE DESARROLLO PERSONAL ADMINISTRATIVO - LIBRERÍA"]
[null,null,null,null,null,null,null,null,null,null,null,null,null,null,null,null,null,null,null,null,null,3839,1937,"TRANSMILENIO COMUNICACIONES"]
[null,null,null,null,null,null,null,null,null,null,null,null,null,null,null,null,null,null,null,null,null,3842,3566,"HERMES PISO 1 2 3 Y 4"]
[null,null,null,null,null,null,null,null,null,null,null,null,null,null,null,null,null,null,null,null,null,3844,122,"LIBRO BLANCO DE DROGAS"]
[null,null,null,null,null,null,null,null,null,null,null,null,null,null,null,null,null,null,null,null,null,3849,397,"ESPECIALIZACION EN COMERCIO ELECTRONICO 2010"]
[null,null,null,null,null,null,null,null,null,null,null,null,null,null,null,null,null,null,null,null,null,3854,53,"LEMVA"]
[null,null,null,null,null,null,null,null,null,null,null,null,null,null,null,null,null,null,null,null,null,3858,415,"ESP. GESTION REGIONAL DEL DESARROLLO"]
[null,null,null,null,null,null,null,null,null,null,null,null,null,null,null,null,null,null,null,null,null,3859,415,"ESP. ORGANIZACIONES, RESPONSABILIDAD SOCIAL Y DESARROLLO"]
[null,null,null,null,null,null,null,null,null,null,null,null,null,null,null,null,null,null,null,null,null,3863,3566,"REMODELACION CIMPAT - 2009"]
[null,null,null,null,null,null,null,null,null,null,null,null,null,null,null,null,null,null,null,null,null,3868,3866,"OVERHEAD FACULTAD DE MEDICINA"]
[null,null,null,null,null,null,null,null,null,null,null,null,null,null,null,null,null,null,null,null,null,3873,1649,"SERVICIOS DE DESARROLLO"]
[null,null,null,null,null,null,null,null,null,null,null,null,null,null,null,null,null,null,null,null,null,3875,2449,"ESPECIALIZACION EN GERENCIA DE EMPRESAS TELECOMUNIC PROM 13 ENE - DIC 2010"]
[null,null,null,null,null,null,null,null,null,null,null,null,null,null,null,null,null,null,null,null,null,3878,1979,"CEIS DIGITALIZACION  DE PLACAS"]
[null,null,null,null,null,null,null,null,null,null,null,null,null,null,null,null,null,null,null,null,null,3883,4197,"PLAN DE CAPACITACION EN ESTRATEGIA DE GESTION"]
[null,null,null,null,null,null,null,null,null,null,null,null,null,null,null,null,null,null,null,null,null,3887,2868,"UNAL"]
[null,null,null,null,null,null,null,null,null,null,null,null,null,null,null,null,null,null,null,null,null,3888,2688,"COT MEN 2009 PER II"]
[null,null,null,null,null,null,null,null,null,null,null,null,null,null,null,null,null,null,null,null,null,3892,1820,"WALSON L. VARGAS"]
[null,null,null,null,null,null,null,null,null,null,null,null,null,null,null,null,null,null,null,null,null,3897,6,"CONSOLIDACION PREGRADO"]
[null,null,null,null,null,null,null,null,null,null,null,null,null,null,null,null,null,null,null,null,null,3902,1774,"CONSOLIDADOR CONVENIOS Y EVENTOS"]
[null,null,null,null,null,null,null,null,null,null,null,null,null,null,null,null,null,null,null,null,null,3904,3902,"EVENTOS NACIONALES E INTERNACIONALES"]
[null,null,null,null,null,null,null,null,null,null,null,null,null,null,null,null,null,null,null,null,null,3907,1774,"FONDOS EJECUTABLES"]
[null,null,null,null,null,null,null,null,null,null,null,null,null,null,null,null,null,null,null,null,null,3912,2864,"BECAS REGIONALES"]
[null,null,null,null,null,null,null,null,null,null,null,null,null,null,null,null,null,null,null,null,null,3916,321,"Especialización Ambiental 2010-1_2011-2"]
[null,null,null,null,null,null,null,null,null,null,null,null,null,null,null,null,null,null,null,null,null,3917,124,"VII JORNADAS DE CONTRATACIÓN ESTATAL"]
[null,null,null,null,null,null,null,null,null,null,null,null,null,null,null,null,null,null,null,null,null,3922,53,"ECOPETROL – PABLO STEVENSON"]
[null,null,null,null,null,null,null,null,null,null,null,null,null,null,null,null,null,null,null,null,null,3925,3566,"Remodelación Bloque AU-05 Comunicaciones-2009"]
[null,null,null,null,null,null,null,null,null,null,null,null,null,null,null,null,null,null,null,null,null,3931,3929,"PARQUE REGIONAL METROPOLITANO O ZONAL - SDP"]
[null,null,null,null,null,null,null,null,null,null,null,null,null,null,null,null,null,null,null,null,null,3932,3929,"DIRECTRICES DE ORDENAMIENTO EQUIPAMIENTOS - SDP"]
[null,null,null,null,null,null,null,null,null,null,null,null,null,null,null,null,null,null,null,null,null,3937,53,"BANREP200935 - SILVIA RESTREPO"]
[null,null,null,null,null,null,null,null,null,null,null,null,null,null,null,null,null,null,null,null,null,3941,1964,"COLCIENCIAS DISTRIBUCION AGUA POTABLE"]
[null,null,null,null,null,null,null,null,null,null,null,null,null,null,null,null,null,null,null,null,null,3945,87,"EQUIPOS LABORATORIOS DE INVESTIGACION DE FISICA"]
[null,null,null,null,null,null,null,null,null,null,null,null,null,null,null,null,null,null,null,null,null,3946,1761,"METODOLOGIA ZONA"]
[null,null,null,null,null,null,null,null,null,null,null,null,null,null,null,null,null,null,null,null,null,3951,3359,"INVERSIONES LABORATORIOS QUIMICA"]
[null,null,null,null,null,null,null,null,null,null,null,null,null,null,null,null,null,null,null,null,null,3954,421,"CLAG 2010"]
[null,null,null,null,null,null,null,null,null,null,null,null,null,null,null,null,null,null,null,null,null,3960,1984,"COLCIENCIAS A & P ALMIDON"]
[null,null,null,null,null,null,null,null,null,null,null,null,null,null,null,null,null,null,null,null,null,3961,3085,"FOPAE ALOJAMIENTOS INSTITUCIONALES"]
[null,null,null,null,null,null,null,null,null,null,null,null,null,null,null,null,null,null,null,null,null,3967,3966,"CARTOGRAFIAS DE LA IDENTIDAD -SERIE TESIS DE POSGRADO"]
[null,null,null,null,null,null,null,null,null,null,null,null,null,null,null,null,null,null,null,null,null,3970,1937,"MEDICIONES ADM - NO MATRICULADOS"]
[null,null,null,null,null,null,null,null,null,null,null,null,null,null,null,null,null,null,null,null,null,3975,1806,"ESTRATEGIA HABITOS SALUDABLES FSFB - UA"]
[null,null,null,null,null,null,null,null,null,null,null,null,null,null,null,null,null,null,null,null,null,3976,53,"INTERFACULTADES 2009 - ADRIANA BERNAL"]
[null,null,null,null,null,null,null,null,null,null,null,null,null,null,null,null,null,null,null,null,null,3980,3566,"ADECUACION BIOCOMPUTO BLOQUE Q - 508 -2009"]
[null,null,null,null,null,null,null,null,null,null,null,null,null,null,null,null,null,null,null,null,null,3985,1975,"T - LAPSE PROCESO CONSTRUCTIVO"]
[null,null,null,null,null,null,null,null,null,null,null,null,null,null,null,null,null,null,null,null,null,3988,42,"PROYECCION INVESTIGACION - FACULTAD DE CIENCIAS"]
[null,null,null,null,null,null,null,null,null,null,null,null,null,null,null,null,null,null,null,null,null,3990,3566,"ADECUACION BLOQUE C - 2009"]
[null,null,null,null,null,null,null,null,null,null,null,null,null,null,null,null,null,null,null,null,null,3995,1991,"ECOPETROL_APPLUS SUMINISTRO ENERGIA"]
[null,null,null,null,null,null,null,null,null,null,null,null,null,null,null,null,null,null,null,null,null,4000,740,"PROYECTO SISTEMA FINANCIERO Y ADMINISTRATIVO"]
[null,null,null,null,null,null,null,null,null,null,null,null,null,null,null,null,null,null,null,null,null,4004,1012,"CENTROS"]
[null,null,null,null,null,null,null,null,null,null,null,null,null,null,null,null,null,null,null,null,null,4005,1954,"COLCIENCIAS HURTO DE ENERGIA"]
[null,null,null,null,null,null,null,null,null,null,null,null,null,null,null,null,null,null,null,null,null,4009,3566,"TERRAZA CUBIERTA VERDE ED. MARIO LASERNA - 09"]
[null,null,null,null,null,null,null,null,null,null,null,null,null,null,null,null,null,null,null,null,null,4014,3359,"FISICA LAB. DE BIOFISICA"]
[null,null,null,null,null,null,null,null,null,null,null,null,null,null,null,null,null,null,null,null,null,4017,3359,"FISICA LAB. DE PREPARACION DE MUESTRAS"]
[null,null,null,null,null,null,null,null,null,null,null,null,null,null,null,null,null,null,null,null,null,4019,3359,"INVERSIONES DPTO. DE CIENCIAS BIOLOGICAS"]
[null,null,null,null,null,null,null,null,null,null,null,null,null,null,null,null,null,null,null,null,null,4024,2163,"Joven Investigador Edgar José Fernando                        "]
[null,null,null,null,null,null,null,null,null,null,null,null,null,null,null,null,null,null,null,null,null,4029,53,"JOVEN INVESTIGADOR 2009 COLCIENCIAS - DAIRO ESCOBAR"]
[null,null,null,null,null,null,null,null,null,null,null,null,null,null,null,null,null,null,null,null,null,4033,167,"DEVELOP THE BASIC SET OF FOOD SECURITY INFORMATION (DATASET) FOR COLOMBIA"]
[null,null,null,null,null,null,null,null,null,null,null,null,null,null,null,null,null,null,null,null,null,4034,2871,"CAF"]
[null,null,null,null,null,null,null,null,null,null,null,null,null,null,null,null,null,null,null,null,null,4038,233,"CENTRO DE SERVICIO DE TRADUCCION LENGUAJES"]
[null,null,null,null,null,null,null,null,null,null,null,null,null,null,null,null,null,null,null,null,null,4043,2610,"ESTUDIO DE MERCADEO GASES DE OCCIDENTE"]
[null,null,null,null,null,null,null,null,null,null,null,null,null,null,null,null,null,null,null,null,null,4048,647,"OPTIMIZACION CONSOLIDADOR 2010"]
[null,null,null,null,null,null,null,null,null,null,null,null,null,null,null,null,null,null,null,null,null,4050,647,"LABORATORIO DE MEDICINA 2010"]
[null,null,null,null,null,null,null,null,null,null,null,null,null,null,null,null,null,null,null,null,null,4053,647,"REMODELACION EDIFICIO A PISO TERCERO 2010"]
[null,null,null,null,null,null,null,null,null,null,null,null,null,null,null,null,null,null,null,null,null,4058,2219,"DOTACION TECNOLOGIA REMODELACION BIBLIOTECA Y CASA BLOQUE I"]
[null,null,null,null,null,null,null,null,null,null,null,null,null,null,null,null,null,null,null,null,null,4062,2219,"DOTACION TECNOLOGIA REMODELACION LABORATORIO EDIFICIO J"]
[null,null,null,null,null,null,null,null,null,null,null,null,null,null,null,null,null,null,null,null,null,4063,2219,"DOTACION TECNOLOGIA LABORATORIOS DE QUIMICA EDIFICIO Q"]
[null,null,null,null,null,null,null,null,null,null,null,null,null,null,null,null,null,null,null,null,null,4067,167,"PLAN INVESTIGACION - J. RENDON"]
[null,null,null,null,null,null,null,null,null,null,null,null,null,null,null,null,null,null,null,null,null,4072,421,"USO DE PLANTAS NATIVAS"]
[null,null,null,null,null,null,null,null,null,null,null,null,null,null,null,null,null,null,null,null,null,4077,4011,"ESTRATEGIA 4 - MODULOS DE FORMACION 2010 : ACA"]
[null,null,null,null,null,null,null,null,null,null,null,null,null,null,null,null,null,null,null,null,null,4079,2688,"COLCIENCIAS JOVENES INVESTIGADORES : INV"]
[null,null,null,null,null,null,null,null,null,null,null,null,null,null,null,null,null,null,null,null,null,4082,1459,"HARVARD LOS ANDES FUND"]
[null,null,null,null,null,null,null,null,null,null,null,null,null,null,null,null,null,null,null,null,null,4087,435,"GIRA CORO UNIANDES"]
[null,null,null,null,null,null,null,null,null,null,null,null,null,null,null,null,null,null,null,null,null,4089,1975,"HERRAMIENTA COMPUTACIONAL CONCONCRETO"]
[null,null,null,null,null,null,null,null,null,null,null,null,null,null,null,null,null,null,null,null,null,4092,1991,"BP ASESORIAS ANALISIS DE DECISIONES"]
[null,null,null,null,null,null,null,null,null,null,null,null,null,null,null,null,null,null,null,null,null,4097,3370,"FESTIVAL DE GUITARRA"]
[null,null,null,null,null,null,null,null,null,null,null,null,null,null,null,null,null,null,null,null,null,4101,1972,"ACUEDUCTO MANTENIMIENTO SEDIMENTOS"]
[null,null,null,null,null,null,null,null,null,null,null,null,null,null,null,null,null,null,null,null,null,4106,2877,"MINTIC"]
[null,null,null,null,null,null,null,null,null,null,null,null,null,null,null,null,null,null,null,null,null,4107,53,"DOCTORADO BIOMICS"]
[null,null,null,null,null,null,null,null,null,null,null,null,null,null,null,null,null,null,null,null,null,4113,4112,"SISTEMA INFORMACION"]
[null,null,null,null,null,null,null,null,null,null,null,null,null,null,null,null,null,null,null,null,null,4116,4070,"PUBLICACION CONVERSACIONES DE ARQUITECTURA COLOMBIANA VOL 4"]
[null,null,null,null,null,null,null,null,null,null,null,null,null,null,null,null,null,null,null,null,null,4118,4117,"BIBLIOTECA DE ECONOMIA GERENCIA E INTERVENTORIA DE OBRA"]
[null,null,null,null,null,null,null,null,null,null,null,null,null,null,null,null,null,null,null,null,null,4121,4117,"BIBLIOTECA DE ECONOMIA DISEÑO"]
[null,null,null,null,null,null,null,null,null,null,null,null,null,null,null,null,null,null,null,null,null,4126,4002,"FONDO DE BECAS CIFE: ACA"]
[null,null,null,null,null,null,null,null,null,null,null,null,null,null,null,null,null,null,null,null,null,4130,53,"DOCTORADO LDMB - CARLOS JARAMILLO"]
[null,null,null,null,null,null,null,null,null,null,null,null,null,null,null,null,null,null,null,null,null,4135,167,"HIDROELECTRICA RIO BUEY"]
[null,null,null,null,null,null,null,null,null,null,null,null,null,null,null,null,null,null,null,null,null,4136,124,"LA SOCIEDAD POR ACCIONES SIMPLIFICADA : EVOLUCION Y PERSPECTIVAS"]
[null,null,null,null,null,null,null,null,null,null,null,null,null,null,null,null,null,null,null,null,null,4142,1820,"OMAR DARIO LOPEZ"]
[null,null,null,null,null,null,null,null,null,null,null,null,null,null,null,null,null,null,null,null,null,4145,4144,"PROCESOS EDITORIALES"]
[null,null,null,null,null,null,null,null,null,null,null,null,null,null,null,null,null,null,null,null,null,4150,150,"SECRETARIA GENERAL"]
[null,null,null,null,null,null,null,null,null,null,null,null,null,null,null,null,null,null,null,null,null,4151,150,"DECANATURA"]
[null,null,null,null,null,null,null,null,null,null,null,null,null,null,null,null,null,null,null,null,null,4155,4048,"OPTIMIZACION EDIFICIO MARIO LASERNA - 2010"]
[null,null,null,null,null,null,null,null,null,null,null,null,null,null,null,null,null,null,null,null,null,4160,2283,"PROYECTO PROFESOR ASISTENTE JP. ASCHNER"]
[null,null,null,null,null,null,null,null,null,null,null,null,null,null,null,null,null,null,null,null,null,4163,42,"ANDREW CRAWFORD - PROF. ASISTENTE"]
[null,null,null,null,null,null,null,null,null,null,null,null,null,null,null,null,null,null,null,null,null,4165,42,"JOHN BRANDLEY - PROF. ASISTENTE"]
[null,null,null,null,null,null,null,null,null,null,null,null,null,null,null,null,null,null,null,null,null,4170,3558,"BID MOVILIDAD URBANA SUSTENTABLE"]
[null,null,null,null,null,null,null,null,null,null,null,null,null,null,null,null,null,null,null,null,null,4175,3803,"CIUDADES Y REGIONES FRENTE AL CAMBIO CLIMATICO: RETOS E INSTRUMENTOS PARA LA ADAPTACION"]
[null,null,null,null,null,null,null,null,null,null,null,null,null,null,null,null,null,null,null,null,null,4179,4177,"BLOQUES GB  Y  G DOTACION Y MOBILIARIO"]
[null,null,null,null,null,null,null,null,null,null,null,null,null,null,null,null,null,null,null,null,null,4180,4177,"BLOQUES GB  Y  G IMPUESTOS Y OTROS GASTOS"]
[null,null,null,null,null,null,null,null,null,null,null,null,null,null,null,null,null,null,null,null,null,4184,647,"PRELIMINARES BLOQUES GB Y G PLANTA FISICA - 2010"]
[null,null,null,null,null,null,null,null,null,null,null,null,null,null,null,null,null,null,null,null,null,4189,93,"BANREP 201006 - GERMAN PRIETO"]
[null,null,null,null,null,null,null,null,null,null,null,null,null,null,null,null,null,null,null,null,null,4192,167,"DEBATE SOBRE POLITICA DE DROGAS EN COLOMBIA"]
[null,null,null,null,null,null,null,null,null,null,null,null,null,null,null,null,null,null,null,null,null,4194,4145,"PE5 - II CONGRESO COLOMBIANO DE CALIDAD DE AIRE"]
[null,null,null,null,null,null,null,null,null,null,null,null,null,null,null,null,null,null,null,null,null,4199,1937,"MEDICIONES ADM NO MATRICULADOS 2010-1"]
[null,null,null,null,null,null,null,null,null,null,null,null,null,null,null,null,null,null,null,null,null,4204,4145,"PE6 - II EDICION LIBRO MAURICIO SANCHEZ"]
[null,null,null,null,null,null,null,null,null,null,null,null,null,null,null,null,null,null,null,null,null,4208,461,"NOMINA - DIRECCION"]
[null,null,null,null,null,null,null,null,null,null,null,null,null,null,null,null,null,null,null,null,null,4209,461,"NOMINA - INFRAESTRUCTURA TECNOLOGICA"]
[null,null,null,null,null,null,null,null,null,null,null,null,null,null,null,null,null,null,null,null,null,4214,137,"MUJERES DESPLAZADAS - NORGLOBAL"]
[null,null,null,null,null,null,null,null,null,null,null,null,null,null,null,null,null,null,null,null,null,4218,647,"NUEVO EDIFICIO S PLANTA FISICA CONSOLIDADOR"]
[null,null,null,null,null,null,null,null,null,null,null,null,null,null,null,null,null,null,null,null,null,4223,4218,"NUEVO EDIFICIO S OBRA"]
[null,null,null,null,null,null,null,null,null,null,null,null,null,null,null,null,null,null,null,null,null,4226,4219,"NUEVO EDIFICIO TX DISEÑO"]
[null,null,null,null,null,null,null,null,null,null,null,null,null,null,null,null,null,null,null,null,null,4228,1649,"DIVULGACION ENCUESTA LONGITUDINAL"]
[null,null,null,null,null,null,null,null,null,null,null,null,null,null,null,null,null,null,null,null,null,4233,3803,"CURSO METODOS CUANTITATIVOS BASICOS"]
[null,null,null,null,null,null,null,null,null,null,null,null,null,null,null,null,null,null,null,null,null,4235,4048,"VOLVER A LOS ANDES 2010"]
[null,null,null,null,null,null,null,null,null,null,null,null,null,null,null,null,null,null,null,null,null,4238,1905,"SEMINARIO ISF"]
[null,null,null,null,null,null,null,null,null,null,null,null,null,null,null,null,null,null,null,null,null,4243,167,"PROGRAMA CIMIENTOS"]
[null,null,null,null,null,null,null,null,null,null,null,null,null,null,null,null,null,null,null,null,null,4247,4048,"LABORATORIOS DE QUIMICA - 2010"]
[null,null,null,null,null,null,null,null,null,null,null,null,null,null,null,null,null,null,null,null,null,4252,4048,"SALONES PILOTO ARQUITECTURA BLOQUE T - 2010"]
[null,null,null,null,null,null,null,null,null,null,null,null,null,null,null,null,null,null,null,null,null,4255,134,"VIII JORNADAS DE CONTRATACION ESTATAL 2010"]
[null,null,null,null,null,null,null,null,null,null,null,null,null,null,null,null,null,null,null,null,null,4257,134,"V FORO INTERNACIONAL DE DERECHO PRIVADO"]
[null,null,null,null,null,null,null,null,null,null,null,null,null,null,null,null,null,null,null,null,null,4262,3558,"ESTADISTICAS FPV"]
[null,null,null,null,null,null,null,null,null,null,null,null,null,null,null,null,null,null,null,null,null,4264,3999,"SED MOSQUERA 2010 CCT"]
[null,null,null,null,null,null,null,null,null,null,null,null,null,null,null,null,null,null,null,null,null,4267,4687,"CARACTERIZACION DEL TRAFICO"]
[null,null,null,null,null,null,null,null,null,null,null,null,null,null,null,null,null,null,null,null,null,4272,3707,"UASIG"]
[null,null,null,null,null,null,null,null,null,null,null,null,null,null,null,null,null,null,null,null,null,4276,2878,"CAFAM"]
[null,null,null,null,null,null,null,null,null,null,null,null,null,null,null,null,null,null,null,null,null,4281,3903,"LOUGHBOROUGH UNIVERSITY"]
[null,null,null,null,null,null,null,null,null,null,null,null,null,null,null,null,null,null,null,null,null,4282,163,"CONGRESO INTERNACIONAL 2010"]
[null,null,null,null,null,null,null,null,null,null,null,null,null,null,null,null,null,null,null,null,null,4288,41,"DEPARTAMENTO DE GEOCIENCIA"]
[null,null,null,null,null,null,null,null,null,null,null,null,null,null,null,null,null,null,null,null,null,4291,3370,"MAESTROS DEL COMIC, EL NOVENO ARTE: DE WILLIAM HOGARTH A CHRIS WARE"]
[null,null,null,null,null,null,null,null,null,null,null,null,null,null,null,null,null,null,null,null,null,4296,2161,"OMPOINTER TRANSFERENCIAS DE CONOCIMIENTO"]
[null,null,null,null,null,null,null,null,null,null,null,null,null,null,null,null,null,null,null,null,null,4297,3370,"CURSO: LITERATURA E IMAGEN: LENGUAJES MUTANTES"]
[null,null,null,null,null,null,null,null,null,null,null,null,null,null,null,null,null,null,null,null,null,4301,4299,"ESTACION DE POLICIA PARA CENTROS URBANOS METROPOLITANOS OBRA CIVIL"]
[null,null,null,null,null,null,null,null,null,null,null,null,null,null,null,null,null,null,null,null,null,4305,1943,"FUNDACION SANTAFETECNOLOGIAS MOVILES"]
[null,null,null,null,null,null,null,null,null,null,null,null,null,null,null,null,null,null,null,null,null,4310,137,"PAIPA RENE FERNANDO URUEÑA"]
[null,null,null,null,null,null,null,null,null,null,null,null,null,null,null,null,null,null,null,null,null,4311,137,"PAIPA BEATRIZ EUGENIA SANCHEZ"]
[null,null,null,null,null,null,null,null,null,null,null,null,null,null,null,null,null,null,null,null,null,4317,3389,"RECONOCIMIENTO ACADEMICO WIRING (DEC-DECANATURA)"]
[null,null,null,null,null,null,null,null,null,null,null,null,null,null,null,null,null,null,null,null,null,4320,1937,"MEDICIONES ABET F. INGENIERIA F. II"]
[null,null,null,null,null,null,null,null,null,null,null,null,null,null,null,null,null,null,null,null,null,4325,1973,"ECOS NORD CO - DIGESTION ANAEROBICA"]
[null,null,null,null,null,null,null,null,null,null,null,null,null,null,null,null,null,null,null,null,null,4326,3372,"TALLER. ENGLISH EFFECTIVE SPEAKING"]
[null,null,null,null,null,null,null,null,null,null,null,null,null,null,null,null,null,null,null,null,null,4330,4048,"INTERVANCION CASA ÑE HUMANIDADES Y LITERATURA - 2010"]
[null,null,null,null,null,null,null,null,null,null,null,null,null,null,null,null,null,null,null,null,null,4335,3389,"CONVOCATORIA PROY. INVESTIGACION Y CREACION 2010"]
[null,null,null,null,null,null,null,null,null,null,null,null,null,null,null,null,null,null,null,null,null,4339,2278,"LINES DE INVEST. G.T. REFINACION DE PETROLEOS FASE TRES"]
[null,null,null,null,null,null,null,null,null,null,null,null,null,null,null,null,null,null,null,null,null,4340,3929,"ROGELIO SALMONA EN BOGOTA CONTRATO ACAC - UNINDES"]
[null,null,null,null,null,null,null,null,null,null,null,null,null,null,null,null,null,null,null,null,null,4345,4344,"EXTERIORES PASO PEATONAL GATA GOLOSA OBRA CIVIL"]
[null,null,null,null,null,null,null,null,null,null,null,null,null,null,null,null,null,null,null,null,null,4348,4344,"EXTERIORES PASO PEATONAL GATA GOLOSA DISEÑOS"]
[null,null,null,null,null,null,null,null,null,null,null,null,null,null,null,null,null,null,null,null,null,4354,42,"CATALINA GONZALEZ - PROF. ASISTENTE"]
[null,null,null,null,null,null,null,null,null,null,null,null,null,null,null,null,null,null,null,null,null,4355,421,"F. CORONA - PARTICIPACION"]
[null,null,null,null,null,null,null,null,null,null,null,null,null,null,null,null,null,null,null,null,null,4359,2870,"COLINVERSIONES"]
[null,null,null,null,null,null,null,null,null,null,null,null,null,null,null,null,null,null,null,null,null,4364,3558,"COLLAGE LONDON"]
[null,null,null,null,null,null,null,null,null,null,null,null,null,null,null,null,null,null,null,null,null,4368,93,"INTERFACULTADES 2010 - MANU FORERO"]
[null,null,null,null,null,null,null,null,null,null,null,null,null,null,null,null,null,null,null,null,null,4369,167,"ACTIV. DE INVESTIGACION CH. JARAMILLO"]
[null,null,null,null,null,null,null,null,null,null,null,null,null,null,null,null,null,null,null,null,null,4374,137,"ESTUDIO SECTOR SALUD - FUNDACION CORONA"]
[null,null,null,null,null,null,null,null,null,null,null,null,null,null,null,null,null,null,null,null,null,4377,167,"TRABAJO DE CAMPO: COLOMBIA AMERICA LATINA Y EL MUNDO"]
[null,null,null,null,null,null,null,null,null,null,null,null,null,null,null,null,null,null,null,null,null,4383,167,"DERECHOS HUMANOS D. MEJIA"]
[null,null,null,null,null,null,null,null,null,null,null,null,null,null,null,null,null,null,null,null,null,4384,253,"MAESTRIA EN DERECHO PRIVADO"]
[null,null,null,null,null,null,null,null,null,null,null,null,null,null,null,null,null,null,null,null,null,4389,244,"FELLOWSHIP PROGRAM - FOSI"]
[null,null,null,null,null,null,null,null,null,null,null,null,null,null,null,null,null,null,null,null,null,4393,4391,"FONDO PATRIMONIAL QUIERO ESTUDIAR - GEOCIENCIAS"]
[null,null,null,null,null,null,null,null,null,null,null,null,null,null,null,null,null,null,null,null,null,4398,2298,"LABORATORIO DINAMICA DE FLUIDOS"]
[null,null,null,null,null,null,null,null,null,null,null,null,null,null,null,null,null,null,null,null,null,4401,1820,"JUAN PABLO RAMOS"]
[null,null,null,null,null,null,null,null,null,null,null,null,null,null,null,null,null,null,null,null,null,4403,53,"INTERFACULTADES 2010 - MARIA M TORRES"]
[null,null,null,null,null,null,null,null,null,null,null,null,null,null,null,null,null,null,null,null,null,4408,1991,"ECOPETROL OPORTUNIDADES DE NEGOCIO"]
[null,null,null,null,null,null,null,null,null,null,null,null,null,null,null,null,null,null,null,null,null,4410,137,"FORTALECIMIENTO DE LA CORTE, SETENCIA T - 025 DE 004 - AID/OIM"]
[null,null,null,null,null,null,null,null,null,null,null,null,null,null,null,null,null,null,null,null,null,4413,544,"BENEFICIOS Y BIENESTAR"]
[null,null,null,null,null,null,null,null,null,null,null,null,null,null,null,null,null,null,null,null,null,4418,4415,"MAESTRIA EN PERIODISMO"]
[null,null,null,null,null,null,null,null,null,null,null,null,null,null,null,null,null,null,null,null,null,4422,4419,"FONDO DE APOYO A LA FORMACION / ACTUALIZACION DE PROFESORES"]
[null,null,null,null,null,null,null,null,null,null,null,null,null,null,null,null,null,null,null,null,null,4427,4419,"FONDO DE APOYO AL DESARROLLO DE EVENTOS ACADEMICOS DEL DEPARTAMENTO"]
[null,null,null,null,null,null,null,null,null,null,null,null,null,null,null,null,null,null,null,null,null,4430,4429,"DATACENTER DEL DEPARTAMENTO"]
[null,null,null,null,null,null,null,null,null,null,null,null,null,null,null,null,null,null,null,null,null,4432,4429,"LABORATORIO DE COMPUTACION MOVIL-REDES Y COMUNICACIONES"]
[null,null,null,null,null,null,null,null,null,null,null,null,null,null,null,null,null,null,null,null,null,4435,4434,"AGUA PRODUCIDA"]
[null,null,null,null,null,null,null,null,null,null,null,null,null,null,null,null,null,null,null,null,null,4437,397,"ESPECIALIZACION EN CONSTRUCCION DE SOFTWARE PROMOCION 13-2 (2011)"]
[null,null,null,null,null,null,null,null,null,null,null,null,null,null,null,null,null,null,null,null,null,4440,1806,"FONDO SEMILLA DANIEL SUAREZ"]
[null,null,null,null,null,null,null,null,null,null,null,null,null,null,null,null,null,null,null,null,null,4445,137,"PROYECTO MINISTERIO DE PROTECCION SOCIAL - FASE II"]
[null,null,null,null,null,null,null,null,null,null,null,null,null,null,null,null,null,null,null,null,null,4449,4335,"MATERIALES COMO FUENTES DE INSPIRACION PARA EL DISEÑO"]
[null,null,null,null,null,null,null,null,null,null,null,null,null,null,null,null,null,null,null,null,null,4454,341,"ING. ELECTRICA AUTOMATIZACION - 18"]
[null,null,null,null,null,null,null,null,null,null,null,null,null,null,null,null,null,null,null,null,null,4455,4048,"DESMANTELADA EDIFICIOS G Y GB - 2010"]
[null,null,null,null,null,null,null,null,null,null,null,null,null,null,null,null,null,null,null,null,null,4461,3361,"VIDEOS Y DOCUMENTALES ENCUESTA LONGITUDINAL"]
[null,null,null,null,null,null,null,null,null,null,null,null,null,null,null,null,null,null,null,null,null,4464,134,"1 er Congreso Internacional de derecho de la competencia "]
[null,null,null,null,null,null,null,null,null,null,null,null,null,null,null,null,null,null,null,null,null,4469,3363,"ESTRUCTURA ORGANIZACIONAL"]
[null,null,null,null,null,null,null,null,null,null,null,null,null,null,null,null,null,null,null,null,null,4471,2814,"PROVISION QUIERO ESTUDIAR 2011"]
[null,null,null,null,null,null,null,null,null,null,null,null,null,null,null,null,null,null,null,null,null,4474,2620,"COMUNIDAD EUROPEA GISELA"]
[null,null,null,null,null,null,null,null,null,null,null,null,null,null,null,null,null,null,null,null,null,4478,167,"TRANSFORMACIONES EN LA EDUCACION SUPERIOR DE COLOMBIA"]
[null,null,null,null,null,null,null,null,null,null,null,null,null,null,null,null,null,null,null,null,null,4483,1460,"DONACION FUNDACION BOLIVAR DAVIVIENDA ECONOMIA"]
[null,null,null,null,null,null,null,null,null,null,null,null,null,null,null,null,null,null,null,null,null,4484,1460,"DONACION FUNDACION BOLIVAR DAVIVIENDA BIOLOGIA"]
[null,null,null,null,null,null,null,null,null,null,null,null,null,null,null,null,null,null,null,null,null,4488,42,"NATALIA GOMEZ - PROF. ASISTENTE"]
[null,null,null,null,null,null,null,null,null,null,null,null,null,null,null,null,null,null,null,null,null,4493,53,"JOVEN INVESTIGADOR COLCIENCIAS 2010 - PAULA SATIZABAL"]
[null,null,null,null,null,null,null,null,null,null,null,null,null,null,null,null,null,null,null,null,null,4498,137,"FUNCION PREVENTIVA POLITICAS PUBLICAS 2011 - PNG"]
[null,null,null,null,null,null,null,null,null,null,null,null,null,null,null,null,null,null,null,null,null,4500,3373,"WORKSHOP TO DEVELOP SKILLSFOR DRAFTING CONTRACTS AND OTHER LEGAL DOCUMNTS"]
[null,null,null,null,null,null,null,null,null,null,null,null,null,null,null,null,null,null,null,null,null,4503,4002,"FAPA DIOGENES CARVAJAL 2011 - ACA"]
[null,null,null,null,null,null,null,null,null,null,null,null,null,null,null,null,null,null,null,null,null,4508,1942,"IASA CAPITULO COLOMBIA"]
[null,null,null,null,null,null,null,null,null,null,null,null,null,null,null,null,null,null,null,null,null,4512,3558,"PLANES MOVILIDAD EMPRESARIAL"]
[null,null,null,null,null,null,null,null,null,null,null,null,null,null,null,null,null,null,null,null,null,4513,1966,"POPAYAN EVALUACION SISMICA"]
[null,null,null,null,null,null,null,null,null,null,null,null,null,null,null,null,null,null,null,null,null,4518,1959,"SISTEMA DETECTOR DE MINAS FASE II"]
[null,null,null,null,null,null,null,null,null,null,null,null,null,null,null,null,null,null,null,null,null,4521,3388,"EVENTOS DISEÑOS"]
[null,null,null,null,null,null,null,null,null,null,null,null,null,null,null,null,null,null,null,null,null,4527,3372,"FILOSOFIA Y POLITICA: ACCION, CONFLICTO Y RECONCILIACION"]
[null,null,null,null,null,null,null,null,null,null,null,null,null,null,null,null,null,null,null,null,null,4529,1959,"PROTOTIPO SISTEMA DETECTOR DE MINAS"]
[null,null,null,null,null,null,null,null,null,null,null,null,null,null,null,null,null,null,null,null,null,4532,3372,"CICLO DE ARTES ESCENICAS: INDIA"]
[null,null,null,null,null,null,null,null,null,null,null,null,null,null,null,null,null,null,null,null,null,4537,4536,"PARQUEADERO GATA GOLOSA - OBRA"]
[null,null,null,null,null,null,null,null,null,null,null,null,null,null,null,null,null,null,null,null,null,4541,647,"EDIFICIO ATENCION INTEGRADA CONSOLIDADOR PLANTA FISICA"]
[null,null,null,null,null,null,null,null,null,null,null,null,null,null,null,null,null,null,null,null,null,4542,4541,"EDIFICIO ATENCION INTEGRADA- OBRA"]
[null,null,null,null,null,null,null,null,null,null,null,null,null,null,null,null,null,null,null,null,null,4547,2871,"FONDO DE PREVENCION VIAL"]
[null,null,null,null,null,null,null,null,null,null,null,null,null,null,null,null,null,null,null,null,null,4550,163,"APORTES APLICACIÓN A GRANTS - 2%"]
[null,null,null,null,null,null,null,null,null,null,null,null,null,null,null,null,null,null,null,null,null,4556,167,"ACTIVIDADES DE INVESTIGACION AM. IBAÑEZ"]
[null,null,null,null,null,null,null,null,null,null,null,null,null,null,null,null,null,null,null,null,null,4557,167,"PLAN INVESTIGACION  - A. FERNANDEZ"]
[null,null,null,null,null,null,null,null,null,null,null,null,null,null,null,null,null,null,null,null,null,4562,3361,"INVERSIONES SUPERAVIT 2011"]
[null,null,null,null,null,null,null,null,null,null,null,null,null,null,null,null,null,null,null,null,null,4566,1959,"DESARROLLO MUNICIONES AEREAS Y STMAS INTELIGENTES FASE III"]
[null,null,null,null,null,null,null,null,null,null,null,null,null,null,null,null,null,null,null,null,null,4571,1981,"SISTEMAS PORTATILES SUMINISTRO DE ENERGIA FASE II"]
[null,null,null,null,null,null,null,null,null,null,null,null,null,null,null,null,null,null,null,null,null,4574,647,"CASA LUZ GOMEZ - 2011"]
[null,null,null,null,null,null,null,null,null,null,null,null,null,null,null,null,null,null,null,null,null,4576,2219,"DOTACION TECNOLOGIA PREDIO ESTACION DE POLICIA"]
[null,null,null,null,null,null,null,null,null,null,null,null,null,null,null,null,null,null,null,null,null,4581,2219,"DOTACION TECNOLOGIA AUTOMATIZACION BLOQUE J"]
[null,null,null,null,null,null,null,null,null,null,null,null,null,null,null,null,null,null,null,null,null,4583,2219,"DOTACION TECNOLOGIA CAMBIO CUBIERTA NOVICIADO - 2011"]
[null,null,null,null,null,null,null,null,null,null,null,null,null,null,null,null,null,null,null,null,null,4586,2219,"DOTACION TECNOLOGIA ADECUACION EDIFICIO BILLARES - 2011"]
[null,null,null,null,null,null,null,null,null,null,null,null,null,null,null,null,null,null,null,null,null,4591,3460,"PROYECTO HISTORIA ECOPETROL"]
[null,null,null,null,null,null,null,null,null,null,null,null,null,null,null,null,null,null,null,null,null,4595,53,"BASE GENETICA DE LA ESPECIACION HIBRIDA EN H HEURIPPA"]
[null,null,null,null,null,null,null,null,null,null,null,null,null,null,null,null,null,null,null,null,null,4600,3299,"EAAB GESTION DE CONOCIMIENTO F. II"]
[null,null,null,null,null,null,null,null,null,null,null,null,null,null,null,null,null,null,null,null,null,4603,99,"DOCTORADO MATEMATICAS"]
[null,null,null,null,null,null,null,null,null,null,null,null,null,null,null,null,null,null,null,null,null,4605,124,"REVISTA DE DERECHO, COMUNICACIÓN Y NUEVAS TEOLOGIAS"]
[null,null,null,null,null,null,null,null,null,null,null,null,null,null,null,null,null,null,null,null,null,4610,3372,"TALLER:PROTOCOLO UNIFICADO PARA EL TRATAMIENTO TRANSDIAGNOSTICO DE TRASTORNOS EMOCIONALES (UP)"]
[null,null,null,null,null,null,null,null,null,null,null,null,null,null,null,null,null,null,null,null,null,4613,3373,"CURSO: CRIMINALIDAD INFORMATICA"]
[null,null,null,null,null,null,null,null,null,null,null,null,null,null,null,null,null,null,null,null,null,4615,159,"ESPECIALIZACION EN ECONOMIA - UTB"]
[null,null,null,null,null,null,null,null,null,null,null,null,null,null,null,null,null,null,null,null,null,4620,2442,"ESPECIALIZACION EN SISTEMA INFORMACION PROM AGOSTO 2011 - JULIO 2012"]
[null,null,null,null,null,null,null,null,null,null,null,null,null,null,null,null,null,null,null,null,null,4625,1820,"JOHNN FACCELA OSMA"]
[null,null,null,null,null,null,null,null,null,null,null,null,null,null,null,null,null,null,null,null,null,4629,1707,"EVENTOS DE INVESTIGACION"]
[null,null,null,null,null,null,null,null,null,null,null,null,null,null,null,null,null,null,null,null,null,4630,244,"PUBLICACIONES NO SERIADAS"]
[null,null,null,null,null,null,null,null,null,null,null,null,null,null,null,null,null,null,null,null,null,4634,2814,"FONDO QUIERO ESTUDIAR LEONOR ESCANDON DURAN"]
[null,null,null,null,null,null,null,null,null,null,null,null,null,null,null,null,null,null,null,null,null,4639,2618,"FPV MAPAS DE RIESGO"]
[null,null,null,null,null,null,null,null,null,null,null,null,null,null,null,null,null,null,null,null,null,4644,647,"PLANTA DE CRIOGENIA - 2011"]
[null,null,null,null,null,null,null,null,null,null,null,null,null,null,null,null,null,null,null,null,null,4646,42,"EVENTOS FACULTAD DE CIENCIAS"]
[null,null,null,null,null,null,null,null,null,null,null,null,null,null,null,null,null,null,null,null,null,4649,421,"PNUD - ACCESO AL AGUA"]
[null,null,null,null,null,null,null,null,null,null,null,null,null,null,null,null,null,null,null,null,null,4654,3371,"CURSO TEORICO - PRACTICO: REDES TROFICAS EN SISTEMAS ACUATICOS"]
[null,null,null,null,null,null,null,null,null,null,null,null,null,null,null,null,null,null,null,null,null,4658,647,"NOVICIADO CAMBIO CUBIERTA - 2011"]
[null,null,null,null,null,null,null,null,null,null,null,null,null,null,null,null,null,null,null,null,null,4659,647,"CAMBIO CUBIERTA BLOQUE T - 2011"]
[null,null,null,null,null,null,null,null,null,null,null,null,null,null,null,null,null,null,null,null,null,4663,647,"BOMBAS DE VACIO - 2011"]
[null,null,null,null,null,null,null,null,null,null,null,null,null,null,null,null,null,null,null,null,null,4668,244,"UMBRALES DE LA EVIDENCIA CIENTIFICA - COLCIENCIA"]
[null,null,null,null,null,null,null,null,null,null,null,null,null,null,null,null,null,null,null,null,null,4673,167,"PLAN INVESTIGACION  - P. JARAMILLO"]
[null,null,null,null,null,null,null,null,null,null,null,null,null,null,null,null,null,null,null,null,null,4675,3803,"METODOS CUALITATIVOS PARA LA INVESTIGACION"]
[null,null,null,null,null,null,null,null,null,null,null,null,null,null,null,null,null,null,null,null,null,4678,53,"PREMIO SANTANDER 2010"]
[null,null,null,null,null,null,null,null,null,null,null,null,null,null,null,null,null,null,null,null,null,4683,2879,"RIOPAILA"]
[null,null,null,null,null,null,null,null,null,null,null,null,null,null,null,null,null,null,null,null,null,4687,4433,"PROYECTOS CIE - MOVILIDAD"]
[null,null,null,null,null,null,null,null,null,null,null,null,null,null,null,null,null,null,null,null,null,4688,4433,"SECTOR EXTERNO CIE - MOVILIDAD"]
[null,null,null,null,null,null,null,null,null,null,null,null,null,null,null,null,null,null,null,null,null,4693,4592,"PROYECTOS CIE - ENERGIA"]
[null,null,null,null,null,null,null,null,null,null,null,null,null,null,null,null,null,null,null,null,null,4696,53,"COLCIENCIAS 1204-521-28571 AB _CB_2011"]
[null,null,null,null,null,null,null,null,null,null,null,null,null,null,null,null,null,null,null,null,null,4702,4699,"PROYECTO PLANEACION URBANA EN BOGOTA: M. GOOSSENS"]
[null,null,null,null,null,null,null,null,null,null,null,null,null,null,null,null,null,null,null,null,null,4703,4699,"PROYECTO AMBIENTE DE APRENDIZAJE INTERACTIVO: R. VILLAZON"]
[null,null,null,null,null,null,null,null,null,null,null,null,null,null,null,null,null,null,null,null,null,4707,4534,"CUBIERTA ESCALERAS BLOQUE -2011"]
[null,null,null,null,null,null,null,null,null,null,null,null,null,null,null,null,null,null,null,null,null,4708,2688,"SIEMENS SED MEDELLIN PQC 2011 - COT"]
[null,null,null,null,null,null,null,null,null,null,null,null,null,null,null,null,null,null,null,null,null,4709,167,"CIUDADES Y TERRITORIOS RURALES"]
[null,null,null,null,null,null,null,null,null,null,null,null,null,null,null,null,null,null,null,null,null,4710,3373,"CURSO CORPORATIVO. CRIMINALIDAD INFORMATICA_ASOBANCARIA MEDELLIN"]
[null,null,null,null,null,null,null,null,null,null,null,null,null,null,null,null,null,null,null,null,null,4711,1852,"YANHUITLAN"]
[null,null,null,null,null,null,null,null,null,null,null,null,null,null,null,null,null,null,null,null,null,4712,1852,"TERRITORIOS EN EL ARTE LATINOAMERICANO"]
[null,null,null,null,null,null,null,null,null,null,null,null,null,null,null,null,null,null,null,null,null,4713,1852,"ARCHIVO Y EDICION"]
[null,null,null,null,null,null,null,null,null,null,null,null,null,null,null,null,null,null,null,null,null,4714,1852,"VIAJES Y FRAGMENTOS"]
[null,null,null,null,null,null,null,null,null,null,null,null,null,null,null,null,null,null,null,null,null,4715,4534,"INVERNADERO CIENCIAS BIOLOGICAS"]
[null,null,null,null,null,null,null,null,null,null,null,null,null,null,null,null,null,null,null,null,null,4716,108,"PRIMER CONGRESO DE QUIMICA DE SOLUCIONES"]
[null,null,null,null,null,null,null,null,null,null,null,null,null,null,null,null,null,null,null,null,null,4717,3372,"PROGRAMA DE INMERSION EN ESPAÑOL, NIVEL AVANZADO"]
[null,null,null,null,null,null,null,null,null,null,null,null,null,null,null,null,null,null,null,null,null,4718,3558,"FPV VALORACION ACCIDENTES"]
[null,null,null,null,null,null,null,null,null,null,null,null,null,null,null,null,null,null,null,null,null,4719,93,"COLCIENCIAS 1204-521-28108 JS_CB_2011"]
[null,null,null,null,null,null,null,null,null,null,null,null,null,null,null,null,null,null,null,null,null,4720,4534,"OBRA BIBILIOTECA ED MI - 2011"]
[null,null,null,null,null,null,null,null,null,null,null,null,null,null,null,null,null,null,null,null,null,4721,4534,"PROVISIONAL SUBESTACION BLOQUE G Y GB - 2011"]
[null,null,null,null,null,null,null,null,null,null,null,null,null,null,null,null,null,null,null,null,null,4722,1937,"MEDICIONES OBJETIVOS EDUCATIVOS FI FASE III"]
[null,null,null,null,null,null,null,null,null,null,null,null,null,null,null,null,null,null,null,null,null,4723,167,"DECENTRALIZATION, POLITICAL PROCESS, EDUCATION AND WATER - GDN"]
[null,null,null,null,null,null,null,null,null,null,null,null,null,null,null,null,null,null,null,null,null,4724,42,"PROYECTOS INTERDEPARTAMENTALES - FAC CIENCIAS"]
[null,null,null,null,null,null,null,null,null,null,null,null,null,null,null,null,null,null,null,null,null,4725,1991,"BP PERFORACION DE POZOS"]
[null,null,null,null,null,null,null,null,null,null,null,null,null,null,null,null,null,null,null,null,null,4726,1806,"GRUPO INVESTIGACION RADIOLOGIA"]
[null,null,null,null,null,null,null,null,null,null,null,null,null,null,null,null,null,null,null,null,null,4727,1937,"CCA - PLAN ESTRATEGICO DE TIC´ S"]
[null,null,null,null,null,null,null,null,null,null,null,null,null,null,null,null,null,null,null,null,null,4728,2876,"SDDE CLUSTER DE LA MODA"]
[null,null,null,null,null,null,null,null,null,null,null,null,null,null,null,null,null,null,null,null,null,4729,647,"EDIFICIO M CONSOLIDADOR PLANTA FISICA"]
[null,null,null,null,null,null,null,null,null,null,null,null,null,null,null,null,null,null,null,null,null,4730,4729,"EDIFICIO M OBRA"]
[null,null,null,null,null,null,null,null,null,null,null,null,null,null,null,null,null,null,null,null,null,4731,4729,"EDIFICIO M DISEÑOS"]
[null,null,null,null,null,null,null,null,null,null,null,null,null,null,null,null,null,null,null,null,null,4732,4729,"EDIFICIO M IMPUESTOS Y OBRAS"]
[null,null,null,null,null,null,null,null,null,null,null,null,null,null,null,null,null,null,null,null,null,4733,4729,"EDIFICIO M INTERVENTORIA"]
[null,null,null,null,null,null,null,null,null,null,null,null,null,null,null,null,null,null,null,null,null,4734,4729,"EDIFICIO M DOTACION Y MOBILIARIO"]
[null,null,null,null,null,null,null,null,null,null,null,null,null,null,null,null,null,null,null,null,null,4735,647,"EDIFICIO M1 CONSOLIDADOR PLANTA FISICA"]
[null,null,null,null,null,null,null,null,null,null,null,null,null,null,null,null,null,null,null,null,null,4736,4735,"EDIFICIO M1 OBRA"]
[null,null,null,null,null,null,null,null,null,null,null,null,null,null,null,null,null,null,null,null,null,4737,4735,"EDIFICIO M1 DISEÑOS"]
[null,null,null,null,null,null,null,null,null,null,null,null,null,null,null,null,null,null,null,null,null,4738,4735,"EDIFICIO M1 INTERVENTORIA"]
[null,null,null,null,null,null,null,null,null,null,null,null,null,null,null,null,null,null,null,null,null,4739,4735,"EDIFICIO M1 DOTACION Y MOBILIARIO"]
[null,null,null,null,null,null,null,null,null,null,null,null,null,null,null,null,null,null,null,null,null,4740,4534,"LABORATORIOS DE ARQUITECTURA - 2011"]
[null,null,null,null,null,null,null,null,null,null,null,null,null,null,null,null,null,null,null,null,null,4741,2022,"MICROCIRUGIA SIMULACION ORTOPEDIA"]
[null,null,null,null,null,null,null,null,null,null,null,null,null,null,null,null,null,null,null,null,null,4742,1806,"GUIA CLINICA AMBULATORIA DEL DOLOR"]
[null,null,null,null,null,null,null,null,null,null,null,null,null,null,null,null,null,null,null,null,null,4743,42,"MAINAK PODDAR - PROF. ASISTENTE"]
[null,null,null,null,null,null,null,null,null,null,null,null,null,null,null,null,null,null,null,null,null,4744,42,"CAMILA GONZALEZ - PROF. ASISTENTE"]
[null,null,null,null,null,null,null,null,null,null,null,null,null,null,null,null,null,null,null,null,null,4745,42,"DIEGO GAMBA - PROF. ASISTENTE"]
[null,null,null,null,null,null,null,null,null,null,null,null,null,null,null,null,null,null,null,null,null,4746,4534,"OBRAS PRELIMINARES EDIFICIO CENTRO DE ATENCION INTEGRTADA"]
[null,null,null,null,null,null,null,null,null,null,null,null,null,null,null,null,null,null,null,null,null,4747,4132,"ANDRES YIE"]
[null,null,null,null,null,null,null,null,null,null,null,null,null,null,null,null,null,null,null,null,null,4748,4132,"MARIO SANCHEZ"]
[null,null,null,null,null,null,null,null,null,null,null,null,null,null,null,null,null,null,null,null,null,4749,3558,"CCB TRANSPORTE E INFRAESTRUCTURA"]
[null,null,null,null,null,null,null,null,null,null,null,null,null,null,null,null,null,null,null,null,null,4750,1937,"POSITIVA ARQUITECTURA EMPRESARIAL"]
[null,null,null,null,null,null,null,null,null,null,null,null,null,null,null,null,null,null,null,null,null,4751,167,"JORNADAS HPE"]
[null,null,null,null,null,null,null,null,null,null,null,null,null,null,null,null,null,null,null,null,null,4752,536,"ALMACEN REINTEGRADOS"]
[null,null,null,null,null,null,null,null,null,null,null,null,null,null,null,null,null,null,null,null,null,4753,167,"NUEVO MINISTERIO DE TRABAJO"]
[null,null,null,null,null,null,null,null,null,null,null,null,null,null,null,null,null,null,null,null,null,4754,3460,"PROYECTO LIBRO BLANCO RECTORIA"]
[null,null,null,null,null,null,null,null,null,null,null,null,null,null,null,null,null,null,null,null,null,4755,4534,"REMODELACION BIBLIOTECA DERECHO - 2011"]
[null,null,null,null,null,null,null,null,null,null,null,null,null,null,null,null,null,null,null,null,null,4756,4534,"REMODELACION BLOQUE O PRIMER PISO - 2011"]
[null,null,null,null,null,null,null,null,null,null,null,null,null,null,null,null,null,null,null,null,null,4757,2566,"CIE"]
[null,null,null,null,null,null,null,null,null,null,null,null,null,null,null,null,null,null,null,null,null,4758,4757,"TALLERES MCIT"]
[null,null,null,null,null,null,null,null,null,null,null,null,null,null,null,null,null,null,null,null,null,4759,3372,"CURSO SEXUALIDAD….MUCHO MAS QUE SEXO"]
[null,null,null,null,null,null,null,null,null,null,null,null,null,null,null,null,null,null,null,null,null,4760,2870,"NATURGAS"]
[null,null,null,null,null,null,null,null,null,null,null,null,null,null,null,null,null,null,null,null,null,4761,2610,"4721 - CCB AUDITORIAS ENERGETICAS"]
[null,null,null,null,null,null,null,null,null,null,null,null,null,null,null,null,null,null,null,null,null,4762,4534,"CASA CARLOS ILLERA - 2010"]
[null,null,null,null,null,null,null,null,null,null,null,null,null,null,null,null,null,null,null,null,null,4763,4132,"ALFONSO MARIANO RAMOS"]
[null,null,null,null,null,null,null,null,null,null,null,null,null,null,null,null,null,null,null,null,null,4764,269,"CIE - MATERIALES"]
[null,null,null,null,null,null,null,null,null,null,null,null,null,null,null,null,null,null,null,null,null,4765,4764,"OPERACIÓN CIE - MATERIALES"]
[null,null,null,null,null,null,null,null,null,null,null,null,null,null,null,null,null,null,null,null,null,4766,4764,"PROYECTOS CIE - MATERIALES"]
[null,null,null,null,null,null,null,null,null,null,null,null,null,null,null,null,null,null,null,null,null,4767,4764,"SECTOR EXTERNO CIE - MATERIALES"]
[null,null,null,null,null,null,null,null,null,null,null,null,null,null,null,null,null,null,null,null,null,4768,3370,"FOTOGRAFIA BASICA:CONVERTIR LO ORDINARIO EN EXTRAORDINARIO- CURSO EMPLEADO"]
[null,null,null,null,null,null,null,null,null,null,null,null,null,null,null,null,null,null,null,null,null,4769,53,"COLCIENCIAS ECOS NORD - RC 5382011"]
[null,null,null,null,null,null,null,null,null,null,null,null,null,null,null,null,null,null,null,null,null,4770,1820,"FREDY SEGURA"]
[null,null,null,null,null,null,null,null,null,null,null,null,null,null,null,null,null,null,null,null,null,4771,167,"LA MUSICA EN LA RADIODIFUSION EN COLOMBIA"]
[null,null,null,null,null,null,null,null,null,null,null,null,null,null,null,null,null,null,null,null,null,4772,3460,"PROYECTO UNION EUROPEA"]
[null,null,null,null,null,null,null,null,null,null,null,null,null,null,null,null,null,null,null,null,null,4773,4757,"COMFAMA"]
[null,null,null,null,null,null,null,null,null,null,null,null,null,null,null,null,null,null,null,null,null,4774,2814,"BECA QUIERO ESTUDIAR SCHLUMBERGER SURENCO"]
[null,null,null,null,null,null,null,null,null,null,null,null,null,null,null,null,null,null,null,null,null,4775,3899,"CAPITAL SEMILLA: COMPORTAMIENTO EMPRESARIAL E INSTITUCIONES EN AMERICA,UNA PERPECTIVA HISTORICA, 1850-2000"]
[null,null,null,null,null,null,null,null,null,null,null,null,null,null,null,null,null,null,null,null,null,4776,167,"MUJERES RURALES DEL SIGLO XXI"]
[null,null,null,null,null,null,null,null,null,null,null,null,null,null,null,null,null,null,null,null,null,4777,2022,"MEDICINA REPRODUCTIVA"]
[null,null,null,null,null,null,null,null,null,null,null,null,null,null,null,null,null,null,null,null,null,4778,1984,"COLCIENCIAS BIOPLAST"]
[null,null,null,null,null,null,null,null,null,null,null,null,null,null,null,null,null,null,null,null,null,4779,1820,"ROCIO SIERRA"]
[null,null,null,null,null,null,null,null,null,null,null,null,null,null,null,null,null,null,null,null,null,4780,3372,"CURSO: NARRACIONES DE UNA ISLA: HISTORIA Y LITERATURA CUBVANA"]
[null,null,null,null,null,null,null,null,null,null,null,null,null,null,null,null,null,null,null,null,null,4781,3372,"CURSO: TRADICIONES Y CULTURA EN LA COMIDA ITALIANA:UN VIAJE GASTRONOMICO A TRAVES DE SUS REGIONES"]
[null,null,null,null,null,null,null,null,null,null,null,null,null,null,null,null,null,null,null,null,null,4782,167,"EL POTENCIAL DE LA POLITICA DE VIVIENDA EN COLOMBIA"]
[null,null,null,null,null,null,null,null,null,null,null,null,null,null,null,null,null,null,null,null,null,4783,1928,"FONDO DE INVESTIGACION 2011"]
[null,null,null,null,null,null,null,null,null,null,null,null,null,null,null,null,null,null,null,null,null,4784,1959,"VEHICULO ABASTECIMIENTO"]
[null,null,null,null,null,null,null,null,null,null,null,null,null,null,null,null,null,null,null,null,null,4785,1973,"INTERFACULTADES ASBESTOS"]
[null,null,null,null,null,null,null,null,null,null,null,null,null,null,null,null,null,null,null,null,null,4786,1937,"MEDICIONES CNA POSGRADOS"]
[null,null,null,null,null,null,null,null,null,null,null,null,null,null,null,null,null,null,null,null,null,4787,1972,"MODELO CONCEPTUAL ALCANTARILLADO"]
[null,null,null,null,null,null,null,null,null,null,null,null,null,null,null,null,null,null,null,null,null,4788,2610,"CODENSA CONEXIÓN DE CARGAS"]
[null,null,null,null,null,null,null,null,null,null,null,null,null,null,null,null,null,null,null,null,null,4789,3929,"PROYECTO JULIO MARIO SANTODOMINGO: JP. ASCHNER"]
[null,null,null,null,null,null,null,null,null,null,null,null,null,null,null,null,null,null,null,null,null,4790,1981,"SISTEMA PARA PROPULSION"]
[null,null,null,null,null,null,null,null,null,null,null,null,null,null,null,null,null,null,null,null,null,4791,3375,"CURSOS LIBRES DE POSGRADO DE INGENIERIA CIVIL Y AMBIENTAL"]
[null,null,null,null,null,null,null,null,null,null,null,null,null,null,null,null,null,null,null,null,null,4792,1959,"VEHICULO RECONOCIMIENTO MILITAR F. II"]
[null,null,null,null,null,null,null,null,null,null,null,null,null,null,null,null,null,null,null,null,null,4793,53,"INTERFACULTADES 2011 - PALEO"]
[null,null,null,null,null,null,null,null,null,null,null,null,null,null,null,null,null,null,null,null,null,4794,53,"INTERFACULTADES 2011 - LDMB"]
[null,null,null,null,null,null,null,null,null,null,null,null,null,null,null,null,null,null,null,null,null,4795,647,"BIBLIOTECA GENERAL REC - 2011"]
[null,null,null,null,null,null,null,null,null,null,null,null,null,null,null,null,null,null,null,null,null,4796,647,"BIBLIOTECA DEDERECHO REC - 2011"]
[null,null,null,null,null,null,null,null,null,null,null,null,null,null,null,null,null,null,null,null,null,4797,647,"LABORATORIOS DE ARQUITECTURA REC - 2011"]
[null,null,null,null,null,null,null,null,null,null,null,null,null,null,null,null,null,null,null,null,null,4798,647,"BLOQUE O 1er PISO REC - 2011"]
[null,null,null,null,null,null,null,null,null,null,null,null,null,null,null,null,null,null,null,null,null,4799,2545,"CONFLICTOS DE HORARIOS"]
[null,null,null,null,null,null,null,null,null,null,null,null,null,null,null,null,null,null,null,null,null,4800,2545,"CONSULTORIA DE PROCESOS"]
[null,null,null,null,null,null,null,null,null,null,null,null,null,null,null,null,null,null,null,null,null,4801,2545,"RECLUTAMIENTO"]
[null,null,null,null,null,null,null,null,null,null,null,null,null,null,null,null,null,null,null,null,null,4802,1937,"MEDICIONES SERVICIOS GENERALES 2011"]
[null,null,null,null,null,null,null,null,null,null,null,null,null,null,null,null,null,null,null,null,null,4803,1806,"PROYECTO ISCOLE"]
[null,null,null,null,null,null,null,null,null,null,null,null,null,null,null,null,null,null,null,null,null,4804,2480,"ARCHIVO GAVIRIA"]
[null,null,null,null,null,null,null,null,null,null,null,null,null,null,null,null,null,null,null,null,null,4805,647,"CASA MARVIN RINCON - 2011"]
[null,null,null,null,null,null,null,null,null,null,null,null,null,null,null,null,null,null,null,null,null,4806,4534,"ADECUACIONES OFICINAS FACULTAD DE ADMINISTRACION  SD - 2011"]
[null,null,null,null,null,null,null,null,null,null,null,null,null,null,null,null,null,null,null,null,null,4807,167,"ESTACION SOCIO - ECOLOGICA"]
[null,null,null,null,null,null,null,null,null,null,null,null,null,null,null,null,null,null,null,null,null,4808,167,"FONDO PROYECTOS DE INVESRTIGACION RAUL CASTRO"]
[null,null,null,null,null,null,null,null,null,null,null,null,null,null,null,null,null,null,null,null,null,4809,2878,"OPORTUNIDAD ESTRATEGICA"]
[null,null,null,null,null,null,null,null,null,null,null,null,null,null,null,null,null,null,null,null,null,4810,2688,"FUNDACION PROPAGAS PQC 2011 INT"]
[null,null,null,null,null,null,null,null,null,null,null,null,null,null,null,null,null,null,null,null,null,4811,3370,"EL LENGUAJE DE LOS VIDEO JUEGOS: UNA MIRADA AL ENTRETENIMIENTO INTERACTIVO"]
[null,null,null,null,null,null,null,null,null,null,null,null,null,null,null,null,null,null,null,null,null,4812,4534,"REEMPLAZO VIDRIO PUENTES E. MARIO LASERNA - 2011"]
[null,null,null,null,null,null,null,null,null,null,null,null,null,null,null,null,null,null,null,null,null,4813,2449,"ESPECIALIZACION EN GERENCIA DE EMPRESAS TELECOMUNIC. PROM 15 ENE - DIC 2012"]
[null,null,null,null,null,null,null,null,null,null,null,null,null,null,null,null,null,null,null,null,null,4814,2445,"ESPECIALIZACION EN CONTROL INTERNO PROM 18 ENERO - DIC 2012"]
[null,null,null,null,null,null,null,null,null,null,null,null,null,null,null,null,null,null,null,null,null,4815,2442,"ESPECIALIZACION EN SISTEMA INFORMACION PROM 24 ENERO - DIC 2011"]
[null,null,null,null,null,null,null,null,null,null,null,null,null,null,null,null,null,null,null,null,null,4816,435,"CONVENIO INSTITUTO CAMOES"]
[null,null,null,null,null,null,null,null,null,null,null,null,null,null,null,null,null,null,null,null,null,4817,3389,"CI2011 - REPRESENTACIONES DE MODERNIDAD ATRAVES DEL VESTIDO"]
[null,null,null,null,null,null,null,null,null,null,null,null,null,null,null,null,null,null,null,null,null,4818,3906,"SEMINARIO PYMES DE AVANZADA"]
[null,null,null,null,null,null,null,null,null,null,null,null,null,null,null,null,null,null,null,null,null,4819,1937,"FEDEPALMA PLAN DE TIC's"]
[null,null,null,null,null,null,null,null,null,null,null,null,null,null,null,null,null,null,null,null,null,4820,1940,"ASOCARS"]
[null,null,null,null,null,null,null,null,null,null,null,null,null,null,null,null,null,null,null,null,null,4821,167,"MERCADO DE TRABAJO PARA EL CRECIMIENTO INCLUSIVO"]
[null,null,null,null,null,null,null,null,null,null,null,null,null,null,null,null,null,null,null,null,null,4822,3372,"CHINO CONVERSACIONAL"]
[null,null,null,null,null,null,null,null,null,null,null,null,null,null,null,null,null,null,null,null,null,4823,341,"ESP. TRANSMICION Y DISTRIBUCION - 20"]
[null,null,null,null,null,null,null,null,null,null,null,null,null,null,null,null,null,null,null,null,null,4824,3372,"ATENCION INTEGRADA: MANEJO DE ENFERMEDAD CRONICA Y ADHERENCIA"]
[null,null,null,null,null,null,null,null,null,null,null,null,null,null,null,null,null,null,null,null,null,4825,397,"ESPECIALIZACION EN CONSTRUCCION DE SOFTWARE PROMOCION 14 2012"]
[null,null,null,null,null,null,null,null,null,null,null,null,null,null,null,null,null,null,null,null,null,4826,397,"ESPECIALIZACION EN COMERCIO ELECTRONICO PROMOCION 11  2012"]
[null,null,null,null,null,null,null,null,null,null,null,null,null,null,null,null,null,null,null,null,null,4827,134,"FORO ENSEÑANZA A LA INTRODUCCION DEL DERECHO"]
[null,null,null,null,null,null,null,null,null,null,null,null,null,null,null,null,null,null,null,null,null,4828,1984,"COLCIENCIAS CASA DE SISTEMA"]
[null,null,null,null,null,null,null,null,null,null,null,null,null,null,null,null,null,null,null,null,null,4829,53,"DOCTORADO LAMFU - A. BERNAL"]
[null,null,null,null,null,null,null,null,null,null,null,null,null,null,null,null,null,null,null,null,null,4830,53,"DOCTORADO LAZOEA - E. REALPE"]
[null,null,null,null,null,null,null,null,null,null,null,null,null,null,null,null,null,null,null,null,null,4831,244,"PROYECTO ELECTRODOS (INTERFACULTADES)"]
[null,null,null,null,null,null,null,null,null,null,null,null,null,null,null,null,null,null,null,null,null,4832,4145,"CALIDAD DE RECURSO HIDRICO"]
[null,null,null,null,null,null,null,null,null,null,null,null,null,null,null,null,null,null,null,null,null,4833,167,"SPADIES V"]
[null,null,null,null,null,null,null,null,null,null,null,null,null,null,null,null,null,null,null,null,null,4834,3370,"TALLER DE PINTURA PARA NIÑOS DE 6 - 10 AÑOS"]
[null,null,null,null,null,null,null,null,null,null,null,null,null,null,null,null,null,null,null,null,null,4835,3370,"TALLER DE DIBUJO PARA NIÑOS DE 6 - 10 AÑOS"]
[null,null,null,null,null,null,null,null,null,null,null,null,null,null,null,null,null,null,null,null,null,4836,3370,"TALLER DE PINTURA PARA NIÑOS DE 11 - 16 AÑOS"]
[null,null,null,null,null,null,null,null,null,null,null,null,null,null,null,null,null,null,null,null,null,4837,3370,"TALLER DE DIBUJO PARA NIÑOS DE 11 - 16 AÑOS"]
[null,null,null,null,null,null,null,null,null,null,null,null,null,null,null,null,null,null,null,null,null,4838,3370,"TALLER DE PINTURA PARA ADULTOS"]
[null,null,null,null,null,null,null,null,null,null,null,null,null,null,null,null,null,null,null,null,null,4839,3370,"TALLER DE DIBUJO PARA ADULTOS"]
[null,null,null,null,null,null,null,null,null,null,null,null,null,null,null,null,null,null,null,null,null,4840,3370,"TALLER DE CERAMICA PARA ADULTOS"]
[null,null,null,null,null,null,null,null,null,null,null,null,null,null,null,null,null,null,null,null,null,4841,3370,"CURSO DE PEDAGOGIA PARA PIANO"]
[null,null,null,null,null,null,null,null,null,null,null,null,null,null,null,null,null,null,null,null,null,4842,2566,"SOPORTE Y UTILIZACION METODOLOGIA PROYECTOS CEC"]
[null,null,null,null,null,null,null,null,null,null,null,null,null,null,null,null,null,null,null,null,null,4843,2163,"ECOS NORD DETECCION DE ANOMALIAS"]
[null,null,null,null,null,null,null,null,null,null,null,null,null,null,null,null,null,null,null,null,null,4844,124,"INSTITUTO NACIONAL PARA CIEGOS (INCI)"]
[null,null,null,null,null,null,null,null,null,null,null,null,null,null,null,null,null,null,null,null,null,4845,3371,"CURSO - TALLER: EVALUACION DE RIESGOS MICROBIOLOGICOS EN ALIMENTOS"]
[null,null,null,null,null,null,null,null,null,null,null,null,null,null,null,null,null,null,null,null,null,4846,514,"EVENTOS DR. CARLOS ANGULO"]
[null,null,null,null,null,null,null,null,null,null,null,null,null,null,null,null,null,null,null,null,null,4847,3375,"CURSO TEORICO - PRACTICO:UMTS & HSPA,FUNDAMENTOS, PLANEACION Y OPTIMIZACION"]
[null,null,null,null,null,null,null,null,null,null,null,null,null,null,null,null,null,null,null,null,null,4848,53,"COLCIENCIAS 1204-521-28867 JAS_CB_2011"]
[null,null,null,null,null,null,null,null,null,null,null,null,null,null,null,null,null,null,null,null,null,4849,53,"COLCIENCIAS 1204-521-29002 JAS_CB_2011"]
[null,null,null,null,null,null,null,null,null,null,null,null,null,null,null,null,null,null,null,null,null,4850,1940,"ARMADA EMPRESA NAVIERA"]
[null,null,null,null,null,null,null,null,null,null,null,null,null,null,null,null,null,null,null,null,null,4851,167,"TARIFAS SECTOR FINANCIERO"]
[null,null,null,null,null,null,null,null,null,null,null,null,null,null,null,null,null,null,null,null,null,4852,1979,"CEIS_COMPARACION DE MONITORES"]
[null,null,null,null,null,null,null,null,null,null,null,null,null,null,null,null,null,null,null,null,null,4853,1979,"CEIS_TELEMAMOGRAFIA"]
[null,null,null,null,null,null,null,null,null,null,null,null,null,null,null,null,null,null,null,null,null,4854,1959,"IMATIC"]
[null,null,null,null,null,null,null,null,null,null,null,null,null,null,null,null,null,null,null,null,null,4855,167,"TERRENOS FISCALES EN AL"]
[null,null,null,null,null,null,null,null,null,null,null,null,null,null,null,null,null,null,null,null,null,4856,167,"AYUDA FINANCIERA EDU SUP."]
[null,null,null,null,null,null,null,null,null,null,null,null,null,null,null,null,null,null,null,null,null,4857,647,"DUPLICADORES PARQUEADERO BLOQUE AU - 2011"]
[null,null,null,null,null,null,null,null,null,null,null,null,null,null,null,null,null,null,null,null,null,4858,1806,"FONDO INVESTIGACION CARLOS MENDIVIL"]
[null,null,null,null,null,null,null,null,null,null,null,null,null,null,null,null,null,null,null,null,null,4859,2022,"EDUCACION MEDICA CONTINUADA"]
[null,null,null,null,null,null,null,null,null,null,null,null,null,null,null,null,null,null,null,null,null,4860,167,"SEMILLA L FERGUSSON"]
[null,null,null,null,null,null,null,null,null,null,null,null,null,null,null,null,null,null,null,null,null,4861,421,"PAZ VIOLENTA"]
[null,null,null,null,null,null,null,null,null,null,null,null,null,null,null,null,null,null,null,null,null,4862,4534,"VENTANERIA CAFETERIA CENTRO DE PRACTICAS - 2011"]
[null,null,null,null,null,null,null,null,null,null,null,null,null,null,null,null,null,null,null,null,null,4863,4534,"ADECUACIONES BLOQUE V MUSICA - 2011"]
[null,null,null,null,null,null,null,null,null,null,null,null,null,null,null,null,null,null,null,null,null,4864,3899,"CS. VINCIANE SERVANTIE"]
[null,null,null,null,null,null,null,null,null,null,null,null,null,null,null,null,null,null,null,null,null,4865,3372,"TALLER ENFOQUE COGNITIVO DE LOS TRTASTORNOS DE LA PERSONALIDAD"]
[null,null,null,null,null,null,null,null,null,null,null,null,null,null,null,null,null,null,null,null,null,4866,421,"PNUD - CURSO ACCOUNTABILITY"]
[null,null,null,null,null,null,null,null,null,null,null,null,null,null,null,null,null,null,null,null,null,4867,1970,"ECOS NORD OBRAS DE CIMENTACION"]
[null,null,null,null,null,null,null,null,null,null,null,null,null,null,null,null,null,null,null,null,null,4868,4691,"SEMINARIO TRATAMIENTO DE HUMEDALES"]
[null,null,null,null,null,null,null,null,null,null,null,null,null,null,null,null,null,null,null,null,null,4869,1670,"VENTA DE SERVICIOS MEDICINA"]
[null,null,null,null,null,null,null,null,null,null,null,null,null,null,null,null,null,null,null,null,null,4870,167,"MAS BOSQUES PARA MEDELLIN"]
[null,null,null,null,null,null,null,null,null,null,null,null,null,null,null,null,null,null,null,null,null,4871,3372,"CURSO DE EMPRENDIMIENTO CULTURAL PARA EL DESARROLLO LOCAL"]
[null,null,null,null,null,null,null,null,null,null,null,null,null,null,null,null,null,null,null,null,null,4872,2871,"MINCULTURA"]
[null,null,null,null,null,null,null,null,null,null,null,null,null,null,null,null,null,null,null,null,null,4873,167,"NATGEO-VALORACION AMP"]
[null,null,null,null,null,null,null,null,null,null,null,null,null,null,null,null,null,null,null,null,null,4874,3372,"TALLER: WORKSHOP RECENT DEVELOPMENTS IN THE TREATMENT OF DEPRESSION:STRATEGIES TO MAXIMIZE CLINICAL SUCCESS"]
[null,null,null,null,null,null,null,null,null,null,null,null,null,null,null,null,null,null,null,null,null,4875,3390,"DIS PA K AUNE"]
[null,null,null,null,null,null,null,null,null,null,null,null,null,null,null,null,null,null,null,null,null,4876,3558,"LINCILN TRANSPORTE"]
[null,null,null,null,null,null,null,null,null,null,null,null,null,null,null,null,null,null,null,null,null,4877,2610,"NAMA TRANSPORTE"]
[null,null,null,null,null,null,null,null,null,null,null,null,null,null,null,null,null,null,null,null,null,4878,1991,"PROGRAMA CANGURO"]
[null,null,null,null,null,null,null,null,null,null,null,null,null,null,null,null,null,null,null,null,null,4879,647,"CASA CALLE 22 - 2011"]
[null,null,null,null,null,null,null,null,null,null,null,null,null,null,null,null,null,null,null,null,null,4880,1707,"PROY ACADEM INSTIT"]
[null,null,null,null,null,null,null,null,null,null,null,null,null,null,null,null,null,null,null,null,null,4881,4419,"FONDO APOYO ACM"]
[null,null,null,null,null,null,null,null,null,null,null,null,null,null,null,null,null,null,null,null,null,4882,1905,"COLCIENCIAS DAAD 2011"]
[null,null,null,null,null,null,null,null,null,null,null,null,null,null,null,null,null,null,null,null,null,4883,3373,"CRIMINALIDAD INFORMATICA ASOBANCARIA CALI"]
[null,null,null,null,null,null,null,null,null,null,null,null,null,null,null,null,null,null,null,null,null,4884,4691,"CONGRESO SRALA"]
[null,null,null,null,null,null,null,null,null,null,null,null,null,null,null,null,null,null,null,null,null,4885,167,"POLITICA DE DESARROLLO RURAL AECOM"]
[null,null,null,null,null,null,null,null,null,null,null,null,null,null,null,null,null,null,null,null,null,4886,1970,"TEMPERATURA GRANULAR"]
[null,null,null,null,null,null,null,null,null,null,null,null,null,null,null,null,null,null,null,null,null,4887,321,"ESP MIMA 2012"]
[null,null,null,null,null,null,null,null,null,null,null,null,null,null,null,null,null,null,null,null,null,4888,3558,"UNIANDES NOVICIADO"]
[null,null,null,null,null,null,null,null,null,null,null,null,null,null,null,null,null,null,null,null,null,4889,2610,"GASES COSTA"]
[null,null,null,null,null,null,null,null,null,null,null,null,null,null,null,null,null,null,null,null,null,4890,647,"EXTERIORES GB NAVAS L"]
[null,null,null,null,null,null,null,null,null,null,null,null,null,null,null,null,null,null,null,null,null,4891,1943,"CCS ARQUITECTURA"]
[null,null,null,null,null,null,null,null,null,null,null,null,null,null,null,null,null,null,null,null,null,4892,461,"INFRESTRUCTURA ACAD"]
[null,null,null,null,null,null,null,null,null,null,null,null,null,null,null,null,null,null,null,null,null,4893,461,"INFRESTRUCTURA ADTVO"]
[null,null,null,null,null,null,null,null,null,null,null,null,null,null,null,null,null,null,null,null,null,4894,4534,"ADECUACION CAFETERIA CENTRAL BLOQUE N - 2011"]
[null,null,null,null,null,null,null,null,null,null,null,null,null,null,null,null,null,null,null,null,null,4895,393,"MATI - MAESTRIA EN ARQUITECTURA DE TI"]
[null,null,null,null,null,null,null,null,null,null,null,null,null,null,null,null,null,null,null,null,null,4896,397,"ESAFE (7) 2012"]
[null,null,null,null,null,null,null,null,null,null,null,null,null,null,null,null,null,null,null,null,null,4897,439,"HISTORIA ARTE PRE"]
[null,null,null,null,null,null,null,null,null,null,null,null,null,null,null,null,null,null,null,null,null,4898,4419,"LABORATORIO DE COMPUTACION MOVIL"]
[null,null,null,null,null,null,null,null,null,null,null,null,null,null,null,null,null,null,null,null,null,4899,4419,"LABORATORIO DE REDES Y COMUNICACIONES"]
[null,null,null,null,null,null,null,null,null,null,null,null,null,null,null,null,null,null,null,null,null,4900,4419,"DATACENTER DEL DEPARTAMENTO"]
[null,null,null,null,null,null,null,null,null,null,null,null,null,null,null,null,null,null,null,null,null,4901,4419,"LABORATORIO COLIVRI"]
[null,null,null,null,null,null,null,null,null,null,null,null,null,null,null,null,null,null,null,null,null,4902,4429,"FONDO DE APOYO AL DESARROLLO DE EVENTOS ACADEMICOS DEL DEPARTAMENTO"]
[null,null,null,null,null,null,null,null,null,null,null,null,null,null,null,null,null,null,null,null,null,4903,341,"ING. ELECTRICA AUTOMATIZACION - 19"]
[null,null,null,null,null,null,null,null,null,null,null,null,null,null,null,null,null,null,null,null,null,4904,4706,"FORMACION PACTO"]
[null,null,null,null,null,null,null,null,null,null,null,null,null,null,null,null,null,null,null,null,null,4905,167,"LINEA BASE HOGAR DIGITAL"]
[null,null,null,null,null,null,null,null,null,null,null,null,null,null,null,null,null,null,null,null,null,4906,53,"ECOPETROL - SANTIAGO MADRIÑAN"]
[null,null,null,null,null,null,null,null,null,null,null,null,null,null,null,null,null,null,null,null,null,4907,42,"PROF. ASISTENTE - JAROD ALPER"]
[null,null,null,null,null,null,null,null,null,null,null,null,null,null,null,null,null,null,null,null,null,4908,53,"BANREP 201126 - FEDERICO BROWN"]
[null,null,null,null,null,null,null,null,null,null,null,null,null,null,null,null,null,null,null,null,null,4909,3460,"PROY UNICEF SPPS"]
[null,null,null,null,null,null,null,null,null,null,null,null,null,null,null,null,null,null,null,null,null,4910,3460,"PROY UNICEF POBREZA"]
[null,null,null,null,null,null,null,null,null,null,null,null,null,null,null,null,null,null,null,null,null,4911,3460,"PROY OIM GEOETNO"]
[null,null,null,null,null,null,null,null,null,null,null,null,null,null,null,null,null,null,null,null,null,4912,1012,"CONTRATO UTP 004011 PQC"]
[null,null,null,null,null,null,null,null,null,null,null,null,null,null,null,null,null,null,null,null,null,4913,3372,"CURSO: LA UNIDAD EN PSICOLOGIA ¿POSIBILIDAD O MITO?"]
[null,null,null,null,null,null,null,null,null,null,null,null,null,null,null,null,null,null,null,null,null,4914,647,"BLOQUE C CONSOLIDADOR PLANTA FISICA"]
[null,null,null,null,null,null,null,null,null,null,null,null,null,null,null,null,null,null,null,null,null,4915,4914,"BLOQUE C OBRA"]
[null,null,null,null,null,null,null,null,null,null,null,null,null,null,null,null,null,null,null,null,null,4916,4914,"BLOQUE C INTERVENTORIA"]
[null,null,null,null,null,null,null,null,null,null,null,null,null,null,null,null,null,null,null,null,null,4917,4914,"BLOQUE C IMPUESTOS Y OTROS"]
[null,null,null,null,null,null,null,null,null,null,null,null,null,null,null,null,null,null,null,null,null,4919,4914,"BLOQUE C DISEÑOS"]
[null,null,null,null,null,null,null,null,null,null,null,null,null,null,null,null,null,null,null,null,null,4920,4914,"BLOQUE C DOTACION Y MOVILIARIO"]
[null,null,null,null,null,null,null,null,null,null,null,null,null,null,null,null,null,null,null,null,null,4921,167,"CIPAV"]
[null,null,null,null,null,null,null,null,null,null,null,null,null,null,null,null,null,null,null,null,null,4922,167,"PLANT- LEVEL PRICES - NBER"]
[null,null,null,null,null,null,null,null,null,null,null,null,null,null,null,null,null,null,null,null,null,4923,53,"COL.RC# 700- 2011 - SUSANA CABALLERO"]
[null,null,null,null,null,null,null,null,null,null,null,null,null,null,null,null,null,null,null,null,null,4924,4534,"ADECUACIONES OFICINAS DE QUIMICAS PISO 8"]
[null,null,null,null,null,null,null,null,null,null,null,null,null,null,null,null,null,null,null,null,null,4925,2618,"TIGO PORTAL SENSIBLE"]
[null,null,null,null,null,null,null,null,null,null,null,null,null,null,null,null,null,null,null,null,null,4926,53,"NSF-CECROPIA - SANTIAGO MADRIÑAN"]
[null,null,null,null,null,null,null,null,null,null,null,null,null,null,null,null,null,null,null,null,null,4927,42,"INNOVACION CIENCIAS"]
[null,null,null,null,null,null,null,null,null,null,null,null,null,null,null,null,null,null,null,null,null,4928,42,"PROYECTOS ESPECIALES"]
[null,null,null,null,null,null,null,null,null,null,null,null,null,null,null,null,null,null,null,null,null,4929,1969,"IDU ESTACION ALCALA"]
[null,null,null,null,null,null,null,null,null,null,null,null,null,null,null,null,null,null,null,null,null,4930,53,"COLCIENCIAS 757-2011 C.JARAMILLO"]
[null,null,null,null,null,null,null,null,null,null,null,null,null,null,null,null,null,null,null,null,null,4931,2610,"VIVIENDA SOSTENIBLE MAVDT"]
[null,null,null,null,null,null,null,null,null,null,null,null,null,null,null,null,null,null,null,null,null,4932,134,"V CONGRESO DERECHO PROCESAL"]
[null,null,null,null,null,null,null,null,null,null,null,null,null,null,null,null,null,null,null,null,null,4933,2618,"TIGO MILLICOM"]
[null,null,null,null,null,null,null,null,null,null,null,null,null,null,null,null,null,null,null,null,null,4934,4391,"FONDO PATRIMONIAL GEOCIENCIAS OXY"]
[null,null,null,null,null,null,null,null,null,null,null,null,null,null,null,null,null,null,null,null,null,4935,1707,"PASANTIA DOCTORALES"]
[null,null,null,null,null,null,null,null,null,null,null,null,null,null,null,null,null,null,null,null,null,4936,53,"CEIS - LDMB"]
[null,null,null,null,null,null,null,null,null,null,null,null,null,null,null,null,null,null,null,null,null,4937,2480,"OTROS CURSOS EDCONTINUADA"]
[null,null,null,null,null,null,null,null,null,null,null,null,null,null,null,null,null,null,null,null,null,4938,2163,"ARMADA LEXARC"]
[null,null,null,null,null,null,null,null,null,null,null,null,null,null,null,null,null,null,null,null,null,4939,1960,"ARMADA SIMULADOR DE TIRO"]
[null,null,null,null,null,null,null,null,null,null,null,null,null,null,null,null,null,null,null,null,null,4940,2620,"GOLDFICH"]
[null,null,null,null,null,null,null,null,null,null,null,null,null,null,null,null,null,null,null,null,null,4941,1991,"EMGESA MODELO DE OPTIMIZACION"]
[null,null,null,null,null,null,null,null,null,null,null,null,null,null,null,null,null,null,null,null,null,4942,1937,"COLPENSIONES ASISTENCIA TECNICA"]
[null,null,null,null,null,null,null,null,null,null,null,null,null,null,null,null,null,null,null,null,null,4943,2480,"DONACION CDC"]
[null,null,null,null,null,null,null,null,null,null,null,null,null,null,null,null,null,null,null,null,null,4944,3390,"DIS PA R SARMIENTO"]
[null,null,null,null,null,null,null,null,null,null,null,null,null,null,null,null,null,null,null,null,null,4945,472,"CENTRO EST EXTRANJER"]
[null,null,null,null,null,null,null,null,null,null,null,null,null,null,null,null,null,null,null,null,null,4946,2610,"CODENSA NIVELES DE TENSION "]
[null,null,null,null,null,null,null,null,null,null,null,null,null,null,null,null,null,null,null,null,null,4947,1943,"QUALITY COLOR FASE II"]
[null,null,null,null,null,null,null,null,null,null,null,null,null,null,null,null,null,null,null,null,null,4948,3460,"PROYECTO TUTELAS SALUD"]
[null,null,null,null,null,null,null,null,null,null,null,null,null,null,null,null,null,null,null,null,null,4949,1342,"BECA CONSULTORIA O"]
[null,null,null,null,null,null,null,null,null,null,null,null,null,null,null,null,null,null,null,null,null,4950,2814,"BECA QE DISAN"]
[null,null,null,null,null,null,null,null,null,null,null,null,null,null,null,null,null,null,null,null,null,5000,740,"PROGRAMA TEA"]
[null,null,null,null,null,null,null,null,null,null,null,null,null,null,null,null,null,null,null,null,null,9994,9999,"FONDOS Y DONACIONES"]
[null,null,null,null,null,null,null,null,null,null,null,null,null,null,null,null,null,null,null,null,null,9995,9997,"APOYO INSTITUCIONAL"]
[null,null,null,null,null,null,null,null,null,null,null,null,null,null,null,null,null,null,null,null,null,9996,9997,"APOYO ACADEMICO"]
[null,null,null,null,null,null,null,null,null,null,null,null,null,null,null,null,null,null,null,null,null,9997,9999,"ADMINISTRACION CENTRAL"]
[null,null,null,null,null,null,null,null,null,null,null,null,null,null,null,null,null,null,null,null,null,9998,9999,"FACULTADES"]
[null,null,null,null,null,null,null,null,null,null,null,null,null,null,null,null,null,null,null,null,null,9999,null,"TOTAL UNIVERSIDAD"]